Workbook

Sheet Design the AEF circuit
A1: TPSF12C1/-Q1 & TPSF12C3/-Q1 Common-Mode Active EMI Filter (AEF) Design Tool
B3: About | F3: = Input Box | I3: Terms Of Use
A6: Step 1: Enter application parameters
A7: System type?
B9: Nominal input voltage | C9: 230 | D9: VRMS
B10: Rated input current | C10: 22 | D10: ARMS
B11: Switching frequency | C11: 47 | D11: kHz
B12: Switch-node voltage | C12: 800 | D12: V
B13: Power level | C13: =C9*C10/1000*No_of_phases -> 15.18 | D13: kW
A15: Step 2: Enter CM choke and Y-capacitor data
A16: CM choke model? | E16: ® | F16: =IF(CMdata=1,"Enter CM choke impedance model parameters here:","Enter CM choke impedance (magnitude & phase) data vs. frequency in the ""CM choke"" tab") -> Enter CM choke impedance (magnitude & phase) data vs. frequency in the "CM choke" tab | J16: =IF(F14="Simple Model: L || R || C","","") ->  | K16: =IF(F14="Simple Model: L || R || C","","") -> 
F17: CM choke model #1 → | G17: Grid-side choke, LCM1 | H17: Regulator-side choke, LCM2
A18: Grid-side Y-capacitors (each)
A19: Capacitance | C19: 22 | D19: nF | F19: Inductance, LMAG (mH) | G19: 0.7 | H19: 0.7
A20: ESR | C20: 5 | D20: Ω | F20: Resistance, RPAR (kΩ) | G20: 0.26 | H20: 0.25
A21: ESL | C21: 15 | D21: nH | F21: Capacitance, CPAR (pF) | G21: 6 | H21: 6
F22: Inductance, LMAG2 [mH] | G22: 0.1 | H22: 0.1
A23: Regulator-side Y-capacitors (each) | F23: Resistance, RPAR2 [kW] | G23: 0.35 | H23: 0.35
A24: Capacitance | C24: 47 | D24: nF | F24: Inductance, LMAG3 [mH] | G24: 0.02 | H24: 0.02
A25: ESR | C25: 5 | D25: Ω | F25: Resistance, RPAR3 [kW] | G25: 0.7 | H25: 0.7
A26: ESL | C26: 15 | D26: nH
A28: Step 3: Enter source impedances
A29: Grid source impedance (each power line)
A30: LGRID | C30: 10 | D30: µH
A31: RGRID | C31: 10 | D31: mΩ
A32: LISN present? | C32: 10
A34: Regulator CM noise source impedance (parasitic)
A35: CSRC | C35: 117 | D35: pF
A36: RSRC | C36: 50 | D36: mΩ
A37: LSRC | C37: 100 | D37: nH
A39: Step 4: Enter SENSE and INJECT capacitor parameters
A40: Sense capacitors - CSENx (each)
A41: Capacitance | C41: 0.68 | D41: nF
A42: ESR | C42: 10 | D42: Ω
A43: ESL | C43: 10 | D43: nH
A45: Inject capacitor - CINJ
A46: Capacitance | C46: 22 | D46: nF
A47: ESR | C47: 1 | D47: Ω
A48: ESL | C48: 15 | D48: nH
A50: Step 5: Set the COMP1-to-COMP2 component values
A51: RG | C51: 24 | D51: kΩ
A52: CG1 | C52: 22 | D52: nF
A53: CG2 | C53: 10 | D53: pF
A55: Step 6: Review damping network component values
B56: Calculated | C56: Selected
A57: RD1 | B57: ='Stability calculations'!B52/1000 -> 1 | C57: 0.35 | D57: kΩ
A58: CD2 | B58: =ROUND('Stability calculations'!B55*1000000000,1) -> 50.5 | C58: 100 | D58: nF
A59: CD1 | B59: =ROUND('Stability calculations'!B53*1000000000,1) -> 12.5 | C59: 100 | D59: nF
A60: RD2 | B60: ='Stability calculations'!B56 -> 43.75 | C60: 100 | D60: Ω
A61: RD1A | B61: ='Stability calculations'!B54 -> 50 | C61: 50 | D61: Ω
A62: RD3 | B62: ='Stability calculations'!B57 -> 700 | C62: 680 | D62: Ω
A63: CD3 | B63: =ROUND('Stability calculations'!B58*1000000000,2) -> 22 | C63: 100 | D63: nF
A64: fLFstability | C64: ='Stability calculations'!D35/1000 -> 45 | D64: kHz
A65: fRD1-CD2 | C65: ='Stability calculations'!$D$46/1000 -> 4.547284088 | D65: kHz
A66: fRD1-CD1 | C66: ='Stability calculations'!$D$42/1000 -> 4.547284088 | D66: kHz
A67: fRD2-CD2 | C67: ='Stability calculations'!$D$43/1000 -> 15.91549431 | D67: kHz
A68: fRD3-CD3 | C68: ='Stability calculations'!$D$44/1000 -> 2.340513869 | D68: kHz
A69: fRD1A-CD1 | C69: ='Stability calculations'!$D$45/1000 -> 31.83098862 | D69: kHz
E70: **Adjust the component values to ensure the phase does not reach ‒180° in the 1-100kHz range**
A71: Step 7: Check the INJ pin voltage swing
B72: VDD supply voltage | C72: 12 | D72: V
B73: Center node vCM at FSW | C73: ='Variable management'!L41*1000 -> 498.1907815 | D73: mVpp
B74: INJ pin voltage swing at FSW | C74: ='Variable management'!L43 -> 2.98022172 | D74: Vpp
B75: INJ pin current iINJ at FSW | C75: ='Variable management'!L50 -> 31.11605258 | D75: mApp
B76: Capacitor current iCINJ at FSW | C76: ='Variable management'!L48 -> 11.47365525 | D76: mApp

Sheet Schematic management (hidden)
A1: =SETUP -> 2
A2: =CHOOSE(SETUP,"TPSF12C1","TPSF12C3_4wire","TPSF12C3_3wire") -> TPSF12C3_4wire

Sheet CM choke
A2: Enter/paste the CM choke impedance (magnitude & phase) data here:
C4: Grid-side CM choke | E4: Regulator-side CM choke
C5: LCM1 | E5: LCM2
A6: CM Choke Model #2 → | B6: Frequency [Hz] | C6: ZCM1 Magnitude [Ω] | D6: ZCM1 Phase [°] | E6: ZCM2 Magnitude [Ω] | F6: ZCM2 Phase [°]
A7: =IF(CMdata=1,"","Min. frequency") -> Min. frequency | B7: 1000 | C7: 7.4048 | D7: 87.352 | E7: 3.1572 | F7: 85.84
A8: =IF(CMdata=1,"",_xlfn.CONCAT(MIN(B7:B2106)/1000," kHz")) -> 1 kHz | B8: 1148.2 | C8: 8.4589 | D8: 87.457 | E8: 3.6095 | F8: 85.852
A9: =IF(CMdata=1,"","Max. frequency") -> Max. frequency | B9: 1318.4 | C9: 9.6674 | D9: 87.569 | E9: 4.1208 | F9: 85.893
A10: =IF(CMdata=1,"",_xlfn.CONCAT(MAX(B7:B2106)/1000000," MHz")) -> 100.5773063 MHz | B10: 1513.7 | C10: 11.05 | D10: 87.653 | E10: 4.701 | F10: 85.944
B11: 1738.1 | C11: 12.635 | D11: 87.703 | E11: 5.36 | F11: 86.009
B12: 1995.6 | C12: 14.448 | D12: 87.718 | E12: 6.1092 | F12: 86.079
B13: 2291.4 | C13: 16.524 | D13: 87.706 | E13: 6.9646 | F13: 86.136
B14: 2630.9 | C14: 18.902 | D14: 87.663 | E14: 7.9406 | F14: 86.147
B15: 3020.8 | C15: 21.629 | D15: 87.59 | E15: 9.0326 | F15: 86.218
B16: 3468.5 | C16: 24.746 | D16: 87.48 | E16: 10.261 | F16: 86.322
B17: 3982.5 | C17: 28.318 | D17: 87.338 | E17: 11.651 | F17: 86.442
B18: 4572.7 | C18: 32.412 | D18: 87.157 | E18: 13.223 | F18: 86.557
B19: 5250.3 | C19: 37.107 | D19: 86.935 | E19: 15.011 | F19: 86.675
B20: 6028.4 | C20: 42.491 | D20: 86.672 | E20: 17.043 | F20: 86.789
B21: 6921.7 | C21: 48.635 | D21: 86.362 | E21: 19.354 | F21: 86.896
B22: 7947.5 | C22: 55.664 | D22: 85.999 | E22: 21.988 | F22: 86.992
B23: 9125.2 | C23: 63.697 | D23: 85.578 | E23: 24.989 | F23: 87.07
B24: 10000 | C24: 120.5492124 | D24: 83.01305033 | E24: 26.50411849 | F24: 85.89128027
B25: 15000 | C25: 178.4714557 | D25: 77.54908746 | E25: 38.78291647 | F25: 88.35844422
B26: 20000 | C26: 229.9058336 | D26: 80.79939857 | E26: 54.36219981 | F26: 87.96753196
B27: 25000 | C27: 279.7667615 | D27: 71.43785667 | E27: 67.49409789 | F27: 87.85942369
B28: 30000 | C28: 352.6776688 | D28: 82.22801472 | E28: 82.56804426 | F28: 86.37670068
B29: 35000 | C29: 387.3590952 | D29: 71.19164794 | E29: 93.99866536 | F29: 87.08453979
B30: 40000 | C30: 425.4443306 | D30: 69.1926878 | E30: 108.5256008 | F30: 86.30497704
B31: 45000 | C31: 495.240785 | D31: 66.66022228 | E31: 123.5699741 | F31: 85.74887678
B32: 50000 | C32: 510.7223441 | D32: 71.45723877 | E32: 133.9083141 | F32: 84.71941815
B33: 55000 | C33: 643.0138129 | D33: 67.54491108 | E33: 144.3450108 | F33: 87.96527363
B34: 60000 | C34: 608.1419958 | D34: 63.64157438 | E34: 165.1911783 | F34: 83.12674254
B35: 65000 | C35: 641.7892398 | D35: 63.95170543 | E35: 180.9969517 | F35: 84.47798908
B36: 70000 | C36: 670.4159063 | D36: 57.8829547 | E36: 195.8105403 | F36: 83.74272389
B37: 75000 | C37: 696.7438801 | D37: 58.18057149 | E37: 213.3310203 | F37: 82.58079648
B38: 80000 | C38: 724.2979328 | D38: 56.80207136 | E38: 226.3296942 | F38: 82.84047546
B39: 85000 | C39: 728.503255 | D39: 52.56962758 | E39: 245.1833921 | F39: 82.464609
B40: 90000 | C40: 833.9389012 | D40: 58.65328745 | E40: 260.1800431 | F40: 80.57927535
B41: 95000 | C41: 809.6003091 | D41: 56.01594013 | E41: 277.2182796 | F41: 83.39265108
B42: 100000 | C42: 818.8741921 | D42: 45.76783372 | E42: 288.6234242 | F42: 79.51482707
B43: 105000 | C43: 864.8216963 | D43: 49.92555362 | E43: 308.9942835 | F43: 79.06023107
B44: 109000 | C44: 879.4688954 | D44: 47.6186982 | E44: 328.348983 | F44: 78.53832878
B45: 114000 | C45: 875.1339534 | D45: 48.41158826 | E45: 365.8628616 | F45: 82.30356658
B46: 119000 | C46: 930.1528968 | D46: 47.95056027 | E46: 361.4026281 | F46: 76.62824197
B47: 124000 | C47: 928.6596859 | D47: 50.19759662 | E47: 372.5380196 | F47: 75.88094693
B48: 129000 | C48: 966.9307779 | D48: 44.00637955 | E48: 396.5606608 | F48: 74.49733519
B49: 134000 | C49: 990.4501941 | D49: 43.56695307 | E49: 416.9658344 | F49: 73.25975736
B50: 139000 | C50: 1011.008457 | D50: 43.017429 | E50: 436.2230583 | F50: 72.42793149
B51: 144000 | C51: 1068.83361 | D51: 42.77365291 | E51: 453.8296342 | F51: 69.25496441
B52: 149000 | C52: 1088.123706 | D52: 38.89008928 | E52: 465.6417498 | F52: 70.55565151
B53: 154000 | C53: 1082.264152 | D53: 40.32566124 | E53: 492.6827542 | F53: 68.58657199
B54: 159000 | C54: 1111.321042 | D54: 40.35619289 | E54: 532.7395957 | F54: 69.28689791
B55: 164000 | C55: 1114.601269 | D55: 39.12218999 | E55: 532.7821366 | F55: 66.47002095
B56: 169000 | C56: 1128.526271 | D56: 37.96591559 | E56: 547.5313948 | F56: 65.11837977
B57: 174000 | C57: 1133.757684 | D57: 37.40521495 | E57: 567.4941124 | F57: 65.8212406
B58: 179000 | C58: 1143.652505 | D58: 36.61740819 | E58: 584.366937 | F58: 62.88043554
B59: 184000 | C59: 1180.676606 | D59: 36.59282156 | E59: 604.4647794 | F59: 61.71868989
B60: 189000 | C60: 1205.449706 | D60: 35.59649487 | E60: 623.0519026 | F60: 60.24890231
B61: 194000 | C61: 1210.171507 | D61: 34.59100923 | E61: 639.6859824 | F61: 58.99045265
B62: 199000 | C62: 1219.440703 | D62: 33.99917326 | E62: 655.3835673 | F62: 57.54283469
B63: 204000 | C63: 1234.311833 | D63: 33.05706039 | E63: 675.0503384 | F63: 56.54571431
B64: 209000 | C64: 1238.407466 | D64: 32.73477316 | E64: 692.4542355 | F64: 54.87105245
B65: 214000 | C65: 1267.331099 | D65: 32.30335096 | E65: 713.0619445 | F65: 53.84782301
B66: 219000 | C66: 1220.054984 | D66: 30.43414364 | E66: 735.6841431 | F66: 53.01275126
B67: 224000 | C67: 1277.533295 | D67: 30.97654749 | E67: 748.1621558 | F67: 51.01908518
B68: 229000 | C68: 1316.745341 | D68: 29.92131428 | E68: 750.0262639 | F68: 48.86813039
B69: 234000 | C69: 1330.178766 | D69: 29.80053559 | E69: 778.9929879 | F69: 48.34370194
B70: 239000 | C70: 1332.199206 | D70: 29.82823881 | E70: 809.4576306 | F70: 48.44694503
B71: 244000 | C71: 1351.325846 | D71: 28.16868187 | E71: 807.1104586 | F71: 44.87872482
B72: 249000 | C72: 1368.958419 | D72: 31.25998672 | E72: 833.9740182 | F72: 44.44482214
B73: 254000 | C73: 1366.63283 | D73: 27.22856734 | E73: 839.5081923 | F73: 42.68750151
B74: 259000 | C74: 1341.631223 | D74: 25.51414197 | E74: 855.1306758 | F74: 40.79114926
B75: 264000 | C75: 1381.322162 | D75: 26.24148275 | E75: 862.0309823 | F75: 40.56100933
B76: 269000 | C76: 1356.499186 | D76: 27.65059532 | E76: 877.9359478 | F76: 37.53722885
B77: 274000 | C77: 1412.687437 | D77: 25.94304758 | E77: 870.4499874 | F77: 38.50859145
B78: 279000 | C78: 1370.863586 | D78: 34.14081378 | E78: 867.7864561 | F78: 38.33645119
B79: 284000 | C79: 1424.57835 | D79: 18.99249902 | E79: 917.5570233 | F79: 34.65061338
B80: 289000 | C80: 1499.205384 | D80: 25.27086918 | E80: 920.8107529 | F80: 32.04679726
B81: 294000 | C81: 1342.260084 | D81: 31.67674251 | E81: 920.6006602 | F81: 29.87386045
B82: 299000 | C82: 1544.368239 | D82: 24.95263815 | E82: 989.0233661 | F82: 25.20123773
B83: 304000 | C83: 1294.899173 | D83: 30.78249337 | E83: 1023.358397 | F83: 17.65817316
B84: 308000 | C84: 1468.812612 | D84: 20.69414922 | E84: 983.8084799 | F84: 26.30511957
B85: 313000 | C85: 1481.389034 | D85: 21.06044227 | E85: 959.6356577 | F85: 25.86631609
B86: 318000 | C86: 1480.279886 | D86: 20.01596038 | E86: 976.2491 | F86: 24.65857531
B87: 323000 | C87: 1512.831307 | D87: 19.47201993 | E87: 986.0332756 | F87: 23.02191299
B88: 328000 | C88: 1511.292891 | D88: 19.38843434 | E88: 985.8102237 | F88: 21.73540129
B89: 333000 | C89: 1518.783169 | D89: 19.39917063 | E89: 990.9183 | F89: 21.15049283
B90: 338000 | C90: 1518.377282 | D90: 18.12433611 | E90: 995.7804586 | F90: 20.10045289
B91: 343000 | C91: 1495.749184 | D91: 17.59254479 | E91: 998.4633589 | F91: 19.15216775
B92: 348000 | C92: 1539.60577 | D92: 18.09059502 | E92: 1016.722599 | F92: 17.14868104
B93: 353000 | C93: 1543.725332 | D93: 17.40930215 | E93: 1000.108971 | F93: 15.69738554
B94: 358000 | C94: 1567.742748 | D94: 16.89529215 | E94: 1004.982306 | F94: 14.5075687
B95: 363000 | C95: 1585.3696 | D95: 16.26082632 | E95: 999.4651785 | F95: 13.91986939
B96: 368000 | C96: 1562.86342 | D96: 15.29173204 | E96: 1011.112424 | F96: 13.00646677
B97: 373000 | C97: 1584.915228 | D97: 15.30530654 | E97: 1013.008638 | F97: 11.68860522
B98: 378000 | C98: 1584.97075 | D98: 14.51150128 | E98: 1012.494278 | F98: 10.43489044
B99: 383000 | C99: 1593.891019 | D99: 14.23369944 | E99: 1010.918985 | F99: 9.388377483
B100: 388000 | C100: 1596.004152 | D100: 12.97502789 | E100: 1013.379205 | F100: 8.368595812
B101: 393000 | C101: 1596.224636 | D101: 13.11985014 | E101: 1005.703594 | F101: 7.543808089
B102: 398000 | C102: 1618.568267 | D102: 12.64194444 | E102: 1012.248667 | F102: 6.071842064
B103: 403000 | C103: 1624.78966 | D103: 12.16528252 | E103: 1006.609298 | F103: 5.488150368
B104: 408000 | C104: 1654.477437 | D104: 12.0243168 | E104: 1009.288418 | F104: 4.083634932
B105: 413000 | C105: 1656.631041 | D105: 11.81945091 | E105: 1017.775911 | F105: 3.570800108
B106: 418000 | C106: 1634.632922 | D106: 10.59704263 | E106: 1011.882959 | F106: 2.428718575
B107: 423000 | C107: 1651.748979 | D107: 9.898249395 | E107: 1005.588445 | F107: 1.546838462
B108: 428000 | C108: 1662.422502 | D108: 9.768414988 | E108: 1005.31233 | F108: 0.4735033487
B109: 433000 | C109: 1706.997456 | D109: 9.718969501 | E109: 1018.118077 | F109: -0.279074599
B110: 438000 | C110: 1650.119551 | D110: 9.263598958 | E110: 990.7526239 | F110: -1.392581339
B111: 443000 | C111: 1667.841924 | D111: 8.637444826 | E111: 993.0221122 | F111: -2.042840487
B112: 448000 | C112: 1673.490749 | D112: 7.999865266 | E112: 994.9737207 | F112: -2.953586965
B113: 453000 | C113: 1683.421419 | D113: 7.381869667 | E113: 986.4861644 | F113: -3.529529184
B114: 458000 | C114: 1666.081958 | D114: 7.59618414 | E114: 991.1927672 | F114: -4.704068294
B115: 463000 | C115: 1670.074432 | D115: 6.903612568 | E115: 971.022504 | F115: -5.593466929
B116: 468000 | C116: 1695.003786 | D116: 6.39526306 | E116: 982.9834904 | F116: -5.836403284
B117: 473000 | C117: 1688.23319 | D117: 5.780365103 | E117: 978.1356885 | F117: -6.744365562
B118: 478000 | C118: 1709.553705 | D118: 5.789046031 | E118: 980.4866203 | F118: -7.463388699
B119: 483000 | C119: 1713.173957 | D119: 4.726949564 | E119: 972.4196784 | F119: -8.457836165
B120: 488000 | C120: 1695.797272 | D120: 4.445276906 | E120: 968.3170914 | F120: -9.2707569
B121: 493000 | C121: 1709.032222 | D121: 3.364216377 | E121: 957.7809239 | F121: -9.777089192
B122: 498000 | C122: 1702.330795 | D122: 3.609974374 | E122: 968.1153901 | F122: -10.34829528
B123: 503000 | C123: 1737.202275 | D123: 3.058355406 | E123: 960.4272263 | F123: -11.32494308
B124: 507000 | C124: 1730.258015 | D124: 2.606441567 | E124: 960.9244776 | F124: -12.06605993
B125: 512000 | C125: 1740.957502 | D125: 2.017797727 | E125: 954.2597805 | F125: -12.7170253
B126: 517000 | C126: 1748.000217 | D126: 1.761696461 | E126: 950.7493186 | F126: -13.54536963
B127: 522000 | C127: 1744.188945 | D127: 1.380076318 | E127: 947.6814127 | F127: -14.08750685
B128: 527000 | C128: 1766.412395 | D128: 1.028154298 | E128: 938.8919211 | F128: -14.73096145
B129: 532000 | C129: 1741.030482 | D129: 0.3858623385 | E129: 941.1775134 | F129: -15.4148743
B130: 537000 | C130: 1755.626823 | D130: 0.1195766012 | E130: 935.0348261 | F130: -15.88111532
B131: 542000 | C131: 1763.769589 | D131: -0.3588299297 | E131: 933.4065718 | F131: -16.6565416
B132: 547000 | C132: 1758.749437 | D132: -0.8431704723 | E132: 929.0139498 | F132: -17.29047838
B133: 552000 | C133: 1759.032086 | D133: -1.198912219 | E133: 922.1137781 | F133: -17.89642364
B134: 557000 | C134: 1740.917552 | D134: -1.726752848 | E134: 920.0955728 | F134: -18.37347041
B135: 562000 | C135: 1774.07932 | D135: -1.999629164 | E135: 910.0743399 | F135: -18.95105243
B136: 567000 | C136: 1775.550562 | D136: -2.413909353 | E136: 912.7849395 | F136: -19.58200124
B137: 572000 | C137: 1763.966592 | D137: -2.714008367 | E137: 910.5782859 | F137: -20.18256613
B138: 577000 | C138: 1768.775797 | D138: -3.296532828 | E138: 901.8598724 | F138: -20.56648495
B139: 582000 | C139: 1768.348776 | D139: -4.284028966 | E139: 900.8027518 | F139: -21.05350323
B140: 587000 | C140: 1780.889308 | D140: -4.098031338 | E140: 894.5088088 | F140: -21.61187342
B141: 592000 | C141: 1791.837481 | D141: -4.481558839 | E141: 889.4354391 | F141: -22.33720194
B142: 597000 | C142: 1831.98331 | D142: -4.971592579 | E142: 858.4986968 | F142: -22.61402267
B143: 602000 | C143: 1752.975351 | D143: -5.340134627 | E143: 884.3788695 | F143: -23.37189293
B144: 607000 | C144: 1773.759073 | D144: -5.715539728 | E144: 882.9144707 | F144: -23.76043092
B145: 612000 | C145: 1782.635839 | D145: -5.981637662 | E145: 869.0964969 | F145: -24.10855321
B146: 617000 | C146: 1786.309049 | D146: -6.183603011 | E146: 869.546894 | F146: -24.73017379
B147: 622000 | C147: 1786.649029 | D147: -6.821595713 | E147: 868.8394424 | F147: -25.04567313
B148: 627000 | C148: 1777.594617 | D148: -7.415329967 | E148: 859.7499457 | F148: -25.63490654
B149: 632000 | C149: 1790.482486 | D149: -7.81122873 | E149: 858.8469124 | F149: -26.09699899
B150: 637000 | C150: 1785.676425 | D150: -8.137013257 | E150: 852.9168542 | F150: -26.80022175
B151: 642000 | C151: 1783.510258 | D151: -8.486500653 | E151: 849.4819221 | F151: -27.16266369
B152: 647000 | C152: 1778.637215 | D152: -9.1422562 | E152: 848.9854742 | F152: -27.35676101
B153: 652000 | C153: 1784.318669 | D153: -9.414758666 | E153: 839.8580739 | F153: -27.9298291
B154: 657000 | C154: 1791.284708 | D154: -9.570730329 | E154: 840.6383175 | F154: -28.35716582
B155: 662000 | C155: 1786.186393 | D155: -10.02162813 | E155: 835.9495994 | F155: -28.64971835
B156: 667000 | C156: 1774.791875 | D156: -10.68959848 | E156: 829.6354347 | F156: -29.20793869
B157: 672000 | C157: 1786.41773 | D157: -11.07608726 | E157: 827.659623 | F157: -29.53165323
B158: 677000 | C158: 1786.993656 | D158: -11.54930498 | E158: 824.748181 | F158: -29.8029325
B159: 682000 | C159: 1791.186292 | D159: -11.81357731 | E159: 818.6592712 | F159: -30.36136449
B160: 687000 | C160: 1776.447499 | D160: -12.19939263 | E160: 817.4058899 | F160: -30.49513147
B161: 692000 | C161: 1782.372876 | D161: -12.42694371 | E161: 809.7375779 | F161: -31.2297076
B162: 697000 | C162: 1785.47005 | D162: -12.91062065 | E162: 809.4000537 | F162: -31.67514445
B163: 702000 | C163: 1792.038685 | D163: -13.17548306 | E163: 803.609027 | F163: -31.57147565
B164: 706000 | C164: 1779.181915 | D164: -13.92052329 | E164: 799.5525605 | F164: -32.32282609
B165: 711000 | C165: 1781.736926 | D165: -14.0141793 | E165: 798.0116791 | F165: -32.59758145
B166: 716000 | C166: 1780.579727 | D166: -14.74094723 | E166: 791.6768861 | F166: -33.09954212
B167: 721000 | C167: 1779.183131 | D167: -14.96124712 | E167: 790.4810839 | F167: -33.40177011
B168: 726000 | C168: 1780.552344 | D168: -15.08907111 | E168: 786.2340144 | F168: -33.67893097
B169: 731000 | C169: 1775.025977 | D169: -15.56077072 | E169: 779.1838802 | F169: -34.17694897
B170: 736000 | C170: 1777.162128 | D170: -16.11781578 | E170: 780.3692399 | F170: -34.33330053
B171: 741000 | C171: 1777.543142 | D171: -16.34224579 | E171: 774.2612786 | F171: -34.58000631
B172: 746000 | C172: 1785.799175 | D172: -16.89038529 | E172: 767.7528953 | F172: -35.11450937
B173: 751000 | C173: 1778.989348 | D173: -17.37794872 | E173: 790.5854734 | F173: -35.21419026
B174: 756000 | C174: 1772.156611 | D174: -17.4327624 | E174: 760.8886784 | F174: -35.91495977
B175: 761000 | C175: 1774.59415 | D175: -17.53877482 | E175: 761.8643884 | F175: -36.00207748
B176: 766000 | C176: 1765.731628 | D176: -18.30812035 | E176: 757.4100876 | F176: -36.25732706
B177: 771000 | C177: 1765.105834 | D177: -18.6428532 | E177: 753.6573073 | F177: -36.74794041
B178: 776000 | C178: 1745.626078 | D178: -18.9696192 | E178: 751.9686187 | F178: -36.78535234
B179: 781000 | C179: 1758.294149 | D179: -19.54437007 | E179: 745.0285474 | F179: -37.29954972
B180: 786000 | C180: 1772.129503 | D180: -19.55907412 | E180: 744.0900125 | F180: -37.772912
B181: 791000 | C181: 1773.671682 | D181: -19.93351436 | E181: 741.1145445 | F181: -37.74451199
B182: 796000 | C182: 1754.678122 | D182: -20.29935948 | E182: 734.6155972 | F182: -38.37543757
B183: 801000 | C183: 1741.48032 | D183: -20.86646917 | E183: 736.6304495 | F183: -38.38239846
B184: 806000 | C184: 1754.29767 | D184: -21.32100678 | E184: 728.0575603 | F184: -38.66364285
B185: 811000 | C185: 1754.590741 | D185: -21.50632955 | E185: 727.7117873 | F185: -39.18931521
B186: 816000 | C186: 1751.721684 | D186: -21.87103316 | E186: 725.133788 | F186: -39.24928459
B187: 821000 | C187: 1739.612739 | D187: -21.96091629 | E187: 718.0413611 | F187: -39.78657835
B188: 826000 | C188: 1740.699791 | D188: -22.15672797 | E188: 717.7729935 | F188: -39.96347746
B189: 831000 | C189: 1744.352654 | D189: -22.64680914 | E189: 713.4237562 | F189: -39.97254296
B190: 836000 | C190: 1736.335523 | D190: -23.21233869 | E190: 709.7812825 | F190: -40.3160605
B191: 841000 | C191: 1727.988379 | D191: -23.77736753 | E191: 710.5737553 | F191: -40.52166329
B192: 846000 | C192: 1733.91881 | D192: -23.54849045 | E192: 702.6519949 | F192: -40.99803519
B193: 851000 | C193: 1748.629279 | D193: -23.87712083 | E193: 703.2621291 | F193: -41.41351384
B194: 856000 | C194: 1718.212209 | D194: -24.19364761 | E194: 698.9826794 | F194: -41.30777625
B195: 861000 | C195: 1724.170412 | D195: -24.68368587 | E195: 695.8615226 | F195: -41.64982012
B196: 866000 | C196: 1718.924846 | D196: -25.48584855 | E196: 695.4264241 | F196: -41.77919346
B197: 871000 | C197: 1717.243985 | D197: -25.70431551 | E197: 688.3294655 | F197: -42.26373353
B198: 876000 | C198: 1725.947956 | D198: -25.8226702 | E198: 688.5620986 | F198: -42.48783337
B199: 881000 | C199: 1722.609978 | D199: -25.82880347 | E199: 684.6461561 | F199: -42.59777959
B200: 886000 | C200: 1703.124877 | D200: -26.23548943 | E200: 680.6714831 | F200: -43.01636468
B201: 891000 | C201: 1714.001572 | D201: -26.72007759 | E201: 679.7078775 | F201: -43.05273521
B202: 896000 | C202: 1713.717353 | D202: -26.93411322 | E202: 676.4854477 | F202: -43.29835497
... 472 more rows

Sheet Choose LC filter components (hidden)
A3: Lowest switchiing harmonic above 150 kHz | J3: Ideal choices for Fsw are 48, 72, 144 kHz (to stay bekow the EMI start frequency of 150 kHz)
B4: PFC switching frequency, Fsw | C4: 65 | D4: kHz | J4: Fsw (kHz) | K4: 2nd harmonic | L4: 3rd harmonic | M4: 4th harmonic | N4: 5th harmonic
B5: First switching harmonic above 150 kHz, FEMI | C5: =ROUNDUP(150/C4,0)*C4 -> 195 | D5: kHz | I5: Ideal choice | J5: 144 | K5: =J5*2 -> 288 | L5: =J5*3 -> 432 | M5: =J5*4 -> 576 | N5: =J5*5 -> 720
B6: Harmonic number of FEMI | C6: =ROUNDUP(150/C4,0) -> 3 | I6: Common choice (SiC) | J6: 100 | K6: =J6*2 -> 200 | L6: =J6*3 -> 300 | M6: =J6*4 -> 400 | N6: =J6*5 -> 500
I7: Ideal choice | J7: 72 | K7: 144 | L7: 216 | M7: 288 | N7: 360
A8: Y-capacitance budget | I8: Common choice (Si) | J8: 65 | K8: 130 | L8: =J8*3 -> 195 | M8: =J8*4 -> 260 | N8: =J8*5 -> 325
B9: Line voltage - maximum (RMS) | C9: 264 | D9: VRMS | I9: Ideal choice | J9: 48 | K9: =J9*2 -> 96 | L9: =J9*3 -> 144 | M9: =J9*4 -> 192 | N9: =J9*5 -> 240
B10: Touch current specification (RMS) | C10: 3.5 | D10: mARMS | F10: UL 2202, IEC 61851, etc. | I10: Ideal choice | J10: 36 | K10: =J10*2 -> 72 | L10: =J10*3 -> 108 | M10: =J10*4 -> 144 | N10: =J10*5 -> 180
B11: AC grid line frequency - maximum | C11: 60 | D11: Hz
B12: Total Y-capacitance - maximum | C12: =C10*10^-3/(2*PI()*C11*C9)*1000000000 -> 35.16681192 | D12: nF | F12: Cy = Irms/(2*Pi*fac*Vac)
A15: Filter attenuation parameters | I15: PCB layout details
B16: Filter design frequency for attenuation, FEMI | C16: 195 | D16: kHz | I16: Input and output terminals of the CM chokes do not overlap
B17: Target filter attenuation at FEMI | C17: 40 | D17: dB | I17: No copper planes present below the magnetic components
I18: Minimize magnetic/capacitive coupling by corerct positioning and orientation of the componenets
A19: Grid-side filter stage
B20: Target grid-side filter attenuation at FEMI | C20: 20 | D20: dB
B21: Total grid-side Y-capacitance, CY1 | C21: ='Design the AEF circuit'!$C$19*SETUP -> 44 | D21: nF
B22: Effective LISN resistance for CM noise, RLISN-CM | C22: 25 | D22: Ω | F22: 16.7Ω for 3-wire, 12.5Ω for 4-wire systems
B23: Grid-side choke inductance, LCM1 | D23: mH
B24: Filter resonant frequency | D24: kHz | F24: Keep away from switching frequency and harmonics
A26: PFC-side filter stage
B27: Target PFC-side filter attenuation at FEMI | C27: 20 | D27: dB
B28: Center-node Y-capacitance, CY2 | C28: 10 | D28: nF
B29: Total Y-capacitance at PFC, CY3 | C29: ='Design the AEF circuit'!$C$24*SETUP -> 94 | D29: nF | F29: Maximize CY3 to reduce incident noise on the AEF
B30: PFC-side choke inductance, LCM2 | D30: mH
B31: Filter resonant frequency, fRES | D31: kHz | F31: Keep away from switching frequency and harmonics
A34: Filter results with selected components
B35: Calculated total filter attenuation at FEMI | D35: dB
B36: Reactive power consumption at line frequency | D36: VA

Sheet Frequency vector (hidden)
A2: Number of points per decade | B2: ndec | C2: 300 | D2: index | E2: freq_generated [Hz] | F2: freq_customer [Hz] | G2: freq_selected [Hz] | H2: freq_selected [kHz]
A3: Logscale generator | B3: klog | C3: =10^(1/C2) -> 1.007704814 | D3: 0 | E3: =10*('Frequency vector'!$C$3)^D3 -> 10 | F3: ='CM choke'!B7 -> 1000 | G3: =IF(CMdata=1,'Frequency vector'!E3,'Frequency vector'!F3) -> 1000 | H3: =G3/1000 -> 1 | J3: =IF(ABS(Fsw-G3)<=5000,1,0) -> 0 | L3: =MATCH(1,J3:J2103,0) -> 25 | M3: index | N3: =Fsw -> 47000
D4: 1 | E4: =10*('Frequency vector'!$C$3)^D4 -> 10.07704814 | F4: =IF('CM choke'!B8=0, F3, 'CM choke'!B8) -> 1148.2 | G4: =IF(CMdata=1,'Frequency vector'!E4,'Frequency vector'!F4) -> 1148.2 | H4: =G4/1000 -> 1.1482 | J4: 0 | L4: =INDEX(G3:G2103,Fsw_index) -> 45000 | M4: Hz
D5: 2 | E5: =10*('Frequency vector'!$C$3)^D5 -> 10.15468992 | F5: =IF('CM choke'!B9=0, F4, 'CM choke'!B9) -> 1318.4 | G5: =IF(CMdata=1,'Frequency vector'!E5,'Frequency vector'!F5) -> 1318.4 | H5: 1.3184 | J5: 0
D6: 3 | E6: =10*('Frequency vector'!$C$3)^D6 -> 10.23292992 | F6: =IF('CM choke'!B10=0, F5, 'CM choke'!B10) -> 1513.7 | G6: =IF(CMdata=1,'Frequency vector'!E6,'Frequency vector'!F6) -> 1513.7 | H6: 1.5137 | J6: 0
D7: 4 | E7: =10*('Frequency vector'!$C$3)^D7 -> 10.31177275 | F7: =IF('CM choke'!B11=0, F6, 'CM choke'!B11) -> 1738.1 | G7: =IF(CMdata=1,'Frequency vector'!E7,'Frequency vector'!F7) -> 1738.1 | H7: 1.7381 | J7: 0
D8: 5 | E8: =10*('Frequency vector'!$C$3)^D8 -> 10.39122304 | F8: =IF('CM choke'!B12=0, F7, 'CM choke'!B12) -> 1995.6 | G8: =IF(CMdata=1,'Frequency vector'!E8,'Frequency vector'!F8) -> 1995.6 | H8: 1.9956 | J8: 0
D9: 6 | E9: =10*('Frequency vector'!$C$3)^D9 -> 10.47128548 | F9: =IF('CM choke'!B13=0, F8, 'CM choke'!B13) -> 2291.4 | G9: =IF(CMdata=1,'Frequency vector'!E9,'Frequency vector'!F9) -> 2291.4 | H9: 2.2914 | J9: 0
D10: 7 | E10: =10*('Frequency vector'!$C$3)^D10 -> 10.55196479 | F10: =IF('CM choke'!B14=0, F9, 'CM choke'!B14) -> 2630.9 | G10: =IF(CMdata=1,'Frequency vector'!E10,'Frequency vector'!F10) -> 2630.9 | H10: 2.6309 | J10: 0
D11: 8 | E11: =10*('Frequency vector'!$C$3)^D11 -> 10.63326572 | F11: =IF('CM choke'!B15=0, F10, 'CM choke'!B15) -> 3020.8 | G11: =IF(CMdata=1,'Frequency vector'!E11,'Frequency vector'!F11) -> 3020.8 | H11: 3.0208 | J11: 0
D12: 9 | E12: =10*('Frequency vector'!$C$3)^D12 -> 10.71519305 | F12: =IF('CM choke'!B16=0, F11, 'CM choke'!B16) -> 3468.5 | G12: =IF(CMdata=1,'Frequency vector'!E12,'Frequency vector'!F12) -> 3468.5 | H12: 3.4685 | J12: 0
D13: 10 | E13: =10*('Frequency vector'!$C$3)^D13 -> 10.79775162 | F13: =IF('CM choke'!B17=0, F12, 'CM choke'!B17) -> 3982.5 | G13: =IF(CMdata=1,'Frequency vector'!E13,'Frequency vector'!F13) -> 3982.5 | H13: 3.9825 | J13: 0
D14: 11 | E14: =10*('Frequency vector'!$C$3)^D14 -> 10.88094629 | F14: =IF('CM choke'!B18=0, F13, 'CM choke'!B18) -> 4572.7 | G14: =IF(CMdata=1,'Frequency vector'!E14,'Frequency vector'!F14) -> 4572.7 | H14: 4.5727 | J14: 0
D15: 12 | E15: =10*('Frequency vector'!$C$3)^D15 -> 10.96478196 | F15: =IF('CM choke'!B19=0, F14, 'CM choke'!B19) -> 5250.3 | G15: =IF(CMdata=1,'Frequency vector'!E15,'Frequency vector'!F15) -> 5250.3 | H15: 5.2503 | J15: 0
D16: 13 | E16: =10*('Frequency vector'!$C$3)^D16 -> 11.04926357 | F16: =IF('CM choke'!B20=0, F15, 'CM choke'!B20) -> 6028.4 | G16: =IF(CMdata=1,'Frequency vector'!E16,'Frequency vector'!F16) -> 6028.4 | H16: 6.0284 | J16: 0
D17: 14 | E17: =10*('Frequency vector'!$C$3)^D17 -> 11.13439609 | F17: =IF('CM choke'!B21=0, F16, 'CM choke'!B21) -> 6921.7 | G17: =IF(CMdata=1,'Frequency vector'!E17,'Frequency vector'!F17) -> 6921.7 | H17: 6.9217 | J17: 0
D18: 15 | E18: =10*('Frequency vector'!$C$3)^D18 -> 11.22018454 | F18: =IF('CM choke'!B22=0, F17, 'CM choke'!B22) -> 7947.5 | G18: =IF(CMdata=1,'Frequency vector'!E18,'Frequency vector'!F18) -> 7947.5 | H18: 7.9475 | J18: 0
D19: 16 | E19: =10*('Frequency vector'!$C$3)^D19 -> 11.30663398 | F19: =IF('CM choke'!B23=0, F18, 'CM choke'!B23) -> 9125.2 | G19: =IF(CMdata=1,'Frequency vector'!E19,'Frequency vector'!F19) -> 9125.2 | H19: 9.1252 | J19: 0
D20: 17 | E20: =10*('Frequency vector'!$C$3)^D20 -> 11.39374949 | F20: =IF('CM choke'!B24=0, F19, 'CM choke'!B24) -> 10000 | G20: =IF(CMdata=1,'Frequency vector'!E20,'Frequency vector'!F20) -> 10000 | H20: 10 | J20: 0
D21: 18 | E21: =10*('Frequency vector'!$C$3)^D21 -> 11.48153621 | F21: =IF('CM choke'!B25=0, F20, 'CM choke'!B25) -> 15000 | G21: =IF(CMdata=1,'Frequency vector'!E21,'Frequency vector'!F21) -> 15000 | H21: 15 | J21: 0
D22: 19 | E22: =10*('Frequency vector'!$C$3)^D22 -> 11.56999932 | F22: =IF('CM choke'!B26=0, F21, 'CM choke'!B26) -> 20000 | G22: =IF(CMdata=1,'Frequency vector'!E22,'Frequency vector'!F22) -> 20000 | H22: 20 | J22: 0
D23: 20 | E23: =10*('Frequency vector'!$C$3)^D23 -> 11.65914401 | F23: =IF('CM choke'!B27=0, F22, 'CM choke'!B27) -> 25000 | G23: =IF(CMdata=1,'Frequency vector'!E23,'Frequency vector'!F23) -> 25000 | H23: 25 | J23: 0
D24: 21 | E24: =10*('Frequency vector'!$C$3)^D24 -> 11.74897555 | F24: =IF('CM choke'!B28=0, F23, 'CM choke'!B28) -> 30000 | G24: =IF(CMdata=1,'Frequency vector'!E24,'Frequency vector'!F24) -> 30000 | H24: 30 | J24: 0
D25: 22 | E25: =10*('Frequency vector'!$C$3)^D25 -> 11.83949922 | F25: =IF('CM choke'!B29=0, F24, 'CM choke'!B29) -> 35000 | G25: =IF(CMdata=1,'Frequency vector'!E25,'Frequency vector'!F25) -> 35000 | H25: 35 | J25: 0
D26: 23 | E26: =10*('Frequency vector'!$C$3)^D26 -> 11.93072036 | F26: =IF('CM choke'!B30=0, F25, 'CM choke'!B30) -> 40000 | G26: =IF(CMdata=1,'Frequency vector'!E26,'Frequency vector'!F26) -> 40000 | H26: 40 | J26: 0
D27: 24 | E27: =10*('Frequency vector'!$C$3)^D27 -> 12.02264435 | F27: =IF('CM choke'!B31=0, F26, 'CM choke'!B31) -> 45000 | G27: =IF(CMdata=1,'Frequency vector'!E27,'Frequency vector'!F27) -> 45000 | H27: 45 | J27: 1
D28: 25 | E28: =10*('Frequency vector'!$C$3)^D28 -> 12.11527659 | F28: =IF('CM choke'!B32=0, F27, 'CM choke'!B32) -> 50000 | G28: =IF(CMdata=1,'Frequency vector'!E28,'Frequency vector'!F28) -> 50000 | H28: 50 | J28: 1
D29: 26 | E29: =10*('Frequency vector'!$C$3)^D29 -> 12.20862254 | F29: =IF('CM choke'!B33=0, F28, 'CM choke'!B33) -> 55000 | G29: =IF(CMdata=1,'Frequency vector'!E29,'Frequency vector'!F29) -> 55000 | H29: 55 | J29: 0
D30: 27 | E30: =10*('Frequency vector'!$C$3)^D30 -> 12.30268771 | F30: =IF('CM choke'!B34=0, F29, 'CM choke'!B34) -> 60000 | G30: =IF(CMdata=1,'Frequency vector'!E30,'Frequency vector'!F30) -> 60000 | H30: 60 | J30: 0
D31: 28 | E31: =10*('Frequency vector'!$C$3)^D31 -> 12.39747763 | F31: =IF('CM choke'!B35=0, F30, 'CM choke'!B35) -> 65000 | G31: =IF(CMdata=1,'Frequency vector'!E31,'Frequency vector'!F31) -> 65000 | H31: 65 | J31: 0
D32: 29 | E32: =10*('Frequency vector'!$C$3)^D32 -> 12.49299789 | F32: =IF('CM choke'!B36=0, F31, 'CM choke'!B36) -> 70000 | G32: =IF(CMdata=1,'Frequency vector'!E32,'Frequency vector'!F32) -> 70000 | H32: 70 | J32: 0
D33: 30 | E33: =10*('Frequency vector'!$C$3)^D33 -> 12.58925412 | F33: =IF('CM choke'!B37=0, F32, 'CM choke'!B37) -> 75000 | G33: =IF(CMdata=1,'Frequency vector'!E33,'Frequency vector'!F33) -> 75000 | H33: 75 | J33: 0
D34: 31 | E34: =10*('Frequency vector'!$C$3)^D34 -> 12.68625198 | F34: =IF('CM choke'!B38=0, F33, 'CM choke'!B38) -> 80000 | G34: =IF(CMdata=1,'Frequency vector'!E34,'Frequency vector'!F34) -> 80000 | H34: 80 | J34: 0
D35: 32 | E35: =10*('Frequency vector'!$C$3)^D35 -> 12.78399719 | F35: =IF('CM choke'!B39=0, F34, 'CM choke'!B39) -> 85000 | G35: =IF(CMdata=1,'Frequency vector'!E35,'Frequency vector'!F35) -> 85000 | H35: 85 | J35: 0
D36: 33 | E36: =10*('Frequency vector'!$C$3)^D36 -> 12.88249552 | F36: =IF('CM choke'!B40=0, F35, 'CM choke'!B40) -> 90000 | G36: =IF(CMdata=1,'Frequency vector'!E36,'Frequency vector'!F36) -> 90000 | H36: 90 | J36: 0
D37: 34 | E37: =10*('Frequency vector'!$C$3)^D37 -> 12.98175275 | F37: =IF('CM choke'!B41=0, F36, 'CM choke'!B41) -> 95000 | G37: =IF(CMdata=1,'Frequency vector'!E37,'Frequency vector'!F37) -> 95000 | H37: 95 | J37: 0
D38: 35 | E38: =10*('Frequency vector'!$C$3)^D38 -> 13.08177474 | F38: =IF('CM choke'!B42=0, F37, 'CM choke'!B42) -> 100000 | G38: =IF(CMdata=1,'Frequency vector'!E38,'Frequency vector'!F38) -> 100000 | H38: 100 | J38: 0
D39: 36 | E39: =10*('Frequency vector'!$C$3)^D39 -> 13.18256739 | F39: =IF('CM choke'!B43=0, F38, 'CM choke'!B43) -> 105000 | G39: =IF(CMdata=1,'Frequency vector'!E39,'Frequency vector'!F39) -> 105000 | H39: 105 | J39: 0
D40: 37 | E40: =10*('Frequency vector'!$C$3)^D40 -> 13.28413662 | F40: =IF('CM choke'!B44=0, F39, 'CM choke'!B44) -> 109000 | G40: =IF(CMdata=1,'Frequency vector'!E40,'Frequency vector'!F40) -> 109000 | H40: 109 | J40: 0
D41: 38 | E41: =10*('Frequency vector'!$C$3)^D41 -> 13.38648842 | F41: =IF('CM choke'!B45=0, F40, 'CM choke'!B45) -> 114000 | G41: =IF(CMdata=1,'Frequency vector'!E41,'Frequency vector'!F41) -> 114000 | H41: 114 | J41: 0
D42: 39 | E42: =10*('Frequency vector'!$C$3)^D42 -> 13.48962883 | F42: =IF('CM choke'!B46=0, F41, 'CM choke'!B46) -> 119000 | G42: =IF(CMdata=1,'Frequency vector'!E42,'Frequency vector'!F42) -> 119000 | H42: 119 | J42: 0
D43: 40 | E43: =10*('Frequency vector'!$C$3)^D43 -> 13.59356391 | F43: =IF('CM choke'!B47=0, F42, 'CM choke'!B47) -> 124000 | G43: =IF(CMdata=1,'Frequency vector'!E43,'Frequency vector'!F43) -> 124000 | H43: 124 | J43: 0
D44: 41 | E44: =10*('Frequency vector'!$C$3)^D44 -> 13.69829979 | F44: =IF('CM choke'!B48=0, F43, 'CM choke'!B48) -> 129000 | G44: =IF(CMdata=1,'Frequency vector'!E44,'Frequency vector'!F44) -> 129000 | H44: 129 | J44: 0
D45: 42 | E45: =10*('Frequency vector'!$C$3)^D45 -> 13.80384265 | F45: =IF('CM choke'!B49=0, F44, 'CM choke'!B49) -> 134000 | G45: =IF(CMdata=1,'Frequency vector'!E45,'Frequency vector'!F45) -> 134000 | H45: 134 | J45: 0
D46: 43 | E46: =10*('Frequency vector'!$C$3)^D46 -> 13.91019869 | F46: =IF('CM choke'!B50=0, F45, 'CM choke'!B50) -> 139000 | G46: =IF(CMdata=1,'Frequency vector'!E46,'Frequency vector'!F46) -> 139000 | H46: 139 | J46: 0
D47: 44 | E47: =10*('Frequency vector'!$C$3)^D47 -> 14.01737418 | F47: =IF('CM choke'!B51=0, F46, 'CM choke'!B51) -> 144000 | G47: =IF(CMdata=1,'Frequency vector'!E47,'Frequency vector'!F47) -> 144000 | H47: 144 | J47: 0
D48: 45 | E48: =10*('Frequency vector'!$C$3)^D48 -> 14.12537545 | F48: =IF('CM choke'!B52=0, F47, 'CM choke'!B52) -> 149000 | G48: =IF(CMdata=1,'Frequency vector'!E48,'Frequency vector'!F48) -> 149000 | H48: 149 | J48: 0
D49: 46 | E49: =10*('Frequency vector'!$C$3)^D49 -> 14.23420884 | F49: =IF('CM choke'!B53=0, F48, 'CM choke'!B53) -> 154000 | G49: =IF(CMdata=1,'Frequency vector'!E49,'Frequency vector'!F49) -> 154000 | H49: 154 | J49: 0
D50: 47 | E50: =10*('Frequency vector'!$C$3)^D50 -> 14.34388077 | F50: =IF('CM choke'!B54=0, F49, 'CM choke'!B54) -> 159000 | G50: =IF(CMdata=1,'Frequency vector'!E50,'Frequency vector'!F50) -> 159000 | H50: 159 | J50: 0
D51: 48 | E51: =10*('Frequency vector'!$C$3)^D51 -> 14.45439771 | F51: =IF('CM choke'!B55=0, F50, 'CM choke'!B55) -> 164000 | G51: =IF(CMdata=1,'Frequency vector'!E51,'Frequency vector'!F51) -> 164000 | H51: 164 | J51: 0
D52: 49 | E52: =10*('Frequency vector'!$C$3)^D52 -> 14.56576616 | F52: =IF('CM choke'!B56=0, F51, 'CM choke'!B56) -> 169000 | G52: =IF(CMdata=1,'Frequency vector'!E52,'Frequency vector'!F52) -> 169000 | H52: 169 | J52: 0
D53: 50 | E53: =10*('Frequency vector'!$C$3)^D53 -> 14.67799268 | F53: =IF('CM choke'!B57=0, F52, 'CM choke'!B57) -> 174000 | G53: =IF(CMdata=1,'Frequency vector'!E53,'Frequency vector'!F53) -> 174000 | H53: 174 | J53: 0
D54: 51 | E54: =10*('Frequency vector'!$C$3)^D54 -> 14.79108388 | F54: =IF('CM choke'!B58=0, F53, 'CM choke'!B58) -> 179000 | G54: =IF(CMdata=1,'Frequency vector'!E54,'Frequency vector'!F54) -> 179000 | H54: 179 | J54: 0
D55: 52 | E55: =10*('Frequency vector'!$C$3)^D55 -> 14.90504643 | F55: =IF('CM choke'!B59=0, F54, 'CM choke'!B59) -> 184000 | G55: =IF(CMdata=1,'Frequency vector'!E55,'Frequency vector'!F55) -> 184000 | H55: 184 | J55: 0
D56: 53 | E56: =10*('Frequency vector'!$C$3)^D56 -> 15.01988705 | F56: =IF('CM choke'!B60=0, F55, 'CM choke'!B60) -> 189000 | G56: =IF(CMdata=1,'Frequency vector'!E56,'Frequency vector'!F56) -> 189000 | H56: 189 | J56: 0
D57: 54 | E57: =10*('Frequency vector'!$C$3)^D57 -> 15.13561248 | F57: =IF('CM choke'!B61=0, F56, 'CM choke'!B61) -> 194000 | G57: =IF(CMdata=1,'Frequency vector'!E57,'Frequency vector'!F57) -> 194000 | H57: 194 | J57: 0
D58: 55 | E58: =10*('Frequency vector'!$C$3)^D58 -> 15.25222957 | F58: =IF('CM choke'!B62=0, F57, 'CM choke'!B62) -> 199000 | G58: =IF(CMdata=1,'Frequency vector'!E58,'Frequency vector'!F58) -> 199000 | H58: 199 | J58: 0
D59: 56 | E59: =10*('Frequency vector'!$C$3)^D59 -> 15.36974516 | F59: =IF('CM choke'!B63=0, F58, 'CM choke'!B63) -> 204000 | G59: =IF(CMdata=1,'Frequency vector'!E59,'Frequency vector'!F59) -> 204000 | H59: 204 | J59: 0
D60: 57 | E60: =10*('Frequency vector'!$C$3)^D60 -> 15.48816619 | F60: =IF('CM choke'!B64=0, F59, 'CM choke'!B64) -> 209000 | G60: =IF(CMdata=1,'Frequency vector'!E60,'Frequency vector'!F60) -> 209000 | H60: 209 | J60: 0
D61: 58 | E61: =10*('Frequency vector'!$C$3)^D61 -> 15.60749963 | F61: =IF('CM choke'!B65=0, F60, 'CM choke'!B65) -> 214000 | G61: =IF(CMdata=1,'Frequency vector'!E61,'Frequency vector'!F61) -> 214000 | H61: 214 | J61: 0
D62: 59 | E62: =10*('Frequency vector'!$C$3)^D62 -> 15.72775251 | F62: =IF('CM choke'!B66=0, F61, 'CM choke'!B66) -> 219000 | G62: =IF(CMdata=1,'Frequency vector'!E62,'Frequency vector'!F62) -> 219000 | H62: 219 | J62: 0
D63: 60 | E63: =10*('Frequency vector'!$C$3)^D63 -> 15.84893192 | F63: =IF('CM choke'!B67=0, F62, 'CM choke'!B67) -> 224000 | G63: =IF(CMdata=1,'Frequency vector'!E63,'Frequency vector'!F63) -> 224000 | H63: 224 | J63: 0
D64: 61 | E64: =10*('Frequency vector'!$C$3)^D64 -> 15.971045 | F64: =IF('CM choke'!B68=0, F63, 'CM choke'!B68) -> 229000 | G64: =IF(CMdata=1,'Frequency vector'!E64,'Frequency vector'!F64) -> 229000 | H64: 229 | J64: 0
D65: 62 | E65: =10*('Frequency vector'!$C$3)^D65 -> 16.09409893 | F65: =IF('CM choke'!B69=0, F64, 'CM choke'!B69) -> 234000 | G65: =IF(CMdata=1,'Frequency vector'!E65,'Frequency vector'!F65) -> 234000 | H65: 234 | J65: 0
D66: 63 | E66: =10*('Frequency vector'!$C$3)^D66 -> 16.21810097 | F66: =IF('CM choke'!B70=0, F65, 'CM choke'!B70) -> 239000 | G66: =IF(CMdata=1,'Frequency vector'!E66,'Frequency vector'!F66) -> 239000 | H66: 239 | J66: 0
D67: 64 | E67: =10*('Frequency vector'!$C$3)^D67 -> 16.34305843 | F67: =IF('CM choke'!B71=0, F66, 'CM choke'!B71) -> 244000 | G67: =IF(CMdata=1,'Frequency vector'!E67,'Frequency vector'!F67) -> 244000 | H67: 244 | J67: =IF(ABS(Fsw-G67)<=5000,1,0) -> 0
D68: 65 | E68: =10*('Frequency vector'!$C$3)^D68 -> 16.46897865 | F68: =IF('CM choke'!B72=0, F67, 'CM choke'!B72) -> 249000 | G68: =IF(CMdata=1,'Frequency vector'!E68,'Frequency vector'!F68) -> 249000 | H68: =G68/1000 -> 249 | J68: 0
D69: 66 | E69: =10*('Frequency vector'!$C$3)^D69 -> 16.59586907 | F69: =IF('CM choke'!B73=0, F68, 'CM choke'!B73) -> 254000 | G69: =IF(CMdata=1,'Frequency vector'!E69,'Frequency vector'!F69) -> 254000 | H69: 254 | J69: 0
D70: 67 | E70: =10*('Frequency vector'!$C$3)^D70 -> 16.72373716 | F70: =IF('CM choke'!B74=0, F69, 'CM choke'!B74) -> 259000 | G70: =IF(CMdata=1,'Frequency vector'!E70,'Frequency vector'!F70) -> 259000 | H70: 259 | J70: 0
D71: 68 | E71: =10*('Frequency vector'!$C$3)^D71 -> 16.85259045 | F71: =IF('CM choke'!B75=0, F70, 'CM choke'!B75) -> 264000 | G71: =IF(CMdata=1,'Frequency vector'!E71,'Frequency vector'!F71) -> 264000 | H71: 264 | J71: 0
D72: 69 | E72: =10*('Frequency vector'!$C$3)^D72 -> 16.98243652 | F72: =IF('CM choke'!B76=0, F71, 'CM choke'!B76) -> 269000 | G72: =IF(CMdata=1,'Frequency vector'!E72,'Frequency vector'!F72) -> 269000 | H72: 269 | J72: 0
D73: 70 | E73: =10*('Frequency vector'!$C$3)^D73 -> 17.11328304 | F73: =IF('CM choke'!B77=0, F72, 'CM choke'!B77) -> 274000 | G73: =IF(CMdata=1,'Frequency vector'!E73,'Frequency vector'!F73) -> 274000 | H73: 274 | J73: 0
D74: 71 | E74: =10*('Frequency vector'!$C$3)^D74 -> 17.24513771 | F74: =IF('CM choke'!B78=0, F73, 'CM choke'!B78) -> 279000 | G74: =IF(CMdata=1,'Frequency vector'!E74,'Frequency vector'!F74) -> 279000 | H74: 279 | J74: 0
D75: 72 | E75: =10*('Frequency vector'!$C$3)^D75 -> 17.37800829 | F75: =IF('CM choke'!B79=0, F74, 'CM choke'!B79) -> 284000 | G75: =IF(CMdata=1,'Frequency vector'!E75,'Frequency vector'!F75) -> 284000 | H75: 284 | J75: 0
D76: 73 | E76: =10*('Frequency vector'!$C$3)^D76 -> 17.51190261 | F76: =IF('CM choke'!B80=0, F75, 'CM choke'!B80) -> 289000 | G76: =IF(CMdata=1,'Frequency vector'!E76,'Frequency vector'!F76) -> 289000 | H76: 289 | J76: 0
D77: 74 | E77: =10*('Frequency vector'!$C$3)^D77 -> 17.64682857 | F77: =IF('CM choke'!B81=0, F76, 'CM choke'!B81) -> 294000 | G77: =IF(CMdata=1,'Frequency vector'!E77,'Frequency vector'!F77) -> 294000 | H77: 294 | J77: 0
D78: 75 | E78: =10*('Frequency vector'!$C$3)^D78 -> 17.7827941 | F78: =IF('CM choke'!B82=0, F77, 'CM choke'!B82) -> 299000 | G78: =IF(CMdata=1,'Frequency vector'!E78,'Frequency vector'!F78) -> 299000 | H78: 299 | J78: 0
D79: 76 | E79: =10*('Frequency vector'!$C$3)^D79 -> 17.91980722 | F79: =IF('CM choke'!B83=0, F78, 'CM choke'!B83) -> 304000 | G79: =IF(CMdata=1,'Frequency vector'!E79,'Frequency vector'!F79) -> 304000 | H79: 304 | J79: 0
D80: 77 | E80: =10*('Frequency vector'!$C$3)^D80 -> 18.05787601 | F80: =IF('CM choke'!B84=0, F79, 'CM choke'!B84) -> 308000 | G80: =IF(CMdata=1,'Frequency vector'!E80,'Frequency vector'!F80) -> 308000 | H80: 308 | J80: 0
D81: 78 | E81: =10*('Frequency vector'!$C$3)^D81 -> 18.19700859 | F81: =IF('CM choke'!B85=0, F80, 'CM choke'!B85) -> 313000 | G81: =IF(CMdata=1,'Frequency vector'!E81,'Frequency vector'!F81) -> 313000 | H81: 313 | J81: 0
D82: 79 | E82: =10*('Frequency vector'!$C$3)^D82 -> 18.33721316 | F82: =IF('CM choke'!B86=0, F81, 'CM choke'!B86) -> 318000 | G82: =IF(CMdata=1,'Frequency vector'!E82,'Frequency vector'!F82) -> 318000 | H82: 318 | J82: 0
D83: 80 | E83: =10*('Frequency vector'!$C$3)^D83 -> 18.47849797 | F83: =IF('CM choke'!B87=0, F82, 'CM choke'!B87) -> 323000 | G83: =IF(CMdata=1,'Frequency vector'!E83,'Frequency vector'!F83) -> 323000 | H83: 323 | J83: 0
D84: 81 | E84: =10*('Frequency vector'!$C$3)^D84 -> 18.62087137 | F84: =IF('CM choke'!B88=0, F83, 'CM choke'!B88) -> 328000 | G84: =IF(CMdata=1,'Frequency vector'!E84,'Frequency vector'!F84) -> 328000 | H84: 328 | J84: 0
D85: 82 | E85: =10*('Frequency vector'!$C$3)^D85 -> 18.76434172 | F85: =IF('CM choke'!B89=0, F84, 'CM choke'!B89) -> 333000 | G85: =IF(CMdata=1,'Frequency vector'!E85,'Frequency vector'!F85) -> 333000 | H85: 333 | J85: 0
D86: 83 | E86: =10*('Frequency vector'!$C$3)^D86 -> 18.90891748 | F86: =IF('CM choke'!B90=0, F85, 'CM choke'!B90) -> 338000 | G86: =IF(CMdata=1,'Frequency vector'!E86,'Frequency vector'!F86) -> 338000 | H86: 338 | J86: 0
D87: 84 | E87: =10*('Frequency vector'!$C$3)^D87 -> 19.05460718 | F87: =IF('CM choke'!B91=0, F86, 'CM choke'!B91) -> 343000 | G87: =IF(CMdata=1,'Frequency vector'!E87,'Frequency vector'!F87) -> 343000 | H87: 343 | J87: 0
D88: 85 | E88: =10*('Frequency vector'!$C$3)^D88 -> 19.20141939 | F88: =IF('CM choke'!B92=0, F87, 'CM choke'!B92) -> 348000 | G88: =IF(CMdata=1,'Frequency vector'!E88,'Frequency vector'!F88) -> 348000 | H88: 348 | J88: 0
D89: 86 | E89: =10*('Frequency vector'!$C$3)^D89 -> 19.34936275 | F89: =IF('CM choke'!B93=0, F88, 'CM choke'!B93) -> 353000 | G89: =IF(CMdata=1,'Frequency vector'!E89,'Frequency vector'!F89) -> 353000 | H89: 353 | J89: 0
D90: 87 | E90: =10*('Frequency vector'!$C$3)^D90 -> 19.498446 | F90: =IF('CM choke'!B94=0, F89, 'CM choke'!B94) -> 358000 | G90: =IF(CMdata=1,'Frequency vector'!E90,'Frequency vector'!F90) -> 358000 | H90: 358 | J90: 0
D91: 88 | E91: =10*('Frequency vector'!$C$3)^D91 -> 19.6486779 | F91: =IF('CM choke'!B95=0, F90, 'CM choke'!B95) -> 363000 | G91: =IF(CMdata=1,'Frequency vector'!E91,'Frequency vector'!F91) -> 363000 | H91: 363 | J91: 0
D92: 89 | E92: =10*('Frequency vector'!$C$3)^D92 -> 19.80006731 | F92: =IF('CM choke'!B96=0, F91, 'CM choke'!B96) -> 368000 | G92: =IF(CMdata=1,'Frequency vector'!E92,'Frequency vector'!F92) -> 368000 | H92: 368 | J92: 0
D93: 90 | E93: =10*('Frequency vector'!$C$3)^D93 -> 19.95262315 | F93: =IF('CM choke'!B97=0, F92, 'CM choke'!B97) -> 373000 | G93: =IF(CMdata=1,'Frequency vector'!E93,'Frequency vector'!F93) -> 373000 | H93: 373 | J93: 0
D94: 91 | E94: =10*('Frequency vector'!$C$3)^D94 -> 20.1063544 | F94: =IF('CM choke'!B98=0, F93, 'CM choke'!B98) -> 378000 | G94: =IF(CMdata=1,'Frequency vector'!E94,'Frequency vector'!F94) -> 378000 | H94: 378 | J94: 0
D95: 92 | E95: =10*('Frequency vector'!$C$3)^D95 -> 20.26127013 | F95: =IF('CM choke'!B99=0, F94, 'CM choke'!B99) -> 383000 | G95: =IF(CMdata=1,'Frequency vector'!E95,'Frequency vector'!F95) -> 383000 | H95: 383 | J95: 0
D96: 93 | E96: =10*('Frequency vector'!$C$3)^D96 -> 20.41737945 | F96: =IF('CM choke'!B100=0, F95, 'CM choke'!B100) -> 388000 | G96: =IF(CMdata=1,'Frequency vector'!E96,'Frequency vector'!F96) -> 388000 | H96: 388 | J96: 0
D97: 94 | E97: =10*('Frequency vector'!$C$3)^D97 -> 20.57469156 | F97: =IF('CM choke'!B101=0, F96, 'CM choke'!B101) -> 393000 | G97: =IF(CMdata=1,'Frequency vector'!E97,'Frequency vector'!F97) -> 393000 | H97: 393 | J97: 0
D98: 95 | E98: =10*('Frequency vector'!$C$3)^D98 -> 20.73321573 | F98: =IF('CM choke'!B102=0, F97, 'CM choke'!B102) -> 398000 | G98: =IF(CMdata=1,'Frequency vector'!E98,'Frequency vector'!F98) -> 398000 | H98: 398 | J98: 0
D99: 96 | E99: =10*('Frequency vector'!$C$3)^D99 -> 20.89296131 | F99: =IF('CM choke'!B103=0, F98, 'CM choke'!B103) -> 403000 | G99: =IF(CMdata=1,'Frequency vector'!E99,'Frequency vector'!F99) -> 403000 | H99: 403 | J99: 0
D100: 97 | E100: =10*('Frequency vector'!$C$3)^D100 -> 21.05393769 | F100: =IF('CM choke'!B104=0, F99, 'CM choke'!B104) -> 408000 | G100: =IF(CMdata=1,'Frequency vector'!E100,'Frequency vector'!F100) -> 408000 | H100: 408 | J100: 0
D101: 98 | E101: =10*('Frequency vector'!$C$3)^D101 -> 21.21615437 | F101: =IF('CM choke'!B105=0, F100, 'CM choke'!B105) -> 413000 | G101: =IF(CMdata=1,'Frequency vector'!E101,'Frequency vector'!F101) -> 413000 | H101: 413 | J101: 0
D102: 99 | E102: =10*('Frequency vector'!$C$3)^D102 -> 21.3796209 | F102: =IF('CM choke'!B106=0, F101, 'CM choke'!B106) -> 418000 | G102: =IF(CMdata=1,'Frequency vector'!E102,'Frequency vector'!F102) -> 418000 | H102: 418 | J102: 0
D103: 100 | E103: =10*('Frequency vector'!$C$3)^D103 -> 21.5443469 | F103: =IF('CM choke'!B107=0, F102, 'CM choke'!B107) -> 423000 | G103: =IF(CMdata=1,'Frequency vector'!E103,'Frequency vector'!F103) -> 423000 | H103: 423 | J103: 0
D104: 101 | E104: =10*('Frequency vector'!$C$3)^D104 -> 21.71034209 | F104: =IF('CM choke'!B108=0, F103, 'CM choke'!B108) -> 428000 | G104: =IF(CMdata=1,'Frequency vector'!E104,'Frequency vector'!F104) -> 428000 | H104: 428 | J104: 0
D105: 102 | E105: =10*('Frequency vector'!$C$3)^D105 -> 21.87761624 | F105: =IF('CM choke'!B109=0, F104, 'CM choke'!B109) -> 433000 | G105: =IF(CMdata=1,'Frequency vector'!E105,'Frequency vector'!F105) -> 433000 | H105: 433 | J105: 0
D106: 103 | E106: =10*('Frequency vector'!$C$3)^D106 -> 22.04617921 | F106: =IF('CM choke'!B110=0, F105, 'CM choke'!B110) -> 438000 | G106: =IF(CMdata=1,'Frequency vector'!E106,'Frequency vector'!F106) -> 438000 | H106: 438 | J106: 0
D107: 104 | E107: =10*('Frequency vector'!$C$3)^D107 -> 22.21604092 | F107: =IF('CM choke'!B111=0, F106, 'CM choke'!B111) -> 443000 | G107: =IF(CMdata=1,'Frequency vector'!E107,'Frequency vector'!F107) -> 443000 | H107: 443 | J107: 0
D108: 105 | E108: =10*('Frequency vector'!$C$3)^D108 -> 22.38721139 | F108: =IF('CM choke'!B112=0, F107, 'CM choke'!B112) -> 448000 | G108: =IF(CMdata=1,'Frequency vector'!E108,'Frequency vector'!F108) -> 448000 | H108: 448 | J108: 0
D109: 106 | E109: =10*('Frequency vector'!$C$3)^D109 -> 22.55970069 | F109: =IF('CM choke'!B113=0, F108, 'CM choke'!B113) -> 453000 | G109: =IF(CMdata=1,'Frequency vector'!E109,'Frequency vector'!F109) -> 453000 | H109: 453 | J109: 0
D110: 107 | E110: =10*('Frequency vector'!$C$3)^D110 -> 22.73351899 | F110: =IF('CM choke'!B114=0, F109, 'CM choke'!B114) -> 458000 | G110: =IF(CMdata=1,'Frequency vector'!E110,'Frequency vector'!F110) -> 458000 | H110: 458 | J110: 0
D111: 108 | E111: =10*('Frequency vector'!$C$3)^D111 -> 22.90867653 | F111: =IF('CM choke'!B115=0, F110, 'CM choke'!B115) -> 463000 | G111: =IF(CMdata=1,'Frequency vector'!E111,'Frequency vector'!F111) -> 463000 | H111: 463 | J111: 0
D112: 109 | E112: =10*('Frequency vector'!$C$3)^D112 -> 23.08518362 | F112: =IF('CM choke'!B116=0, F111, 'CM choke'!B116) -> 468000 | G112: =IF(CMdata=1,'Frequency vector'!E112,'Frequency vector'!F112) -> 468000 | H112: 468 | J112: 0
D113: 110 | E113: =10*('Frequency vector'!$C$3)^D113 -> 23.26305067 | F113: =IF('CM choke'!B117=0, F112, 'CM choke'!B117) -> 473000 | G113: =IF(CMdata=1,'Frequency vector'!E113,'Frequency vector'!F113) -> 473000 | H113: 473 | J113: 0
D114: 111 | E114: =10*('Frequency vector'!$C$3)^D114 -> 23.44228815 | F114: =IF('CM choke'!B118=0, F113, 'CM choke'!B118) -> 478000 | G114: =IF(CMdata=1,'Frequency vector'!E114,'Frequency vector'!F114) -> 478000 | H114: 478 | J114: 0
D115: 112 | E115: =10*('Frequency vector'!$C$3)^D115 -> 23.62290663 | F115: =IF('CM choke'!B119=0, F114, 'CM choke'!B119) -> 483000 | G115: =IF(CMdata=1,'Frequency vector'!E115,'Frequency vector'!F115) -> 483000 | H115: 483 | J115: 0
D116: 113 | E116: =10*('Frequency vector'!$C$3)^D116 -> 23.80491673 | F116: =IF('CM choke'!B120=0, F115, 'CM choke'!B120) -> 488000 | G116: =IF(CMdata=1,'Frequency vector'!E116,'Frequency vector'!F116) -> 488000 | H116: 488 | J116: 0
D117: 114 | E117: =10*('Frequency vector'!$C$3)^D117 -> 23.98832919 | F117: =IF('CM choke'!B121=0, F116, 'CM choke'!B121) -> 493000 | G117: =IF(CMdata=1,'Frequency vector'!E117,'Frequency vector'!F117) -> 493000 | H117: 493 | J117: 0
D118: 115 | E118: =10*('Frequency vector'!$C$3)^D118 -> 24.17315481 | F118: =IF('CM choke'!B122=0, F117, 'CM choke'!B122) -> 498000 | G118: =IF(CMdata=1,'Frequency vector'!E118,'Frequency vector'!F118) -> 498000 | H118: 498 | J118: 0
D119: 116 | E119: =10*('Frequency vector'!$C$3)^D119 -> 24.35940447 | F119: =IF('CM choke'!B123=0, F118, 'CM choke'!B123) -> 503000 | G119: =IF(CMdata=1,'Frequency vector'!E119,'Frequency vector'!F119) -> 503000 | H119: 503 | J119: 0
D120: 117 | E120: =10*('Frequency vector'!$C$3)^D120 -> 24.54708916 | F120: =IF('CM choke'!B124=0, F119, 'CM choke'!B124) -> 507000 | G120: =IF(CMdata=1,'Frequency vector'!E120,'Frequency vector'!F120) -> 507000 | H120: 507 | J120: 0
D121: 118 | E121: =10*('Frequency vector'!$C$3)^D121 -> 24.73621992 | F121: =IF('CM choke'!B125=0, F120, 'CM choke'!B125) -> 512000 | G121: =IF(CMdata=1,'Frequency vector'!E121,'Frequency vector'!F121) -> 512000 | H121: 512 | J121: 0
D122: 119 | E122: =10*('Frequency vector'!$C$3)^D122 -> 24.92680789 | F122: =IF('CM choke'!B126=0, F121, 'CM choke'!B126) -> 517000 | G122: =IF(CMdata=1,'Frequency vector'!E122,'Frequency vector'!F122) -> 517000 | H122: 517 | J122: 0
D123: 120 | E123: =10*('Frequency vector'!$C$3)^D123 -> 25.11886432 | F123: =IF('CM choke'!B127=0, F122, 'CM choke'!B127) -> 522000 | G123: =IF(CMdata=1,'Frequency vector'!E123,'Frequency vector'!F123) -> 522000 | H123: 522 | J123: 0
D124: 121 | E124: =10*('Frequency vector'!$C$3)^D124 -> 25.3124005 | F124: =IF('CM choke'!B128=0, F123, 'CM choke'!B128) -> 527000 | G124: =IF(CMdata=1,'Frequency vector'!E124,'Frequency vector'!F124) -> 527000 | H124: 527 | J124: 0
D125: 122 | E125: =10*('Frequency vector'!$C$3)^D125 -> 25.50742784 | F125: =IF('CM choke'!B129=0, F124, 'CM choke'!B129) -> 532000 | G125: =IF(CMdata=1,'Frequency vector'!E125,'Frequency vector'!F125) -> 532000 | H125: 532 | J125: 0
D126: 123 | E126: =10*('Frequency vector'!$C$3)^D126 -> 25.70395783 | F126: =IF('CM choke'!B130=0, F125, 'CM choke'!B130) -> 537000 | G126: =IF(CMdata=1,'Frequency vector'!E126,'Frequency vector'!F126) -> 537000 | H126: 537 | J126: 0
D127: 124 | E127: =10*('Frequency vector'!$C$3)^D127 -> 25.90200205 | F127: =IF('CM choke'!B131=0, F126, 'CM choke'!B131) -> 542000 | G127: =IF(CMdata=1,'Frequency vector'!E127,'Frequency vector'!F127) -> 542000 | H127: 542 | J127: 0
D128: 125 | E128: =10*('Frequency vector'!$C$3)^D128 -> 26.10157216 | F128: =IF('CM choke'!B132=0, F127, 'CM choke'!B132) -> 547000 | G128: =IF(CMdata=1,'Frequency vector'!E128,'Frequency vector'!F128) -> 547000 | H128: 547 | J128: 0
D129: 126 | E129: =10*('Frequency vector'!$C$3)^D129 -> 26.30267992 | F129: =IF('CM choke'!B133=0, F128, 'CM choke'!B133) -> 552000 | G129: =IF(CMdata=1,'Frequency vector'!E129,'Frequency vector'!F129) -> 552000 | H129: 552 | J129: 0
D130: 127 | E130: =10*('Frequency vector'!$C$3)^D130 -> 26.50533718 | F130: =IF('CM choke'!B134=0, F129, 'CM choke'!B134) -> 557000 | G130: =IF(CMdata=1,'Frequency vector'!E130,'Frequency vector'!F130) -> 557000 | H130: 557 | J130: 0
D131: 128 | E131: =10*('Frequency vector'!$C$3)^D131 -> 26.70955588 | F131: =IF('CM choke'!B135=0, F130, 'CM choke'!B135) -> 562000 | G131: =IF(CMdata=1,'Frequency vector'!E131,'Frequency vector'!F131) -> 562000 | H131: 562 | J131: =IF(ABS(Fsw-G131)<=5000,1,0) -> 0
D132: 129 | E132: =10*('Frequency vector'!$C$3)^D132 -> 26.91534804 | F132: =IF('CM choke'!B136=0, F131, 'CM choke'!B136) -> 567000 | G132: =IF(CMdata=1,'Frequency vector'!E132,'Frequency vector'!F132) -> 567000 | H132: =G132/1000 -> 567 | J132: 0
D133: 130 | E133: =10*('Frequency vector'!$C$3)^D133 -> 27.12272579 | F133: =IF('CM choke'!B137=0, F132, 'CM choke'!B137) -> 572000 | G133: =IF(CMdata=1,'Frequency vector'!E133,'Frequency vector'!F133) -> 572000 | H133: 572 | J133: 0
D134: 131 | E134: =10*('Frequency vector'!$C$3)^D134 -> 27.33170135 | F134: =IF('CM choke'!B138=0, F133, 'CM choke'!B138) -> 577000 | G134: =IF(CMdata=1,'Frequency vector'!E134,'Frequency vector'!F134) -> 577000 | H134: 577 | J134: 0
D135: 132 | E135: =10*('Frequency vector'!$C$3)^D135 -> 27.54228703 | F135: =IF('CM choke'!B139=0, F134, 'CM choke'!B139) -> 582000 | G135: =IF(CMdata=1,'Frequency vector'!E135,'Frequency vector'!F135) -> 582000 | H135: 582 | J135: 0
D136: 133 | E136: =10*('Frequency vector'!$C$3)^D136 -> 27.75449524 | F136: =IF('CM choke'!B140=0, F135, 'CM choke'!B140) -> 587000 | G136: =IF(CMdata=1,'Frequency vector'!E136,'Frequency vector'!F136) -> 587000 | H136: 587 | J136: 0
D137: 134 | E137: =10*('Frequency vector'!$C$3)^D137 -> 27.96833846 | F137: =IF('CM choke'!B141=0, F136, 'CM choke'!B141) -> 592000 | G137: =IF(CMdata=1,'Frequency vector'!E137,'Frequency vector'!F137) -> 592000 | H137: 592 | J137: 0
D138: 135 | E138: =10*('Frequency vector'!$C$3)^D138 -> 28.18382931 | F138: =IF('CM choke'!B142=0, F137, 'CM choke'!B142) -> 597000 | G138: =IF(CMdata=1,'Frequency vector'!E138,'Frequency vector'!F138) -> 597000 | H138: 597 | J138: 0
D139: 136 | E139: =10*('Frequency vector'!$C$3)^D139 -> 28.40098048 | F139: =IF('CM choke'!B143=0, F138, 'CM choke'!B143) -> 602000 | G139: =IF(CMdata=1,'Frequency vector'!E139,'Frequency vector'!F139) -> 602000 | H139: 602 | J139: 0
D140: 137 | E140: =10*('Frequency vector'!$C$3)^D140 -> 28.61980476 | F140: =IF('CM choke'!B144=0, F139, 'CM choke'!B144) -> 607000 | G140: =IF(CMdata=1,'Frequency vector'!E140,'Frequency vector'!F140) -> 607000 | H140: 607 | J140: 0
D141: 138 | E141: =10*('Frequency vector'!$C$3)^D141 -> 28.84031503 | F141: =IF('CM choke'!B145=0, F140, 'CM choke'!B145) -> 612000 | G141: =IF(CMdata=1,'Frequency vector'!E141,'Frequency vector'!F141) -> 612000 | H141: 612 | J141: 0
D142: 139 | E142: =10*('Frequency vector'!$C$3)^D142 -> 29.0625243 | F142: =IF('CM choke'!B146=0, F141, 'CM choke'!B146) -> 617000 | G142: =IF(CMdata=1,'Frequency vector'!E142,'Frequency vector'!F142) -> 617000 | H142: 617 | J142: 0
D143: 140 | E143: =10*('Frequency vector'!$C$3)^D143 -> 29.28644565 | F143: =IF('CM choke'!B147=0, F142, 'CM choke'!B147) -> 622000 | G143: =IF(CMdata=1,'Frequency vector'!E143,'Frequency vector'!F143) -> 622000 | H143: 622 | J143: 0
D144: 141 | E144: =10*('Frequency vector'!$C$3)^D144 -> 29.51209227 | F144: =IF('CM choke'!B148=0, F143, 'CM choke'!B148) -> 627000 | G144: =IF(CMdata=1,'Frequency vector'!E144,'Frequency vector'!F144) -> 627000 | H144: 627 | J144: 0
D145: 142 | E145: =10*('Frequency vector'!$C$3)^D145 -> 29.73947745 | F145: =IF('CM choke'!B149=0, F144, 'CM choke'!B149) -> 632000 | G145: =IF(CMdata=1,'Frequency vector'!E145,'Frequency vector'!F145) -> 632000 | H145: 632 | J145: 0
D146: 143 | E146: =10*('Frequency vector'!$C$3)^D146 -> 29.9686146 | F146: =IF('CM choke'!B150=0, F145, 'CM choke'!B150) -> 637000 | G146: =IF(CMdata=1,'Frequency vector'!E146,'Frequency vector'!F146) -> 637000 | H146: 637 | J146: 0
D147: 144 | E147: =10*('Frequency vector'!$C$3)^D147 -> 30.1995172 | F147: =IF('CM choke'!B151=0, F146, 'CM choke'!B151) -> 642000 | G147: =IF(CMdata=1,'Frequency vector'!E147,'Frequency vector'!F147) -> 642000 | H147: 642 | J147: 0
D148: 145 | E148: =10*('Frequency vector'!$C$3)^D148 -> 30.43219887 | F148: =IF('CM choke'!B152=0, F147, 'CM choke'!B152) -> 647000 | G148: =IF(CMdata=1,'Frequency vector'!E148,'Frequency vector'!F148) -> 647000 | H148: 647 | J148: 0
D149: 146 | E149: =10*('Frequency vector'!$C$3)^D149 -> 30.66667331 | F149: =IF('CM choke'!B153=0, F148, 'CM choke'!B153) -> 652000 | G149: =IF(CMdata=1,'Frequency vector'!E149,'Frequency vector'!F149) -> 652000 | H149: 652 | J149: 0
D150: 147 | E150: =10*('Frequency vector'!$C$3)^D150 -> 30.90295433 | F150: =IF('CM choke'!B154=0, F149, 'CM choke'!B154) -> 657000 | G150: =IF(CMdata=1,'Frequency vector'!E150,'Frequency vector'!F150) -> 657000 | H150: 657 | J150: 0
D151: 148 | E151: =10*('Frequency vector'!$C$3)^D151 -> 31.14105584 | F151: =IF('CM choke'!B155=0, F150, 'CM choke'!B155) -> 662000 | G151: =IF(CMdata=1,'Frequency vector'!E151,'Frequency vector'!F151) -> 662000 | H151: 662 | J151: 0
D152: 149 | E152: =10*('Frequency vector'!$C$3)^D152 -> 31.38099189 | F152: =IF('CM choke'!B156=0, F151, 'CM choke'!B156) -> 667000 | G152: =IF(CMdata=1,'Frequency vector'!E152,'Frequency vector'!F152) -> 667000 | H152: 667 | J152: 0
D153: 150 | E153: =10*('Frequency vector'!$C$3)^D153 -> 31.6227766 | F153: =IF('CM choke'!B157=0, F152, 'CM choke'!B157) -> 672000 | G153: =IF(CMdata=1,'Frequency vector'!E153,'Frequency vector'!F153) -> 672000 | H153: 672 | J153: 0
D154: 151 | E154: =10*('Frequency vector'!$C$3)^D154 -> 31.86642422 | F154: =IF('CM choke'!B158=0, F153, 'CM choke'!B158) -> 677000 | G154: =IF(CMdata=1,'Frequency vector'!E154,'Frequency vector'!F154) -> 677000 | H154: 677 | J154: 0
D155: 152 | E155: =10*('Frequency vector'!$C$3)^D155 -> 32.11194909 | F155: =IF('CM choke'!B159=0, F154, 'CM choke'!B159) -> 682000 | G155: =IF(CMdata=1,'Frequency vector'!E155,'Frequency vector'!F155) -> 682000 | H155: 682 | J155: 0
D156: 153 | E156: =10*('Frequency vector'!$C$3)^D156 -> 32.35936569 | F156: =IF('CM choke'!B160=0, F155, 'CM choke'!B160) -> 687000 | G156: =IF(CMdata=1,'Frequency vector'!E156,'Frequency vector'!F156) -> 687000 | H156: 687 | J156: 0
D157: 154 | E157: =10*('Frequency vector'!$C$3)^D157 -> 32.60868859 | F157: =IF('CM choke'!B161=0, F156, 'CM choke'!B161) -> 692000 | G157: =IF(CMdata=1,'Frequency vector'!E157,'Frequency vector'!F157) -> 692000 | H157: 692 | J157: 0
D158: 155 | E158: =10*('Frequency vector'!$C$3)^D158 -> 32.85993248 | F158: =IF('CM choke'!B162=0, F157, 'CM choke'!B162) -> 697000 | G158: =IF(CMdata=1,'Frequency vector'!E158,'Frequency vector'!F158) -> 697000 | H158: 697 | J158: 0
D159: 156 | E159: =10*('Frequency vector'!$C$3)^D159 -> 33.11311215 | F159: =IF('CM choke'!B163=0, F158, 'CM choke'!B163) -> 702000 | G159: =IF(CMdata=1,'Frequency vector'!E159,'Frequency vector'!F159) -> 702000 | H159: 702 | J159: 0
D160: 157 | E160: =10*('Frequency vector'!$C$3)^D160 -> 33.36824252 | F160: =IF('CM choke'!B164=0, F159, 'CM choke'!B164) -> 706000 | G160: =IF(CMdata=1,'Frequency vector'!E160,'Frequency vector'!F160) -> 706000 | H160: 706 | J160: 0
D161: 158 | E161: =10*('Frequency vector'!$C$3)^D161 -> 33.62533863 | F161: =IF('CM choke'!B165=0, F160, 'CM choke'!B165) -> 711000 | G161: =IF(CMdata=1,'Frequency vector'!E161,'Frequency vector'!F161) -> 711000 | H161: 711 | J161: 0
D162: 159 | E162: =10*('Frequency vector'!$C$3)^D162 -> 33.88441561 | F162: =IF('CM choke'!B166=0, F161, 'CM choke'!B166) -> 716000 | G162: =IF(CMdata=1,'Frequency vector'!E162,'Frequency vector'!F162) -> 716000 | H162: 716 | J162: 0
D163: 160 | E163: =10*('Frequency vector'!$C$3)^D163 -> 34.14548874 | F163: =IF('CM choke'!B167=0, F162, 'CM choke'!B167) -> 721000 | G163: =IF(CMdata=1,'Frequency vector'!E163,'Frequency vector'!F163) -> 721000 | H163: 721 | J163: 0
D164: 161 | E164: =10*('Frequency vector'!$C$3)^D164 -> 34.40857338 | F164: =IF('CM choke'!B168=0, F163, 'CM choke'!B168) -> 726000 | G164: =IF(CMdata=1,'Frequency vector'!E164,'Frequency vector'!F164) -> 726000 | H164: 726 | J164: 0
D165: 162 | E165: =10*('Frequency vector'!$C$3)^D165 -> 34.67368505 | F165: =IF('CM choke'!B169=0, F164, 'CM choke'!B169) -> 731000 | G165: =IF(CMdata=1,'Frequency vector'!E165,'Frequency vector'!F165) -> 731000 | H165: 731 | J165: 0
D166: 163 | E166: =10*('Frequency vector'!$C$3)^D166 -> 34.94083934 | F166: =IF('CM choke'!B170=0, F165, 'CM choke'!B170) -> 736000 | G166: =IF(CMdata=1,'Frequency vector'!E166,'Frequency vector'!F166) -> 736000 | H166: 736 | J166: 0
D167: 164 | E167: =10*('Frequency vector'!$C$3)^D167 -> 35.21005202 | F167: =IF('CM choke'!B171=0, F166, 'CM choke'!B171) -> 741000 | G167: =IF(CMdata=1,'Frequency vector'!E167,'Frequency vector'!F167) -> 741000 | H167: 741 | J167: 0
D168: 165 | E168: =10*('Frequency vector'!$C$3)^D168 -> 35.48133892 | F168: =IF('CM choke'!B172=0, F167, 'CM choke'!B172) -> 746000 | G168: =IF(CMdata=1,'Frequency vector'!E168,'Frequency vector'!F168) -> 746000 | H168: 746 | J168: 0
D169: 166 | E169: =10*('Frequency vector'!$C$3)^D169 -> 35.75471605 | F169: =IF('CM choke'!B173=0, F168, 'CM choke'!B173) -> 751000 | G169: =IF(CMdata=1,'Frequency vector'!E169,'Frequency vector'!F169) -> 751000 | H169: 751 | J169: 0
D170: 167 | E170: =10*('Frequency vector'!$C$3)^D170 -> 36.03019949 | F170: =IF('CM choke'!B174=0, F169, 'CM choke'!B174) -> 756000 | G170: =IF(CMdata=1,'Frequency vector'!E170,'Frequency vector'!F170) -> 756000 | H170: 756 | J170: 0
D171: 168 | E171: =10*('Frequency vector'!$C$3)^D171 -> 36.30780548 | F171: =IF('CM choke'!B175=0, F170, 'CM choke'!B175) -> 761000 | G171: =IF(CMdata=1,'Frequency vector'!E171,'Frequency vector'!F171) -> 761000 | H171: 761 | J171: 0
D172: 169 | E172: =10*('Frequency vector'!$C$3)^D172 -> 36.58755037 | F172: =IF('CM choke'!B176=0, F171, 'CM choke'!B176) -> 766000 | G172: =IF(CMdata=1,'Frequency vector'!E172,'Frequency vector'!F172) -> 766000 | H172: 766 | J172: 0
D173: 170 | E173: =10*('Frequency vector'!$C$3)^D173 -> 36.86945065 | F173: =IF('CM choke'!B177=0, F172, 'CM choke'!B177) -> 771000 | G173: =IF(CMdata=1,'Frequency vector'!E173,'Frequency vector'!F173) -> 771000 | H173: 771 | J173: 0
D174: 171 | E174: =10*('Frequency vector'!$C$3)^D174 -> 37.15352291 | F174: =IF('CM choke'!B178=0, F173, 'CM choke'!B178) -> 776000 | G174: =IF(CMdata=1,'Frequency vector'!E174,'Frequency vector'!F174) -> 776000 | H174: 776 | J174: 0
D175: 172 | E175: =10*('Frequency vector'!$C$3)^D175 -> 37.4397839 | F175: =IF('CM choke'!B179=0, F174, 'CM choke'!B179) -> 781000 | G175: =IF(CMdata=1,'Frequency vector'!E175,'Frequency vector'!F175) -> 781000 | H175: 781 | J175: 0
D176: 173 | E176: =10*('Frequency vector'!$C$3)^D176 -> 37.72825047 | F176: =IF('CM choke'!B180=0, F175, 'CM choke'!B180) -> 786000 | G176: =IF(CMdata=1,'Frequency vector'!E176,'Frequency vector'!F176) -> 786000 | H176: 786 | J176: 0
D177: 174 | E177: =10*('Frequency vector'!$C$3)^D177 -> 38.01893963 | F177: =IF('CM choke'!B181=0, F176, 'CM choke'!B181) -> 791000 | G177: =IF(CMdata=1,'Frequency vector'!E177,'Frequency vector'!F177) -> 791000 | H177: 791 | J177: 0
D178: 175 | E178: =10*('Frequency vector'!$C$3)^D178 -> 38.3118685 | F178: =IF('CM choke'!B182=0, F177, 'CM choke'!B182) -> 796000 | G178: =IF(CMdata=1,'Frequency vector'!E178,'Frequency vector'!F178) -> 796000 | H178: 796 | J178: 0
D179: 176 | E179: =10*('Frequency vector'!$C$3)^D179 -> 38.60705432 | F179: =IF('CM choke'!B183=0, F178, 'CM choke'!B183) -> 801000 | G179: =IF(CMdata=1,'Frequency vector'!E179,'Frequency vector'!F179) -> 801000 | H179: 801 | J179: 0
D180: 177 | E180: =10*('Frequency vector'!$C$3)^D180 -> 38.9045145 | F180: =IF('CM choke'!B184=0, F179, 'CM choke'!B184) -> 806000 | G180: =IF(CMdata=1,'Frequency vector'!E180,'Frequency vector'!F180) -> 806000 | H180: 806 | J180: 0
D181: 178 | E181: =10*('Frequency vector'!$C$3)^D181 -> 39.20426655 | F181: =IF('CM choke'!B185=0, F180, 'CM choke'!B185) -> 811000 | G181: =IF(CMdata=1,'Frequency vector'!E181,'Frequency vector'!F181) -> 811000 | H181: 811 | J181: 0
D182: 179 | E182: =10*('Frequency vector'!$C$3)^D182 -> 39.50632814 | F182: =IF('CM choke'!B186=0, F181, 'CM choke'!B186) -> 816000 | G182: =IF(CMdata=1,'Frequency vector'!E182,'Frequency vector'!F182) -> 816000 | H182: 816 | J182: 0
D183: 180 | E183: =10*('Frequency vector'!$C$3)^D183 -> 39.81071706 | F183: =IF('CM choke'!B187=0, F182, 'CM choke'!B187) -> 821000 | G183: =IF(CMdata=1,'Frequency vector'!E183,'Frequency vector'!F183) -> 821000 | H183: 821 | J183: 0
D184: 181 | E184: =10*('Frequency vector'!$C$3)^D184 -> 40.11745123 | F184: =IF('CM choke'!B188=0, F183, 'CM choke'!B188) -> 826000 | G184: =IF(CMdata=1,'Frequency vector'!E184,'Frequency vector'!F184) -> 826000 | H184: 826 | J184: 0
D185: 182 | E185: =10*('Frequency vector'!$C$3)^D185 -> 40.42654874 | F185: =IF('CM choke'!B189=0, F184, 'CM choke'!B189) -> 831000 | G185: =IF(CMdata=1,'Frequency vector'!E185,'Frequency vector'!F185) -> 831000 | H185: 831 | J185: 0
D186: 183 | E186: =10*('Frequency vector'!$C$3)^D186 -> 40.73802778 | F186: =IF('CM choke'!B190=0, F185, 'CM choke'!B190) -> 836000 | G186: =IF(CMdata=1,'Frequency vector'!E186,'Frequency vector'!F186) -> 836000 | H186: 836 | J186: 0
D187: 184 | E187: =10*('Frequency vector'!$C$3)^D187 -> 41.05190671 | F187: =IF('CM choke'!B191=0, F186, 'CM choke'!B191) -> 841000 | G187: =IF(CMdata=1,'Frequency vector'!E187,'Frequency vector'!F187) -> 841000 | H187: 841 | J187: 0
D188: 185 | E188: =10*('Frequency vector'!$C$3)^D188 -> 41.36820402 | F188: =IF('CM choke'!B192=0, F187, 'CM choke'!B192) -> 846000 | G188: =IF(CMdata=1,'Frequency vector'!E188,'Frequency vector'!F188) -> 846000 | H188: 846 | J188: 0
D189: 186 | E189: =10*('Frequency vector'!$C$3)^D189 -> 41.68693835 | F189: =IF('CM choke'!B193=0, F188, 'CM choke'!B193) -> 851000 | G189: =IF(CMdata=1,'Frequency vector'!E189,'Frequency vector'!F189) -> 851000 | H189: 851 | J189: 0
D190: 187 | E190: =10*('Frequency vector'!$C$3)^D190 -> 42.00812846 | F190: =IF('CM choke'!B194=0, F189, 'CM choke'!B194) -> 856000 | G190: =IF(CMdata=1,'Frequency vector'!E190,'Frequency vector'!F190) -> 856000 | H190: 856 | J190: 0
D191: 188 | E191: =10*('Frequency vector'!$C$3)^D191 -> 42.33179328 | F191: =IF('CM choke'!B195=0, F190, 'CM choke'!B195) -> 861000 | G191: =IF(CMdata=1,'Frequency vector'!E191,'Frequency vector'!F191) -> 861000 | H191: 861 | J191: 0
D192: 189 | E192: =10*('Frequency vector'!$C$3)^D192 -> 42.65795188 | F192: =IF('CM choke'!B196=0, F191, 'CM choke'!B196) -> 866000 | G192: =IF(CMdata=1,'Frequency vector'!E192,'Frequency vector'!F192) -> 866000 | H192: 866 | J192: 0
D193: 190 | E193: =10*('Frequency vector'!$C$3)^D193 -> 42.98662347 | F193: =IF('CM choke'!B197=0, F192, 'CM choke'!B197) -> 871000 | G193: =IF(CMdata=1,'Frequency vector'!E193,'Frequency vector'!F193) -> 871000 | H193: 871 | J193: 0
D194: 191 | E194: =10*('Frequency vector'!$C$3)^D194 -> 43.31782742 | F194: =IF('CM choke'!B198=0, F193, 'CM choke'!B198) -> 876000 | G194: =IF(CMdata=1,'Frequency vector'!E194,'Frequency vector'!F194) -> 876000 | H194: 876 | J194: 0
D195: 192 | E195: =10*('Frequency vector'!$C$3)^D195 -> 43.65158322 | F195: =IF('CM choke'!B199=0, F194, 'CM choke'!B199) -> 881000 | G195: =IF(CMdata=1,'Frequency vector'!E195,'Frequency vector'!F195) -> 881000 | H195: 881 | J195: =IF(ABS(Fsw-G195)<=5000,1,0) -> 0
D196: 193 | E196: =10*('Frequency vector'!$C$3)^D196 -> 43.98791056 | F196: =IF('CM choke'!B200=0, F195, 'CM choke'!B200) -> 886000 | G196: =IF(CMdata=1,'Frequency vector'!E196,'Frequency vector'!F196) -> 886000 | H196: =G196/1000 -> 886 | J196: 0
D197: 194 | E197: =10*('Frequency vector'!$C$3)^D197 -> 44.32682923 | F197: =IF('CM choke'!B201=0, F196, 'CM choke'!B201) -> 891000 | G197: =IF(CMdata=1,'Frequency vector'!E197,'Frequency vector'!F197) -> 891000 | H197: 891 | J197: 0
D198: 195 | E198: =10*('Frequency vector'!$C$3)^D198 -> 44.66835922 | F198: =IF('CM choke'!B202=0, F197, 'CM choke'!B202) -> 896000 | G198: =IF(CMdata=1,'Frequency vector'!E198,'Frequency vector'!F198) -> 896000 | H198: 896 | J198: 0
D199: 196 | E199: =10*('Frequency vector'!$C$3)^D199 -> 45.01252062 | F199: =IF('CM choke'!B203=0, F198, 'CM choke'!B203) -> 901000 | G199: =IF(CMdata=1,'Frequency vector'!E199,'Frequency vector'!F199) -> 901000 | H199: 901 | J199: 0
D200: 197 | E200: =10*('Frequency vector'!$C$3)^D200 -> 45.35933373 | F200: =IF('CM choke'!B204=0, F199, 'CM choke'!B204) -> 905000 | G200: =IF(CMdata=1,'Frequency vector'!E200,'Frequency vector'!F200) -> 905000 | H200: 905 | J200: 0
D201: 198 | E201: =10*('Frequency vector'!$C$3)^D201 -> 45.70881896 | F201: =IF('CM choke'!B205=0, F200, 'CM choke'!B205) -> 910000 | G201: =IF(CMdata=1,'Frequency vector'!E201,'Frequency vector'!F201) -> 910000 | H201: 910 | J201: 0
... 924 more rows

Sheet Choke impedance calculations (hidden)
C1: ZL1 (mag, phase) | E1: ZL2 (mag, phase) | G1: ZL1 (real, imag) | I1: ZL2 (real, imag) | K1: ZL1 (complex) | L1: ZL2 (complex) | O1: Lcm1 | Q1: Lcm2
A2: freq_selected [Hz] | B2: j*w [rad] | C2: ZL1_mag [Ω] | D2: ZL1_phase [°] | E2: ZL2_mag [Ω] | F2: ZL2_phase [°] | G2: ZL1_real [Ω] | H2: ZL1_imag [Ω] | I2: ZL2_real [Ω] | J2: ZL2_imag [Ω] | K2: Zch1 [Ω] | L2: Zch2 [Ω]
A3: ='Frequency vector'!G3 -> 1000 | B3: =COMPLEX(0,2*PI()*'Frequency vector'!G3,"j") -> 6283.18530717959j | C3: =IF(CMdata=1,IMABS(K3),'CM choke'!C7) -> 7.4048 | D3: =IF(CMdata=1,DEGREES(IMARGUMENT(K3)),'CM choke'!D7) -> 87.352 | E3: =IF(CMdata=1,IMABS(L3),'CM choke'!E7) -> 3.1572 | F3: =IF(CMdata=1,DEGREES(IMARGUMENT(L3)),'CM choke'!F7) -> 85.84 | G3: =C3*COS(RADIANS(D3)) -> 0.3421007806 | H3: =C3*SIN(RADIANS(D3)) -> 7.396893273 | I3: =E3*COS(RADIANS(F3)) -> 0.2290293577 | J3: =E3*SIN(RADIANS(F3)) -> 3.148881927 | K3: =IF(CMdata=1, IF(Lcm1_core=1, IMDIV(1,IMSUM(IMDIV(1,IMPRODUCT(B3,'Design the AEF circuit'!$G$19*0.001)),IMDIV(1,'Design the AEF circuit'!$G$20*1000),IMPRODUCT(B3,'Design the AEF circuit'!$G$21*0.000000000001))), O3),COMPLEX(G3,H3,"j")) -> 0.342100780642157+7.39689327325223j | L3: =IF(CMdata=1, IF(Lcm2_core=1, IMDIV(1, IMSUM(IMDIV(1,IMPRODUCT(B3,'Design the AEF circuit'!$H$19*0.001)), IMDIV(1,'Design the AEF circuit'!$H$20*1000), IMPRODUCT(B3,'Design the AEF circuit'!$H$21*0.000000000001))), Q3), COMPLEX(I3,J3,"j")) -> 0.22902935766734+3.14888192749847j | N3: =IMSUM(IMDIV(1,IMSUM(IMDIV(1,IMPRODUCT(B3,'Design the AEF circuit'!$G$19*0.001)),IMDIV(1,'Design the AEF circuit'!$G$20*1000))), IMDIV(1,IMSUM(IMDIV(1,IMPRODUCT(B3,'Design the AEF circuit'!$G$22*0.001)),IMDIV(1,'Design the AEF circuit'!$G$23*1000))), IMDIV(1,IMSUM(IMDIV(1,IMPRODUCT(B3,'Design the AEF circuit'!$G$24*0.001)),IMDIV(1,'Design the AEF circuit'!$G$25*1000))) ) -> 0.0755308587360917+5.15095168502533j | O3: =IMDIV(1, IMSUM( IMDIV(1, N3), IMPRODUCT(B3,'Design the AEF circuit'!$G$21*0.000000000001) ) ) -> 0.0755308880702171+5.15095268505473j | P3: =IMSUM(IMDIV(1,IMSUM(IMDIV(1,IMPRODUCT(B3,'Design the AEF circuit'!$H$19*0.001)),IMDIV(1,'Design the AEF circuit'!$H$20*1000))), IMDIV(1,IMSUM(IMDIV(1,IMPRODUCT(B3,'Design the AEF circuit'!$H$22*0.001)),IMDIV(1,'Design the AEF circuit'!$H$23*1000))), IMDIV(1,IMSUM(IMDIV(1,IMPRODUCT(B3,'Design the AEF circuit'!$H$24*0.001)),IMDIV(1,'Design the AEF circuit'!$H$25*1000))) ) -> 0.078504266930553+5.15084904457947j | Q3: =IMDIV(1, IMSUM( IMDIV(1, P3), IMPRODUCT(B3,'Design the AEF circuit'!$H$21*0.000000000001) ) ) -> 0.078504297418861+5.15085004455173j
A4: ='Frequency vector'!G4 -> 1148.2 | B4: =COMPLEX(0,2*PI()*'Frequency vector'!G4,"j") -> 7214.3533697036j | C4: =IF(IF(CMdata=1,IMABS(K4),'CM choke'!C8)=0, C3, IF(CMdata=1,IMABS(K4),'CM choke'!C8)) -> 8.4589 | D4: =IF(IF(CMdata=1,DEGREES(IMARGUMENT(K4)),'CM choke'!D8)=0, D3, IF(CMdata=1,DEGREES(IMARGUMENT(K4)),'CM choke'!D8)) -> 87.457 | E4: =IF(IF(CMdata=1,IMABS(L4),'CM choke'!E8)=0, E3, IF(CMdata=1,IMABS(L4),'CM choke'!E8)) -> 3.6095 | F4: =IF(IF(CMdata=1,DEGREES(IMARGUMENT(L4)),'CM choke'!F8)=0, F3, IF(CMdata=1,DEGREES(IMARGUMENT(L4)),'CM choke'!F8)) -> 85.852 | G4: =C4*COS(RADIANS(D4)) -> 0.3753142223 | H4: 8.450569711 | I4: 0.2610860833 | J4: 3.600045042 | K4: =IF(CMdata=1, IF(Lcm1_core=1, IMDIV(1,IMSUM(IMDIV(1,IMPRODUCT(B4,'Design the AEF circuit'!$G$19*0.001)),IMDIV(1,'Design the AEF circuit'!$G$20*1000),IMPRODUCT(B4,'Design the AEF circuit'!$G$21*0.000000000001))), O4),COMPLEX(G4,H4,"j")) -> 0.375314222285439+8.45056971124138j | L4: =IF(CMdata=1, IF(Lcm2_core=1, IMDIV(1, IMSUM(IMDIV(1,IMPRODUCT(B4,'Design the AEF circuit'!$H$19*0.001)), IMDIV(1,'Design the AEF circuit'!$H$20*1000), IMPRODUCT(B4,'Design the AEF circuit'!$H$21*0.000000000001))), Q4), COMPLEX(I4,J4,"j")) -> 0.261086083268232+3.60004504237428j | N4: =IMSUM(IMDIV(1,IMSUM(IMDIV(1,IMPRODUCT(B4,'Design the AEF circuit'!$G$19*0.001)),IMDIV(1,'Design the AEF circuit'!$G$20*1000))), IMDIV(1,IMSUM(IMDIV(1,IMPRODUCT(B4,'Design the AEF circuit'!$G$22*0.001)),IMDIV(1,'Design the AEF circuit'!$G$23*1000))), IMDIV(1,IMSUM(IMDIV(1,IMPRODUCT(B4,'Design the AEF circuit'!$G$24*0.001)),IMDIV(1,'Design the AEF circuit'!$G$25*1000))) ) -> 0.099568175910444+5.91386221436603j | O4: =IMDIV(1, IMSUM( IMDIV(1, N4), IMPRODUCT(B4,'Design the AEF circuit'!$G$21*0.000000000001))) -> 0.0995682268870099+5.91386372781593j | P4: =IMSUM(IMDIV(1,IMSUM(IMDIV(1,IMPRODUCT(B4,'Design the AEF circuit'!$H$19*0.001)),IMDIV(1,'Design the AEF circuit'!$H$20*1000))), IMDIV(1,IMSUM(IMDIV(1,IMPRODUCT(B4,'Design the AEF circuit'!$H$22*0.001)),IMDIV(1,'Design the AEF circuit'!$H$23*1000))), IMDIV(1,IMSUM(IMDIV(1,IMPRODUCT(B4,'Design the AEF circuit'!$H$24*0.001)),IMDIV(1,'Design the AEF circuit'!$H$25*1000))) ) -> 0.103487093453787+5.91370687238958j | Q4: =IMDIV(1, IMSUM( IMDIV(1, P4), IMPRODUCT(B4,'Design the AEF circuit'!$H$21*0.000000000001) ) ) -> 0.103487146435354+5.91370838572549j
A5: ='Frequency vector'!G5 -> 1318.4 | B5: =COMPLEX(0,2*PI()*'Frequency vector'!G5,"j") -> 8283.75150898557j | C5: =IF(IF(CMdata=1,IMABS(K5),'CM choke'!C9)=0, C4, IF(CMdata=1,IMABS(K5),'CM choke'!C9)) -> 9.6674 | D5: =IF(IF(CMdata=1,DEGREES(IMARGUMENT(K5)),'CM choke'!D9)=0, D4, IF(CMdata=1,DEGREES(IMARGUMENT(K5)),'CM choke'!D9)) -> 87.569 | E5: =IF(IF(CMdata=1,IMABS(L5),'CM choke'!E9)=0, E4, IF(CMdata=1,IMABS(L5),'CM choke'!E9)) -> 4.1208 | F5: =IF(IF(CMdata=1,DEGREES(IMARGUMENT(L5)),'CM choke'!F9)=0, F4, IF(CMdata=1,DEGREES(IMARGUMENT(L5)),'CM choke'!F9)) -> 85.893 | G5: 0.410054614 | H5: 9.658699601 | I5: 0.2951288287 | J5: 4.110217952 | K5: =IF(CMdata=1, IF(Lcm1_core=1, IMDIV(1,IMSUM(IMDIV(1,IMPRODUCT(B5,'Design the AEF circuit'!$G$19*0.001)),IMDIV(1,'Design the AEF circuit'!$G$20*1000),IMPRODUCT(B5,'Design the AEF circuit'!$G$21*0.000000000001))), O5),COMPLEX(G5,H5,"j")) -> 0.410054614020051+9.65869960054255j | L5: =IF(CMdata=1, IF(Lcm2_core=1, IMDIV(1, IMSUM(IMDIV(1,IMPRODUCT(B5,'Design the AEF circuit'!$H$19*0.001)), IMDIV(1,'Design the AEF circuit'!$H$20*1000), IMPRODUCT(B5,'Design the AEF circuit'!$H$21*0.000000000001))), Q5), COMPLEX(I5,J5,"j")) -> 0.295128828661148+4.11021795218856j | N5: =IMSUM(IMDIV(1,IMSUM(IMDIV(1,IMPRODUCT(B5,'Design the AEF circuit'!$G$19*0.001)),IMDIV(1,'Design the AEF circuit'!$G$20*1000))), IMDIV(1,IMSUM(IMDIV(1,IMPRODUCT(B5,'Design the AEF circuit'!$G$22*0.001)),IMDIV(1,'Design the AEF circuit'!$G$23*1000))), IMDIV(1,IMSUM(IMDIV(1,IMPRODUCT(B5,'Design the AEF circuit'!$G$24*0.001)),IMDIV(1,'Design the AEF circuit'!$G$25*1000))) ) -> 0.131258818094762+6.78978880019946j | O5: =IMDIV(1, IMSUM( IMDIV(1, N5), IMPRODUCT(B5,'Design the AEF circuit'!$G$21*0.000000000001))) -> 0.131258906686513+6.78979109069083j | P5: =IMSUM(IMDIV(1,IMSUM(IMDIV(1,IMPRODUCT(B5,'Design the AEF circuit'!$H$19*0.001)),IMDIV(1,'Design the AEF circuit'!$H$20*1000))), IMDIV(1,IMSUM(IMDIV(1,IMPRODUCT(B5,'Design the AEF circuit'!$H$22*0.001)),IMDIV(1,'Design the AEF circuit'!$H$23*1000))), IMDIV(1,IMSUM(IMDIV(1,IMPRODUCT(B5,'Design the AEF circuit'!$H$24*0.001)),IMDIV(1,'Design the AEF circuit'!$H$25*1000))) ) -> 0.136423726078915+6.78955369121442j | Q5: =IMDIV(1, IMSUM( IMDIV(1, P5), IMPRODUCT(B5,'Design the AEF circuit'!$H$21*0.000000000001) ) ) -> 0.136423818153477+6.78955598147836j
A6: ='Frequency vector'!G6 -> 1513.7 | B6: =COMPLEX(0,2*PI()*'Frequency vector'!G6,"j") -> 9510.85759947774j | C6: =IF(IF(CMdata=1,IMABS(K6),'CM choke'!C10)=0, C5, IF(CMdata=1,IMABS(K6),'CM choke'!C10)) -> 11.05 | D6: =IF(IF(CMdata=1,DEGREES(IMARGUMENT(K6)),'CM choke'!D10)=0, D5, IF(CMdata=1,DEGREES(IMARGUMENT(K6)),'CM choke'!D10)) -> 87.653 | E6: =IF(IF(CMdata=1,IMABS(L6),'CM choke'!E10)=0, E5, IF(CMdata=1,IMABS(L6),'CM choke'!E10)) -> 4.701 | F6: =IF(IF(CMdata=1,DEGREES(IMARGUMENT(L6)),'CM choke'!F10)=0, F5, IF(CMdata=1,DEGREES(IMARGUMENT(L6)),'CM choke'!F10)) -> 85.944 | G6: 0.4525132224 | H6: 11.04073058 | I6: 0.3325085173 | J6: 4.689225851 | K6: =IF(CMdata=1, IF(Lcm1_core=1, IMDIV(1,IMSUM(IMDIV(1,IMPRODUCT(B6,'Design the AEF circuit'!$G$19*0.001)),IMDIV(1,'Design the AEF circuit'!$G$20*1000),IMPRODUCT(B6,'Design the AEF circuit'!$G$21*0.000000000001))), O6),COMPLEX(G6,H6,"j")) -> 0.452513222439708+11.0407305819641j | L6: =IF(CMdata=1, IF(Lcm2_core=1, IMDIV(1, IMSUM(IMDIV(1,IMPRODUCT(B6,'Design the AEF circuit'!$H$19*0.001)), IMDIV(1,'Design the AEF circuit'!$H$20*1000), IMPRODUCT(B6,'Design the AEF circuit'!$H$21*0.000000000001))), Q6), COMPLEX(I6,J6,"j")) -> 0.332508517267564+4.689225851454j | N6: =IMSUM(IMDIV(1,IMSUM(IMDIV(1,IMPRODUCT(B6,'Design the AEF circuit'!$G$19*0.001)),IMDIV(1,'Design the AEF circuit'!$G$20*1000))), IMDIV(1,IMSUM(IMDIV(1,IMPRODUCT(B6,'Design the AEF circuit'!$G$22*0.001)),IMDIV(1,'Design the AEF circuit'!$G$23*1000))), IMDIV(1,IMSUM(IMDIV(1,IMPRODUCT(B6,'Design the AEF circuit'!$G$24*0.001)),IMDIV(1,'Design the AEF circuit'!$G$25*1000))) ) -> 0.172999982085168+7.79453383159319j | O6: =IMDIV(1, IMSUM( IMDIV(1, N6), IMPRODUCT(B6,'Design the AEF circuit'!$G$21*0.000000000001))) -> 0.173000135984745+7.79453729686597j | P6: =IMSUM(IMDIV(1,IMSUM(IMDIV(1,IMPRODUCT(B6,'Design the AEF circuit'!$H$19*0.001)),IMDIV(1,'Design the AEF circuit'!$H$20*1000))), IMDIV(1,IMSUM(IMDIV(1,IMPRODUCT(B6,'Design the AEF circuit'!$H$22*0.001)),IMDIV(1,'Design the AEF circuit'!$H$23*1000))), IMDIV(1,IMSUM(IMDIV(1,IMPRODUCT(B6,'Design the AEF circuit'!$H$24*0.001)),IMDIV(1,'Design the AEF circuit'!$H$25*1000))) ) -> 0.179805062925524+7.79417811504048j | Q6: =IMDIV(1, IMSUM( IMDIV(1, P6), IMPRODUCT(B6,'Design the AEF circuit'!$H$21*0.000000000001) ) ) -> 0.179805222871553+7.79418157985981j
A7: ='Frequency vector'!G7 -> 1738.1 | B7: =COMPLEX(0,2*PI()*'Frequency vector'!G7,"j") -> 10920.8043824088j | C7: =IF(IF(CMdata=1,IMABS(K7),'CM choke'!C11)=0, C6, IF(CMdata=1,IMABS(K7),'CM choke'!C11)) -> 12.635 | D7: =IF(IF(CMdata=1,DEGREES(IMARGUMENT(K7)),'CM choke'!D11)=0, D6, IF(CMdata=1,DEGREES(IMARGUMENT(K7)),'CM choke'!D11)) -> 87.703 | E7: =IF(IF(CMdata=1,IMABS(L7),'CM choke'!E11)=0, E6, IF(CMdata=1,IMABS(L7),'CM choke'!E11)) -> 5.36 | F7: =IF(IF(CMdata=1,DEGREES(IMARGUMENT(L7)),'CM choke'!F11)=0, F6, IF(CMdata=1,DEGREES(IMARGUMENT(L7)),'CM choke'!F11)) -> 86.009 | G7: 0.5064041639 | H7: 12.62484771 | I7: 0.3730547988 | J7: 5.347001975 | K7: =IF(CMdata=1, IF(Lcm1_core=1, IMDIV(1,IMSUM(IMDIV(1,IMPRODUCT(B7,'Design the AEF circuit'!$G$19*0.001)),IMDIV(1,'Design the AEF circuit'!$G$20*1000),IMPRODUCT(B7,'Design the AEF circuit'!$G$21*0.000000000001))), O7),COMPLEX(G7,H7,"j")) -> 0.506404163862801+12.6248477148369j | L7: =IF(CMdata=1, IF(Lcm2_core=1, IMDIV(1, IMSUM(IMDIV(1,IMPRODUCT(B7,'Design the AEF circuit'!$H$19*0.001)), IMDIV(1,'Design the AEF circuit'!$H$20*1000), IMPRODUCT(B7,'Design the AEF circuit'!$H$21*0.000000000001))), Q7), COMPLEX(I7,J7,"j")) -> 0.373054798768228+5.34700197466917j | N7: =IMSUM(IMDIV(1,IMSUM(IMDIV(1,IMPRODUCT(B7,'Design the AEF circuit'!$G$19*0.001)),IMDIV(1,'Design the AEF circuit'!$G$20*1000))), IMDIV(1,IMSUM(IMDIV(1,IMPRODUCT(B7,'Design the AEF circuit'!$G$22*0.001)),IMDIV(1,'Design the AEF circuit'!$G$23*1000))), IMDIV(1,IMSUM(IMDIV(1,IMPRODUCT(B7,'Design the AEF circuit'!$G$24*0.001)),IMDIV(1,'Design the AEF circuit'!$G$25*1000))) ) -> 0.228048229065708+8.94844602021367j | O7: =IMDIV(1, IMSUM( IMDIV(1, N7), IMPRODUCT(B7,'Design the AEF circuit'!$G$21*0.000000000001))) -> 0.228048496495989+8.94845126368893j | P7: =IMSUM(IMDIV(1,IMSUM(IMDIV(1,IMPRODUCT(B7,'Design the AEF circuit'!$H$19*0.001)),IMDIV(1,'Design the AEF circuit'!$H$20*1000))), IMDIV(1,IMSUM(IMDIV(1,IMPRODUCT(B7,'Design the AEF circuit'!$H$22*0.001)),IMDIV(1,'Design the AEF circuit'!$H$23*1000))), IMDIV(1,IMSUM(IMDIV(1,IMPRODUCT(B7,'Design the AEF circuit'!$H$24*0.001)),IMDIV(1,'Design the AEF circuit'!$H$25*1000))) ) -> 0.237014671725408+8.94790772527259j | Q7: =IMDIV(1, IMSUM( IMDIV(1, P7), IMPRODUCT(B7,'Design the AEF circuit'!$H$21*0.000000000001) ) ) -> 0.237014949653844+8.9479129678434j
A8: ='Frequency vector'!G8 -> 1995.6 | B8: =COMPLEX(0,2*PI()*'Frequency vector'!G8,"j") -> 12538.7245990076j | C8: =IF(IF(CMdata=1,IMABS(K8),'CM choke'!C12)=0, C7, IF(CMdata=1,IMABS(K8),'CM choke'!C12)) -> 14.448 | D8: =IF(IF(CMdata=1,DEGREES(IMARGUMENT(K8)),'CM choke'!D12)=0, D7, IF(CMdata=1,DEGREES(IMARGUMENT(K8)),'CM choke'!D12)) -> 87.718 | E8: =IF(IF(CMdata=1,IMABS(L8),'CM choke'!E12)=0, E7, IF(CMdata=1,IMABS(L8),'CM choke'!E12)) -> 6.1092 | F8: =IF(IF(CMdata=1,DEGREES(IMARGUMENT(L8)),'CM choke'!F12)=0, F7, IF(CMdata=1,DEGREES(IMARGUMENT(L8)),'CM choke'!F12)) -> 86.079 | G8: 0.5752887935 | H8: 14.43654207 | I8: 0.4177529393 | J8: 6.094900091 | K8: =IF(CMdata=1, IF(Lcm1_core=1, IMDIV(1,IMSUM(IMDIV(1,IMPRODUCT(B8,'Design the AEF circuit'!$G$19*0.001)),IMDIV(1,'Design the AEF circuit'!$G$20*1000),IMPRODUCT(B8,'Design the AEF circuit'!$G$21*0.000000000001))), O8),COMPLEX(G8,H8,"j")) -> 0.575288793524822+14.4365420653301j | L8: =IF(CMdata=1, IF(Lcm2_core=1, IMDIV(1, IMSUM(IMDIV(1,IMPRODUCT(B8,'Design the AEF circuit'!$H$19*0.001)), IMDIV(1,'Design the AEF circuit'!$H$20*1000), IMPRODUCT(B8,'Design the AEF circuit'!$H$21*0.000000000001))), Q8), COMPLEX(I8,J8,"j")) -> 0.41775293929941+6.09490009119975j | N8: =IMSUM(IMDIV(1,IMSUM(IMDIV(1,IMPRODUCT(B8,'Design the AEF circuit'!$G$19*0.001)),IMDIV(1,'Design the AEF circuit'!$G$20*1000))), IMDIV(1,IMSUM(IMDIV(1,IMPRODUCT(B8,'Design the AEF circuit'!$G$22*0.001)),IMDIV(1,'Design the AEF circuit'!$G$23*1000))), IMDIV(1,IMSUM(IMDIV(1,IMPRODUCT(B8,'Design the AEF circuit'!$G$24*0.001)),IMDIV(1,'Design the AEF circuit'!$G$25*1000))) ) -> 0.300542995225034+10.2717469567019j | O8: =IMDIV(1, IMSUM( IMDIV(1, N8), IMPRODUCT(B8,'Design the AEF circuit'!$G$21*0.000000000001))) -> 0.300543459725373+10.2717548875862j | P8: =IMSUM(IMDIV(1,IMSUM(IMDIV(1,IMPRODUCT(B8,'Design the AEF circuit'!$H$19*0.001)),IMDIV(1,'Design the AEF circuit'!$H$20*1000))), IMDIV(1,IMSUM(IMDIV(1,IMPRODUCT(B8,'Design the AEF circuit'!$H$22*0.001)),IMDIV(1,'Design the AEF circuit'!$H$23*1000))), IMDIV(1,IMSUM(IMDIV(1,IMPRODUCT(B8,'Design the AEF circuit'!$H$24*0.001)),IMDIV(1,'Design the AEF circuit'!$H$25*1000))) ) -> 0.312352856474954+10.2709326874286j | Q8: =IMDIV(1, IMSUM( IMDIV(1, P8), IMPRODUCT(B8,'Design the AEF circuit'!$H$21*0.000000000001) ) ) -> 0.312353339189603+10.2709406165099j
A9: ='Frequency vector'!G9 -> 2291.4 | B9: =COMPLEX(0,2*PI()*'Frequency vector'!G9,"j") -> 14397.2908128713j | C9: =IF(IF(CMdata=1,IMABS(K9),'CM choke'!C13)=0, C8, IF(CMdata=1,IMABS(K9),'CM choke'!C13)) -> 16.524 | D9: =IF(IF(CMdata=1,DEGREES(IMARGUMENT(K9)),'CM choke'!D13)=0, D8, IF(CMdata=1,DEGREES(IMARGUMENT(K9)),'CM choke'!D13)) -> 87.706 | E9: =IF(IF(CMdata=1,IMABS(L9),'CM choke'!E13)=0, E8, IF(CMdata=1,IMABS(L9),'CM choke'!E13)) -> 6.9646 | F9: =IF(IF(CMdata=1,DEGREES(IMARGUMENT(L9)),'CM choke'!F13)=0, F8, IF(CMdata=1,DEGREES(IMARGUMENT(L9)),'CM choke'!F13)) -> 86.136 | G9: 0.661408741 | H9: 16.51075754 | I9: 0.4693333465 | J9: 6.948768191 | K9: =IF(CMdata=1, IF(Lcm1_core=1, IMDIV(1,IMSUM(IMDIV(1,IMPRODUCT(B9,'Design the AEF circuit'!$G$19*0.001)),IMDIV(1,'Design the AEF circuit'!$G$20*1000),IMPRODUCT(B9,'Design the AEF circuit'!$G$21*0.000000000001))), O9),COMPLEX(G9,H9,"j")) -> 0.661408740951542+16.5107575379627j | L9: =IF(CMdata=1, IF(Lcm2_core=1, IMDIV(1, IMSUM(IMDIV(1,IMPRODUCT(B9,'Design the AEF circuit'!$H$19*0.001)), IMDIV(1,'Design the AEF circuit'!$H$20*1000), IMPRODUCT(B9,'Design the AEF circuit'!$H$21*0.000000000001))), Q9), COMPLEX(I9,J9,"j")) -> 0.469333346477187+6.94876819082955j | N9: =IMSUM(IMDIV(1,IMSUM(IMDIV(1,IMPRODUCT(B9,'Design the AEF circuit'!$G$19*0.001)),IMDIV(1,'Design the AEF circuit'!$G$20*1000))), IMDIV(1,IMSUM(IMDIV(1,IMPRODUCT(B9,'Design the AEF circuit'!$G$22*0.001)),IMDIV(1,'Design the AEF circuit'!$G$23*1000))), IMDIV(1,IMSUM(IMDIV(1,IMPRODUCT(B9,'Design the AEF circuit'!$G$24*0.001)),IMDIV(1,'Design the AEF circuit'!$G$25*1000))) ) -> 0.396101441126551+11.7906345463948j | O9: =IMDIV(1, IMSUM( IMDIV(1, N9), IMPRODUCT(B9,'Design the AEF circuit'!$G$21*0.000000000001))) -> 0.396102248001604+11.790646541841j | P9: =IMSUM(IMDIV(1,IMSUM(IMDIV(1,IMPRODUCT(B9,'Design the AEF circuit'!$H$19*0.001)),IMDIV(1,'Design the AEF circuit'!$H$20*1000))), IMDIV(1,IMSUM(IMDIV(1,IMPRODUCT(B9,'Design the AEF circuit'!$H$22*0.001)),IMDIV(1,'Design the AEF circuit'!$H$23*1000))), IMDIV(1,IMSUM(IMDIV(1,IMPRODUCT(B9,'Design the AEF circuit'!$H$24*0.001)),IMDIV(1,'Design the AEF circuit'!$H$25*1000))) ) -> 0.411654216382839+11.7894027960665j | Q9: =IMDIV(1, IMSUM( IMDIV(1, P9), IMPRODUCT(B9,'Design the AEF circuit'!$H$21*0.000000000001) ) ) -> 0.411655054851935+11.7894147879184j
A10: ='Frequency vector'!G10 -> 2630.9 | B10: =COMPLEX(0,2*PI()*'Frequency vector'!G10,"j") -> 16530.4322246588j | C10: =IF(IF(CMdata=1,IMABS(K10),'CM choke'!C14)=0, C9, IF(CMdata=1,IMABS(K10),'CM choke'!C14)) -> 18.902 | D10: =IF(IF(CMdata=1,DEGREES(IMARGUMENT(K10)),'CM choke'!D14)=0, D9, IF(CMdata=1,DEGREES(IMARGUMENT(K10)),'CM choke'!D14)) -> 87.663 | E10: =IF(IF(CMdata=1,IMABS(L10),'CM choke'!E14)=0, E9, IF(CMdata=1,IMABS(L10),'CM choke'!E14)) -> 7.9406 | F10: =IF(IF(CMdata=1,DEGREES(IMARGUMENT(L10)),'CM choke'!F14)=0, F9, IF(CMdata=1,DEGREES(IMARGUMENT(L10)),'CM choke'!F14)) -> 86.147 | G10: 0.7707675289 | H10: 18.88627865 | I10: 0.5335834081 | J10: 7.922652151 | K10: =IF(CMdata=1, IF(Lcm1_core=1, IMDIV(1,IMSUM(IMDIV(1,IMPRODUCT(B10,'Design the AEF circuit'!$G$19*0.001)),IMDIV(1,'Design the AEF circuit'!$G$20*1000),IMPRODUCT(B10,'Design the AEF circuit'!$G$21*0.000000000001))), O10),COMPLEX(G10,H10,"j")) -> 0.770767528916889+18.886278654525j | L10: =IF(CMdata=1, IF(Lcm2_core=1, IMDIV(1, IMSUM(IMDIV(1,IMPRODUCT(B10,'Design the AEF circuit'!$H$19*0.001)), IMDIV(1,'Design the AEF circuit'!$H$20*1000), IMPRODUCT(B10,'Design the AEF circuit'!$H$21*0.000000000001))), Q10), COMPLEX(I10,J10,"j")) -> 0.533583408129701+7.92265215105199j | N10: =IMSUM(IMDIV(1,IMSUM(IMDIV(1,IMPRODUCT(B10,'Design the AEF circuit'!$G$19*0.001)),IMDIV(1,'Design the AEF circuit'!$G$20*1000))), IMDIV(1,IMSUM(IMDIV(1,IMPRODUCT(B10,'Design the AEF circuit'!$G$22*0.001)),IMDIV(1,'Design the AEF circuit'!$G$23*1000))), IMDIV(1,IMSUM(IMDIV(1,IMPRODUCT(B10,'Design the AEF circuit'!$G$24*0.001)),IMDIV(1,'Design the AEF circuit'!$G$25*1000))) ) -> 0.52192619262118+13.5320435523623j | O10: =IMDIV(1, IMSUM( IMDIV(1, N10), IMPRODUCT(B10,'Design the AEF circuit'!$G$21*0.000000000001))) -> 0.52192759362335+13.5320616873084j | P10: =IMSUM(IMDIV(1,IMSUM(IMDIV(1,IMPRODUCT(B10,'Design the AEF circuit'!$H$19*0.001)),IMDIV(1,'Design the AEF circuit'!$H$20*1000))), IMDIV(1,IMSUM(IMDIV(1,IMPRODUCT(B10,'Design the AEF circuit'!$H$22*0.001)),IMDIV(1,'Design the AEF circuit'!$H$23*1000))), IMDIV(1,IMSUM(IMDIV(1,IMPRODUCT(B10,'Design the AEF circuit'!$H$24*0.001)),IMDIV(1,'Design the AEF circuit'!$H$25*1000))) ) -> 0.542398502584648+13.5301810301818j | Q10: =IMDIV(1, IMSUM( IMDIV(1, P10), IMPRODUCT(B10,'Design the AEF circuit'!$H$21*0.000000000001) ) ) -> 0.542399958340076+13.5301991579676j
A11: ='Frequency vector'!G11 -> 3020.8 | B11: =COMPLEX(0,2*PI()*'Frequency vector'!G11,"j") -> 18980.2461759281j | C11: =IF(IF(CMdata=1,IMABS(K11),'CM choke'!C15)=0, C10, IF(CMdata=1,IMABS(K11),'CM choke'!C15)) -> 21.629 | D11: =IF(IF(CMdata=1,DEGREES(IMARGUMENT(K11)),'CM choke'!D15)=0, D10, IF(CMdata=1,DEGREES(IMARGUMENT(K11)),'CM choke'!D15)) -> 87.59 | E11: =IF(IF(CMdata=1,IMABS(L11),'CM choke'!E15)=0, E10, IF(CMdata=1,IMABS(L11),'CM choke'!E15)) -> 9.0326 | F11: =IF(IF(CMdata=1,DEGREES(IMARGUMENT(L11)),'CM choke'!F15)=0, F10, IF(CMdata=1,DEGREES(IMARGUMENT(L11)),'CM choke'!F15)) -> 86.218 | G11: 0.909500162 | H11: 21.60986928 | I11: 0.595794167 | J11: 9.012929162 | K11: =IF(CMdata=1, IF(Lcm1_core=1, IMDIV(1,IMSUM(IMDIV(1,IMPRODUCT(B11,'Design the AEF circuit'!$G$19*0.001)),IMDIV(1,'Design the AEF circuit'!$G$20*1000),IMPRODUCT(B11,'Design the AEF circuit'!$G$21*0.000000000001))), O11),COMPLEX(G11,H11,"j")) -> 0.909500162041435+21.6098692836224j | L11: =IF(CMdata=1, IF(Lcm2_core=1, IMDIV(1, IMSUM(IMDIV(1,IMPRODUCT(B11,'Design the AEF circuit'!$H$19*0.001)), IMDIV(1,'Design the AEF circuit'!$H$20*1000), IMPRODUCT(B11,'Design the AEF circuit'!$H$21*0.000000000001))), Q11), COMPLEX(I11,J11,"j")) -> 0.595794166996764+9.01292916151973j | N11: =IMSUM(IMDIV(1,IMSUM(IMDIV(1,IMPRODUCT(B11,'Design the AEF circuit'!$G$19*0.001)),IMDIV(1,'Design the AEF circuit'!$G$20*1000))), IMDIV(1,IMSUM(IMDIV(1,IMPRODUCT(B11,'Design the AEF circuit'!$G$22*0.001)),IMDIV(1,'Design the AEF circuit'!$G$23*1000))), IMDIV(1,IMSUM(IMDIV(1,IMPRODUCT(B11,'Design the AEF circuit'!$G$24*0.001)),IMDIV(1,'Design the AEF circuit'!$G$25*1000))) ) -> 0.687662352503676+15.5291424103148j | O11: =IMDIV(1, IMSUM( IMDIV(1, N11), IMPRODUCT(B11,'Design the AEF circuit'!$G$21*0.000000000001))) -> 0.687664784746665+15.5291698195147j | P11: =IMSUM(IMDIV(1,IMSUM(IMDIV(1,IMPRODUCT(B11,'Design the AEF circuit'!$H$19*0.001)),IMDIV(1,'Design the AEF circuit'!$H$20*1000))), IMDIV(1,IMSUM(IMDIV(1,IMPRODUCT(B11,'Design the AEF circuit'!$H$22*0.001)),IMDIV(1,'Design the AEF circuit'!$H$23*1000))), IMDIV(1,IMSUM(IMDIV(1,IMPRODUCT(B11,'Design the AEF circuit'!$H$24*0.001)),IMDIV(1,'Design the AEF circuit'!$H$25*1000))) ) -> 0.714599271191059+15.5263267150776j | Q11: =IMDIV(1, IMSUM( IMDIV(1, P11), IMPRODUCT(B11,'Design the AEF circuit'!$H$21*0.000000000001) ) ) -> 0.71460179825091+15.5263541100177j
A12: ='Frequency vector'!G12 -> 3468.5 | B12: =COMPLEX(0,2*PI()*'Frequency vector'!G12,"j") -> 21793.2282379524j | C12: =IF(IF(CMdata=1,IMABS(K12),'CM choke'!C16)=0, C11, IF(CMdata=1,IMABS(K12),'CM choke'!C16)) -> 24.746 | D12: =IF(IF(CMdata=1,DEGREES(IMARGUMENT(K12)),'CM choke'!D16)=0, D11, IF(CMdata=1,DEGREES(IMARGUMENT(K12)),'CM choke'!D16)) -> 87.48 | E12: =IF(IF(CMdata=1,IMABS(L12),'CM choke'!E16)=0, E11, IF(CMdata=1,IMABS(L12),'CM choke'!E16)) -> 10.261 | F12: =IF(IF(CMdata=1,DEGREES(IMARGUMENT(L12)),'CM choke'!F16)=0, F11, IF(CMdata=1,DEGREES(IMARGUMENT(L12)),'CM choke'!F16)) -> 86.322 | G12: 1.088035056 | H12: 24.722069 | I12: 0.6582342374 | J12: 10.23986566 | K12: =IF(CMdata=1, IF(Lcm1_core=1, IMDIV(1,IMSUM(IMDIV(1,IMPRODUCT(B12,'Design the AEF circuit'!$G$19*0.001)),IMDIV(1,'Design the AEF circuit'!$G$20*1000),IMPRODUCT(B12,'Design the AEF circuit'!$G$21*0.000000000001))), O12),COMPLEX(G12,H12,"j")) -> 1.08803505589388+24.7220690015449j | L12: =IF(CMdata=1, IF(Lcm2_core=1, IMDIV(1, IMSUM(IMDIV(1,IMPRODUCT(B12,'Design the AEF circuit'!$H$19*0.001)), IMDIV(1,'Design the AEF circuit'!$H$20*1000), IMPRODUCT(B12,'Design the AEF circuit'!$H$21*0.000000000001))), Q12), COMPLEX(I12,J12,"j")) -> 0.658234237448372+10.2398656577443j | N12: =IMSUM(IMDIV(1,IMSUM(IMDIV(1,IMPRODUCT(B12,'Design the AEF circuit'!$G$19*0.001)),IMDIV(1,'Design the AEF circuit'!$G$20*1000))), IMDIV(1,IMSUM(IMDIV(1,IMPRODUCT(B12,'Design the AEF circuit'!$G$22*0.001)),IMDIV(1,'Design the AEF circuit'!$G$23*1000))), IMDIV(1,IMSUM(IMDIV(1,IMPRODUCT(B12,'Design the AEF circuit'!$G$24*0.001)),IMDIV(1,'Design the AEF circuit'!$G$25*1000))) ) -> 0.905858092397953+17.8180241998775j | O12: =IMDIV(1, IMSUM( IMDIV(1, N12), IMPRODUCT(B12,'Design the AEF circuit'!$G$21*0.000000000001))) -> 0.905862313482416+17.8180656064194j | P12: =IMSUM(IMDIV(1,IMSUM(IMDIV(1,IMPRODUCT(B12,'Design the AEF circuit'!$H$19*0.001)),IMDIV(1,'Design the AEF circuit'!$H$20*1000))), IMDIV(1,IMSUM(IMDIV(1,IMPRODUCT(B12,'Design the AEF circuit'!$H$22*0.001)),IMDIV(1,'Design the AEF circuit'!$H$23*1000))), IMDIV(1,IMSUM(IMDIV(1,IMPRODUCT(B12,'Design the AEF circuit'!$H$24*0.001)),IMDIV(1,'Design the AEF circuit'!$H$25*1000))) ) -> 0.941279145051204+17.8137692386399j | Q12: =IMDIV(1, IMSUM( IMDIV(1, P12), IMPRODUCT(B12,'Design the AEF circuit'!$H$21*0.000000000001) ) ) -> 0.941283530141977+17.8138106168018j
A13: ='Frequency vector'!G13 -> 3982.5 | B13: =COMPLEX(0,2*PI()*'Frequency vector'!G13,"j") -> 25022.7854858427j | C13: =IF(IF(CMdata=1,IMABS(K13),'CM choke'!C17)=0, C12, IF(CMdata=1,IMABS(K13),'CM choke'!C17)) -> 28.318 | D13: =IF(IF(CMdata=1,DEGREES(IMARGUMENT(K13)),'CM choke'!D17)=0, D12, IF(CMdata=1,DEGREES(IMARGUMENT(K13)),'CM choke'!D17)) -> 87.338 | E13: =IF(IF(CMdata=1,IMABS(L13),'CM choke'!E17)=0, E12, IF(CMdata=1,IMABS(L13),'CM choke'!E17)) -> 11.651 | F13: =IF(IF(CMdata=1,DEGREES(IMARGUMENT(L13)),'CM choke'!F17)=0, F12, IF(CMdata=1,DEGREES(IMARGUMENT(L13)),'CM choke'!F17)) -> 86.442 | G13: 1.31519982 | H13: 28.28744197 | I13: 0.7230483712 | J13: 11.62854256 | K13: =IF(CMdata=1, IF(Lcm1_core=1, IMDIV(1,IMSUM(IMDIV(1,IMPRODUCT(B13,'Design the AEF circuit'!$G$19*0.001)),IMDIV(1,'Design the AEF circuit'!$G$20*1000),IMPRODUCT(B13,'Design the AEF circuit'!$G$21*0.000000000001))), O13),COMPLEX(G13,H13,"j")) -> 1.31519981985019+28.2874419740256j | L13: =IF(CMdata=1, IF(Lcm2_core=1, IMDIV(1, IMSUM(IMDIV(1,IMPRODUCT(B13,'Design the AEF circuit'!$H$19*0.001)), IMDIV(1,'Design the AEF circuit'!$H$20*1000), IMPRODUCT(B13,'Design the AEF circuit'!$H$21*0.000000000001))), Q13), COMPLEX(I13,J13,"j")) -> 0.723048371158242+11.6285425592791j | N13: =IMSUM(IMDIV(1,IMSUM(IMDIV(1,IMPRODUCT(B13,'Design the AEF circuit'!$G$19*0.001)),IMDIV(1,'Design the AEF circuit'!$G$20*1000))), IMDIV(1,IMSUM(IMDIV(1,IMPRODUCT(B13,'Design the AEF circuit'!$G$22*0.001)),IMDIV(1,'Design the AEF circuit'!$G$23*1000))), IMDIV(1,IMSUM(IMDIV(1,IMPRODUCT(B13,'Design the AEF circuit'!$G$24*0.001)),IMDIV(1,'Design the AEF circuit'!$G$25*1000))) ) -> 1.19294779178788+20.4394174591767j | O13: =IMDIV(1, IMSUM( IMDIV(1, N13), IMPRODUCT(B13,'Design the AEF circuit'!$G$21*0.000000000001))) -> 1.1929551134359+20.4394799682864j | P13: =IMSUM(IMDIV(1,IMSUM(IMDIV(1,IMPRODUCT(B13,'Design the AEF circuit'!$H$19*0.001)),IMDIV(1,'Design the AEF circuit'!$H$20*1000))), IMDIV(1,IMSUM(IMDIV(1,IMPRODUCT(B13,'Design the AEF circuit'!$H$22*0.001)),IMDIV(1,'Design the AEF circuit'!$H$23*1000))), IMDIV(1,IMSUM(IMDIV(1,IMPRODUCT(B13,'Design the AEF circuit'!$H$24*0.001)),IMDIV(1,'Design the AEF circuit'!$H$25*1000))) ) -> 1.23948559909119+20.4329913039889j | Q13: =IMDIV(1, IMSUM( IMDIV(1, P13), IMPRODUCT(B13,'Design the AEF circuit'!$H$21*0.000000000001) ) ) -> 1.23949320397057+20.433053756669j
A14: ='Frequency vector'!G14 -> 4572.7 | B14: =COMPLEX(0,2*PI()*'Frequency vector'!G14,"j") -> 28731.1214541401j | C14: =IF(IF(CMdata=1,IMABS(K14),'CM choke'!C18)=0, C13, IF(CMdata=1,IMABS(K14),'CM choke'!C18)) -> 32.412 | D14: =IF(IF(CMdata=1,DEGREES(IMARGUMENT(K14)),'CM choke'!D18)=0, D13, IF(CMdata=1,DEGREES(IMARGUMENT(K14)),'CM choke'!D18)) -> 87.157 | E14: =IF(IF(CMdata=1,IMABS(L14),'CM choke'!E18)=0, E13, IF(CMdata=1,IMABS(L14),'CM choke'!E18)) -> 13.223 | F14: =IF(IF(CMdata=1,DEGREES(IMARGUMENT(L14)),'CM choke'!F18)=0, F13, IF(CMdata=1,DEGREES(IMARGUMENT(L14)),'CM choke'!F18)) -> 86.557 | G14: 1.607614183 | H14: 32.37210714 | I14: 0.7941142386 | J14: 13.19913299 | K14: =IF(CMdata=1, IF(Lcm1_core=1, IMDIV(1,IMSUM(IMDIV(1,IMPRODUCT(B14,'Design the AEF circuit'!$G$19*0.001)),IMDIV(1,'Design the AEF circuit'!$G$20*1000),IMPRODUCT(B14,'Design the AEF circuit'!$G$21*0.000000000001))), O14),COMPLEX(G14,H14,"j")) -> 1.60761418285089+32.372107139312j | L14: =IF(CMdata=1, IF(Lcm2_core=1, IMDIV(1, IMSUM(IMDIV(1,IMPRODUCT(B14,'Design the AEF circuit'!$H$19*0.001)), IMDIV(1,'Design the AEF circuit'!$H$20*1000), IMPRODUCT(B14,'Design the AEF circuit'!$H$21*0.000000000001))), Q14), COMPLEX(I14,J14,"j")) -> 0.794114238649982+13.1991329857674j | N14: =IMSUM(IMDIV(1,IMSUM(IMDIV(1,IMPRODUCT(B14,'Design the AEF circuit'!$G$19*0.001)),IMDIV(1,'Design the AEF circuit'!$G$20*1000))), IMDIV(1,IMSUM(IMDIV(1,IMPRODUCT(B14,'Design the AEF circuit'!$G$22*0.001)),IMDIV(1,'Design the AEF circuit'!$G$23*1000))), IMDIV(1,IMSUM(IMDIV(1,IMPRODUCT(B14,'Design the AEF circuit'!$G$24*0.001)),IMDIV(1,'Design the AEF circuit'!$G$25*1000))) ) -> 1.57050928129011+23.4397027169182j | O14: =IMDIV(1, IMSUM( IMDIV(1, N14), IMPRODUCT(B14,'Design the AEF circuit'!$G$21*0.000000000001))) -> 1.57052197326075+23.4397970047624j | P14: =IMSUM(IMDIV(1,IMSUM(IMDIV(1,IMPRODUCT(B14,'Design the AEF circuit'!$H$19*0.001)),IMDIV(1,'Design the AEF circuit'!$H$20*1000))), IMDIV(1,IMSUM(IMDIV(1,IMPRODUCT(B14,'Design the AEF circuit'!$H$22*0.001)),IMDIV(1,'Design the AEF circuit'!$H$23*1000))), IMDIV(1,IMSUM(IMDIV(1,IMPRODUCT(B14,'Design the AEF circuit'!$H$24*0.001)),IMDIV(1,'Design the AEF circuit'!$H$25*1000))) ) -> 1.63158723184687+23.4300042547127j | Q14: =IMDIV(1, IMSUM( IMDIV(1, P14), IMPRODUCT(B14,'Design the AEF circuit'!$H$21*0.000000000001) ) ) -> 1.63160041195934+23.4300984304803j
A15: ='Frequency vector'!G15 -> 5250.3 | B15: =COMPLEX(0,2*PI()*'Frequency vector'!G15,"j") -> 32988.607818285j | C15: =IF(IF(CMdata=1,IMABS(K15),'CM choke'!C19)=0, C14, IF(CMdata=1,IMABS(K15),'CM choke'!C19)) -> 37.107 | D15: =IF(IF(CMdata=1,DEGREES(IMARGUMENT(K15)),'CM choke'!D19)=0, D14, IF(CMdata=1,DEGREES(IMARGUMENT(K15)),'CM choke'!D19)) -> 86.935 | E15: =IF(IF(CMdata=1,IMABS(L15),'CM choke'!E19)=0, E14, IF(CMdata=1,IMABS(L15),'CM choke'!E19)) -> 15.011 | F15: =IF(IF(CMdata=1,DEGREES(IMARGUMENT(L15)),'CM choke'!F19)=0, F14, IF(CMdata=1,DEGREES(IMARGUMENT(L15)),'CM choke'!F19)) -> 86.675 | G15: 1.984067934 | H15: 37.05391914 | I15: 0.8706324498 | J15: 14.98573055 | K15: =IF(CMdata=1, IF(Lcm1_core=1, IMDIV(1,IMSUM(IMDIV(1,IMPRODUCT(B15,'Design the AEF circuit'!$G$19*0.001)),IMDIV(1,'Design the AEF circuit'!$G$20*1000),IMPRODUCT(B15,'Design the AEF circuit'!$G$21*0.000000000001))), O15),COMPLEX(G15,H15,"j")) -> 1.98406793387756+37.0539191373026j | L15: =IF(CMdata=1, IF(Lcm2_core=1, IMDIV(1, IMSUM(IMDIV(1,IMPRODUCT(B15,'Design the AEF circuit'!$H$19*0.001)), IMDIV(1,'Design the AEF circuit'!$H$20*1000), IMPRODUCT(B15,'Design the AEF circuit'!$H$21*0.000000000001))), Q15), COMPLEX(I15,J15,"j")) -> 0.870632449833795+14.9857305506704j | N15: =IMSUM(IMDIV(1,IMSUM(IMDIV(1,IMPRODUCT(B15,'Design the AEF circuit'!$G$19*0.001)),IMDIV(1,'Design the AEF circuit'!$G$20*1000))), IMDIV(1,IMSUM(IMDIV(1,IMPRODUCT(B15,'Design the AEF circuit'!$G$22*0.001)),IMDIV(1,'Design the AEF circuit'!$G$23*1000))), IMDIV(1,IMSUM(IMDIV(1,IMPRODUCT(B15,'Design the AEF circuit'!$G$24*0.001)),IMDIV(1,'Design the AEF circuit'!$G$25*1000))) ) -> 2.06658978370995+26.869636130171j | O15: =IMDIV(1, IMSUM( IMDIV(1, N15), IMPRODUCT(B15,'Design the AEF circuit'!$G$21*0.000000000001))) -> 2.06661176558602+26.8697781877575j | P15: =IMSUM(IMDIV(1,IMSUM(IMDIV(1,IMPRODUCT(B15,'Design the AEF circuit'!$H$19*0.001)),IMDIV(1,'Design the AEF circuit'!$H$20*1000))), IMDIV(1,IMSUM(IMDIV(1,IMPRODUCT(B15,'Design the AEF circuit'!$H$22*0.001)),IMDIV(1,'Design the AEF circuit'!$H$23*1000))), IMDIV(1,IMSUM(IMDIV(1,IMPRODUCT(B15,'Design the AEF circuit'!$H$24*0.001)),IMDIV(1,'Design the AEF circuit'!$H$25*1000))) ) -> 2.14663422800309+26.8550134303372j | Q15: =IMDIV(1, IMSUM( IMDIV(1, P15), IMPRODUCT(B15,'Design the AEF circuit'!$H$21*0.000000000001) ) ) -> 2.14665704886868+26.8551552656748j
A16: ='Frequency vector'!G16 -> 6028.4 | B16: =COMPLEX(0,2*PI()*'Frequency vector'!G16,"j") -> 37877.5543058014j | C16: =IF(IF(CMdata=1,IMABS(K16),'CM choke'!C20)=0, C15, IF(CMdata=1,IMABS(K16),'CM choke'!C20)) -> 42.491 | D16: =IF(IF(CMdata=1,DEGREES(IMARGUMENT(K16)),'CM choke'!D20)=0, D15, IF(CMdata=1,DEGREES(IMARGUMENT(K16)),'CM choke'!D20)) -> 86.672 | E16: =IF(IF(CMdata=1,IMABS(L16),'CM choke'!E20)=0, E15, IF(CMdata=1,IMABS(L16),'CM choke'!E20)) -> 17.043 | F16: =IF(IF(CMdata=1,DEGREES(IMARGUMENT(L16)),'CM choke'!F20)=0, F15, IF(CMdata=1,DEGREES(IMARGUMENT(L16)),'CM choke'!F20)) -> 86.789 | G16: 2.466683364 | H16: 42.41934175 | I16: 0.9546328113 | J16: 17.01624298 | K16: =IF(CMdata=1, IF(Lcm1_core=1, IMDIV(1,IMSUM(IMDIV(1,IMPRODUCT(B16,'Design the AEF circuit'!$G$19*0.001)),IMDIV(1,'Design the AEF circuit'!$G$20*1000),IMPRODUCT(B16,'Design the AEF circuit'!$G$21*0.000000000001))), O16),COMPLEX(G16,H16,"j")) -> 2.46668336430057+42.4193417461927j | L16: =IF(CMdata=1, IF(Lcm2_core=1, IMDIV(1, IMSUM(IMDIV(1,IMPRODUCT(B16,'Design the AEF circuit'!$H$19*0.001)), IMDIV(1,'Design the AEF circuit'!$H$20*1000), IMPRODUCT(B16,'Design the AEF circuit'!$H$21*0.000000000001))), Q16), COMPLEX(I16,J16,"j")) -> 0.954632811301446+17.0162429812102j | N16: =IMSUM(IMDIV(1,IMSUM(IMDIV(1,IMPRODUCT(B16,'Design the AEF circuit'!$G$19*0.001)),IMDIV(1,'Design the AEF circuit'!$G$20*1000))), IMDIV(1,IMSUM(IMDIV(1,IMPRODUCT(B16,'Design the AEF circuit'!$G$22*0.001)),IMDIV(1,'Design the AEF circuit'!$G$23*1000))), IMDIV(1,IMSUM(IMDIV(1,IMPRODUCT(B16,'Design the AEF circuit'!$G$24*0.001)),IMDIV(1,'Design the AEF circuit'!$G$25*1000))) ) -> 2.71785201868137+30.7862522471313j | O16: =IMDIV(1, IMSUM( IMDIV(1, N16), IMPRODUCT(B16,'Design the AEF circuit'!$G$21*0.000000000001))) -> 2.71789005078534+30.7864659704172j | P16: =IMSUM(IMDIV(1,IMSUM(IMDIV(1,IMPRODUCT(B16,'Design the AEF circuit'!$H$19*0.001)),IMDIV(1,'Design the AEF circuit'!$H$20*1000))), IMDIV(1,IMSUM(IMDIV(1,IMPRODUCT(B16,'Design the AEF circuit'!$H$22*0.001)),IMDIV(1,'Design the AEF circuit'!$H$23*1000))), IMDIV(1,IMSUM(IMDIV(1,IMPRODUCT(B16,'Design the AEF circuit'!$H$24*0.001)),IMDIV(1,'Design the AEF circuit'!$H$25*1000))) ) -> 2.82255837034238+30.7642314764804j | Q16: =IMDIV(1, IMSUM( IMDIV(1, P16), IMPRODUCT(B16,'Design the AEF circuit'!$H$21*0.000000000001) ) ) -> 2.8225978393966+30.7644447598871j
A17: ='Frequency vector'!G17 -> 6921.7 | B17: =COMPLEX(0,2*PI()*'Frequency vector'!G17,"j") -> 43490.3237407049j | C17: =IF(IF(CMdata=1,IMABS(K17),'CM choke'!C21)=0, C16, IF(CMdata=1,IMABS(K17),'CM choke'!C21)) -> 48.635 | D17: =IF(IF(CMdata=1,DEGREES(IMARGUMENT(K17)),'CM choke'!D21)=0, D16, IF(CMdata=1,DEGREES(IMARGUMENT(K17)),'CM choke'!D21)) -> 86.362 | E17: =IF(IF(CMdata=1,IMABS(L17),'CM choke'!E21)=0, E16, IF(CMdata=1,IMABS(L17),'CM choke'!E21)) -> 19.354 | F17: =IF(IF(CMdata=1,DEGREES(IMARGUMENT(L17)),'CM choke'!F21)=0, F16, IF(CMdata=1,DEGREES(IMARGUMENT(L17)),'CM choke'!F21)) -> 86.896 | G17: 3.086008547 | H17: 48.53699389 | I17: 1.047990531 | J17: 19.3256056 | K17: =IF(CMdata=1, IF(Lcm1_core=1, IMDIV(1,IMSUM(IMDIV(1,IMPRODUCT(B17,'Design the AEF circuit'!$G$19*0.001)),IMDIV(1,'Design the AEF circuit'!$G$20*1000),IMPRODUCT(B17,'Design the AEF circuit'!$G$21*0.000000000001))), O17),COMPLEX(G17,H17,"j")) -> 3.08600854705946+48.5369938938072j | L17: =IF(CMdata=1, IF(Lcm2_core=1, IMDIV(1, IMSUM(IMDIV(1,IMPRODUCT(B17,'Design the AEF circuit'!$H$19*0.001)), IMDIV(1,'Design the AEF circuit'!$H$20*1000), IMPRODUCT(B17,'Design the AEF circuit'!$H$21*0.000000000001))), Q17), COMPLEX(I17,J17,"j")) -> 1.04799053085086+19.3256056010477j | N17: =IMSUM(IMDIV(1,IMSUM(IMDIV(1,IMPRODUCT(B17,'Design the AEF circuit'!$G$19*0.001)),IMDIV(1,'Design the AEF circuit'!$G$20*1000))), IMDIV(1,IMSUM(IMDIV(1,IMPRODUCT(B17,'Design the AEF circuit'!$G$22*0.001)),IMDIV(1,'Design the AEF circuit'!$G$23*1000))), IMDIV(1,IMSUM(IMDIV(1,IMPRODUCT(B17,'Design the AEF circuit'!$G$24*0.001)),IMDIV(1,'Design the AEF circuit'!$G$25*1000))) ) -> 3.5714807043711+35.2496635493762j | O17: =IMDIV(1, IMSUM( IMDIV(1, N17), IMPRODUCT(B17,'Design the AEF circuit'!$G$21*0.000000000001))) -> 3.57154640705982+35.2499844543113j | P17: =IMSUM(IMDIV(1,IMSUM(IMDIV(1,IMPRODUCT(B17,'Design the AEF circuit'!$H$19*0.001)),IMDIV(1,'Design the AEF circuit'!$H$20*1000))), IMDIV(1,IMSUM(IMDIV(1,IMPRODUCT(B17,'Design the AEF circuit'!$H$22*0.001)),IMDIV(1,'Design the AEF circuit'!$H$23*1000))), IMDIV(1,IMSUM(IMDIV(1,IMPRODUCT(B17,'Design the AEF circuit'!$H$24*0.001)),IMDIV(1,'Design the AEF circuit'!$H$25*1000))) ) -> 3.70810398870357+35.2165573675451j | Q17: =IMDIV(1, IMSUM( IMDIV(1, P17), IMPRODUCT(B17,'Design the AEF circuit'!$H$21*0.000000000001) ) ) -> 3.7081721407113+35.2168774041992j
A18: ='Frequency vector'!G18 -> 7947.5 | B18: =COMPLEX(0,2*PI()*'Frequency vector'!G18,"j") -> 49935.6152288098j | C18: =IF(IF(CMdata=1,IMABS(K18),'CM choke'!C22)=0, C17, IF(CMdata=1,IMABS(K18),'CM choke'!C22)) -> 55.664 | D18: =IF(IF(CMdata=1,DEGREES(IMARGUMENT(K18)),'CM choke'!D22)=0, D17, IF(CMdata=1,DEGREES(IMARGUMENT(K18)),'CM choke'!D22)) -> 85.999 | E18: =IF(IF(CMdata=1,IMABS(L18),'CM choke'!E22)=0, E17, IF(CMdata=1,IMABS(L18),'CM choke'!E22)) -> 21.988 | F18: =IF(IF(CMdata=1,DEGREES(IMARGUMENT(L18)),'CM choke'!F22)=0, F17, IF(CMdata=1,DEGREES(IMARGUMENT(L18)),'CM choke'!F22)) -> 86.992 | G18: 3.883893507 | H18: 55.52833752 | I18: 1.153828891 | J18: 21.95770532 | K18: =IF(CMdata=1, IF(Lcm1_core=1, IMDIV(1,IMSUM(IMDIV(1,IMPRODUCT(B18,'Design the AEF circuit'!$G$19*0.001)),IMDIV(1,'Design the AEF circuit'!$G$20*1000),IMPRODUCT(B18,'Design the AEF circuit'!$G$21*0.000000000001))), O18),COMPLEX(G18,H18,"j")) -> 3.8838935074023+55.5283375153908j | L18: =IF(CMdata=1, IF(Lcm2_core=1, IMDIV(1, IMSUM(IMDIV(1,IMPRODUCT(B18,'Design the AEF circuit'!$H$19*0.001)), IMDIV(1,'Design the AEF circuit'!$H$20*1000), IMPRODUCT(B18,'Design the AEF circuit'!$H$21*0.000000000001))), Q18), COMPLEX(I18,J18,"j")) -> 1.15382889113917+21.9577053193172j | N18: =IMSUM(IMDIV(1,IMSUM(IMDIV(1,IMPRODUCT(B18,'Design the AEF circuit'!$G$19*0.001)),IMDIV(1,'Design the AEF circuit'!$G$20*1000))), IMDIV(1,IMSUM(IMDIV(1,IMPRODUCT(B18,'Design the AEF circuit'!$G$22*0.001)),IMDIV(1,'Design the AEF circuit'!$G$23*1000))), IMDIV(1,IMSUM(IMDIV(1,IMPRODUCT(B18,'Design the AEF circuit'!$G$24*0.001)),IMDIV(1,'Design the AEF circuit'!$G$25*1000))) ) -> 4.68863506772427+40.3256044256272j | O18: =IMDIV(1, IMSUM( IMDIV(1, N18), IMPRODUCT(B18,'Design the AEF circuit'!$G$21*0.000000000001))) -> 4.68874836691387+40.3260850628921j | P18: =IMSUM(IMDIV(1,IMSUM(IMDIV(1,IMPRODUCT(B18,'Design the AEF circuit'!$H$19*0.001)),IMDIV(1,'Design the AEF circuit'!$H$20*1000))), IMDIV(1,IMSUM(IMDIV(1,IMPRODUCT(B18,'Design the AEF circuit'!$H$22*0.001)),IMDIV(1,'Design the AEF circuit'!$H$23*1000))), IMDIV(1,IMSUM(IMDIV(1,IMPRODUCT(B18,'Design the AEF circuit'!$H$24*0.001)),IMDIV(1,'Design the AEF circuit'!$H$25*1000))) ) -> 4.8663296329465+40.2759359502185j | Q18: =IMDIV(1, IMSUM( IMDIV(1, P18), IMPRODUCT(B18,'Design the AEF circuit'!$H$21*0.000000000001) ) ) -> 4.86644708122058+40.2764148792798j
A19: ='Frequency vector'!G19 -> 9125.2 | B19: =COMPLEX(0,2*PI()*'Frequency vector'!G19,"j") -> 57335.3225650752j | C19: =IF(IF(CMdata=1,IMABS(K19),'CM choke'!C23)=0, C18, IF(CMdata=1,IMABS(K19),'CM choke'!C23)) -> 63.697 | D19: =IF(IF(CMdata=1,DEGREES(IMARGUMENT(K19)),'CM choke'!D23)=0, D18, IF(CMdata=1,DEGREES(IMARGUMENT(K19)),'CM choke'!D23)) -> 85.578 | E19: =IF(IF(CMdata=1,IMABS(L19),'CM choke'!E23)=0, E18, IF(CMdata=1,IMABS(L19),'CM choke'!E23)) -> 24.989 | F19: =IF(IF(CMdata=1,DEGREES(IMARGUMENT(L19)),'CM choke'!F23)=0, F18, IF(CMdata=1,DEGREES(IMARGUMENT(L19)),'CM choke'!F23)) -> 87.07 | G19: 4.911157383 | H19: 63.50738809 | I19: 1.277334259 | J19: 24.95633263 | K19: =IF(CMdata=1, IF(Lcm1_core=1, IMDIV(1,IMSUM(IMDIV(1,IMPRODUCT(B19,'Design the AEF circuit'!$G$19*0.001)),IMDIV(1,'Design the AEF circuit'!$G$20*1000),IMPRODUCT(B19,'Design the AEF circuit'!$G$21*0.000000000001))), O19),COMPLEX(G19,H19,"j")) -> 4.91115738250632+63.507388091184j | L19: =IF(CMdata=1, IF(Lcm2_core=1, IMDIV(1, IMSUM(IMDIV(1,IMPRODUCT(B19,'Design the AEF circuit'!$H$19*0.001)), IMDIV(1,'Design the AEF circuit'!$H$20*1000), IMPRODUCT(B19,'Design the AEF circuit'!$H$21*0.000000000001))), Q19), COMPLEX(I19,J19,"j")) -> 1.27733425928107+24.9563326270121j | N19: =IMSUM(IMDIV(1,IMSUM(IMDIV(1,IMPRODUCT(B19,'Design the AEF circuit'!$G$19*0.001)),IMDIV(1,'Design the AEF circuit'!$G$20*1000))), IMDIV(1,IMSUM(IMDIV(1,IMPRODUCT(B19,'Design the AEF circuit'!$G$22*0.001)),IMDIV(1,'Design the AEF circuit'!$G$23*1000))), IMDIV(1,IMSUM(IMDIV(1,IMPRODUCT(B19,'Design the AEF circuit'!$G$24*0.001)),IMDIV(1,'Design the AEF circuit'!$G$25*1000))) ) -> 6.14695768707092+46.0793368081625j | O19: =IMDIV(1, IMSUM( IMDIV(1, N19), IMPRODUCT(B19,'Design the AEF circuit'!$G$21*0.000000000001))) -> 6.14715257287941+46.0800542629608j | P19: =IMSUM(IMDIV(1,IMSUM(IMDIV(1,IMPRODUCT(B19,'Design the AEF circuit'!$H$19*0.001)),IMDIV(1,'Design the AEF circuit'!$H$20*1000))), IMDIV(1,IMSUM(IMDIV(1,IMPRODUCT(B19,'Design the AEF circuit'!$H$22*0.001)),IMDIV(1,'Design the AEF circuit'!$H$23*1000))), IMDIV(1,IMSUM(IMDIV(1,IMPRODUCT(B19,'Design the AEF circuit'!$H$24*0.001)),IMDIV(1,'Design the AEF circuit'!$H$25*1000))) ) -> 6.37707584085088+46.0050304356256j | Q19: =IMDIV(1, IMSUM( IMDIV(1, P19), IMPRODUCT(B19,'Design the AEF circuit'!$H$21*0.000000000001) ) ) -> 6.37727769638215+46.0057445449907j
A20: ='Frequency vector'!G20 -> 10000 | B20: =COMPLEX(0,2*PI()*'Frequency vector'!G20,"j") -> 62831.8530717959j | C20: =IF(IF(CMdata=1,IMABS(K20),'CM choke'!C24)=0, C19, IF(CMdata=1,IMABS(K20),'CM choke'!C24)) -> 120.5492124 | D20: =IF(IF(CMdata=1,DEGREES(IMARGUMENT(K20)),'CM choke'!D24)=0, D19, IF(CMdata=1,DEGREES(IMARGUMENT(K20)),'CM choke'!D24)) -> 83.01305033 | E20: =IF(IF(CMdata=1,IMABS(L20),'CM choke'!E24)=0, E19, IF(CMdata=1,IMABS(L20),'CM choke'!E24)) -> 26.50411849 | F20: =IF(IF(CMdata=1,DEGREES(IMARGUMENT(L20)),'CM choke'!F24)=0, F19, IF(CMdata=1,DEGREES(IMARGUMENT(L20)),'CM choke'!F24)) -> 85.89128027 | G20: 14.664 | H20: 119.654 | I20: 1.899 | J20: 26.436 | K20: =IF(CMdata=1, IF(Lcm1_core=1, IMDIV(1,IMSUM(IMDIV(1,IMPRODUCT(B20,'Design the AEF circuit'!$G$19*0.001)),IMDIV(1,'Design the AEF circuit'!$G$20*1000),IMPRODUCT(B20,'Design the AEF circuit'!$G$21*0.000000000001))), O20),COMPLEX(G20,H20,"j")) -> 14.664+119.654j | L20: =IF(CMdata=1, IF(Lcm2_core=1, IMDIV(1, IMSUM(IMDIV(1,IMPRODUCT(B20,'Design the AEF circuit'!$H$19*0.001)), IMDIV(1,'Design the AEF circuit'!$H$20*1000), IMPRODUCT(B20,'Design the AEF circuit'!$H$21*0.000000000001))), Q20), COMPLEX(I20,J20,"j")) -> 1.899+26.436j | N20: =IMSUM(IMDIV(1,IMSUM(IMDIV(1,IMPRODUCT(B20,'Design the AEF circuit'!$G$19*0.001)),IMDIV(1,'Design the AEF circuit'!$G$20*1000))), IMDIV(1,IMSUM(IMDIV(1,IMPRODUCT(B20,'Design the AEF circuit'!$G$22*0.001)),IMDIV(1,'Design the AEF circuit'!$G$23*1000))), IMDIV(1,IMSUM(IMDIV(1,IMPRODUCT(B20,'Design the AEF circuit'!$G$24*0.001)),IMDIV(1,'Design the AEF circuit'!$G$25*1000))) ) -> 7.34819362897289+50.296507337305j | O20: =IMDIV(1, IMSUM( IMDIV(1, N20), IMPRODUCT(B20,'Design the AEF circuit'!$G$21*0.000000000001))) -> 7.34847229998737+50.2974406872403j | P20: =IMSUM(IMDIV(1,IMSUM(IMDIV(1,IMPRODUCT(B20,'Design the AEF circuit'!$H$19*0.001)),IMDIV(1,'Design the AEF circuit'!$H$20*1000))), IMDIV(1,IMSUM(IMDIV(1,IMPRODUCT(B20,'Design the AEF circuit'!$H$22*0.001)),IMDIV(1,'Design the AEF circuit'!$H$23*1000))), IMDIV(1,IMSUM(IMDIV(1,IMPRODUCT(B20,'Design the AEF circuit'!$H$24*0.001)),IMDIV(1,'Design the AEF circuit'!$H$25*1000))) ) -> 7.62048257098929+50.1996604092935j | Q20: =IMDIV(1, IMSUM( IMDIV(1, P20), IMPRODUCT(B20,'Design the AEF circuit'!$H$21*0.000000000001) ) ) -> 7.62077101172966+50.2005885533387j
A21: ='Frequency vector'!G21 -> 15000 | B21: =COMPLEX(0,2*PI()*'Frequency vector'!G21,"j") -> 94247.7796076938j | C21: =IF(IF(CMdata=1,IMABS(K21),'CM choke'!C25)=0, C20, IF(CMdata=1,IMABS(K21),'CM choke'!C25)) -> 178.4714557 | D21: =IF(IF(CMdata=1,DEGREES(IMARGUMENT(K21)),'CM choke'!D25)=0, D20, IF(CMdata=1,DEGREES(IMARGUMENT(K21)),'CM choke'!D25)) -> 77.54908746 | E21: =IF(IF(CMdata=1,IMABS(L21),'CM choke'!E25)=0, E20, IF(CMdata=1,IMABS(L21),'CM choke'!E25)) -> 38.78291647 | F21: =IF(IF(CMdata=1,DEGREES(IMARGUMENT(L21)),'CM choke'!F25)=0, F20, IF(CMdata=1,DEGREES(IMARGUMENT(L21)),'CM choke'!F25)) -> 88.35844422 | G21: 38.479 | H21: 174.274 | I21: 1.111 | J21: 38.767 | K21: =IF(CMdata=1, IF(Lcm1_core=1, IMDIV(1,IMSUM(IMDIV(1,IMPRODUCT(B21,'Design the AEF circuit'!$G$19*0.001)),IMDIV(1,'Design the AEF circuit'!$G$20*1000),IMPRODUCT(B21,'Design the AEF circuit'!$G$21*0.000000000001))), O21),COMPLEX(G21,H21,"j")) -> 38.479+174.274j | L21: =IF(CMdata=1, IF(Lcm2_core=1, IMDIV(1, IMSUM(IMDIV(1,IMPRODUCT(B21,'Design the AEF circuit'!$H$19*0.001)), IMDIV(1,'Design the AEF circuit'!$H$20*1000), IMPRODUCT(B21,'Design the AEF circuit'!$H$21*0.000000000001))), Q21), COMPLEX(I21,J21,"j")) -> 1.111+38.767j | N21: =IMSUM(IMDIV(1,IMSUM(IMDIV(1,IMPRODUCT(B21,'Design the AEF circuit'!$G$19*0.001)),IMDIV(1,'Design the AEF circuit'!$G$20*1000))), IMDIV(1,IMSUM(IMDIV(1,IMPRODUCT(B21,'Design the AEF circuit'!$G$22*0.001)),IMDIV(1,'Design the AEF circuit'!$G$23*1000))), IMDIV(1,IMSUM(IMDIV(1,IMPRODUCT(B21,'Design the AEF circuit'!$G$24*0.001)),IMDIV(1,'Design the AEF circuit'!$G$25*1000))) ) -> 15.9864036044767+73.2855211109283j | O21: =IMDIV(1, IMSUM( IMDIV(1, N21), IMPRODUCT(B21,'Design the AEF circuit'!$G$21*0.000000000001))) -> 15.9877287021656+73.2884137976976j | P21: =IMSUM(IMDIV(1,IMSUM(IMDIV(1,IMPRODUCT(B21,'Design the AEF circuit'!$H$19*0.001)),IMDIV(1,'Design the AEF circuit'!$H$20*1000))), IMDIV(1,IMSUM(IMDIV(1,IMPRODUCT(B21,'Design the AEF circuit'!$H$22*0.001)),IMDIV(1,'Design the AEF circuit'!$H$23*1000))), IMDIV(1,IMSUM(IMDIV(1,IMPRODUCT(B21,'Design the AEF circuit'!$H$24*0.001)),IMDIV(1,'Design the AEF circuit'!$H$25*1000))) ) -> 16.5351703488982+72.9810723622213j | Q21: =IMDIV(1, IMSUM( IMDIV(1, P21), IMPRODUCT(B21,'Design the AEF circuit'!$H$21*0.000000000001) ) ) -> 16.5365352390897+72.9839297726422j
A22: ='Frequency vector'!G22 -> 20000 | B22: =COMPLEX(0,2*PI()*'Frequency vector'!G22,"j") -> 125663.706143592j | C22: =IF(IF(CMdata=1,IMABS(K22),'CM choke'!C26)=0, C21, IF(CMdata=1,IMABS(K22),'CM choke'!C26)) -> 229.9058336 | D22: =IF(IF(CMdata=1,DEGREES(IMARGUMENT(K22)),'CM choke'!D26)=0, D21, IF(CMdata=1,DEGREES(IMARGUMENT(K22)),'CM choke'!D26)) -> 80.79939857 | E22: =IF(IF(CMdata=1,IMABS(L22),'CM choke'!E26)=0, E21, IF(CMdata=1,IMABS(L22),'CM choke'!E26)) -> 54.36219981 | F22: =IF(IF(CMdata=1,DEGREES(IMARGUMENT(L22)),'CM choke'!F26)=0, F21, IF(CMdata=1,DEGREES(IMARGUMENT(L22)),'CM choke'!F26)) -> 87.96753196 | G22: 36.76 | H22: 226.948 | I22: 1.928 | J22: 54.328 | K22: =IF(CMdata=1, IF(Lcm1_core=1, IMDIV(1,IMSUM(IMDIV(1,IMPRODUCT(B22,'Design the AEF circuit'!$G$19*0.001)),IMDIV(1,'Design the AEF circuit'!$G$20*1000),IMPRODUCT(B22,'Design the AEF circuit'!$G$21*0.000000000001))), O22),COMPLEX(G22,H22,"j")) -> 36.76+226.948j | L22: =IF(CMdata=1, IF(Lcm2_core=1, IMDIV(1, IMSUM(IMDIV(1,IMPRODUCT(B22,'Design the AEF circuit'!$H$19*0.001)), IMDIV(1,'Design the AEF circuit'!$H$20*1000), IMPRODUCT(B22,'Design the AEF circuit'!$H$21*0.000000000001))), Q22), COMPLEX(I22,J22,"j")) -> 1.928+54.328j | N22: =IMSUM(IMDIV(1,IMSUM(IMDIV(1,IMPRODUCT(B22,'Design the AEF circuit'!$G$19*0.001)),IMDIV(1,'Design the AEF circuit'!$G$20*1000))), IMDIV(1,IMSUM(IMDIV(1,IMPRODUCT(B22,'Design the AEF circuit'!$G$22*0.001)),IMDIV(1,'Design the AEF circuit'!$G$23*1000))), IMDIV(1,IMSUM(IMDIV(1,IMPRODUCT(B22,'Design the AEF circuit'!$G$24*0.001)),IMDIV(1,'Design the AEF circuit'!$G$25*1000))) ) -> 27.1636292841552+93.9933862177572j | O22: =IMDIV(1, IMSUM( IMDIV(1, N22), IMPRODUCT(B22,'Design the AEF circuit'!$G$21*0.000000000001))) -> 27.1674798192353+93.9994914857431j | P22: =IMSUM(IMDIV(1,IMSUM(IMDIV(1,IMPRODUCT(B22,'Design the AEF circuit'!$H$19*0.001)),IMDIV(1,'Design the AEF circuit'!$H$20*1000))), IMDIV(1,IMSUM(IMDIV(1,IMPRODUCT(B22,'Design the AEF circuit'!$H$22*0.001)),IMDIV(1,'Design the AEF circuit'!$H$23*1000))), IMDIV(1,IMSUM(IMDIV(1,IMPRODUCT(B22,'Design the AEF circuit'!$H$24*0.001)),IMDIV(1,'Design the AEF circuit'!$H$25*1000))) ) -> 28.0009668826379+93.3373762859945j | Q22: =IMDIV(1, IMSUM( IMDIV(1, P22), IMPRODUCT(B22,'Design the AEF circuit'!$H$21*0.000000000001) ) ) -> 28.0049084068441+93.3433540526368j
A23: ='Frequency vector'!G23 -> 25000 | B23: =COMPLEX(0,2*PI()*'Frequency vector'!G23,"j") -> 157079.63267949j | C23: =IF(IF(CMdata=1,IMABS(K23),'CM choke'!C27)=0, C22, IF(CMdata=1,IMABS(K23),'CM choke'!C27)) -> 279.7667615 | D23: =IF(IF(CMdata=1,DEGREES(IMARGUMENT(K23)),'CM choke'!D27)=0, D22, IF(CMdata=1,DEGREES(IMARGUMENT(K23)),'CM choke'!D27)) -> 71.43785667 | E23: =IF(IF(CMdata=1,IMABS(L23),'CM choke'!E27)=0, E22, IF(CMdata=1,IMABS(L23),'CM choke'!E27)) -> 67.49409789 | F23: =IF(IF(CMdata=1,DEGREES(IMARGUMENT(L23)),'CM choke'!F27)=0, F22, IF(CMdata=1,DEGREES(IMARGUMENT(L23)),'CM choke'!F27)) -> 87.85942369 | G23: 89.059 | H23: 265.213 | I23: 2.521 | J23: 67.447 | K23: =IF(CMdata=1, IF(Lcm1_core=1, IMDIV(1,IMSUM(IMDIV(1,IMPRODUCT(B23,'Design the AEF circuit'!$G$19*0.001)),IMDIV(1,'Design the AEF circuit'!$G$20*1000),IMPRODUCT(B23,'Design the AEF circuit'!$G$21*0.000000000001))), O23),COMPLEX(G23,H23,"j")) -> 89.059+265.213j | L23: =IF(CMdata=1, IF(Lcm2_core=1, IMDIV(1, IMSUM(IMDIV(1,IMPRODUCT(B23,'Design the AEF circuit'!$H$19*0.001)), IMDIV(1,'Design the AEF circuit'!$H$20*1000), IMPRODUCT(B23,'Design the AEF circuit'!$H$21*0.000000000001))), Q23), COMPLEX(I23,J23,"j")) -> 2.52100000000001+67.447j | N23: =IMSUM(IMDIV(1,IMSUM(IMDIV(1,IMPRODUCT(B23,'Design the AEF circuit'!$G$19*0.001)),IMDIV(1,'Design the AEF circuit'!$G$20*1000))), IMDIV(1,IMSUM(IMDIV(1,IMPRODUCT(B23,'Design the AEF circuit'!$G$22*0.001)),IMDIV(1,'Design the AEF circuit'!$G$23*1000))), IMDIV(1,IMSUM(IMDIV(1,IMPRODUCT(B23,'Design the AEF circuit'!$G$24*0.001)),IMDIV(1,'Design the AEF circuit'!$G$25*1000))) ) -> 40.1637390345918+112.091646190624j | O23: =IMDIV(1, IMSUM( IMDIV(1, N23), IMPRODUCT(B23,'Design the AEF circuit'!$G$21*0.000000000001))) -> 40.1722264290342+112.101968421731j | P23: =IMSUM(IMDIV(1,IMSUM(IMDIV(1,IMPRODUCT(B23,'Design the AEF circuit'!$H$19*0.001)),IMDIV(1,'Design the AEF circuit'!$H$20*1000))), IMDIV(1,IMSUM(IMDIV(1,IMPRODUCT(B23,'Design the AEF circuit'!$H$22*0.001)),IMDIV(1,'Design the AEF circuit'!$H$23*1000))), IMDIV(1,IMSUM(IMDIV(1,IMPRODUCT(B23,'Design the AEF circuit'!$H$24*0.001)),IMDIV(1,'Design the AEF circuit'!$H$25*1000))) ) -> 41.2399167423682+110.951037958472j | Q23: =IMDIV(1, IMSUM( IMDIV(1, P23), IMPRODUCT(B23,'Design the AEF circuit'!$H$21*0.000000000001) ) ) -> 41.2485428576746+110.961037794767j
A24: ='Frequency vector'!G24 -> 30000 | B24: =COMPLEX(0,2*PI()*'Frequency vector'!G24,"j") -> 188495.559215388j | C24: =IF(IF(CMdata=1,IMABS(K24),'CM choke'!C28)=0, C23, IF(CMdata=1,IMABS(K24),'CM choke'!C28)) -> 352.6776688 | D24: =IF(IF(CMdata=1,DEGREES(IMARGUMENT(K24)),'CM choke'!D28)=0, D23, IF(CMdata=1,DEGREES(IMARGUMENT(K24)),'CM choke'!D28)) -> 82.22801472 | E24: =IF(IF(CMdata=1,IMABS(L24),'CM choke'!E28)=0, E23, IF(CMdata=1,IMABS(L24),'CM choke'!E28)) -> 82.56804426 | F24: =IF(IF(CMdata=1,DEGREES(IMARGUMENT(L24)),'CM choke'!F28)=0, F23, IF(CMdata=1,DEGREES(IMARGUMENT(L24)),'CM choke'!F28)) -> 86.37670068 | G24: 47.693 | H24: 349.438 | I24: 5.218 | J24: 82.403 | K24: =IF(CMdata=1, IF(Lcm1_core=1, IMDIV(1,IMSUM(IMDIV(1,IMPRODUCT(B24,'Design the AEF circuit'!$G$19*0.001)),IMDIV(1,'Design the AEF circuit'!$G$20*1000),IMPRODUCT(B24,'Design the AEF circuit'!$G$21*0.000000000001))), O24),COMPLEX(G24,H24,"j")) -> 47.693+349.438j | L24: =IF(CMdata=1, IF(Lcm2_core=1, IMDIV(1, IMSUM(IMDIV(1,IMPRODUCT(B24,'Design the AEF circuit'!$H$19*0.001)), IMDIV(1,'Design the AEF circuit'!$H$20*1000), IMPRODUCT(B24,'Design the AEF circuit'!$H$21*0.000000000001))), Q24), COMPLEX(I24,J24,"j")) -> 5.218+82.403j | N24: =IMSUM(IMDIV(1,IMSUM(IMDIV(1,IMPRODUCT(B24,'Design the AEF circuit'!$G$19*0.001)),IMDIV(1,'Design the AEF circuit'!$G$20*1000))), IMDIV(1,IMSUM(IMDIV(1,IMPRODUCT(B24,'Design the AEF circuit'!$G$22*0.001)),IMDIV(1,'Design the AEF circuit'!$G$23*1000))), IMDIV(1,IMSUM(IMDIV(1,IMPRODUCT(B24,'Design the AEF circuit'!$G$24*0.001)),IMDIV(1,'Design the AEF circuit'!$G$25*1000))) ) -> 54.2803358123326+127.489108187304j | O24: =IMDIV(1, IMSUM( IMDIV(1, N24), IMPRODUCT(B24,'Design the AEF circuit'!$G$21*0.000000000001))) -> 54.295992007896+127.504159392086j | P24: =IMSUM(IMDIV(1,IMSUM(IMDIV(1,IMPRODUCT(B24,'Design the AEF circuit'!$H$19*0.001)),IMDIV(1,'Design the AEF circuit'!$H$20*1000))), IMDIV(1,IMSUM(IMDIV(1,IMPRODUCT(B24,'Design the AEF circuit'!$H$22*0.001)),IMDIV(1,'Design the AEF circuit'!$H$23*1000))), IMDIV(1,IMSUM(IMDIV(1,IMPRODUCT(B24,'Design the AEF circuit'!$H$24*0.001)),IMDIV(1,'Design the AEF circuit'!$H$25*1000))) ) -> 55.5000083210261+125.764475128788j | Q24: =IMDIV(1, IMSUM( IMDIV(1, P24), IMPRODUCT(B24,'Design the AEF circuit'!$H$21*0.000000000001) ) ) -> 55.5157996997443+125.778880774754j
A25: ='Frequency vector'!G25 -> 35000 | B25: =COMPLEX(0,2*PI()*'Frequency vector'!G25,"j") -> 219911.485751286j | C25: =IF(IF(CMdata=1,IMABS(K25),'CM choke'!C29)=0, C24, IF(CMdata=1,IMABS(K25),'CM choke'!C29)) -> 387.3590952 | D25: =IF(IF(CMdata=1,DEGREES(IMARGUMENT(K25)),'CM choke'!D29)=0, D24, IF(CMdata=1,DEGREES(IMARGUMENT(K25)),'CM choke'!D29)) -> 71.19164794 | E25: =IF(IF(CMdata=1,IMABS(L25),'CM choke'!E29)=0, E24, IF(CMdata=1,IMABS(L25),'CM choke'!E29)) -> 93.99866536 | F25: =IF(IF(CMdata=1,DEGREES(IMARGUMENT(L25)),'CM choke'!F29)=0, F24, IF(CMdata=1,DEGREES(IMARGUMENT(L25)),'CM choke'!F29)) -> 87.08453979 | G25: 124.886 | H25: 366.675 | I25: 4.781 | J25: 93.877 | K25: =IF(CMdata=1, IF(Lcm1_core=1, IMDIV(1,IMSUM(IMDIV(1,IMPRODUCT(B25,'Design the AEF circuit'!$G$19*0.001)),IMDIV(1,'Design the AEF circuit'!$G$20*1000),IMPRODUCT(B25,'Design the AEF circuit'!$G$21*0.000000000001))), O25),COMPLEX(G25,H25,"j")) -> 124.886+366.675j | L25: =IF(CMdata=1, IF(Lcm2_core=1, IMDIV(1, IMSUM(IMDIV(1,IMPRODUCT(B25,'Design the AEF circuit'!$H$19*0.001)), IMDIV(1,'Design the AEF circuit'!$H$20*1000), IMPRODUCT(B25,'Design the AEF circuit'!$H$21*0.000000000001))), Q25), COMPLEX(I25,J25,"j")) -> 4.78099999999999+93.877j | N25: =IMSUM(IMDIV(1,IMSUM(IMDIV(1,IMPRODUCT(B25,'Design the AEF circuit'!$G$19*0.001)),IMDIV(1,'Design the AEF circuit'!$G$20*1000))), IMDIV(1,IMSUM(IMDIV(1,IMPRODUCT(B25,'Design the AEF circuit'!$G$22*0.001)),IMDIV(1,'Design the AEF circuit'!$G$23*1000))), IMDIV(1,IMSUM(IMDIV(1,IMPRODUCT(B25,'Design the AEF circuit'!$G$24*0.001)),IMDIV(1,'Design the AEF circuit'!$G$25*1000))) ) -> 68.8892361620489+140.284793667355j | O25: =IMDIV(1, IMSUM( IMDIV(1, N25), IMPRODUCT(B25,'Design the AEF circuit'!$G$21*0.000000000001))) -> 68.9147456666336+140.304500072361j | P25: =IMSUM(IMDIV(1,IMSUM(IMDIV(1,IMPRODUCT(B25,'Design the AEF circuit'!$H$19*0.001)),IMDIV(1,'Design the AEF circuit'!$H$20*1000))), IMDIV(1,IMSUM(IMDIV(1,IMPRODUCT(B25,'Design the AEF circuit'!$H$22*0.001)),IMDIV(1,'Design the AEF circuit'!$H$23*1000))), IMDIV(1,IMSUM(IMDIV(1,IMPRODUCT(B25,'Design the AEF circuit'!$H$24*0.001)),IMDIV(1,'Design the AEF circuit'!$H$25*1000))) ) -> 70.1329671823488+137.920724611418j | Q25: =IMDIV(1, IMSUM( IMDIV(1, P25), IMPRODUCT(B25,'Design the AEF circuit'!$H$21*0.000000000001) ) ) -> 70.1584994414412+137.939334756272j
A26: ='Frequency vector'!G26 -> 40000 | B26: =COMPLEX(0,2*PI()*'Frequency vector'!G26,"j") -> 251327.412287183j | C26: =IF(IF(CMdata=1,IMABS(K26),'CM choke'!C30)=0, C25, IF(CMdata=1,IMABS(K26),'CM choke'!C30)) -> 425.4443306 | D26: =IF(IF(CMdata=1,DEGREES(IMARGUMENT(K26)),'CM choke'!D30)=0, D25, IF(CMdata=1,DEGREES(IMARGUMENT(K26)),'CM choke'!D30)) -> 69.1926878 | E26: =IF(IF(CMdata=1,IMABS(L26),'CM choke'!E30)=0, E25, IF(CMdata=1,IMABS(L26),'CM choke'!E30)) -> 108.5256008 | F26: =IF(IF(CMdata=1,DEGREES(IMARGUMENT(L26)),'CM choke'!F30)=0, F25, IF(CMdata=1,DEGREES(IMARGUMENT(L26)),'CM choke'!F30)) -> 86.30497704 | G26: 151.129 | H26: 397.697 | I26: 6.994 | J26: 108.3 | K26: =IF(CMdata=1, IF(Lcm1_core=1, IMDIV(1,IMSUM(IMDIV(1,IMPRODUCT(B26,'Design the AEF circuit'!$G$19*0.001)),IMDIV(1,'Design the AEF circuit'!$G$20*1000),IMPRODUCT(B26,'Design the AEF circuit'!$G$21*0.000000000001))), O26),COMPLEX(G26,H26,"j")) -> 151.129+397.697j | L26: =IF(CMdata=1, IF(Lcm2_core=1, IMDIV(1, IMSUM(IMDIV(1,IMPRODUCT(B26,'Design the AEF circuit'!$H$19*0.001)), IMDIV(1,'Design the AEF circuit'!$H$20*1000), IMPRODUCT(B26,'Design the AEF circuit'!$H$21*0.000000000001))), Q26), COMPLEX(I26,J26,"j")) -> 6.99399999999999+108.3j | N26: =IMSUM(IMDIV(1,IMSUM(IMDIV(1,IMPRODUCT(B26,'Design the AEF circuit'!$G$19*0.001)),IMDIV(1,'Design the AEF circuit'!$G$20*1000))), IMDIV(1,IMSUM(IMDIV(1,IMPRODUCT(B26,'Design the AEF circuit'!$G$22*0.001)),IMDIV(1,'Design the AEF circuit'!$G$23*1000))), IMDIV(1,IMSUM(IMDIV(1,IMPRODUCT(B26,'Design the AEF circuit'!$G$24*0.001)),IMDIV(1,'Design the AEF circuit'!$G$25*1000))) ) -> 83.48749838095+150.706741714787j | O26: =IMDIV(1, IMSUM( IMDIV(1, N26), IMPRODUCT(B26,'Design the AEF circuit'!$G$21*0.000000000001))) -> 83.5254568027475+150.730481250051j | P26: =IMSUM(IMDIV(1,IMSUM(IMDIV(1,IMPRODUCT(B26,'Design the AEF circuit'!$H$19*0.001)),IMDIV(1,'Design the AEF circuit'!$H$20*1000))), IMDIV(1,IMSUM(IMDIV(1,IMPRODUCT(B26,'Design the AEF circuit'!$H$22*0.001)),IMDIV(1,'Design the AEF circuit'!$H$23*1000))), IMDIV(1,IMSUM(IMDIV(1,IMPRODUCT(B26,'Design the AEF circuit'!$H$24*0.001)),IMDIV(1,'Design the AEF circuit'!$H$25*1000))) ) -> 84.631781367223+147.691388669175j | Q26: =IMDIV(1, IMSUM( IMDIV(1, P26), IMPRODUCT(B26,'Design the AEF circuit'!$H$21*0.000000000001) ) ) -> 84.669489842835+147.713480769961j
A27: ='Frequency vector'!G27 -> 45000 | B27: =COMPLEX(0,2*PI()*'Frequency vector'!G27,"j") -> 282743.338823081j | C27: =IF(IF(CMdata=1,IMABS(K27),'CM choke'!C31)=0, C26, IF(CMdata=1,IMABS(K27),'CM choke'!C31)) -> 495.240785 | D27: =IF(IF(CMdata=1,DEGREES(IMARGUMENT(K27)),'CM choke'!D31)=0, D26, IF(CMdata=1,DEGREES(IMARGUMENT(K27)),'CM choke'!D31)) -> 66.66022228 | E27: =IF(IF(CMdata=1,IMABS(L27),'CM choke'!E31)=0, E26, IF(CMdata=1,IMABS(L27),'CM choke'!E31)) -> 123.5699741 | F27: =IF(IF(CMdata=1,DEGREES(IMARGUMENT(L27)),'CM choke'!F31)=0, F26, IF(CMdata=1,DEGREES(IMARGUMENT(L27)),'CM choke'!F31)) -> 85.74887678 | G27: 196.206 | H27: 454.716 | I27: 9.16 | J27: 123.23 | K27: =IF(CMdata=1, IF(Lcm1_core=1, IMDIV(1,IMSUM(IMDIV(1,IMPRODUCT(B27,'Design the AEF circuit'!$G$19*0.001)),IMDIV(1,'Design the AEF circuit'!$G$20*1000),IMPRODUCT(B27,'Design the AEF circuit'!$G$21*0.000000000001))), O27),COMPLEX(G27,H27,"j")) -> 196.206+454.716j | L27: =IF(CMdata=1, IF(Lcm2_core=1, IMDIV(1, IMSUM(IMDIV(1,IMPRODUCT(B27,'Design the AEF circuit'!$H$19*0.001)), IMDIV(1,'Design the AEF circuit'!$H$20*1000), IMPRODUCT(B27,'Design the AEF circuit'!$H$21*0.000000000001))), Q27), COMPLEX(I27,J27,"j")) -> 9.15999999999999+123.23j | N27: =IMSUM(IMDIV(1,IMSUM(IMDIV(1,IMPRODUCT(B27,'Design the AEF circuit'!$G$19*0.001)),IMDIV(1,'Design the AEF circuit'!$G$20*1000))), IMDIV(1,IMSUM(IMDIV(1,IMPRODUCT(B27,'Design the AEF circuit'!$G$22*0.001)),IMDIV(1,'Design the AEF circuit'!$G$23*1000))), IMDIV(1,IMSUM(IMDIV(1,IMPRODUCT(B27,'Design the AEF circuit'!$G$24*0.001)),IMDIV(1,'Design the AEF circuit'!$G$25*1000))) ) -> 97.7032419091283+159.05324109294j | O27: =IMDIV(1, IMSUM( IMDIV(1, N27), IMPRODUCT(B27,'Design the AEF circuit'!$G$21*0.000000000001))) -> 97.7559866066035+159.07996221606j | P27: =IMSUM(IMDIV(1,IMSUM(IMDIV(1,IMPRODUCT(B27,'Design the AEF circuit'!$H$19*0.001)),IMDIV(1,'Design the AEF circuit'!$H$20*1000))), IMDIV(1,IMSUM(IMDIV(1,IMPRODUCT(B27,'Design the AEF circuit'!$H$22*0.001)),IMDIV(1,'Design the AEF circuit'!$H$23*1000))), IMDIV(1,IMSUM(IMDIV(1,IMPRODUCT(B27,'Design the AEF circuit'!$H$24*0.001)),IMDIV(1,'Design the AEF circuit'!$H$25*1000))) ) -> 98.6352105729168+155.410914679817j | Q27: =IMDIV(1, IMSUM( IMDIV(1, P27), IMPRODUCT(B27,'Design the AEF circuit'!$H$21*0.000000000001) ) ) -> 98.6872384160109+155.435381566363j
A28: ='Frequency vector'!G28 -> 50000 | B28: =COMPLEX(0,2*PI()*'Frequency vector'!G28,"j") -> 314159.265358979j | C28: =IF(IF(CMdata=1,IMABS(K28),'CM choke'!C32)=0, C27, IF(CMdata=1,IMABS(K28),'CM choke'!C32)) -> 510.7223441 | D28: =IF(IF(CMdata=1,DEGREES(IMARGUMENT(K28)),'CM choke'!D32)=0, D27, IF(CMdata=1,DEGREES(IMARGUMENT(K28)),'CM choke'!D32)) -> 71.45723877 | E28: =IF(IF(CMdata=1,IMABS(L28),'CM choke'!E32)=0, E27, IF(CMdata=1,IMABS(L28),'CM choke'!E32)) -> 133.9083141 | F28: =IF(IF(CMdata=1,DEGREES(IMARGUMENT(L28)),'CM choke'!F32)=0, F27, IF(CMdata=1,DEGREES(IMARGUMENT(L28)),'CM choke'!F32)) -> 84.71941815 | G28: 162.416 | H28: 484.209 | I28: 12.324 | J28: 133.34 | K28: =IF(CMdata=1, IF(Lcm1_core=1, IMDIV(1,IMSUM(IMDIV(1,IMPRODUCT(B28,'Design the AEF circuit'!$G$19*0.001)),IMDIV(1,'Design the AEF circuit'!$G$20*1000),IMPRODUCT(B28,'Design the AEF circuit'!$G$21*0.000000000001))), O28),COMPLEX(G28,H28,"j")) -> 162.416+484.209j | L28: =IF(CMdata=1, IF(Lcm2_core=1, IMDIV(1, IMSUM(IMDIV(1,IMPRODUCT(B28,'Design the AEF circuit'!$H$19*0.001)), IMDIV(1,'Design the AEF circuit'!$H$20*1000), IMPRODUCT(B28,'Design the AEF circuit'!$H$21*0.000000000001))), Q28), COMPLEX(I28,J28,"j")) -> 12.324+133.34j | N28: =IMSUM(IMDIV(1,IMSUM(IMDIV(1,IMPRODUCT(B28,'Design the AEF circuit'!$G$19*0.001)),IMDIV(1,'Design the AEF circuit'!$G$20*1000))), IMDIV(1,IMSUM(IMDIV(1,IMPRODUCT(B28,'Design the AEF circuit'!$G$22*0.001)),IMDIV(1,'Design the AEF circuit'!$G$23*1000))), IMDIV(1,IMSUM(IMDIV(1,IMPRODUCT(B28,'Design the AEF circuit'!$G$24*0.001)),IMDIV(1,'Design the AEF circuit'!$G$25*1000))) ) -> 111.285623244987+165.645863418226j | O28: =IMDIV(1, IMSUM( IMDIV(1, N28), IMPRODUCT(B28,'Design the AEF circuit'!$G$21*0.000000000001))) -> 111.355145458142+165.674233931519j | P28: =IMSUM(IMDIV(1,IMSUM(IMDIV(1,IMPRODUCT(B28,'Design the AEF circuit'!$H$19*0.001)),IMDIV(1,'Design the AEF circuit'!$H$20*1000))), IMDIV(1,IMSUM(IMDIV(1,IMPRODUCT(B28,'Design the AEF circuit'!$H$22*0.001)),IMDIV(1,'Design the AEF circuit'!$H$23*1000))), IMDIV(1,IMSUM(IMDIV(1,IMPRODUCT(B28,'Design the AEF circuit'!$H$24*0.001)),IMDIV(1,'Design the AEF circuit'!$H$25*1000))) ) -> 111.911559669644+161.426735441217j | Q28: =IMDIV(1, IMSUM( IMDIV(1, P28), IMPRODUCT(B28,'Design the AEF circuit'!$H$21*0.000000000001) ) ) -> 111.979691178475+161.452240560888j
A29: ='Frequency vector'!G29 -> 55000 | B29: =COMPLEX(0,2*PI()*'Frequency vector'!G29,"j") -> 345575.191894877j | C29: =IF(IF(CMdata=1,IMABS(K29),'CM choke'!C33)=0, C28, IF(CMdata=1,IMABS(K29),'CM choke'!C33)) -> 643.0138129 | D29: =IF(IF(CMdata=1,DEGREES(IMARGUMENT(K29)),'CM choke'!D33)=0, D28, IF(CMdata=1,DEGREES(IMARGUMENT(K29)),'CM choke'!D33)) -> 67.54491108 | E29: =IF(IF(CMdata=1,IMABS(L29),'CM choke'!E33)=0, E28, IF(CMdata=1,IMABS(L29),'CM choke'!E33)) -> 144.3450108 | F29: =IF(IF(CMdata=1,DEGREES(IMARGUMENT(L29)),'CM choke'!F33)=0, F28, IF(CMdata=1,DEGREES(IMARGUMENT(L29)),'CM choke'!F33)) -> 87.96527363 | G29: 245.605 | H29: 594.26 | I29: 5.125 | J29: 144.254 | K29: =IF(CMdata=1, IF(Lcm1_core=1, IMDIV(1,IMSUM(IMDIV(1,IMPRODUCT(B29,'Design the AEF circuit'!$G$19*0.001)),IMDIV(1,'Design the AEF circuit'!$G$20*1000),IMPRODUCT(B29,'Design the AEF circuit'!$G$21*0.000000000001))), O29),COMPLEX(G29,H29,"j")) -> 245.605+594.26j | L29: =IF(CMdata=1, IF(Lcm2_core=1, IMDIV(1, IMSUM(IMDIV(1,IMPRODUCT(B29,'Design the AEF circuit'!$H$19*0.001)), IMDIV(1,'Design the AEF circuit'!$H$20*1000), IMPRODUCT(B29,'Design the AEF circuit'!$H$21*0.000000000001))), Q29), COMPLEX(I29,J29,"j")) -> 5.12499999999999+144.254j | N29: =IMSUM(IMDIV(1,IMSUM(IMDIV(1,IMPRODUCT(B29,'Design the AEF circuit'!$G$19*0.001)),IMDIV(1,'Design the AEF circuit'!$G$20*1000))), IMDIV(1,IMSUM(IMDIV(1,IMPRODUCT(B29,'Design the AEF circuit'!$G$22*0.001)),IMDIV(1,'Design the AEF circuit'!$G$23*1000))), IMDIV(1,IMSUM(IMDIV(1,IMPRODUCT(B29,'Design the AEF circuit'!$G$24*0.001)),IMDIV(1,'Design the AEF circuit'!$G$25*1000))) ) -> 124.084572685925+170.797110435055j | O29: =IMDIV(1, IMSUM( IMDIV(1, N29), IMPRODUCT(B29,'Design the AEF circuit'!$G$21*0.000000000001))) -> 124.172497657146+170.825659032622j | P29: =IMSUM(IMDIV(1,IMSUM(IMDIV(1,IMPRODUCT(B29,'Design the AEF circuit'!$H$19*0.001)),IMDIV(1,'Design the AEF circuit'!$H$20*1000))), IMDIV(1,IMSUM(IMDIV(1,IMPRODUCT(B29,'Design the AEF circuit'!$H$22*0.001)),IMDIV(1,'Design the AEF circuit'!$H$23*1000))), IMDIV(1,IMSUM(IMDIV(1,IMPRODUCT(B29,'Design the AEF circuit'!$H$24*0.001)),IMDIV(1,'Design the AEF circuit'!$H$25*1000))) ) -> 124.333140992267+166.066983799161j | Q29: =IMDIV(1, IMSUM( IMDIV(1, P29), IMPRODUCT(B29,'Design the AEF circuit'!$H$21*0.000000000001) ) ) -> 124.418800665625+166.092099582885j
A30: ='Frequency vector'!G30 -> 60000 | B30: =COMPLEX(0,2*PI()*'Frequency vector'!G30,"j") -> 376991.118430775j | C30: =IF(IF(CMdata=1,IMABS(K30),'CM choke'!C34)=0, C29, IF(CMdata=1,IMABS(K30),'CM choke'!C34)) -> 608.1419958 | D30: =IF(IF(CMdata=1,DEGREES(IMARGUMENT(K30)),'CM choke'!D34)=0, D29, IF(CMdata=1,DEGREES(IMARGUMENT(K30)),'CM choke'!D34)) -> 63.64157438 | E30: =IF(IF(CMdata=1,IMABS(L30),'CM choke'!E34)=0, E29, IF(CMdata=1,IMABS(L30),'CM choke'!E34)) -> 165.1911783 | F30: =IF(IF(CMdata=1,DEGREES(IMARGUMENT(L30)),'CM choke'!F34)=0, F29, IF(CMdata=1,DEGREES(IMARGUMENT(L30)),'CM choke'!F34)) -> 83.12674254 | G30: 270.006 | H30: 544.916 | I30: 19.769 | J30: 164.004 | K30: =IF(CMdata=1, IF(Lcm1_core=1, IMDIV(1,IMSUM(IMDIV(1,IMPRODUCT(B30,'Design the AEF circuit'!$G$19*0.001)),IMDIV(1,'Design the AEF circuit'!$G$20*1000),IMPRODUCT(B30,'Design the AEF circuit'!$G$21*0.000000000001))), O30),COMPLEX(G30,H30,"j")) -> 270.006+544.916j | L30: =IF(CMdata=1, IF(Lcm2_core=1, IMDIV(1, IMSUM(IMDIV(1,IMPRODUCT(B30,'Design the AEF circuit'!$H$19*0.001)), IMDIV(1,'Design the AEF circuit'!$H$20*1000), IMPRODUCT(B30,'Design the AEF circuit'!$H$21*0.000000000001))), Q30), COMPLEX(I30,J30,"j")) -> 19.769+164.004j | N30: =IMSUM(IMDIV(1,IMSUM(IMDIV(1,IMPRODUCT(B30,'Design the AEF circuit'!$G$19*0.001)),IMDIV(1,'Design the AEF circuit'!$G$20*1000))), IMDIV(1,IMSUM(IMDIV(1,IMPRODUCT(B30,'Design the AEF circuit'!$G$22*0.001)),IMDIV(1,'Design the AEF circuit'!$G$23*1000))), IMDIV(1,IMSUM(IMDIV(1,IMPRODUCT(B30,'Design the AEF circuit'!$G$24*0.001)),IMDIV(1,'Design the AEF circuit'!$G$25*1000))) ) -> 136.027584732695+174.791335693007j | O30: =IMDIV(1, IMSUM( IMDIV(1, N30), IMPRODUCT(B30,'Design the AEF circuit'!$G$21*0.000000000001))) -> 136.135197753152+174.81856642933j | P30: =IMSUM(IMDIV(1,IMSUM(IMDIV(1,IMPRODUCT(B30,'Design the AEF circuit'!$H$19*0.001)),IMDIV(1,'Design the AEF circuit'!$H$20*1000))), IMDIV(1,IMSUM(IMDIV(1,IMPRODUCT(B30,'Design the AEF circuit'!$H$22*0.001)),IMDIV(1,'Design the AEF circuit'!$H$23*1000))), IMDIV(1,IMSUM(IMDIV(1,IMPRODUCT(B30,'Design the AEF circuit'!$H$24*0.001)),IMDIV(1,'Design the AEF circuit'!$H$25*1000))) ) -> 135.84940632702+169.623090602324j | Q30: =IMDIV(1, IMSUM( IMDIV(1, P30), IMPRODUCT(B30,'Design the AEF circuit'!$H$21*0.000000000001) ) ) -> 135.953698468952+169.64640384944j
A31: ='Frequency vector'!G31 -> 65000 | B31: =COMPLEX(0,2*PI()*'Frequency vector'!G31,"j") -> 408407.044966673j | C31: =IF(IF(CMdata=1,IMABS(K31),'CM choke'!C35)=0, C30, IF(CMdata=1,IMABS(K31),'CM choke'!C35)) -> 641.7892398 | D31: =IF(IF(CMdata=1,DEGREES(IMARGUMENT(K31)),'CM choke'!D35)=0, D30, IF(CMdata=1,DEGREES(IMARGUMENT(K31)),'CM choke'!D35)) -> 63.95170543 | E31: =IF(IF(CMdata=1,IMABS(L31),'CM choke'!E35)=0, E30, IF(CMdata=1,IMABS(L31),'CM choke'!E35)) -> 180.9969517 | F31: =IF(IF(CMdata=1,DEGREES(IMARGUMENT(L31)),'CM choke'!F35)=0, F30, IF(CMdata=1,DEGREES(IMARGUMENT(L31)),'CM choke'!F35)) -> 84.47798908 | G31: 281.828 | H31: 576.599 | I31: 17.417 | J31: 180.157 | K31: =IF(CMdata=1, IF(Lcm1_core=1, IMDIV(1,IMSUM(IMDIV(1,IMPRODUCT(B31,'Design the AEF circuit'!$G$19*0.001)),IMDIV(1,'Design the AEF circuit'!$G$20*1000),IMPRODUCT(B31,'Design the AEF circuit'!$G$21*0.000000000001))), O31),COMPLEX(G31,H31,"j")) -> 281.828+576.599j | L31: =IF(CMdata=1, IF(Lcm2_core=1, IMDIV(1, IMSUM(IMDIV(1,IMPRODUCT(B31,'Design the AEF circuit'!$H$19*0.001)), IMDIV(1,'Design the AEF circuit'!$H$20*1000), IMPRODUCT(B31,'Design the AEF circuit'!$H$21*0.000000000001))), Q31), COMPLEX(I31,J31,"j")) -> 17.417+180.157j | N31: =IMSUM(IMDIV(1,IMSUM(IMDIV(1,IMPRODUCT(B31,'Design the AEF circuit'!$G$19*0.001)),IMDIV(1,'Design the AEF circuit'!$G$20*1000))), IMDIV(1,IMSUM(IMDIV(1,IMPRODUCT(B31,'Design the AEF circuit'!$G$22*0.001)),IMDIV(1,'Design the AEF circuit'!$G$23*1000))), IMDIV(1,IMSUM(IMDIV(1,IMPRODUCT(B31,'Design the AEF circuit'!$G$24*0.001)),IMDIV(1,'Design the AEF circuit'!$G$25*1000))) ) -> 147.097988348995+177.875818262581j | O31: =IMDIV(1, IMSUM( IMDIV(1, N31), IMPRODUCT(B31,'Design the AEF circuit'!$G$21*0.000000000001))) -> 147.226285594001+177.900291980165j | P31: =IMSUM(IMDIV(1,IMSUM(IMDIV(1,IMPRODUCT(B31,'Design the AEF circuit'!$H$19*0.001)),IMDIV(1,'Design the AEF circuit'!$H$20*1000))), IMDIV(1,IMSUM(IMDIV(1,IMPRODUCT(B31,'Design the AEF circuit'!$H$22*0.001)),IMDIV(1,'Design the AEF circuit'!$H$23*1000))), IMDIV(1,IMSUM(IMDIV(1,IMPRODUCT(B31,'Design the AEF circuit'!$H$24*0.001)),IMDIV(1,'Design the AEF circuit'!$H$25*1000))) ) -> 146.463125825629+172.343079638432j | Q31: =IMDIV(1, IMSUM( IMDIV(1, P31), IMPRODUCT(B31,'Design the AEF circuit'!$H$21*0.000000000001) ) ) -> 146.586893005513+172.363261580853j
A32: ='Frequency vector'!G32 -> 70000 | B32: =COMPLEX(0,2*PI()*'Frequency vector'!G32,"j") -> 439822.971502571j | C32: =IF(IF(CMdata=1,IMABS(K32),'CM choke'!C36)=0, C31, IF(CMdata=1,IMABS(K32),'CM choke'!C36)) -> 670.4159063 | D32: =IF(IF(CMdata=1,DEGREES(IMARGUMENT(K32)),'CM choke'!D36)=0, D31, IF(CMdata=1,DEGREES(IMARGUMENT(K32)),'CM choke'!D36)) -> 57.8829547 | E32: =IF(IF(CMdata=1,IMABS(L32),'CM choke'!E36)=0, E31, IF(CMdata=1,IMABS(L32),'CM choke'!E36)) -> 195.8105403 | F32: =IF(IF(CMdata=1,DEGREES(IMARGUMENT(L32)),'CM choke'!F36)=0, F31, IF(CMdata=1,DEGREES(IMARGUMENT(L32)),'CM choke'!F36)) -> 83.74272389 | G32: 356.427 | H32: 567.818 | I32: 21.342 | J32: 194.644 | K32: =IF(CMdata=1, IF(Lcm1_core=1, IMDIV(1,IMSUM(IMDIV(1,IMPRODUCT(B32,'Design the AEF circuit'!$G$19*0.001)),IMDIV(1,'Design the AEF circuit'!$G$20*1000),IMPRODUCT(B32,'Design the AEF circuit'!$G$21*0.000000000001))), O32),COMPLEX(G32,H32,"j")) -> 356.427+567.818j | L32: =IF(CMdata=1, IF(Lcm2_core=1, IMDIV(1, IMSUM(IMDIV(1,IMPRODUCT(B32,'Design the AEF circuit'!$H$19*0.001)), IMDIV(1,'Design the AEF circuit'!$H$20*1000), IMPRODUCT(B32,'Design the AEF circuit'!$H$21*0.000000000001))), Q32), COMPLEX(I32,J32,"j")) -> 21.342+194.644j | N32: =IMSUM(IMDIV(1,IMSUM(IMDIV(1,IMPRODUCT(B32,'Design the AEF circuit'!$G$19*0.001)),IMDIV(1,'Design the AEF circuit'!$G$20*1000))), IMDIV(1,IMSUM(IMDIV(1,IMPRODUCT(B32,'Design the AEF circuit'!$G$22*0.001)),IMDIV(1,'Design the AEF circuit'!$G$23*1000))), IMDIV(1,IMSUM(IMDIV(1,IMPRODUCT(B32,'Design the AEF circuit'!$G$24*0.001)),IMDIV(1,'Design the AEF circuit'!$G$25*1000))) ) -> 157.316767400156+180.258660810917j | O32: =IMDIV(1, IMSUM( IMDIV(1, N32), IMPRODUCT(B32,'Design the AEF circuit'!$G$21*0.000000000001))) -> 157.466515563274+180.279045909457j | P32: =IMSUM(IMDIV(1,IMSUM(IMDIV(1,IMPRODUCT(B32,'Design the AEF circuit'!$H$19*0.001)),IMDIV(1,'Design the AEF circuit'!$H$20*1000))), IMDIV(1,IMSUM(IMDIV(1,IMPRODUCT(B32,'Design the AEF circuit'!$H$22*0.001)),IMDIV(1,'Design the AEF circuit'!$H$23*1000))), IMDIV(1,IMSUM(IMDIV(1,IMPRODUCT(B32,'Design the AEF circuit'!$H$24*0.001)),IMDIV(1,'Design the AEF circuit'!$H$25*1000))) ) -> 156.211313086307+174.431590830056j | Q32: =IMDIV(1, IMSUM( IMDIV(1, P32), IMPRODUCT(B32,'Design the AEF circuit'!$H$21*0.000000000001) ) ) -> 156.355198398346+174.447436841763j
A33: ='Frequency vector'!G33 -> 75000 | B33: =COMPLEX(0,2*PI()*'Frequency vector'!G33,"j") -> 471238.898038469j | C33: =IF(IF(CMdata=1,IMABS(K33),'CM choke'!C37)=0, C32, IF(CMdata=1,IMABS(K33),'CM choke'!C37)) -> 696.7438801 | D33: =IF(IF(CMdata=1,DEGREES(IMARGUMENT(K33)),'CM choke'!D37)=0, D32, IF(CMdata=1,DEGREES(IMARGUMENT(K33)),'CM choke'!D37)) -> 58.18057149 | E33: =IF(IF(CMdata=1,IMABS(L33),'CM choke'!E37)=0, E32, IF(CMdata=1,IMABS(L33),'CM choke'!E37)) -> 213.3310203 | F33: =IF(IF(CMdata=1,DEGREES(IMARGUMENT(L33)),'CM choke'!F37)=0, F32, IF(CMdata=1,DEGREES(IMARGUMENT(L33)),'CM choke'!F37)) -> 82.58079648 | G33: 367.354 | H33: 592.033 | I33: 27.547 | J33: 211.545 | K33: =IF(CMdata=1, IF(Lcm1_core=1, IMDIV(1,IMSUM(IMDIV(1,IMPRODUCT(B33,'Design the AEF circuit'!$G$19*0.001)),IMDIV(1,'Design the AEF circuit'!$G$20*1000),IMPRODUCT(B33,'Design the AEF circuit'!$G$21*0.000000000001))), O33),COMPLEX(G33,H33,"j")) -> 367.354+592.033j | L33: =IF(CMdata=1, IF(Lcm2_core=1, IMDIV(1, IMSUM(IMDIV(1,IMPRODUCT(B33,'Design the AEF circuit'!$H$19*0.001)), IMDIV(1,'Design the AEF circuit'!$H$20*1000), IMPRODUCT(B33,'Design the AEF circuit'!$H$21*0.000000000001))), Q33), COMPLEX(I33,J33,"j")) -> 27.5469999999999+211.545j | N33: =IMSUM(IMDIV(1,IMSUM(IMDIV(1,IMPRODUCT(B33,'Design the AEF circuit'!$G$19*0.001)),IMDIV(1,'Design the AEF circuit'!$G$20*1000))), IMDIV(1,IMSUM(IMDIV(1,IMPRODUCT(B33,'Design the AEF circuit'!$G$22*0.001)),IMDIV(1,'Design the AEF circuit'!$G$23*1000))), IMDIV(1,IMSUM(IMDIV(1,IMPRODUCT(B33,'Design the AEF circuit'!$G$24*0.001)),IMDIV(1,'Design the AEF circuit'!$G$25*1000))) ) -> 166.728457706078+182.110742231638j | O33: =IMDIV(1, IMSUM( IMDIV(1, N33), IMPRODUCT(B33,'Design the AEF circuit'!$G$21*0.000000000001))) -> 166.900252245952+182.125840868469j | P33: =IMSUM(IMDIV(1,IMSUM(IMDIV(1,IMPRODUCT(B33,'Design the AEF circuit'!$H$19*0.001)),IMDIV(1,'Design the AEF circuit'!$H$20*1000))), IMDIV(1,IMSUM(IMDIV(1,IMPRODUCT(B33,'Design the AEF circuit'!$H$22*0.001)),IMDIV(1,'Design the AEF circuit'!$H$23*1000))), IMDIV(1,IMSUM(IMDIV(1,IMPRODUCT(B33,'Design the AEF circuit'!$H$24*0.001)),IMDIV(1,'Design the AEF circuit'!$H$25*1000))) ) -> 165.151001091789+176.053571139488j | Q33: =IMDIV(1, IMSUM( IMDIV(1, P33), IMPRODUCT(B33,'Design the AEF circuit'!$H$21*0.000000000001) ) ) -> 165.315505503233+176.064017594906j
A34: ='Frequency vector'!G34 -> 80000 | B34: =COMPLEX(0,2*PI()*'Frequency vector'!G34,"j") -> 502654.824574367j | C34: =IF(IF(CMdata=1,IMABS(K34),'CM choke'!C38)=0, C33, IF(CMdata=1,IMABS(K34),'CM choke'!C38)) -> 724.2979328 | D34: =IF(IF(CMdata=1,DEGREES(IMARGUMENT(K34)),'CM choke'!D38)=0, D33, IF(CMdata=1,DEGREES(IMARGUMENT(K34)),'CM choke'!D38)) -> 56.80207136 | E34: =IF(IF(CMdata=1,IMABS(L34),'CM choke'!E38)=0, E33, IF(CMdata=1,IMABS(L34),'CM choke'!E38)) -> 226.3296942 | F34: =IF(IF(CMdata=1,DEGREES(IMARGUMENT(L34)),'CM choke'!F38)=0, F33, IF(CMdata=1,DEGREES(IMARGUMENT(L34)),'CM choke'!F38)) -> 82.84047546 | G34: 396.577 | H34: 606.081 | I34: 28.208 | J34: 224.565 | K34: =IF(CMdata=1, IF(Lcm1_core=1, IMDIV(1,IMSUM(IMDIV(1,IMPRODUCT(B34,'Design the AEF circuit'!$G$19*0.001)),IMDIV(1,'Design the AEF circuit'!$G$20*1000),IMPRODUCT(B34,'Design the AEF circuit'!$G$21*0.000000000001))), O34),COMPLEX(G34,H34,"j")) -> 396.577+606.081j | L34: =IF(CMdata=1, IF(Lcm2_core=1, IMDIV(1, IMSUM(IMDIV(1,IMPRODUCT(B34,'Design the AEF circuit'!$H$19*0.001)), IMDIV(1,'Design the AEF circuit'!$H$20*1000), IMPRODUCT(B34,'Design the AEF circuit'!$H$21*0.000000000001))), Q34), COMPLEX(I34,J34,"j")) -> 28.208+224.565j | N34: =IMSUM(IMDIV(1,IMSUM(IMDIV(1,IMPRODUCT(B34,'Design the AEF circuit'!$G$19*0.001)),IMDIV(1,'Design the AEF circuit'!$G$20*1000))), IMDIV(1,IMSUM(IMDIV(1,IMPRODUCT(B34,'Design the AEF circuit'!$G$22*0.001)),IMDIV(1,'Design the AEF circuit'!$G$23*1000))), IMDIV(1,IMSUM(IMDIV(1,IMPRODUCT(B34,'Design the AEF circuit'!$G$24*0.001)),IMDIV(1,'Design the AEF circuit'!$G$25*1000))) ) -> 175.390814962976+183.569724997652j | O34: =IMDIV(1, IMSUM( IMDIV(1, N34), IMPRODUCT(B34,'Design the AEF circuit'!$G$21*0.000000000001))) -> 175.585131547953+183.578481542433j | P34: =IMSUM(IMDIV(1,IMSUM(IMDIV(1,IMPRODUCT(B34,'Design the AEF circuit'!$H$19*0.001)),IMDIV(1,'Design the AEF circuit'!$H$20*1000))), IMDIV(1,IMSUM(IMDIV(1,IMPRODUCT(B34,'Design the AEF circuit'!$H$22*0.001)),IMDIV(1,'Design the AEF circuit'!$H$23*1000))), IMDIV(1,IMSUM(IMDIV(1,IMPRODUCT(B34,'Design the AEF circuit'!$H$24*0.001)),IMDIV(1,'Design the AEF circuit'!$H$25*1000))) ) -> 173.349216381195+177.339564824256j | Q34: =IMDIV(1, IMSUM( IMDIV(1, P34), IMPRODUCT(B34,'Design the AEF circuit'!$H$21*0.000000000001) ) ) -> 173.534747180661+177.34369043545j
A35: ='Frequency vector'!G35 -> 85000 | B35: =COMPLEX(0,2*PI()*'Frequency vector'!G35,"j") -> 534070.751110265j | C35: =IF(IF(CMdata=1,IMABS(K35),'CM choke'!C39)=0, C34, IF(CMdata=1,IMABS(K35),'CM choke'!C39)) -> 728.503255 | D35: =IF(IF(CMdata=1,DEGREES(IMARGUMENT(K35)),'CM choke'!D39)=0, D34, IF(CMdata=1,DEGREES(IMARGUMENT(K35)),'CM choke'!D39)) -> 52.56962758 | E35: =IF(IF(CMdata=1,IMABS(L35),'CM choke'!E39)=0, E34, IF(CMdata=1,IMABS(L35),'CM choke'!E39)) -> 245.1833921 | F35: =IF(IF(CMdata=1,DEGREES(IMARGUMENT(L35)),'CM choke'!F39)=0, F34, IF(CMdata=1,DEGREES(IMARGUMENT(L35)),'CM choke'!F39)) -> 82.464609 | G35: 442.782 | H35: 578.499 | I35: 32.153 | J35: 243.066 | K35: =IF(CMdata=1, IF(Lcm1_core=1, IMDIV(1,IMSUM(IMDIV(1,IMPRODUCT(B35,'Design the AEF circuit'!$G$19*0.001)),IMDIV(1,'Design the AEF circuit'!$G$20*1000),IMPRODUCT(B35,'Design the AEF circuit'!$G$21*0.000000000001))), O35),COMPLEX(G35,H35,"j")) -> 442.782+578.499j | L35: =IF(CMdata=1, IF(Lcm2_core=1, IMDIV(1, IMSUM(IMDIV(1,IMPRODUCT(B35,'Design the AEF circuit'!$H$19*0.001)), IMDIV(1,'Design the AEF circuit'!$H$20*1000), IMPRODUCT(B35,'Design the AEF circuit'!$H$21*0.000000000001))), Q35), COMPLEX(I35,J35,"j")) -> 32.153+243.066j | N35: =IMSUM(IMDIV(1,IMSUM(IMDIV(1,IMPRODUCT(B35,'Design the AEF circuit'!$G$19*0.001)),IMDIV(1,'Design the AEF circuit'!$G$20*1000))), IMDIV(1,IMSUM(IMDIV(1,IMPRODUCT(B35,'Design the AEF circuit'!$G$22*0.001)),IMDIV(1,'Design the AEF circuit'!$G$23*1000))), IMDIV(1,IMSUM(IMDIV(1,IMPRODUCT(B35,'Design the AEF circuit'!$G$24*0.001)),IMDIV(1,'Design the AEF circuit'!$G$25*1000))) ) -> 183.367603627065+184.744819148214j | O35: =IMDIV(1, IMSUM( IMDIV(1, N35), IMPRODUCT(B35,'Design the AEF circuit'!$G$21*0.000000000001))) -> 183.58484065725+184.746316936659j | P35: =IMSUM(IMDIV(1,IMSUM(IMDIV(1,IMPRODUCT(B35,'Design the AEF circuit'!$H$19*0.001)),IMDIV(1,'Design the AEF circuit'!$H$20*1000))), IMDIV(1,IMSUM(IMDIV(1,IMPRODUCT(B35,'Design the AEF circuit'!$H$22*0.001)),IMDIV(1,'Design the AEF circuit'!$H$23*1000))), IMDIV(1,IMSUM(IMDIV(1,IMPRODUCT(B35,'Design the AEF circuit'!$H$24*0.001)),IMDIV(1,'Design the AEF circuit'!$H$25*1000))) ) -> 180.876261282357+178.391349174296j | Q35: =IMDIV(1, IMSUM( IMDIV(1, P35), IMPRODUCT(B35,'Design the AEF circuit'!$H$21*0.000000000001) ) ) -> 181.083170626558+178.388366798931j
A36: ='Frequency vector'!G36 -> 90000 | B36: =COMPLEX(0,2*PI()*'Frequency vector'!G36,"j") -> 565486.677646163j | C36: =IF(IF(CMdata=1,IMABS(K36),'CM choke'!C40)=0, C35, IF(CMdata=1,IMABS(K36),'CM choke'!C40)) -> 833.9389012 | D36: =IF(IF(CMdata=1,DEGREES(IMARGUMENT(K36)),'CM choke'!D40)=0, D35, IF(CMdata=1,DEGREES(IMARGUMENT(K36)),'CM choke'!D40)) -> 58.65328745 | E36: =IF(IF(CMdata=1,IMABS(L36),'CM choke'!E40)=0, E35, IF(CMdata=1,IMABS(L36),'CM choke'!E40)) -> 260.1800431 | F36: =IF(IF(CMdata=1,DEGREES(IMARGUMENT(L36)),'CM choke'!F40)=0, F35, IF(CMdata=1,DEGREES(IMARGUMENT(L36)),'CM choke'!F40)) -> 80.57927535 | G36: 433.828 | H36: 712.213 | I36: 42.587 | J36: 256.671 | K36: =IF(CMdata=1, IF(Lcm1_core=1, IMDIV(1,IMSUM(IMDIV(1,IMPRODUCT(B36,'Design the AEF circuit'!$G$19*0.001)),IMDIV(1,'Design the AEF circuit'!$G$20*1000),IMPRODUCT(B36,'Design the AEF circuit'!$G$21*0.000000000001))), O36),COMPLEX(G36,H36,"j")) -> 433.828+712.213j | L36: =IF(CMdata=1, IF(Lcm2_core=1, IMDIV(1, IMSUM(IMDIV(1,IMPRODUCT(B36,'Design the AEF circuit'!$H$19*0.001)), IMDIV(1,'Design the AEF circuit'!$H$20*1000), IMPRODUCT(B36,'Design the AEF circuit'!$H$21*0.000000000001))), Q36), COMPLEX(I36,J36,"j")) -> 42.587+256.671j | N36: =IMSUM(IMDIV(1,IMSUM(IMDIV(1,IMPRODUCT(B36,'Design the AEF circuit'!$G$19*0.001)),IMDIV(1,'Design the AEF circuit'!$G$20*1000))), IMDIV(1,IMSUM(IMDIV(1,IMPRODUCT(B36,'Design the AEF circuit'!$G$22*0.001)),IMDIV(1,'Design the AEF circuit'!$G$23*1000))), IMDIV(1,IMSUM(IMDIV(1,IMPRODUCT(B36,'Design the AEF circuit'!$G$24*0.001)),IMDIV(1,'Design the AEF circuit'!$G$25*1000))) ) -> 190.723793910401+185.72154040575j | O36: =IMDIV(1, IMSUM( IMDIV(1, N36), IMPRODUCT(B36,'Design the AEF circuit'!$G$21*0.000000000001))) -> 190.964305978632+185.71499151821j | P36: =IMSUM(IMDIV(1,IMSUM(IMDIV(1,IMPRODUCT(B36,'Design the AEF circuit'!$H$19*0.001)),IMDIV(1,'Design the AEF circuit'!$H$20*1000))), IMDIV(1,IMSUM(IMDIV(1,IMPRODUCT(B36,'Design the AEF circuit'!$H$22*0.001)),IMDIV(1,'Design the AEF circuit'!$H$23*1000))), IMDIV(1,IMSUM(IMDIV(1,IMPRODUCT(B36,'Design the AEF circuit'!$H$24*0.001)),IMDIV(1,'Design the AEF circuit'!$H$25*1000))) ) -> 187.801445252101+179.287238853557j | Q36: =IMDIV(1, IMSUM( IMDIV(1, P36), IMPRODUCT(B36,'Design the AEF circuit'!$H$21*0.000000000001) ) ) -> 188.030059434689+179.276482172424j
A37: ='Frequency vector'!G37 -> 95000 | B37: =COMPLEX(0,2*PI()*'Frequency vector'!G37,"j") -> 596902.604182061j | C37: =IF(IF(CMdata=1,IMABS(K37),'CM choke'!C41)=0, C36, IF(CMdata=1,IMABS(K37),'CM choke'!C41)) -> 809.6003091 | D37: =IF(IF(CMdata=1,DEGREES(IMARGUMENT(K37)),'CM choke'!D41)=0, D36, IF(CMdata=1,DEGREES(IMARGUMENT(K37)),'CM choke'!D41)) -> 56.01594013 | E37: =IF(IF(CMdata=1,IMABS(L37),'CM choke'!E41)=0, E36, IF(CMdata=1,IMABS(L37),'CM choke'!E41)) -> 277.2182796 | F37: =IF(IF(CMdata=1,DEGREES(IMARGUMENT(L37)),'CM choke'!F41)=0, F36, IF(CMdata=1,DEGREES(IMARGUMENT(L37)),'CM choke'!F41)) -> 83.39265108 | G37: 452.536 | H37: 671.315 | I37: 31.898 | J37: 275.377 | K37: =IF(CMdata=1, IF(Lcm1_core=1, IMDIV(1,IMSUM(IMDIV(1,IMPRODUCT(B37,'Design the AEF circuit'!$G$19*0.001)),IMDIV(1,'Design the AEF circuit'!$G$20*1000),IMPRODUCT(B37,'Design the AEF circuit'!$G$21*0.000000000001))), O37),COMPLEX(G37,H37,"j")) -> 452.536+671.315j | L37: =IF(CMdata=1, IF(Lcm2_core=1, IMDIV(1, IMSUM(IMDIV(1,IMPRODUCT(B37,'Design the AEF circuit'!$H$19*0.001)), IMDIV(1,'Design the AEF circuit'!$H$20*1000), IMPRODUCT(B37,'Design the AEF circuit'!$H$21*0.000000000001))), Q37), COMPLEX(I37,J37,"j")) -> 31.898+275.377j | N37: =IMSUM(IMDIV(1,IMSUM(IMDIV(1,IMPRODUCT(B37,'Design the AEF circuit'!$G$19*0.001)),IMDIV(1,'Design the AEF circuit'!$G$20*1000))), IMDIV(1,IMSUM(IMDIV(1,IMPRODUCT(B37,'Design the AEF circuit'!$G$22*0.001)),IMDIV(1,'Design the AEF circuit'!$G$23*1000))), IMDIV(1,IMSUM(IMDIV(1,IMPRODUCT(B37,'Design the AEF circuit'!$G$24*0.001)),IMDIV(1,'Design the AEF circuit'!$G$25*1000))) ) -> 197.5225263901+186.566065992551j | O37: =IMDIV(1, IMSUM( IMDIV(1, N37), IMPRODUCT(B37,'Design the AEF circuit'!$G$21*0.000000000001))) -> 197.786649567692+186.550797449609j | P37: =IMSUM(IMDIV(1,IMSUM(IMDIV(1,IMPRODUCT(B37,'Design the AEF circuit'!$H$19*0.001)),IMDIV(1,'Design the AEF circuit'!$H$20*1000))), IMDIV(1,IMSUM(IMDIV(1,IMPRODUCT(B37,'Design the AEF circuit'!$H$22*0.001)),IMDIV(1,'Design the AEF circuit'!$H$23*1000))), IMDIV(1,IMSUM(IMDIV(1,IMPRODUCT(B37,'Design the AEF circuit'!$H$24*0.001)),IMDIV(1,'Design the AEF circuit'!$H$25*1000))) ) -> 194.190547122392+180.08675118354j | Q37: =IMDIV(1, IMSUM( IMDIV(1, P37), IMPRODUCT(B37,'Design the AEF circuit'!$H$21*0.000000000001) ) ) -> 194.441187907446+180.067659226576j
A38: ='Frequency vector'!G38 -> 100000 | B38: =COMPLEX(0,2*PI()*'Frequency vector'!G38,"j") -> 628318.530717959j | C38: =IF(IF(CMdata=1,IMABS(K38),'CM choke'!C42)=0, C37, IF(CMdata=1,IMABS(K38),'CM choke'!C42)) -> 818.8741921 | D38: =IF(IF(CMdata=1,DEGREES(IMARGUMENT(K38)),'CM choke'!D42)=0, D37, IF(CMdata=1,DEGREES(IMARGUMENT(K38)),'CM choke'!D42)) -> 45.76783372 | E38: =IF(IF(CMdata=1,IMABS(L38),'CM choke'!E42)=0, E37, IF(CMdata=1,IMABS(L38),'CM choke'!E42)) -> 288.6234242 | F38: =IF(IF(CMdata=1,DEGREES(IMARGUMENT(L38)),'CM choke'!F42)=0, F37, IF(CMdata=1,DEGREES(IMARGUMENT(L38)),'CM choke'!F42)) -> 79.51482707 | G38: 571.22 | H38: 586.739 | I38: 52.524 | J38: 283.804 | K38: =IF(CMdata=1, IF(Lcm1_core=1, IMDIV(1,IMSUM(IMDIV(1,IMPRODUCT(B38,'Design the AEF circuit'!$G$19*0.001)),IMDIV(1,'Design the AEF circuit'!$G$20*1000),IMPRODUCT(B38,'Design the AEF circuit'!$G$21*0.000000000001))), O38),COMPLEX(G38,H38,"j")) -> 571.22+586.739j | L38: =IF(CMdata=1, IF(Lcm2_core=1, IMDIV(1, IMSUM(IMDIV(1,IMPRODUCT(B38,'Design the AEF circuit'!$H$19*0.001)), IMDIV(1,'Design the AEF circuit'!$H$20*1000), IMPRODUCT(B38,'Design the AEF circuit'!$H$21*0.000000000001))), Q38), COMPLEX(I38,J38,"j")) -> 52.524+283.804j | N38: =IMSUM(IMDIV(1,IMSUM(IMDIV(1,IMPRODUCT(B38,'Design the AEF circuit'!$G$19*0.001)),IMDIV(1,'Design the AEF circuit'!$G$20*1000))), IMDIV(1,IMSUM(IMDIV(1,IMPRODUCT(B38,'Design the AEF circuit'!$G$22*0.001)),IMDIV(1,'Design the AEF circuit'!$G$23*1000))), IMDIV(1,IMSUM(IMDIV(1,IMPRODUCT(B38,'Design the AEF circuit'!$G$24*0.001)),IMDIV(1,'Design the AEF circuit'!$G$25*1000))) ) -> 203.823324120056+187.329021455637j | O38: =IMDIV(1, IMSUM( IMDIV(1, N38), IMPRODUCT(B38,'Design the AEF circuit'!$G$21*0.000000000001))) -> 204.111394363945+187.304460101003j | P38: =IMSUM(IMDIV(1,IMSUM(IMDIV(1,IMPRODUCT(B38,'Design the AEF circuit'!$H$19*0.001)),IMDIV(1,'Design the AEF circuit'!$H$20*1000))), IMDIV(1,IMSUM(IMDIV(1,IMPRODUCT(B38,'Design the AEF circuit'!$H$22*0.001)),IMDIV(1,'Design the AEF circuit'!$H$23*1000))), IMDIV(1,IMSUM(IMDIV(1,IMPRODUCT(B38,'Design the AEF circuit'!$H$24*0.001)),IMDIV(1,'Design the AEF circuit'!$H$25*1000))) ) -> 200.104454307493+180.834541136021j | Q38: =IMDIV(1, IMSUM( IMDIV(1, P38), IMPRODUCT(B38,'Design the AEF circuit'!$H$21*0.000000000001) ) ) -> 200.377453856439+180.806642531004j
A39: ='Frequency vector'!G39 -> 105000 | B39: =COMPLEX(0,2*PI()*'Frequency vector'!G39,"j") -> 659734.457253857j | C39: =IF(IF(CMdata=1,IMABS(K39),'CM choke'!C43)=0, C38, IF(CMdata=1,IMABS(K39),'CM choke'!C43)) -> 864.8216963 | D39: =IF(IF(CMdata=1,DEGREES(IMARGUMENT(K39)),'CM choke'!D43)=0, D38, IF(CMdata=1,DEGREES(IMARGUMENT(K39)),'CM choke'!D43)) -> 49.92555362 | E39: =IF(IF(CMdata=1,IMABS(L39),'CM choke'!E43)=0, E38, IF(CMdata=1,IMABS(L39),'CM choke'!E43)) -> 308.9942835 | F39: =IF(IF(CMdata=1,DEGREES(IMARGUMENT(L39)),'CM choke'!F43)=0, F38, IF(CMdata=1,DEGREES(IMARGUMENT(L39)),'CM choke'!F43)) -> 79.06023107 | G39: 556.757 | H39: 661.769 | I39: 58.64 | J39: 303.379 | K39: =IF(CMdata=1, IF(Lcm1_core=1, IMDIV(1,IMSUM(IMDIV(1,IMPRODUCT(B39,'Design the AEF circuit'!$G$19*0.001)),IMDIV(1,'Design the AEF circuit'!$G$20*1000),IMPRODUCT(B39,'Design the AEF circuit'!$G$21*0.000000000001))), O39),COMPLEX(G39,H39,"j")) -> 556.757+661.769j | L39: =IF(CMdata=1, IF(Lcm2_core=1, IMDIV(1, IMSUM(IMDIV(1,IMPRODUCT(B39,'Design the AEF circuit'!$H$19*0.001)), IMDIV(1,'Design the AEF circuit'!$H$20*1000), IMPRODUCT(B39,'Design the AEF circuit'!$H$21*0.000000000001))), Q39), COMPLEX(I39,J39,"j")) -> 58.64+303.379j | N39: =IMSUM(IMDIV(1,IMSUM(IMDIV(1,IMPRODUCT(B39,'Design the AEF circuit'!$G$19*0.001)),IMDIV(1,'Design the AEF circuit'!$G$20*1000))), IMDIV(1,IMSUM(IMDIV(1,IMPRODUCT(B39,'Design the AEF circuit'!$G$22*0.001)),IMDIV(1,'Design the AEF circuit'!$G$23*1000))), IMDIV(1,IMSUM(IMDIV(1,IMPRODUCT(B39,'Design the AEF circuit'!$G$24*0.001)),IMDIV(1,'Design the AEF circuit'!$G$25*1000))) ) -> 209.68115543601+188.04866472759j | O39: =IMDIV(1, IMSUM( IMDIV(1, N39), IMPRODUCT(B39,'Design the AEF circuit'!$G$21*0.000000000001))) -> 209.993521472932+188.014322216214j | P39: =IMSUM(IMDIV(1,IMSUM(IMDIV(1,IMPRODUCT(B39,'Design the AEF circuit'!$H$19*0.001)),IMDIV(1,'Design the AEF circuit'!$H$20*1000))), IMDIV(1,IMSUM(IMDIV(1,IMPRODUCT(B39,'Design the AEF circuit'!$H$22*0.001)),IMDIV(1,'Design the AEF circuit'!$H$23*1000))), IMDIV(1,IMSUM(IMDIV(1,IMPRODUCT(B39,'Design the AEF circuit'!$H$24*0.001)),IMDIV(1,'Design the AEF circuit'!$H$25*1000))) ) -> 205.598573675471+181.5636300267j | Q39: =IMDIV(1, IMSUM( IMDIV(1, P39), IMPRODUCT(B39,'Design the AEF circuit'!$H$21*0.000000000001) ) ) -> 205.894284507467+181.526528055085j
A40: ='Frequency vector'!G40 -> 109000 | B40: =COMPLEX(0,2*PI()*'Frequency vector'!G40,"j") -> 684867.198482575j | C40: =IF(IF(CMdata=1,IMABS(K40),'CM choke'!C44)=0, C39, IF(CMdata=1,IMABS(K40),'CM choke'!C44)) -> 879.4688954 | D40: =IF(IF(CMdata=1,DEGREES(IMARGUMENT(K40)),'CM choke'!D44)=0, D39, IF(CMdata=1,DEGREES(IMARGUMENT(K40)),'CM choke'!D44)) -> 47.6186982 | E40: =IF(IF(CMdata=1,IMABS(L40),'CM choke'!E44)=0, E39, IF(CMdata=1,IMABS(L40),'CM choke'!E44)) -> 328.348983 | F40: =IF(IF(CMdata=1,DEGREES(IMARGUMENT(L40)),'CM choke'!F44)=0, F39, IF(CMdata=1,DEGREES(IMARGUMENT(L40)),'CM choke'!F44)) -> 78.53832878 | G40: 592.816 | H40: 649.642 | I40: 65.247 | J40: 321.801 | K40: =IF(CMdata=1, IF(Lcm1_core=1, IMDIV(1,IMSUM(IMDIV(1,IMPRODUCT(B40,'Design the AEF circuit'!$G$19*0.001)),IMDIV(1,'Design the AEF circuit'!$G$20*1000),IMPRODUCT(B40,'Design the AEF circuit'!$G$21*0.000000000001))), O40),COMPLEX(G40,H40,"j")) -> 592.816+649.642j | L40: =IF(CMdata=1, IF(Lcm2_core=1, IMDIV(1, IMSUM(IMDIV(1,IMPRODUCT(B40,'Design the AEF circuit'!$H$19*0.001)), IMDIV(1,'Design the AEF circuit'!$H$20*1000), IMPRODUCT(B40,'Design the AEF circuit'!$H$21*0.000000000001))), Q40), COMPLEX(I40,J40,"j")) -> 65.247+321.801j | N40: =IMSUM(IMDIV(1,IMSUM(IMDIV(1,IMPRODUCT(B40,'Design the AEF circuit'!$G$19*0.001)),IMDIV(1,'Design the AEF circuit'!$G$20*1000))), IMDIV(1,IMSUM(IMDIV(1,IMPRODUCT(B40,'Design the AEF circuit'!$G$22*0.001)),IMDIV(1,'Design the AEF circuit'!$G$23*1000))), IMDIV(1,IMSUM(IMDIV(1,IMPRODUCT(B40,'Design the AEF circuit'!$G$24*0.001)),IMDIV(1,'Design the AEF circuit'!$G$25*1000))) ) -> 214.082277123971+188.61262288992j | O40: =IMDIV(1, IMSUM( IMDIV(1, N40), IMPRODUCT(B40,'Design the AEF circuit'!$G$21*0.000000000001))) -> 214.414345036949+188.570151808178j | P40: =IMSUM(IMDIV(1,IMSUM(IMDIV(1,IMPRODUCT(B40,'Design the AEF circuit'!$H$19*0.001)),IMDIV(1,'Design the AEF circuit'!$H$20*1000))), IMDIV(1,IMSUM(IMDIV(1,IMPRODUCT(B40,'Design the AEF circuit'!$H$22*0.001)),IMDIV(1,'Design the AEF circuit'!$H$23*1000))), IMDIV(1,IMSUM(IMDIV(1,IMPRODUCT(B40,'Design the AEF circuit'!$H$24*0.001)),IMDIV(1,'Design the AEF circuit'!$H$25*1000))) ) -> 209.725287068428+182.149804225477j | Q40: =IMDIV(1, IMSUM( IMDIV(1, P40), IMPRODUCT(B40,'Design the AEF circuit'!$H$21*0.000000000001) ) ) -> 210.039438471295+182.105095379523j
A41: ='Frequency vector'!G41 -> 114000 | B41: =COMPLEX(0,2*PI()*'Frequency vector'!G41,"j") -> 716283.125018473j | C41: =IF(IF(CMdata=1,IMABS(K41),'CM choke'!C45)=0, C40, IF(CMdata=1,IMABS(K41),'CM choke'!C45)) -> 875.1339534 | D41: =IF(IF(CMdata=1,DEGREES(IMARGUMENT(K41)),'CM choke'!D45)=0, D40, IF(CMdata=1,DEGREES(IMARGUMENT(K41)),'CM choke'!D45)) -> 48.41158826 | E41: =IF(IF(CMdata=1,IMABS(L41),'CM choke'!E45)=0, E40, IF(CMdata=1,IMABS(L41),'CM choke'!E45)) -> 365.8628616 | F41: =IF(IF(CMdata=1,DEGREES(IMARGUMENT(L41)),'CM choke'!F45)=0, F40, IF(CMdata=1,DEGREES(IMARGUMENT(L41)),'CM choke'!F45)) -> 82.30356658 | G41: 580.892 | H41: 654.541 | I41: 48.998 | J41: 362.567 | K41: =IF(CMdata=1, IF(Lcm1_core=1, IMDIV(1,IMSUM(IMDIV(1,IMPRODUCT(B41,'Design the AEF circuit'!$G$19*0.001)),IMDIV(1,'Design the AEF circuit'!$G$20*1000),IMPRODUCT(B41,'Design the AEF circuit'!$G$21*0.000000000001))), O41),COMPLEX(G41,H41,"j")) -> 580.892+654.541j | L41: =IF(CMdata=1, IF(Lcm2_core=1, IMDIV(1, IMSUM(IMDIV(1,IMPRODUCT(B41,'Design the AEF circuit'!$H$19*0.001)), IMDIV(1,'Design the AEF circuit'!$H$20*1000), IMPRODUCT(B41,'Design the AEF circuit'!$H$21*0.000000000001))), Q41), COMPLEX(I41,J41,"j")) -> 48.998+362.567j | N41: =IMSUM(IMDIV(1,IMSUM(IMDIV(1,IMPRODUCT(B41,'Design the AEF circuit'!$G$19*0.001)),IMDIV(1,'Design the AEF circuit'!$G$20*1000))), IMDIV(1,IMSUM(IMDIV(1,IMPRODUCT(B41,'Design the AEF circuit'!$G$22*0.001)),IMDIV(1,'Design the AEF circuit'!$G$23*1000))), IMDIV(1,IMSUM(IMDIV(1,IMPRODUCT(B41,'Design the AEF circuit'!$G$24*0.001)),IMDIV(1,'Design the AEF circuit'!$G$25*1000))) ) -> 219.265529396478+189.320953919828j | O41: =IMDIV(1, IMSUM( IMDIV(1, N41), IMPRODUCT(B41,'Design the AEF circuit'!$G$21*0.000000000001))) -> 219.62257835168+189.267992243229j | P41: =IMSUM(IMDIV(1,IMSUM(IMDIV(1,IMPRODUCT(B41,'Design the AEF circuit'!$H$19*0.001)),IMDIV(1,'Design the AEF circuit'!$H$20*1000))), IMDIV(1,IMSUM(IMDIV(1,IMPRODUCT(B41,'Design the AEF circuit'!$H$22*0.001)),IMDIV(1,'Design the AEF circuit'!$H$23*1000))), IMDIV(1,IMSUM(IMDIV(1,IMPRODUCT(B41,'Design the AEF circuit'!$H$24*0.001)),IMDIV(1,'Design the AEF circuit'!$H$25*1000))) ) -> 214.585707021114+182.900938584319j | Q41: =IMDIV(1, IMSUM( IMDIV(1, P41), IMPRODUCT(B41,'Design the AEF circuit'!$H$21*0.000000000001) ) ) -> 214.923273658664+182.846458059012j
A42: ='Frequency vector'!G42 -> 119000 | B42: =COMPLEX(0,2*PI()*'Frequency vector'!G42,"j") -> 747699.051554371j | C42: =IF(IF(CMdata=1,IMABS(K42),'CM choke'!C46)=0, C41, IF(CMdata=1,IMABS(K42),'CM choke'!C46)) -> 930.1528968 | D42: =IF(IF(CMdata=1,DEGREES(IMARGUMENT(K42)),'CM choke'!D46)=0, D41, IF(CMdata=1,DEGREES(IMARGUMENT(K42)),'CM choke'!D46)) -> 47.95056027 | E42: =IF(IF(CMdata=1,IMABS(L42),'CM choke'!E46)=0, E41, IF(CMdata=1,IMABS(L42),'CM choke'!E46)) -> 361.4026281 | F42: =IF(IF(CMdata=1,DEGREES(IMARGUMENT(L42)),'CM choke'!F46)=0, F41, IF(CMdata=1,DEGREES(IMARGUMENT(L42)),'CM choke'!F46)) -> 76.62824197 | G42: 622.99 | H42: 690.701 | I42: 83.581 | J42: 351.605 | K42: =IF(CMdata=1, IF(Lcm1_core=1, IMDIV(1,IMSUM(IMDIV(1,IMPRODUCT(B42,'Design the AEF circuit'!$G$19*0.001)),IMDIV(1,'Design the AEF circuit'!$G$20*1000),IMPRODUCT(B42,'Design the AEF circuit'!$G$21*0.000000000001))), O42),COMPLEX(G42,H42,"j")) -> 622.99+690.701j | L42: =IF(CMdata=1, IF(Lcm2_core=1, IMDIV(1, IMSUM(IMDIV(1,IMPRODUCT(B42,'Design the AEF circuit'!$H$19*0.001)), IMDIV(1,'Design the AEF circuit'!$H$20*1000), IMPRODUCT(B42,'Design the AEF circuit'!$H$21*0.000000000001))), Q42), COMPLEX(I42,J42,"j")) -> 83.581+351.605j | N42: =IMSUM(IMDIV(1,IMSUM(IMDIV(1,IMPRODUCT(B42,'Design the AEF circuit'!$G$19*0.001)),IMDIV(1,'Design the AEF circuit'!$G$20*1000))), IMDIV(1,IMSUM(IMDIV(1,IMPRODUCT(B42,'Design the AEF circuit'!$G$22*0.001)),IMDIV(1,'Design the AEF circuit'!$G$23*1000))), IMDIV(1,IMSUM(IMDIV(1,IMPRODUCT(B42,'Design the AEF circuit'!$G$24*0.001)),IMDIV(1,'Design the AEF circuit'!$G$25*1000))) ) -> 224.133565510949+190.047709341167j | O42: =IMDIV(1, IMSUM( IMDIV(1, N42), IMPRODUCT(B42,'Design the AEF circuit'!$G$21*0.000000000001))) -> 224.516015959831+189.98393556151j | P42: =IMSUM(IMDIV(1,IMSUM(IMDIV(1,IMPRODUCT(B42,'Design the AEF circuit'!$H$19*0.001)),IMDIV(1,'Design the AEF circuit'!$H$20*1000))), IMDIV(1,IMSUM(IMDIV(1,IMPRODUCT(B42,'Design the AEF circuit'!$H$22*0.001)),IMDIV(1,'Design the AEF circuit'!$H$23*1000))), IMDIV(1,IMSUM(IMDIV(1,IMPRODUCT(B42,'Design the AEF circuit'!$H$24*0.001)),IMDIV(1,'Design the AEF circuit'!$H$25*1000))) ) -> 219.152481405845+183.684080827076j | Q42: =IMDIV(1, IMSUM( IMDIV(1, P42), IMPRODUCT(B42,'Design the AEF circuit'!$H$21*0.000000000001) ) ) -> 219.513897715134+183.61957373698j
A43: ='Frequency vector'!G43 -> 124000 | B43: =COMPLEX(0,2*PI()*'Frequency vector'!G43,"j") -> 779114.978090269j | C43: =IF(IF(CMdata=1,IMABS(K43),'CM choke'!C47)=0, C42, IF(CMdata=1,IMABS(K43),'CM choke'!C47)) -> 928.6596859 | D43: =IF(IF(CMdata=1,DEGREES(IMARGUMENT(K43)),'CM choke'!D47)=0, D42, IF(CMdata=1,DEGREES(IMARGUMENT(K43)),'CM choke'!D47)) -> 50.19759662 | E43: =IF(IF(CMdata=1,IMABS(L43),'CM choke'!E47)=0, E42, IF(CMdata=1,IMABS(L43),'CM choke'!E47)) -> 372.5380196 | F43: =IF(IF(CMdata=1,DEGREES(IMARGUMENT(L43)),'CM choke'!F47)=0, F42, IF(CMdata=1,DEGREES(IMARGUMENT(L43)),'CM choke'!F47)) -> 75.88094693 | G43: 594.474 | H43: 713.449 | I43: 90.876 | J43: 361.284 | K43: =IF(CMdata=1, IF(Lcm1_core=1, IMDIV(1,IMSUM(IMDIV(1,IMPRODUCT(B43,'Design the AEF circuit'!$G$19*0.001)),IMDIV(1,'Design the AEF circuit'!$G$20*1000),IMPRODUCT(B43,'Design the AEF circuit'!$G$21*0.000000000001))), O43),COMPLEX(G43,H43,"j")) -> 594.474+713.449j | L43: =IF(CMdata=1, IF(Lcm2_core=1, IMDIV(1, IMSUM(IMDIV(1,IMPRODUCT(B43,'Design the AEF circuit'!$H$19*0.001)), IMDIV(1,'Design the AEF circuit'!$H$20*1000), IMPRODUCT(B43,'Design the AEF circuit'!$H$21*0.000000000001))), Q43), COMPLEX(I43,J43,"j")) -> 90.876+361.284j | N43: =IMSUM(IMDIV(1,IMSUM(IMDIV(1,IMPRODUCT(B43,'Design the AEF circuit'!$G$19*0.001)),IMDIV(1,'Design the AEF circuit'!$G$20*1000))), IMDIV(1,IMSUM(IMDIV(1,IMPRODUCT(B43,'Design the AEF circuit'!$G$22*0.001)),IMDIV(1,'Design the AEF circuit'!$G$23*1000))), IMDIV(1,IMSUM(IMDIV(1,IMPRODUCT(B43,'Design the AEF circuit'!$G$24*0.001)),IMDIV(1,'Design the AEF circuit'!$G$25*1000))) ) -> 228.72312706846+190.804055336337j | O43: =IMDIV(1, IMSUM( IMDIV(1, N43), IMPRODUCT(B43,'Design the AEF circuit'!$G$21*0.000000000001))) -> 229.131430291838+190.729186648878j | P43: =IMSUM(IMDIV(1,IMSUM(IMDIV(1,IMPRODUCT(B43,'Design the AEF circuit'!$H$19*0.001)),IMDIV(1,'Design the AEF circuit'!$H$20*1000))), IMDIV(1,IMSUM(IMDIV(1,IMPRODUCT(B43,'Design the AEF circuit'!$H$22*0.001)),IMDIV(1,'Design the AEF circuit'!$H$23*1000))), IMDIV(1,IMSUM(IMDIV(1,IMPRODUCT(B43,'Design the AEF circuit'!$H$24*0.001)),IMDIV(1,'Design the AEF circuit'!$H$25*1000))) ) -> 223.461263870561+184.507562801092j | Q43: =IMDIV(1, IMSUM( IMDIV(1, P43), IMPRODUCT(B43,'Design the AEF circuit'!$H$21*0.000000000001) ) ) -> 223.846996146089+184.432805697403j
A44: ='Frequency vector'!G44 -> 129000 | B44: =COMPLEX(0,2*PI()*'Frequency vector'!G44,"j") -> 810530.904626167j | C44: =IF(IF(CMdata=1,IMABS(K44),'CM choke'!C48)=0, C43, IF(CMdata=1,IMABS(K44),'CM choke'!C48)) -> 966.9307779 | D44: =IF(IF(CMdata=1,DEGREES(IMARGUMENT(K44)),'CM choke'!D48)=0, D43, IF(CMdata=1,DEGREES(IMARGUMENT(K44)),'CM choke'!D48)) -> 44.00637955 | E44: =IF(IF(CMdata=1,IMABS(L44),'CM choke'!E48)=0, E43, IF(CMdata=1,IMABS(L44),'CM choke'!E48)) -> 396.5606608 | F44: =IF(IF(CMdata=1,DEGREES(IMARGUMENT(L44)),'CM choke'!F48)=0, F43, IF(CMdata=1,DEGREES(IMARGUMENT(L44)),'CM choke'!F48)) -> 74.49733519 | G44: 695.477 | H44: 671.764 | I44: 105.994 | J44: 382.133 | K44: =IF(CMdata=1, IF(Lcm1_core=1, IMDIV(1,IMSUM(IMDIV(1,IMPRODUCT(B44,'Design the AEF circuit'!$G$19*0.001)),IMDIV(1,'Design the AEF circuit'!$G$20*1000),IMPRODUCT(B44,'Design the AEF circuit'!$G$21*0.000000000001))), O44),COMPLEX(G44,H44,"j")) -> 695.477+671.764j | L44: =IF(CMdata=1, IF(Lcm2_core=1, IMDIV(1, IMSUM(IMDIV(1,IMPRODUCT(B44,'Design the AEF circuit'!$H$19*0.001)), IMDIV(1,'Design the AEF circuit'!$H$20*1000), IMPRODUCT(B44,'Design the AEF circuit'!$H$21*0.000000000001))), Q44), COMPLEX(I44,J44,"j")) -> 105.994+382.133j | N44: =IMSUM(IMDIV(1,IMSUM(IMDIV(1,IMPRODUCT(B44,'Design the AEF circuit'!$G$19*0.001)),IMDIV(1,'Design the AEF circuit'!$G$20*1000))), IMDIV(1,IMSUM(IMDIV(1,IMPRODUCT(B44,'Design the AEF circuit'!$G$22*0.001)),IMDIV(1,'Design the AEF circuit'!$G$23*1000))), IMDIV(1,IMSUM(IMDIV(1,IMPRODUCT(B44,'Design the AEF circuit'!$G$24*0.001)),IMDIV(1,'Design the AEF circuit'!$G$25*1000))) ) -> 233.066803941814+191.597430610101j | O44: =IMDIV(1, IMSUM( IMDIV(1, N44), IMPRODUCT(B44,'Design the AEF circuit'!$G$21*0.000000000001))) -> 233.501442303042+191.511214219114j | P44: =IMSUM(IMDIV(1,IMSUM(IMDIV(1,IMPRODUCT(B44,'Design the AEF circuit'!$H$19*0.001)),IMDIV(1,'Design the AEF circuit'!$H$20*1000))), IMDIV(1,IMSUM(IMDIV(1,IMPRODUCT(B44,'Design the AEF circuit'!$H$22*0.001)),IMDIV(1,'Design the AEF circuit'!$H$23*1000))), IMDIV(1,IMSUM(IMDIV(1,IMPRODUCT(B44,'Design the AEF circuit'!$H$24*0.001)),IMDIV(1,'Design the AEF circuit'!$H$25*1000))) ) -> 227.543452956348+185.376455504967j | Q44: =IMDIV(1, IMSUM( IMDIV(1, P44), IMPRODUCT(B44,'Design the AEF circuit'!$H$21*0.000000000001) ) ) -> 227.953998765336+185.29124858094j
A45: ='Frequency vector'!G45 -> 134000 | B45: =COMPLEX(0,2*PI()*'Frequency vector'!G45,"j") -> 841946.831162065j | C45: =IF(IF(CMdata=1,IMABS(K45),'CM choke'!C49)=0, C44, IF(CMdata=1,IMABS(K45),'CM choke'!C49)) -> 990.4501941 | D45: =IF(IF(CMdata=1,DEGREES(IMARGUMENT(K45)),'CM choke'!D49)=0, D44, IF(CMdata=1,DEGREES(IMARGUMENT(K45)),'CM choke'!D49)) -> 43.56695307 | E45: =IF(IF(CMdata=1,IMABS(L45),'CM choke'!E49)=0, E44, IF(CMdata=1,IMABS(L45),'CM choke'!E49)) -> 416.9658344 | F45: =IF(IF(CMdata=1,DEGREES(IMARGUMENT(L45)),'CM choke'!F49)=0, F44, IF(CMdata=1,DEGREES(IMARGUMENT(L45)),'CM choke'!F49)) -> 73.25975736 | G45: 717.65 | H45: 682.62 | I45: 120.1 | J45: 399.295 | K45: =IF(CMdata=1, IF(Lcm1_core=1, IMDIV(1,IMSUM(IMDIV(1,IMPRODUCT(B45,'Design the AEF circuit'!$G$19*0.001)),IMDIV(1,'Design the AEF circuit'!$G$20*1000),IMPRODUCT(B45,'Design the AEF circuit'!$G$21*0.000000000001))), O45),COMPLEX(G45,H45,"j")) -> 717.65+682.62j | L45: =IF(CMdata=1, IF(Lcm2_core=1, IMDIV(1, IMSUM(IMDIV(1,IMPRODUCT(B45,'Design the AEF circuit'!$H$19*0.001)), IMDIV(1,'Design the AEF circuit'!$H$20*1000), IMPRODUCT(B45,'Design the AEF circuit'!$H$21*0.000000000001))), Q45), COMPLEX(I45,J45,"j")) -> 120.1+399.295j | N45: =IMSUM(IMDIV(1,IMSUM(IMDIV(1,IMPRODUCT(B45,'Design the AEF circuit'!$G$19*0.001)),IMDIV(1,'Design the AEF circuit'!$G$20*1000))), IMDIV(1,IMSUM(IMDIV(1,IMPRODUCT(B45,'Design the AEF circuit'!$G$22*0.001)),IMDIV(1,'Design the AEF circuit'!$G$23*1000))), IMDIV(1,IMSUM(IMDIV(1,IMPRODUCT(B45,'Design the AEF circuit'!$G$24*0.001)),IMDIV(1,'Design the AEF circuit'!$G$25*1000))) ) -> 237.193421203858+192.432420101403j | O45: =IMDIV(1, IMSUM( IMDIV(1, N45), IMPRODUCT(B45,'Design the AEF circuit'!$G$21*0.000000000001))) -> 237.654907502488+192.334625806106j | P45: =IMSUM(IMDIV(1,IMSUM(IMDIV(1,IMPRODUCT(B45,'Design the AEF circuit'!$H$19*0.001)),IMDIV(1,'Design the AEF circuit'!$H$20*1000))), IMDIV(1,IMSUM(IMDIV(1,IMPRODUCT(B45,'Design the AEF circuit'!$H$22*0.001)),IMDIV(1,'Design the AEF circuit'!$H$23*1000))), IMDIV(1,IMSUM(IMDIV(1,IMPRODUCT(B45,'Design the AEF circuit'!$H$24*0.001)),IMDIV(1,'Design the AEF circuit'!$H$25*1000))) ) -> 231.42664157206+186.293375743542j | Q45: =IMDIV(1, IMSUM( IMDIV(1, P45), IMPRODUCT(B45,'Design the AEF circuit'!$H$21*0.000000000001) ) ) -> 231.862528511245+186.197536268795j
A46: ='Frequency vector'!G46 -> 139000 | B46: =COMPLEX(0,2*PI()*'Frequency vector'!G46,"j") -> 873362.757697962j | C46: =IF(IF(CMdata=1,IMABS(K46),'CM choke'!C50)=0, C45, IF(CMdata=1,IMABS(K46),'CM choke'!C50)) -> 1011.008457 | D46: =IF(IF(CMdata=1,DEGREES(IMARGUMENT(K46)),'CM choke'!D50)=0, D45, IF(CMdata=1,DEGREES(IMARGUMENT(K46)),'CM choke'!D50)) -> 43.017429 | E46: =IF(IF(CMdata=1,IMABS(L46),'CM choke'!E50)=0, E45, IF(CMdata=1,IMABS(L46),'CM choke'!E50)) -> 436.2230583 | F46: =IF(IF(CMdata=1,DEGREES(IMARGUMENT(L46)),'CM choke'!F50)=0, F45, IF(CMdata=1,DEGREES(IMARGUMENT(L46)),'CM choke'!F50)) -> 72.42793149 | G46: 739.195 | H46: 689.731 | I46: 131.698 | J46: 415.868 | K46: =IF(CMdata=1, IF(Lcm1_core=1, IMDIV(1,IMSUM(IMDIV(1,IMPRODUCT(B46,'Design the AEF circuit'!$G$19*0.001)),IMDIV(1,'Design the AEF circuit'!$G$20*1000),IMPRODUCT(B46,'Design the AEF circuit'!$G$21*0.000000000001))), O46),COMPLEX(G46,H46,"j")) -> 739.195+689.731j | L46: =IF(CMdata=1, IF(Lcm2_core=1, IMDIV(1, IMSUM(IMDIV(1,IMPRODUCT(B46,'Design the AEF circuit'!$H$19*0.001)), IMDIV(1,'Design the AEF circuit'!$H$20*1000), IMPRODUCT(B46,'Design the AEF circuit'!$H$21*0.000000000001))), Q46), COMPLEX(I46,J46,"j")) -> 131.698+415.868j | N46: =IMSUM(IMDIV(1,IMSUM(IMDIV(1,IMPRODUCT(B46,'Design the AEF circuit'!$G$19*0.001)),IMDIV(1,'Design the AEF circuit'!$G$20*1000))), IMDIV(1,IMSUM(IMDIV(1,IMPRODUCT(B46,'Design the AEF circuit'!$G$22*0.001)),IMDIV(1,'Design the AEF circuit'!$G$23*1000))), IMDIV(1,IMSUM(IMDIV(1,IMPRODUCT(B46,'Design the AEF circuit'!$G$24*0.001)),IMDIV(1,'Design the AEF circuit'!$G$25*1000))) ) -> 241.128423581581+193.31143908718j | O46: =IMDIV(1, IMSUM( IMDIV(1, N46), IMPRODUCT(B46,'Design the AEF circuit'!$G$21*0.000000000001))) -> 241.617299806245+193.201853002368j | P46: =IMSUM(IMDIV(1,IMSUM(IMDIV(1,IMPRODUCT(B46,'Design the AEF circuit'!$H$19*0.001)),IMDIV(1,'Design the AEF circuit'!$H$20*1000))), IMDIV(1,IMSUM(IMDIV(1,IMPRODUCT(B46,'Design the AEF circuit'!$H$22*0.001)),IMDIV(1,'Design the AEF circuit'!$H$23*1000))), IMDIV(1,IMSUM(IMDIV(1,IMPRODUCT(B46,'Design the AEF circuit'!$H$24*0.001)),IMDIV(1,'Design the AEF circuit'!$H$25*1000))) ) -> 235.135044689311+187.25910979358j | Q46: =IMDIV(1, IMSUM( IMDIV(1, P46), IMPRODUCT(B46,'Design the AEF circuit'!$H$21*0.000000000001) ) ) -> 235.596828728761+187.152466611911j
A47: ='Frequency vector'!G47 -> 144000 | B47: =COMPLEX(0,2*PI()*'Frequency vector'!G47,"j") -> 904778.68423386j | C47: =IF(IF(CMdata=1,IMABS(K47),'CM choke'!C51)=0, C46, IF(CMdata=1,IMABS(K47),'CM choke'!C51)) -> 1068.83361 | D47: =IF(IF(CMdata=1,DEGREES(IMARGUMENT(K47)),'CM choke'!D51)=0, D46, IF(CMdata=1,DEGREES(IMARGUMENT(K47)),'CM choke'!D51)) -> 42.77365291 | E47: =IF(IF(CMdata=1,IMABS(L47),'CM choke'!E51)=0, E46, IF(CMdata=1,IMABS(L47),'CM choke'!E51)) -> 453.8296342 | F47: =IF(IF(CMdata=1,DEGREES(IMARGUMENT(L47)),'CM choke'!F51)=0, F46, IF(CMdata=1,DEGREES(IMARGUMENT(L47)),'CM choke'!F51)) -> 69.25496441 | G47: 784.569 | H47: 725.849 | I47: 160.751 | J47: 424.406 | K47: =IF(CMdata=1, IF(Lcm1_core=1, IMDIV(1,IMSUM(IMDIV(1,IMPRODUCT(B47,'Design the AEF circuit'!$G$19*0.001)),IMDIV(1,'Design the AEF circuit'!$G$20*1000),IMPRODUCT(B47,'Design the AEF circuit'!$G$21*0.000000000001))), O47),COMPLEX(G47,H47,"j")) -> 784.569+725.849j | L47: =IF(CMdata=1, IF(Lcm2_core=1, IMDIV(1, IMSUM(IMDIV(1,IMPRODUCT(B47,'Design the AEF circuit'!$H$19*0.001)), IMDIV(1,'Design the AEF circuit'!$H$20*1000), IMPRODUCT(B47,'Design the AEF circuit'!$H$21*0.000000000001))), Q47), COMPLEX(I47,J47,"j")) -> 160.751+424.406j | N47: =IMSUM(IMDIV(1,IMSUM(IMDIV(1,IMPRODUCT(B47,'Design the AEF circuit'!$G$19*0.001)),IMDIV(1,'Design the AEF circuit'!$G$20*1000))), IMDIV(1,IMSUM(IMDIV(1,IMPRODUCT(B47,'Design the AEF circuit'!$G$22*0.001)),IMDIV(1,'Design the AEF circuit'!$G$23*1000))), IMDIV(1,IMSUM(IMDIV(1,IMPRODUCT(B47,'Design the AEF circuit'!$G$24*0.001)),IMDIV(1,'Design the AEF circuit'!$G$25*1000))) ) -> 244.894241763969+194.235267306957j | O47: =IMDIV(1, IMSUM( IMDIV(1, N47), IMPRODUCT(B47,'Design the AEF circuit'!$G$21*0.000000000001))) -> 245.411077462052+194.113686571397j | P47: =IMSUM(IMDIV(1,IMSUM(IMDIV(1,IMPRODUCT(B47,'Design the AEF circuit'!$H$19*0.001)),IMDIV(1,'Design the AEF circuit'!$H$20*1000))), IMDIV(1,IMSUM(IMDIV(1,IMPRODUCT(B47,'Design the AEF circuit'!$H$22*0.001)),IMDIV(1,'Design the AEF circuit'!$H$23*1000))), IMDIV(1,IMSUM(IMDIV(1,IMPRODUCT(B47,'Design the AEF circuit'!$H$24*0.001)),IMDIV(1,'Design the AEF circuit'!$H$25*1000))) ) -> 238.689894651826+188.273094347275j | Q47: =IMDIV(1, IMSUM( IMDIV(1, P47), IMPRODUCT(B47,'Design the AEF circuit'!$H$21*0.000000000001) ) ) -> 239.17815823951+188.155483282587j
A48: ='Frequency vector'!G48 -> 149000 | B48: =COMPLEX(0,2*PI()*'Frequency vector'!G48,"j") -> 936194.610769758j | C48: =IF(IF(CMdata=1,IMABS(K48),'CM choke'!C52)=0, C47, IF(CMdata=1,IMABS(K48),'CM choke'!C52)) -> 1088.123706 | D48: =IF(IF(CMdata=1,DEGREES(IMARGUMENT(K48)),'CM choke'!D52)=0, D47, IF(CMdata=1,DEGREES(IMARGUMENT(K48)),'CM choke'!D52)) -> 38.89008928 | E48: =IF(IF(CMdata=1,IMABS(L48),'CM choke'!E52)=0, E47, IF(CMdata=1,IMABS(L48),'CM choke'!E52)) -> 465.6417498 | F48: =IF(IF(CMdata=1,DEGREES(IMARGUMENT(L48)),'CM choke'!F52)=0, F47, IF(CMdata=1,DEGREES(IMARGUMENT(L48)),'CM choke'!F52)) -> 70.55565151 | G48: 846.943 | H48: 683.155 | I48: 155.008 | J48: 439.084 | K48: =IF(CMdata=1, IF(Lcm1_core=1, IMDIV(1,IMSUM(IMDIV(1,IMPRODUCT(B48,'Design the AEF circuit'!$G$19*0.001)),IMDIV(1,'Design the AEF circuit'!$G$20*1000),IMPRODUCT(B48,'Design the AEF circuit'!$G$21*0.000000000001))), O48),COMPLEX(G48,H48,"j")) -> 846.943+683.155j | L48: =IF(CMdata=1, IF(Lcm2_core=1, IMDIV(1, IMSUM(IMDIV(1,IMPRODUCT(B48,'Design the AEF circuit'!$H$19*0.001)), IMDIV(1,'Design the AEF circuit'!$H$20*1000), IMPRODUCT(B48,'Design the AEF circuit'!$H$21*0.000000000001))), Q48), COMPLEX(I48,J48,"j")) -> 155.008+439.084j | N48: =IMSUM(IMDIV(1,IMSUM(IMDIV(1,IMPRODUCT(B48,'Design the AEF circuit'!$G$19*0.001)),IMDIV(1,'Design the AEF circuit'!$G$20*1000))), IMDIV(1,IMSUM(IMDIV(1,IMPRODUCT(B48,'Design the AEF circuit'!$G$22*0.001)),IMDIV(1,'Design the AEF circuit'!$G$23*1000))), IMDIV(1,IMSUM(IMDIV(1,IMPRODUCT(B48,'Design the AEF circuit'!$G$24*0.001)),IMDIV(1,'Design the AEF circuit'!$G$25*1000))) ) -> 248.510632172079+195.203464987586j | O48: =IMDIV(1, IMSUM( IMDIV(1, N48), IMPRODUCT(B48,'Design the AEF circuit'!$G$21*0.000000000001))) -> 249.056022592366+195.069693321673j | P48: =IMSUM(IMDIV(1,IMSUM(IMDIV(1,IMPRODUCT(B48,'Design the AEF circuit'!$H$19*0.001)),IMDIV(1,'Design the AEF circuit'!$H$20*1000))), IMDIV(1,IMSUM(IMDIV(1,IMPRODUCT(B48,'Design the AEF circuit'!$H$22*0.001)),IMDIV(1,'Design the AEF circuit'!$H$23*1000))), IMDIV(1,IMSUM(IMDIV(1,IMPRODUCT(B48,'Design the AEF circuit'!$H$24*0.001)),IMDIV(1,'Design the AEF circuit'!$H$25*1000))) ) -> 242.109799577203+189.333786512407j | Q48: =IMDIV(1, IMSUM( IMDIV(1, P48), IMPRODUCT(B48,'Design the AEF circuit'!$H$21*0.000000000001) ) ) -> 242.625149625167+189.205046543014j
A49: ='Frequency vector'!G49 -> 154000 | B49: =COMPLEX(0,2*PI()*'Frequency vector'!G49,"j") -> 967610.537305656j | C49: =IF(IF(CMdata=1,IMABS(K49),'CM choke'!C53)=0, C48, IF(CMdata=1,IMABS(K49),'CM choke'!C53)) -> 1082.264152 | D49: =IF(IF(CMdata=1,DEGREES(IMARGUMENT(K49)),'CM choke'!D53)=0, D48, IF(CMdata=1,DEGREES(IMARGUMENT(K49)),'CM choke'!D53)) -> 40.32566124 | E49: =IF(IF(CMdata=1,IMABS(L49),'CM choke'!E53)=0, E48, IF(CMdata=1,IMABS(L49),'CM choke'!E53)) -> 492.6827542 | F49: =IF(IF(CMdata=1,DEGREES(IMARGUMENT(L49)),'CM choke'!F53)=0, F48, IF(CMdata=1,DEGREES(IMARGUMENT(L49)),'CM choke'!F53)) -> 68.58657199 | G49: 825.095 | H49: 700.367 | I49: 179.876 | J49: 458.673 | K49: =IF(CMdata=1, IF(Lcm1_core=1, IMDIV(1,IMSUM(IMDIV(1,IMPRODUCT(B49,'Design the AEF circuit'!$G$19*0.001)),IMDIV(1,'Design the AEF circuit'!$G$20*1000),IMPRODUCT(B49,'Design the AEF circuit'!$G$21*0.000000000001))), O49),COMPLEX(G49,H49,"j")) -> 825.095+700.367j | L49: =IF(CMdata=1, IF(Lcm2_core=1, IMDIV(1, IMSUM(IMDIV(1,IMPRODUCT(B49,'Design the AEF circuit'!$H$19*0.001)), IMDIV(1,'Design the AEF circuit'!$H$20*1000), IMPRODUCT(B49,'Design the AEF circuit'!$H$21*0.000000000001))), Q49), COMPLEX(I49,J49,"j")) -> 179.876+458.673j | N49: =IMSUM(IMDIV(1,IMSUM(IMDIV(1,IMPRODUCT(B49,'Design the AEF circuit'!$G$19*0.001)),IMDIV(1,'Design the AEF circuit'!$G$20*1000))), IMDIV(1,IMSUM(IMDIV(1,IMPRODUCT(B49,'Design the AEF circuit'!$G$22*0.001)),IMDIV(1,'Design the AEF circuit'!$G$23*1000))), IMDIV(1,IMSUM(IMDIV(1,IMPRODUCT(B49,'Design the AEF circuit'!$G$24*0.001)),IMDIV(1,'Design the AEF circuit'!$G$25*1000))) ) -> 251.994986468357+196.214696160033j | O49: =IMDIV(1, IMSUM( IMDIV(1, N49), IMPRODUCT(B49,'Design the AEF circuit'!$G$21*0.000000000001))) -> 252.569550586943+196.068540147479j | P49: =IMSUM(IMDIV(1,IMSUM(IMDIV(1,IMPRODUCT(B49,'Design the AEF circuit'!$H$19*0.001)),IMDIV(1,'Design the AEF circuit'!$H$20*1000))), IMDIV(1,IMSUM(IMDIV(1,IMPRODUCT(B49,'Design the AEF circuit'!$H$22*0.001)),IMDIV(1,'Design the AEF circuit'!$H$23*1000))), IMDIV(1,IMSUM(IMDIV(1,IMPRODUCT(B49,'Design the AEF circuit'!$H$24*0.001)),IMDIV(1,'Design the AEF circuit'!$H$25*1000))) ) -> 245.411064042759+190.438947765247j | Q49: =IMDIV(1, IMSUM( IMDIV(1, P49), IMPRODUCT(B49,'Design the AEF circuit'!$H$21*0.000000000001) ) ) -> 245.954129877231+190.298917844446j
A50: ='Frequency vector'!G50 -> 159000 | B50: =COMPLEX(0,2*PI()*'Frequency vector'!G50,"j") -> 999026.463841554j | C50: =IF(IF(CMdata=1,IMABS(K50),'CM choke'!C54)=0, C49, IF(CMdata=1,IMABS(K50),'CM choke'!C54)) -> 1111.321042 | D50: =IF(IF(CMdata=1,DEGREES(IMARGUMENT(K50)),'CM choke'!D54)=0, D49, IF(CMdata=1,DEGREES(IMARGUMENT(K50)),'CM choke'!D54)) -> 40.35619289 | E50: =IF(IF(CMdata=1,IMABS(L50),'CM choke'!E54)=0, E49, IF(CMdata=1,IMABS(L50),'CM choke'!E54)) -> 532.7395957 | F50: =IF(IF(CMdata=1,DEGREES(IMARGUMENT(L50)),'CM choke'!F54)=0, F49, IF(CMdata=1,DEGREES(IMARGUMENT(L50)),'CM choke'!F54)) -> 69.28689791 | G50: 846.864 | H50: 719.622 | I50: 188.424 | J50: 498.305 | K50: =IF(CMdata=1, IF(Lcm1_core=1, IMDIV(1,IMSUM(IMDIV(1,IMPRODUCT(B50,'Design the AEF circuit'!$G$19*0.001)),IMDIV(1,'Design the AEF circuit'!$G$20*1000),IMPRODUCT(B50,'Design the AEF circuit'!$G$21*0.000000000001))), O50),COMPLEX(G50,H50,"j")) -> 846.864+719.622j | L50: =IF(CMdata=1, IF(Lcm2_core=1, IMDIV(1, IMSUM(IMDIV(1,IMPRODUCT(B50,'Design the AEF circuit'!$H$19*0.001)), IMDIV(1,'Design the AEF circuit'!$H$20*1000), IMPRODUCT(B50,'Design the AEF circuit'!$H$21*0.000000000001))), Q50), COMPLEX(I50,J50,"j")) -> 188.424+498.305j | N50: =IMSUM(IMDIV(1,IMSUM(IMDIV(1,IMPRODUCT(B50,'Design the AEF circuit'!$G$19*0.001)),IMDIV(1,'Design the AEF circuit'!$G$20*1000))), IMDIV(1,IMSUM(IMDIV(1,IMPRODUCT(B50,'Design the AEF circuit'!$G$22*0.001)),IMDIV(1,'Design the AEF circuit'!$G$23*1000))), IMDIV(1,IMSUM(IMDIV(1,IMPRODUCT(B50,'Design the AEF circuit'!$G$24*0.001)),IMDIV(1,'Design the AEF circuit'!$G$25*1000))) ) -> 255.362609990406+197.266979354248j | O50: =IMDIV(1, IMSUM( IMDIV(1, N50), IMPRODUCT(B50,'Design the AEF circuit'!$G$21*0.000000000001))) -> 255.966988496397+197.108245337601j | P50: =IMSUM(IMDIV(1,IMSUM(IMDIV(1,IMPRODUCT(B50,'Design the AEF circuit'!$H$19*0.001)),IMDIV(1,'Design the AEF circuit'!$H$20*1000))), IMDIV(1,IMSUM(IMDIV(1,IMPRODUCT(B50,'Design the AEF circuit'!$H$22*0.001)),IMDIV(1,'Design the AEF circuit'!$H$23*1000))), IMDIV(1,IMSUM(IMDIV(1,IMPRODUCT(B50,'Design the AEF circuit'!$H$24*0.001)),IMDIV(1,'Design the AEF circuit'!$H$25*1000))) ) -> 248.607973411487+191.585861263646j | Q50: =IMDIV(1, IMSUM( IMDIV(1, P50), IMPRODUCT(B50,'Design the AEF circuit'!$H$21*0.000000000001) ) ) -> 249.179404741571+191.434377681871j
A51: ='Frequency vector'!G51 -> 164000 | B51: =COMPLEX(0,2*PI()*'Frequency vector'!G51,"j") -> 1030442.39037745j | C51: =IF(IF(CMdata=1,IMABS(K51),'CM choke'!C55)=0, C50, IF(CMdata=1,IMABS(K51),'CM choke'!C55)) -> 1114.601269 | D51: =IF(IF(CMdata=1,DEGREES(IMARGUMENT(K51)),'CM choke'!D55)=0, D50, IF(CMdata=1,DEGREES(IMARGUMENT(K51)),'CM choke'!D55)) -> 39.12218999 | E51: =IF(IF(CMdata=1,IMABS(L51),'CM choke'!E55)=0, E50, IF(CMdata=1,IMABS(L51),'CM choke'!E55)) -> 532.7821366 | F51: =IF(IF(CMdata=1,DEGREES(IMARGUMENT(L51)),'CM choke'!F55)=0, F50, IF(CMdata=1,DEGREES(IMARGUMENT(L51)),'CM choke'!F55)) -> 66.47002095 | G51: 864.71 | H51: 703.287 | I51: 212.702 | J51: 488.482 | K51: =IF(CMdata=1, IF(Lcm1_core=1, IMDIV(1,IMSUM(IMDIV(1,IMPRODUCT(B51,'Design the AEF circuit'!$G$19*0.001)),IMDIV(1,'Design the AEF circuit'!$G$20*1000),IMPRODUCT(B51,'Design the AEF circuit'!$G$21*0.000000000001))), O51),COMPLEX(G51,H51,"j")) -> 864.71+703.287j | L51: =IF(CMdata=1, IF(Lcm2_core=1, IMDIV(1, IMSUM(IMDIV(1,IMPRODUCT(B51,'Design the AEF circuit'!$H$19*0.001)), IMDIV(1,'Design the AEF circuit'!$H$20*1000), IMPRODUCT(B51,'Design the AEF circuit'!$H$21*0.000000000001))), Q51), COMPLEX(I51,J51,"j")) -> 212.702+488.482j | N51: =IMSUM(IMDIV(1,IMSUM(IMDIV(1,IMPRODUCT(B51,'Design the AEF circuit'!$G$19*0.001)),IMDIV(1,'Design the AEF circuit'!$G$20*1000))), IMDIV(1,IMSUM(IMDIV(1,IMPRODUCT(B51,'Design the AEF circuit'!$G$22*0.001)),IMDIV(1,'Design the AEF circuit'!$G$23*1000))), IMDIV(1,IMSUM(IMDIV(1,IMPRODUCT(B51,'Design the AEF circuit'!$G$24*0.001)),IMDIV(1,'Design the AEF circuit'!$G$25*1000))) ) -> 258.626970031873+198.357881486297j | O51: =IMDIV(1, IMSUM( IMDIV(1, N51), IMPRODUCT(B51,'Design the AEF circuit'!$G$21*0.000000000001))) -> 259.261823324727+198.186372981029j | P51: =IMSUM(IMDIV(1,IMSUM(IMDIV(1,IMPRODUCT(B51,'Design the AEF circuit'!$H$19*0.001)),IMDIV(1,'Design the AEF circuit'!$H$20*1000))), IMDIV(1,IMSUM(IMDIV(1,IMPRODUCT(B51,'Design the AEF circuit'!$H$22*0.001)),IMDIV(1,'Design the AEF circuit'!$H$23*1000))), IMDIV(1,IMSUM(IMDIV(1,IMPRODUCT(B51,'Design the AEF circuit'!$H$24*0.001)),IMDIV(1,'Design the AEF circuit'!$H$25*1000))) ) -> 251.713044322338+192.77149760006j | Q51: =IMDIV(1, IMSUM( IMDIV(1, P51), IMPRODUCT(B51,'Design the AEF circuit'!$H$21*0.000000000001) ) ) -> 252.313509262272+192.608391800116j
A52: ='Frequency vector'!G52 -> 169000 | B52: =COMPLEX(0,2*PI()*'Frequency vector'!G52,"j") -> 1061858.31691335j | C52: =IF(IF(CMdata=1,IMABS(K52),'CM choke'!C56)=0, C51, IF(CMdata=1,IMABS(K52),'CM choke'!C56)) -> 1128.526271 | D52: =IF(IF(CMdata=1,DEGREES(IMARGUMENT(K52)),'CM choke'!D56)=0, D51, IF(CMdata=1,DEGREES(IMARGUMENT(K52)),'CM choke'!D56)) -> 37.96591559 | E52: =IF(IF(CMdata=1,IMABS(L52),'CM choke'!E56)=0, E51, IF(CMdata=1,IMABS(L52),'CM choke'!E56)) -> 547.5313948 | F52: =IF(IF(CMdata=1,DEGREES(IMARGUMENT(L52)),'CM choke'!F56)=0, F51, IF(CMdata=1,DEGREES(IMARGUMENT(L52)),'CM choke'!F56)) -> 65.11837977 | G52: 889.704 | H52: 694.261 | I52: 230.371 | J52: 496.709 | K52: =IF(CMdata=1, IF(Lcm1_core=1, IMDIV(1,IMSUM(IMDIV(1,IMPRODUCT(B52,'Design the AEF circuit'!$G$19*0.001)),IMDIV(1,'Design the AEF circuit'!$G$20*1000),IMPRODUCT(B52,'Design the AEF circuit'!$G$21*0.000000000001))), O52),COMPLEX(G52,H52,"j")) -> 889.704+694.261j | L52: =IF(CMdata=1, IF(Lcm2_core=1, IMDIV(1, IMSUM(IMDIV(1,IMPRODUCT(B52,'Design the AEF circuit'!$H$19*0.001)), IMDIV(1,'Design the AEF circuit'!$H$20*1000), IMPRODUCT(B52,'Design the AEF circuit'!$H$21*0.000000000001))), Q52), COMPLEX(I52,J52,"j")) -> 230.371+496.709j | N52: =IMSUM(IMDIV(1,IMSUM(IMDIV(1,IMPRODUCT(B52,'Design the AEF circuit'!$G$19*0.001)),IMDIV(1,'Design the AEF circuit'!$G$20*1000))), IMDIV(1,IMSUM(IMDIV(1,IMPRODUCT(B52,'Design the AEF circuit'!$G$22*0.001)),IMDIV(1,'Design the AEF circuit'!$G$23*1000))), IMDIV(1,IMSUM(IMDIV(1,IMPRODUCT(B52,'Design the AEF circuit'!$G$24*0.001)),IMDIV(1,'Design the AEF circuit'!$G$25*1000))) ) -> 261.799915864049+199.48466734945j | O52: =IMDIV(1, IMSUM( IMDIV(1, N52), IMPRODUCT(B52,'Design the AEF circuit'!$G$21*0.000000000001))) -> 262.465922096657+199.300182895351j | P52: =IMSUM(IMDIV(1,IMSUM(IMDIV(1,IMPRODUCT(B52,'Design the AEF circuit'!$H$19*0.001)),IMDIV(1,'Design the AEF circuit'!$H$20*1000))), IMDIV(1,IMSUM(IMDIV(1,IMPRODUCT(B52,'Design the AEF circuit'!$H$22*0.001)),IMDIV(1,'Design the AEF circuit'!$H$23*1000))), IMDIV(1,IMSUM(IMDIV(1,IMPRODUCT(B52,'Design the AEF circuit'!$H$24*0.001)),IMDIV(1,'Design the AEF circuit'!$H$25*1000))) ) -> 254.737244409657+193.99264068777j | Q52: =IMDIV(1, IMSUM( IMDIV(1, P52), IMPRODUCT(B52,'Design the AEF circuit'!$H$21*0.000000000001) ) ) -> 255.367427575837+193.817737458931j
A53: ='Frequency vector'!G53 -> 174000 | B53: =COMPLEX(0,2*PI()*'Frequency vector'!G53,"j") -> 1093274.24344925j | C53: =IF(IF(CMdata=1,IMABS(K53),'CM choke'!C57)=0, C52, IF(CMdata=1,IMABS(K53),'CM choke'!C57)) -> 1133.757684 | D53: =IF(IF(CMdata=1,DEGREES(IMARGUMENT(K53)),'CM choke'!D57)=0, D52, IF(CMdata=1,DEGREES(IMARGUMENT(K53)),'CM choke'!D57)) -> 37.40521495 | E53: =IF(IF(CMdata=1,IMABS(L53),'CM choke'!E57)=0, E52, IF(CMdata=1,IMABS(L53),'CM choke'!E57)) -> 567.4941124 | F53: =IF(IF(CMdata=1,DEGREES(IMARGUMENT(L53)),'CM choke'!F57)=0, F52, IF(CMdata=1,DEGREES(IMARGUMENT(L53)),'CM choke'!F57)) -> 65.8212406 | G53: 900.611 | H53: 688.699 | I53: 232.437 | J53: 517.709 | K53: =IF(CMdata=1, IF(Lcm1_core=1, IMDIV(1,IMSUM(IMDIV(1,IMPRODUCT(B53,'Design the AEF circuit'!$G$19*0.001)),IMDIV(1,'Design the AEF circuit'!$G$20*1000),IMPRODUCT(B53,'Design the AEF circuit'!$G$21*0.000000000001))), O53),COMPLEX(G53,H53,"j")) -> 900.611+688.699j | L53: =IF(CMdata=1, IF(Lcm2_core=1, IMDIV(1, IMSUM(IMDIV(1,IMPRODUCT(B53,'Design the AEF circuit'!$H$19*0.001)), IMDIV(1,'Design the AEF circuit'!$H$20*1000), IMPRODUCT(B53,'Design the AEF circuit'!$H$21*0.000000000001))), Q53), COMPLEX(I53,J53,"j")) -> 232.437+517.709j | N53: =IMSUM(IMDIV(1,IMSUM(IMDIV(1,IMPRODUCT(B53,'Design the AEF circuit'!$G$19*0.001)),IMDIV(1,'Design the AEF circuit'!$G$20*1000))), IMDIV(1,IMSUM(IMDIV(1,IMPRODUCT(B53,'Design the AEF circuit'!$G$22*0.001)),IMDIV(1,'Design the AEF circuit'!$G$23*1000))), IMDIV(1,IMSUM(IMDIV(1,IMPRODUCT(B53,'Design the AEF circuit'!$G$24*0.001)),IMDIV(1,'Design the AEF circuit'!$G$25*1000))) ) -> 264.891872869528+200.644414430879j | O53: =IMDIV(1, IMSUM( IMDIV(1, N53), IMPRODUCT(B53,'Design the AEF circuit'!$G$21*0.000000000001))) -> 265.589726058438+200.446745812099j | P53: =IMSUM(IMDIV(1,IMSUM(IMDIV(1,IMPRODUCT(B53,'Design the AEF circuit'!$H$19*0.001)),IMDIV(1,'Design the AEF circuit'!$H$20*1000))), IMDIV(1,IMSUM(IMDIV(1,IMPRODUCT(B53,'Design the AEF circuit'!$H$22*0.001)),IMDIV(1,'Design the AEF circuit'!$H$23*1000))), IMDIV(1,IMSUM(IMDIV(1,IMPRODUCT(B53,'Design the AEF circuit'!$H$24*0.001)),IMDIV(1,'Design the AEF circuit'!$H$25*1000))) ) -> 257.690184472457+195.245982837323j | Q53: =IMDIV(1, IMSUM( IMDIV(1, P53), IMPRODUCT(B53,'Design the AEF circuit'!$H$21*0.000000000001) ) ) -> 258.350785166859+195.059098826599j
A54: ='Frequency vector'!G54 -> 179000 | B54: =COMPLEX(0,2*PI()*'Frequency vector'!G54,"j") -> 1124690.16998515j | C54: =IF(IF(CMdata=1,IMABS(K54),'CM choke'!C58)=0, C53, IF(CMdata=1,IMABS(K54),'CM choke'!C58)) -> 1143.652505 | D54: =IF(IF(CMdata=1,DEGREES(IMARGUMENT(K54)),'CM choke'!D58)=0, D53, IF(CMdata=1,DEGREES(IMARGUMENT(K54)),'CM choke'!D58)) -> 36.61740819 | E54: =IF(IF(CMdata=1,IMABS(L54),'CM choke'!E58)=0, E53, IF(CMdata=1,IMABS(L54),'CM choke'!E58)) -> 584.366937 | F54: =IF(IF(CMdata=1,DEGREES(IMARGUMENT(L54)),'CM choke'!F58)=0, F53, IF(CMdata=1,DEGREES(IMARGUMENT(L54)),'CM choke'!F58)) -> 62.88043554 | G54: 917.937 | H54: 682.153 | I54: 266.383 | J54: 520.12 | K54: =IF(CMdata=1, IF(Lcm1_core=1, IMDIV(1,IMSUM(IMDIV(1,IMPRODUCT(B54,'Design the AEF circuit'!$G$19*0.001)),IMDIV(1,'Design the AEF circuit'!$G$20*1000),IMPRODUCT(B54,'Design the AEF circuit'!$G$21*0.000000000001))), O54),COMPLEX(G54,H54,"j")) -> 917.937+682.153j | L54: =IF(CMdata=1, IF(Lcm2_core=1, IMDIV(1, IMSUM(IMDIV(1,IMPRODUCT(B54,'Design the AEF circuit'!$H$19*0.001)), IMDIV(1,'Design the AEF circuit'!$H$20*1000), IMPRODUCT(B54,'Design the AEF circuit'!$H$21*0.000000000001))), Q54), COMPLEX(I54,J54,"j")) -> 266.383+520.12j | N54: =IMSUM(IMDIV(1,IMSUM(IMDIV(1,IMPRODUCT(B54,'Design the AEF circuit'!$G$19*0.001)),IMDIV(1,'Design the AEF circuit'!$G$20*1000))), IMDIV(1,IMSUM(IMDIV(1,IMPRODUCT(B54,'Design the AEF circuit'!$G$22*0.001)),IMDIV(1,'Design the AEF circuit'!$G$23*1000))), IMDIV(1,IMSUM(IMDIV(1,IMPRODUCT(B54,'Design the AEF circuit'!$G$24*0.001)),IMDIV(1,'Design the AEF circuit'!$G$25*1000))) ) -> 267.912013327492+201.834100659679j | O54: =IMDIV(1, IMSUM( IMDIV(1, N54), IMPRODUCT(B54,'Design the AEF circuit'!$G$21*0.000000000001))) -> 268.642421542794+201.623031435707j | P54: =IMSUM(IMDIV(1,IMSUM(IMDIV(1,IMPRODUCT(B54,'Design the AEF circuit'!$H$19*0.001)),IMDIV(1,'Design the AEF circuit'!$H$20*1000))), IMDIV(1,IMSUM(IMDIV(1,IMPRODUCT(B54,'Design the AEF circuit'!$H$22*0.001)),IMDIV(1,'Design the AEF circuit'!$H$23*1000))), IMDIV(1,IMSUM(IMDIV(1,IMPRODUCT(B54,'Design the AEF circuit'!$H$24*0.001)),IMDIV(1,'Design the AEF circuit'!$H$25*1000))) ) -> 260.580286243345+196.528196034696j | Q54: =IMDIV(1, IMSUM( IMDIV(1, P54), IMPRODUCT(B54,'Design the AEF circuit'!$H$21*0.000000000001) ) ) -> 261.272016728552+196.329138524112j
A55: ='Frequency vector'!G55 -> 184000 | B55: =COMPLEX(0,2*PI()*'Frequency vector'!G55,"j") -> 1156106.09652104j | C55: =IF(IF(CMdata=1,IMABS(K55),'CM choke'!C59)=0, C54, IF(CMdata=1,IMABS(K55),'CM choke'!C59)) -> 1180.676606 | D55: =IF(IF(CMdata=1,DEGREES(IMARGUMENT(K55)),'CM choke'!D59)=0, D54, IF(CMdata=1,DEGREES(IMARGUMENT(K55)),'CM choke'!D59)) -> 36.59282156 | E55: =IF(IF(CMdata=1,IMABS(L55),'CM choke'!E59)=0, E54, IF(CMdata=1,IMABS(L55),'CM choke'!E59)) -> 604.4647794 | F55: =IF(IF(CMdata=1,DEGREES(IMARGUMENT(L55)),'CM choke'!F59)=0, F54, IF(CMdata=1,DEGREES(IMARGUMENT(L55)),'CM choke'!F59)) -> 61.71868989 | G55: 947.956 | H55: 703.83 | I55: 286.396 | J55: 532.311 | K55: =IF(CMdata=1, IF(Lcm1_core=1, IMDIV(1,IMSUM(IMDIV(1,IMPRODUCT(B55,'Design the AEF circuit'!$G$19*0.001)),IMDIV(1,'Design the AEF circuit'!$G$20*1000),IMPRODUCT(B55,'Design the AEF circuit'!$G$21*0.000000000001))), O55),COMPLEX(G55,H55,"j")) -> 947.956+703.83j | L55: =IF(CMdata=1, IF(Lcm2_core=1, IMDIV(1, IMSUM(IMDIV(1,IMPRODUCT(B55,'Design the AEF circuit'!$H$19*0.001)), IMDIV(1,'Design the AEF circuit'!$H$20*1000), IMPRODUCT(B55,'Design the AEF circuit'!$H$21*0.000000000001))), Q55), COMPLEX(I55,J55,"j")) -> 286.396+532.311j | N55: =IMSUM(IMDIV(1,IMSUM(IMDIV(1,IMPRODUCT(B55,'Design the AEF circuit'!$G$19*0.001)),IMDIV(1,'Design the AEF circuit'!$G$20*1000))), IMDIV(1,IMSUM(IMDIV(1,IMPRODUCT(B55,'Design the AEF circuit'!$G$22*0.001)),IMDIV(1,'Design the AEF circuit'!$G$23*1000))), IMDIV(1,IMSUM(IMDIV(1,IMPRODUCT(B55,'Design the AEF circuit'!$G$24*0.001)),IMDIV(1,'Design the AEF circuit'!$G$25*1000))) ) -> 270.868406370438+203.050671033097j | O55: =IMDIV(1, IMSUM( IMDIV(1, N55), IMPRODUCT(B55,'Design the AEF circuit'!$G$21*0.000000000001))) -> 271.632090011624+202.82597533248j | P55: =IMSUM(IMDIV(1,IMSUM(IMDIV(1,IMPRODUCT(B55,'Design the AEF circuit'!$H$19*0.001)),IMDIV(1,'Design the AEF circuit'!$H$20*1000))), IMDIV(1,IMSUM(IMDIV(1,IMPRODUCT(B55,'Design the AEF circuit'!$H$22*0.001)),IMDIV(1,'Design the AEF circuit'!$H$23*1000))), IMDIV(1,IMSUM(IMDIV(1,IMPRODUCT(B55,'Design the AEF circuit'!$H$24*0.001)),IMDIV(1,'Design the AEF circuit'!$H$25*1000))) ) -> 263.414928710847+197.835984848866j | Q55: =IMDIV(1, IMSUM( IMDIV(1, P55), IMPRODUCT(B55,'Design the AEF circuit'!$H$21*0.000000000001) ) ) -> 264.138512577583+197.624550756529j
A56: ='Frequency vector'!G56 -> 189000 | B56: =COMPLEX(0,2*PI()*'Frequency vector'!G56,"j") -> 1187522.02305694j | C56: =IF(IF(CMdata=1,IMABS(K56),'CM choke'!C60)=0, C55, IF(CMdata=1,IMABS(K56),'CM choke'!C60)) -> 1205.449706 | D56: =IF(IF(CMdata=1,DEGREES(IMARGUMENT(K56)),'CM choke'!D60)=0, D55, IF(CMdata=1,DEGREES(IMARGUMENT(K56)),'CM choke'!D60)) -> 35.59649487 | E56: =IF(IF(CMdata=1,IMABS(L56),'CM choke'!E60)=0, E55, IF(CMdata=1,IMABS(L56),'CM choke'!E60)) -> 623.0519026 | F56: =IF(IF(CMdata=1,DEGREES(IMARGUMENT(L56)),'CM choke'!F60)=0, F55, IF(CMdata=1,DEGREES(IMARGUMENT(L56)),'CM choke'!F60)) -> 60.24890231 | G56: 980.195 | H56: 701.66 | I56: 309.179 | J56: 540.927 | K56: =IF(CMdata=1, IF(Lcm1_core=1, IMDIV(1,IMSUM(IMDIV(1,IMPRODUCT(B56,'Design the AEF circuit'!$G$19*0.001)),IMDIV(1,'Design the AEF circuit'!$G$20*1000),IMPRODUCT(B56,'Design the AEF circuit'!$G$21*0.000000000001))), O56),COMPLEX(G56,H56,"j")) -> 980.195+701.66j | L56: =IF(CMdata=1, IF(Lcm2_core=1, IMDIV(1, IMSUM(IMDIV(1,IMPRODUCT(B56,'Design the AEF circuit'!$H$19*0.001)), IMDIV(1,'Design the AEF circuit'!$H$20*1000), IMPRODUCT(B56,'Design the AEF circuit'!$H$21*0.000000000001))), Q56), COMPLEX(I56,J56,"j")) -> 309.179+540.927j | N56: =IMSUM(IMDIV(1,IMSUM(IMDIV(1,IMPRODUCT(B56,'Design the AEF circuit'!$G$19*0.001)),IMDIV(1,'Design the AEF circuit'!$G$20*1000))), IMDIV(1,IMSUM(IMDIV(1,IMPRODUCT(B56,'Design the AEF circuit'!$G$22*0.001)),IMDIV(1,'Design the AEF circuit'!$G$23*1000))), IMDIV(1,IMSUM(IMDIV(1,IMPRODUCT(B56,'Design the AEF circuit'!$G$24*0.001)),IMDIV(1,'Design the AEF circuit'!$G$25*1000))) ) -> 273.768149504269+204.291087770157j | O56: =IMDIV(1, IMSUM( IMDIV(1, N56), IMPRODUCT(B56,'Design the AEF circuit'!$G$21*0.000000000001))) -> 274.565839664213+204.052529306741j | P56: =IMSUM(IMDIV(1,IMSUM(IMDIV(1,IMPRODUCT(B56,'Design the AEF circuit'!$H$19*0.001)),IMDIV(1,'Design the AEF circuit'!$H$20*1000))), IMDIV(1,IMSUM(IMDIV(1,IMPRODUCT(B56,'Design the AEF circuit'!$H$22*0.001)),IMDIV(1,'Design the AEF circuit'!$H$23*1000))), IMDIV(1,IMSUM(IMDIV(1,IMPRODUCT(B56,'Design the AEF circuit'!$H$24*0.001)),IMDIV(1,'Design the AEF circuit'!$H$25*1000))) ) -> 266.20057569173+199.166125171289j | Q56: =IMDIV(1, IMSUM( IMDIV(1, P56), IMPRODUCT(B56,'Design the AEF circuit'!$H$21*0.000000000001) ) ) -> 266.956746317064+198.942100241409j
A57: ='Frequency vector'!G57 -> 194000 | B57: =COMPLEX(0,2*PI()*'Frequency vector'!G57,"j") -> 1218937.94959284j | C57: =IF(IF(CMdata=1,IMABS(K57),'CM choke'!C61)=0, C56, IF(CMdata=1,IMABS(K57),'CM choke'!C61)) -> 1210.171507 | D57: =IF(IF(CMdata=1,DEGREES(IMARGUMENT(K57)),'CM choke'!D61)=0, D56, IF(CMdata=1,DEGREES(IMARGUMENT(K57)),'CM choke'!D61)) -> 34.59100923 | E57: =IF(IF(CMdata=1,IMABS(L57),'CM choke'!E61)=0, E56, IF(CMdata=1,IMABS(L57),'CM choke'!E61)) -> 639.6859824 | F57: =IF(IF(CMdata=1,DEGREES(IMARGUMENT(L57)),'CM choke'!F61)=0, F56, IF(CMdata=1,DEGREES(IMARGUMENT(L57)),'CM choke'!F61)) -> 58.99045265 | G57: 996.244 | H57: 687.032 | I57: 329.554 | J57: 548.263 | K57: =IF(CMdata=1, IF(Lcm1_core=1, IMDIV(1,IMSUM(IMDIV(1,IMPRODUCT(B57,'Design the AEF circuit'!$G$19*0.001)),IMDIV(1,'Design the AEF circuit'!$G$20*1000),IMPRODUCT(B57,'Design the AEF circuit'!$G$21*0.000000000001))), O57),COMPLEX(G57,H57,"j")) -> 996.244+687.032j | L57: =IF(CMdata=1, IF(Lcm2_core=1, IMDIV(1, IMSUM(IMDIV(1,IMPRODUCT(B57,'Design the AEF circuit'!$H$19*0.001)), IMDIV(1,'Design the AEF circuit'!$H$20*1000), IMPRODUCT(B57,'Design the AEF circuit'!$H$21*0.000000000001))), Q57), COMPLEX(I57,J57,"j")) -> 329.554+548.263j | N57: =IMSUM(IMDIV(1,IMSUM(IMDIV(1,IMPRODUCT(B57,'Design the AEF circuit'!$G$19*0.001)),IMDIV(1,'Design the AEF circuit'!$G$20*1000))), IMDIV(1,IMSUM(IMDIV(1,IMPRODUCT(B57,'Design the AEF circuit'!$G$22*0.001)),IMDIV(1,'Design the AEF circuit'!$G$23*1000))), IMDIV(1,IMSUM(IMDIV(1,IMPRODUCT(B57,'Design the AEF circuit'!$G$24*0.001)),IMDIV(1,'Design the AEF circuit'!$G$25*1000))) ) -> 276.617483899032+205.552367627981j | O57: =IMDIV(1, IMSUM( IMDIV(1, N57), IMPRODUCT(B57,'Design the AEF circuit'!$G$21*0.000000000001))) -> 277.449920815451+205.299698906232j | P57: =IMSUM(IMDIV(1,IMSUM(IMDIV(1,IMPRODUCT(B57,'Design the AEF circuit'!$H$19*0.001)),IMDIV(1,'Design the AEF circuit'!$H$20*1000))), IMDIV(1,IMSUM(IMDIV(1,IMPRODUCT(B57,'Design the AEF circuit'!$H$22*0.001)),IMDIV(1,'Design the AEF circuit'!$H$23*1000))), IMDIV(1,IMSUM(IMDIV(1,IMPRODUCT(B57,'Design the AEF circuit'!$H$24*0.001)),IMDIV(1,'Design the AEF circuit'!$H$25*1000))) ) -> 268.942887071023+200.515492042567j | Q57: =IMDIV(1, IMSUM( IMDIV(1, P57), IMPRODUCT(B57,'Design the AEF circuit'!$H$21*0.000000000001) ) ) -> 269.732386163795+200.278650195742j
A58: ='Frequency vector'!G58 -> 199000 | B58: =COMPLEX(0,2*PI()*'Frequency vector'!G58,"j") -> 1250353.87612874j | C58: =IF(IF(CMdata=1,IMABS(K58),'CM choke'!C62)=0, C57, IF(CMdata=1,IMABS(K58),'CM choke'!C62)) -> 1219.440703 | D58: =IF(IF(CMdata=1,DEGREES(IMARGUMENT(K58)),'CM choke'!D62)=0, D57, IF(CMdata=1,DEGREES(IMARGUMENT(K58)),'CM choke'!D62)) -> 33.99917326 | E58: =IF(IF(CMdata=1,IMABS(L58),'CM choke'!E62)=0, E57, IF(CMdata=1,IMABS(L58),'CM choke'!E62)) -> 655.3835673 | F58: =IF(IF(CMdata=1,DEGREES(IMARGUMENT(L58)),'CM choke'!F62)=0, F57, IF(CMdata=1,DEGREES(IMARGUMENT(L58)),'CM choke'!F62)) -> 57.54283469 | G58: 1010.972 | H58: 681.888 | I58: 351.724 | J58: 553.008 | K58: =IF(CMdata=1, IF(Lcm1_core=1, IMDIV(1,IMSUM(IMDIV(1,IMPRODUCT(B58,'Design the AEF circuit'!$G$19*0.001)),IMDIV(1,'Design the AEF circuit'!$G$20*1000),IMPRODUCT(B58,'Design the AEF circuit'!$G$21*0.000000000001))), O58),COMPLEX(G58,H58,"j")) -> 1010.972+681.888j | L58: =IF(CMdata=1, IF(Lcm2_core=1, IMDIV(1, IMSUM(IMDIV(1,IMPRODUCT(B58,'Design the AEF circuit'!$H$19*0.001)), IMDIV(1,'Design the AEF circuit'!$H$20*1000), IMPRODUCT(B58,'Design the AEF circuit'!$H$21*0.000000000001))), Q58), COMPLEX(I58,J58,"j")) -> 351.724+553.008j | N58: =IMSUM(IMDIV(1,IMSUM(IMDIV(1,IMPRODUCT(B58,'Design the AEF circuit'!$G$19*0.001)),IMDIV(1,'Design the AEF circuit'!$G$20*1000))), IMDIV(1,IMSUM(IMDIV(1,IMPRODUCT(B58,'Design the AEF circuit'!$G$22*0.001)),IMDIV(1,'Design the AEF circuit'!$G$23*1000))), IMDIV(1,IMSUM(IMDIV(1,IMPRODUCT(B58,'Design the AEF circuit'!$G$24*0.001)),IMDIV(1,'Design the AEF circuit'!$G$25*1000))) ) -> 279.421895448827+206.831609224184j | O58: =IMDIV(1, IMSUM( IMDIV(1, N58), IMPRODUCT(B58,'Design the AEF circuit'!$G$21*0.000000000001))) -> 280.289827040836+206.564570905759j | P58: =IMSUM(IMDIV(1,IMSUM(IMDIV(1,IMPRODUCT(B58,'Design the AEF circuit'!$H$19*0.001)),IMDIV(1,'Design the AEF circuit'!$H$20*1000))), IMDIV(1,IMSUM(IMDIV(1,IMPRODUCT(B58,'Design the AEF circuit'!$H$22*0.001)),IMDIV(1,'Design the AEF circuit'!$H$23*1000))), IMDIV(1,IMSUM(IMDIV(1,IMPRODUCT(B58,'Design the AEF circuit'!$H$24*0.001)),IMDIV(1,'Design the AEF circuit'!$H$25*1000))) ) -> 271.64681585044+201.881079088951j | Q58: =IMDIV(1, IMSUM( IMDIV(1, P58), IMPRODUCT(B58,'Design the AEF circuit'!$H$21*0.000000000001) ) ) -> 272.470392079485+201.631181909055j
A59: ='Frequency vector'!G59 -> 204000 | B59: =COMPLEX(0,2*PI()*'Frequency vector'!G59,"j") -> 1281769.80266464j | C59: =IF(IF(CMdata=1,IMABS(K59),'CM choke'!C63)=0, C58, IF(CMdata=1,IMABS(K59),'CM choke'!C63)) -> 1234.311833 | D59: =IF(IF(CMdata=1,DEGREES(IMARGUMENT(K59)),'CM choke'!D63)=0, D58, IF(CMdata=1,DEGREES(IMARGUMENT(K59)),'CM choke'!D63)) -> 33.05706039 | E59: =IF(IF(CMdata=1,IMABS(L59),'CM choke'!E63)=0, E58, IF(CMdata=1,IMABS(L59),'CM choke'!E63)) -> 675.0503384 | F59: =IF(IF(CMdata=1,DEGREES(IMARGUMENT(L59)),'CM choke'!F63)=0, F58, IF(CMdata=1,DEGREES(IMARGUMENT(L59)),'CM choke'!F63)) -> 56.54571431 | G59: 1034.511 | H59: 673.285 | I59: 372.136 | J59: 563.212 | K59: =IF(CMdata=1, IF(Lcm1_core=1, IMDIV(1,IMSUM(IMDIV(1,IMPRODUCT(B59,'Design the AEF circuit'!$G$19*0.001)),IMDIV(1,'Design the AEF circuit'!$G$20*1000),IMPRODUCT(B59,'Design the AEF circuit'!$G$21*0.000000000001))), O59),COMPLEX(G59,H59,"j")) -> 1034.511+673.285j | L59: =IF(CMdata=1, IF(Lcm2_core=1, IMDIV(1, IMSUM(IMDIV(1,IMPRODUCT(B59,'Design the AEF circuit'!$H$19*0.001)), IMDIV(1,'Design the AEF circuit'!$H$20*1000), IMPRODUCT(B59,'Design the AEF circuit'!$H$21*0.000000000001))), Q59), COMPLEX(I59,J59,"j")) -> 372.136+563.212j | N59: =IMSUM(IMDIV(1,IMSUM(IMDIV(1,IMPRODUCT(B59,'Design the AEF circuit'!$G$19*0.001)),IMDIV(1,'Design the AEF circuit'!$G$20*1000))), IMDIV(1,IMSUM(IMDIV(1,IMPRODUCT(B59,'Design the AEF circuit'!$G$22*0.001)),IMDIV(1,'Design the AEF circuit'!$G$23*1000))), IMDIV(1,IMSUM(IMDIV(1,IMPRODUCT(B59,'Design the AEF circuit'!$G$24*0.001)),IMDIV(1,'Design the AEF circuit'!$G$25*1000))) ) -> 282.186203386461+208.126012590497j | O59: =IMDIV(1, IMSUM( IMDIV(1, N59), IMPRODUCT(B59,'Design the AEF circuit'!$G$21*0.000000000001))) -> 283.090383872822+207.844332998909j | P59: =IMSUM(IMDIV(1,IMSUM(IMDIV(1,IMPRODUCT(B59,'Design the AEF circuit'!$H$19*0.001)),IMDIV(1,'Design the AEF circuit'!$H$20*1000))), IMDIV(1,IMSUM(IMDIV(1,IMPRODUCT(B59,'Design the AEF circuit'!$H$22*0.001)),IMDIV(1,'Design the AEF circuit'!$H$23*1000))), IMDIV(1,IMSUM(IMDIV(1,IMPRODUCT(B59,'Design the AEF circuit'!$H$24*0.001)),IMDIV(1,'Design the AEF circuit'!$H$25*1000))) ) -> 274.316692883772+203.260011524633j | Q59: =IMDIV(1, IMSUM( IMDIV(1, P59), IMPRODUCT(B59,'Design the AEF circuit'!$H$21*0.000000000001) ) ) -> 275.175100584184+202.996807862792j
A60: ='Frequency vector'!G60 -> 209000 | B60: =COMPLEX(0,2*PI()*'Frequency vector'!G60,"j") -> 1313185.72920053j | C60: =IF(IF(CMdata=1,IMABS(K60),'CM choke'!C64)=0, C59, IF(CMdata=1,IMABS(K60),'CM choke'!C64)) -> 1238.407466 | D60: =IF(IF(CMdata=1,DEGREES(IMARGUMENT(K60)),'CM choke'!D64)=0, D59, IF(CMdata=1,DEGREES(IMARGUMENT(K60)),'CM choke'!D64)) -> 32.73477316 | E60: =IF(IF(CMdata=1,IMABS(L60),'CM choke'!E64)=0, E59, IF(CMdata=1,IMABS(L60),'CM choke'!E64)) -> 692.4542355 | F60: =IF(IF(CMdata=1,DEGREES(IMARGUMENT(L60)),'CM choke'!F64)=0, F59, IF(CMdata=1,DEGREES(IMARGUMENT(L60)),'CM choke'!F64)) -> 54.87105245 | G60: 1041.727 | H60: 669.67 | I60: 398.451 | J60: 566.33 | K60: =IF(CMdata=1, IF(Lcm1_core=1, IMDIV(1,IMSUM(IMDIV(1,IMPRODUCT(B60,'Design the AEF circuit'!$G$19*0.001)),IMDIV(1,'Design the AEF circuit'!$G$20*1000),IMPRODUCT(B60,'Design the AEF circuit'!$G$21*0.000000000001))), O60),COMPLEX(G60,H60,"j")) -> 1041.727+669.67j | L60: =IF(CMdata=1, IF(Lcm2_core=1, IMDIV(1, IMSUM(IMDIV(1,IMPRODUCT(B60,'Design the AEF circuit'!$H$19*0.001)), IMDIV(1,'Design the AEF circuit'!$H$20*1000), IMPRODUCT(B60,'Design the AEF circuit'!$H$21*0.000000000001))), Q60), COMPLEX(I60,J60,"j")) -> 398.451+566.33j | N60: =IMSUM(IMDIV(1,IMSUM(IMDIV(1,IMPRODUCT(B60,'Design the AEF circuit'!$G$19*0.001)),IMDIV(1,'Design the AEF circuit'!$G$20*1000))), IMDIV(1,IMSUM(IMDIV(1,IMPRODUCT(B60,'Design the AEF circuit'!$G$22*0.001)),IMDIV(1,'Design the AEF circuit'!$G$23*1000))), IMDIV(1,IMSUM(IMDIV(1,IMPRODUCT(B60,'Design the AEF circuit'!$G$24*0.001)),IMDIV(1,'Design the AEF circuit'!$G$25*1000))) ) -> 284.91463803318+209.432892699541j | O60: =IMDIV(1, IMSUM( IMDIV(1, N60), IMPRODUCT(B60,'Design the AEF circuit'!$G$21*0.000000000001))) -> 285.85582662825+209.136287443638j | P60: =IMSUM(IMDIV(1,IMSUM(IMDIV(1,IMPRODUCT(B60,'Design the AEF circuit'!$H$19*0.001)),IMDIV(1,'Design the AEF circuit'!$H$20*1000))), IMDIV(1,IMSUM(IMDIV(1,IMPRODUCT(B60,'Design the AEF circuit'!$H$22*0.001)),IMDIV(1,'Design the AEF circuit'!$H$23*1000))), IMDIV(1,IMSUM(IMDIV(1,IMPRODUCT(B60,'Design the AEF circuit'!$H$24*0.001)),IMDIV(1,'Design the AEF circuit'!$H$25*1000))) ) -> 276.956300937539+204.649554236842j | Q60: =IMDIV(1, IMSUM( IMDIV(1, P60), IMPRODUCT(B60,'Design the AEF circuit'!$H$21*0.000000000001) ) ) -> 277.850298890098+204.372779916335j
A61: ='Frequency vector'!G61 -> 214000 | B61: =COMPLEX(0,2*PI()*'Frequency vector'!G61,"j") -> 1344601.65573643j | C61: =IF(IF(CMdata=1,IMABS(K61),'CM choke'!C65)=0, C60, IF(CMdata=1,IMABS(K61),'CM choke'!C65)) -> 1267.331099 | D61: =IF(IF(CMdata=1,DEGREES(IMARGUMENT(K61)),'CM choke'!D65)=0, D60, IF(CMdata=1,DEGREES(IMARGUMENT(K61)),'CM choke'!D65)) -> 32.30335096 | E61: =IF(IF(CMdata=1,IMABS(L61),'CM choke'!E65)=0, E60, IF(CMdata=1,IMABS(L61),'CM choke'!E65)) -> 713.0619445 | F61: =IF(IF(CMdata=1,DEGREES(IMARGUMENT(L61)),'CM choke'!F65)=0, F60, IF(CMdata=1,DEGREES(IMARGUMENT(L61)),'CM choke'!F65)) -> 53.84782301 | G61: 1071.187 | H61: 677.264 | I61: 420.658 | J61: 575.764 | K61: =IF(CMdata=1, IF(Lcm1_core=1, IMDIV(1,IMSUM(IMDIV(1,IMPRODUCT(B61,'Design the AEF circuit'!$G$19*0.001)),IMDIV(1,'Design the AEF circuit'!$G$20*1000),IMPRODUCT(B61,'Design the AEF circuit'!$G$21*0.000000000001))), O61),COMPLEX(G61,H61,"j")) -> 1071.187+677.264j | L61: =IF(CMdata=1, IF(Lcm2_core=1, IMDIV(1, IMSUM(IMDIV(1,IMPRODUCT(B61,'Design the AEF circuit'!$H$19*0.001)), IMDIV(1,'Design the AEF circuit'!$H$20*1000), IMPRODUCT(B61,'Design the AEF circuit'!$H$21*0.000000000001))), Q61), COMPLEX(I61,J61,"j")) -> 420.658+575.764j | N61: =IMSUM(IMDIV(1,IMSUM(IMDIV(1,IMPRODUCT(B61,'Design the AEF circuit'!$G$19*0.001)),IMDIV(1,'Design the AEF circuit'!$G$20*1000))), IMDIV(1,IMSUM(IMDIV(1,IMPRODUCT(B61,'Design the AEF circuit'!$G$22*0.001)),IMDIV(1,'Design the AEF circuit'!$G$23*1000))), IMDIV(1,IMSUM(IMDIV(1,IMPRODUCT(B61,'Design the AEF circuit'!$G$24*0.001)),IMDIV(1,'Design the AEF circuit'!$G$25*1000))) ) -> 287.610909072595+210.749688329235j | O61: =IMDIV(1, IMSUM( IMDIV(1, N61), IMPRODUCT(B61,'Design the AEF circuit'!$G$21*0.000000000001))) -> 288.589868755815+210.437860029384j | P61: =IMSUM(IMDIV(1,IMSUM(IMDIV(1,IMPRODUCT(B61,'Design the AEF circuit'!$H$19*0.001)),IMDIV(1,'Design the AEF circuit'!$H$20*1000))), IMDIV(1,IMSUM(IMDIV(1,IMPRODUCT(B61,'Design the AEF circuit'!$H$22*0.001)),IMDIV(1,'Design the AEF circuit'!$H$23*1000))), IMDIV(1,IMSUM(IMDIV(1,IMPRODUCT(B61,'Design the AEF circuit'!$H$24*0.001)),IMDIV(1,'Design the AEF circuit'!$H$25*1000))) ) -> 279.568939499132+206.047116130721j | Q61: =IMDIV(1, IMSUM( IMDIV(1, P61), IMPRODUCT(B61,'Design the AEF circuit'!$H$21*0.000000000001) ) ) -> 280.49928977819+205.756493739422j
A62: ='Frequency vector'!G62 -> 219000 | B62: =COMPLEX(0,2*PI()*'Frequency vector'!G62,"j") -> 1376017.58227233j | C62: =IF(IF(CMdata=1,IMABS(K62),'CM choke'!C66)=0, C61, IF(CMdata=1,IMABS(K62),'CM choke'!C66)) -> 1220.054984 | D62: =IF(IF(CMdata=1,DEGREES(IMARGUMENT(K62)),'CM choke'!D66)=0, D61, IF(CMdata=1,DEGREES(IMARGUMENT(K62)),'CM choke'!D66)) -> 30.43414364 | E62: =IF(IF(CMdata=1,IMABS(L62),'CM choke'!E66)=0, E61, IF(CMdata=1,IMABS(L62),'CM choke'!E66)) -> 735.6841431 | F62: =IF(IF(CMdata=1,DEGREES(IMARGUMENT(L62)),'CM choke'!F66)=0, F61, IF(CMdata=1,DEGREES(IMARGUMENT(L62)),'CM choke'!F66)) -> 53.01275126 | G62: 1051.946 | H62: 618.016 | I62: 442.615 | J62: 587.642 | K62: =IF(CMdata=1, IF(Lcm1_core=1, IMDIV(1,IMSUM(IMDIV(1,IMPRODUCT(B62,'Design the AEF circuit'!$G$19*0.001)),IMDIV(1,'Design the AEF circuit'!$G$20*1000),IMPRODUCT(B62,'Design the AEF circuit'!$G$21*0.000000000001))), O62),COMPLEX(G62,H62,"j")) -> 1051.946+618.016j | L62: =IF(CMdata=1, IF(Lcm2_core=1, IMDIV(1, IMSUM(IMDIV(1,IMPRODUCT(B62,'Design the AEF circuit'!$H$19*0.001)), IMDIV(1,'Design the AEF circuit'!$H$20*1000), IMPRODUCT(B62,'Design the AEF circuit'!$H$21*0.000000000001))), Q62), COMPLEX(I62,J62,"j")) -> 442.615+587.642j | N62: =IMSUM(IMDIV(1,IMSUM(IMDIV(1,IMPRODUCT(B62,'Design the AEF circuit'!$G$19*0.001)),IMDIV(1,'Design the AEF circuit'!$G$20*1000))), IMDIV(1,IMSUM(IMDIV(1,IMPRODUCT(B62,'Design the AEF circuit'!$G$22*0.001)),IMDIV(1,'Design the AEF circuit'!$G$23*1000))), IMDIV(1,IMSUM(IMDIV(1,IMPRODUCT(B62,'Design the AEF circuit'!$G$24*0.001)),IMDIV(1,'Design the AEF circuit'!$G$25*1000))) ) -> 290.278265563896+212.073967333807j | O62: =IMDIV(1, IMSUM( IMDIV(1, N62), IMPRODUCT(B62,'Design the AEF circuit'!$G$21*0.000000000001))) -> 291.29576191864+211.746605437303j | P62: =IMSUM(IMDIV(1,IMSUM(IMDIV(1,IMPRODUCT(B62,'Design the AEF circuit'!$H$19*0.001)),IMDIV(1,'Design the AEF circuit'!$H$20*1000))), IMDIV(1,IMSUM(IMDIV(1,IMPRODUCT(B62,'Design the AEF circuit'!$H$22*0.001)),IMDIV(1,'Design the AEF circuit'!$H$23*1000))), IMDIV(1,IMSUM(IMDIV(1,IMPRODUCT(B62,'Design the AEF circuit'!$H$24*0.001)),IMDIV(1,'Design the AEF circuit'!$H$25*1000))) ) -> 282.157481563388+207.450251647063j | Q62: =IMDIV(1, IMSUM( IMDIV(1, P62), IMPRODUCT(B62,'Design the AEF circuit'!$H$21*0.000000000001) ) ) -> 283.124948448763+207.145490406246j
A63: ='Frequency vector'!G63 -> 224000 | B63: =COMPLEX(0,2*PI()*'Frequency vector'!G63,"j") -> 1407433.50880823j | C63: =IF(IF(CMdata=1,IMABS(K63),'CM choke'!C67)=0, C62, IF(CMdata=1,IMABS(K63),'CM choke'!C67)) -> 1277.533295 | D63: =IF(IF(CMdata=1,DEGREES(IMARGUMENT(K63)),'CM choke'!D67)=0, D62, IF(CMdata=1,DEGREES(IMARGUMENT(K63)),'CM choke'!D67)) -> 30.97654749 | E63: =IF(IF(CMdata=1,IMABS(L63),'CM choke'!E67)=0, E62, IF(CMdata=1,IMABS(L63),'CM choke'!E67)) -> 748.1621558 | F63: =IF(IF(CMdata=1,DEGREES(IMARGUMENT(L63)),'CM choke'!F67)=0, F62, IF(CMdata=1,DEGREES(IMARGUMENT(L63)),'CM choke'!F67)) -> 51.01908518 | G63: 1095.329 | H63: 657.53 | I63: 470.64 | J63: 581.588 | K63: =IF(CMdata=1, IF(Lcm1_core=1, IMDIV(1,IMSUM(IMDIV(1,IMPRODUCT(B63,'Design the AEF circuit'!$G$19*0.001)),IMDIV(1,'Design the AEF circuit'!$G$20*1000),IMPRODUCT(B63,'Design the AEF circuit'!$G$21*0.000000000001))), O63),COMPLEX(G63,H63,"j")) -> 1095.329+657.53j | L63: =IF(CMdata=1, IF(Lcm2_core=1, IMDIV(1, IMSUM(IMDIV(1,IMPRODUCT(B63,'Design the AEF circuit'!$H$19*0.001)), IMDIV(1,'Design the AEF circuit'!$H$20*1000), IMPRODUCT(B63,'Design the AEF circuit'!$H$21*0.000000000001))), Q63), COMPLEX(I63,J63,"j")) -> 470.64+581.588j | N63: =IMSUM(IMDIV(1,IMSUM(IMDIV(1,IMPRODUCT(B63,'Design the AEF circuit'!$G$19*0.001)),IMDIV(1,'Design the AEF circuit'!$G$20*1000))), IMDIV(1,IMSUM(IMDIV(1,IMPRODUCT(B63,'Design the AEF circuit'!$G$22*0.001)),IMDIV(1,'Design the AEF circuit'!$G$23*1000))), IMDIV(1,IMSUM(IMDIV(1,IMPRODUCT(B63,'Design the AEF circuit'!$G$24*0.001)),IMDIV(1,'Design the AEF circuit'!$G$25*1000))) ) -> 292.919548753552+213.403429159131j | O63: =IMDIV(1, IMSUM( IMDIV(1, N63), IMPRODUCT(B63,'Design the AEF circuit'!$G$21*0.000000000001))) -> 293.976348871338+213.06020983349j | P63: =IMSUM(IMDIV(1,IMSUM(IMDIV(1,IMPRODUCT(B63,'Design the AEF circuit'!$H$19*0.001)),IMDIV(1,'Design the AEF circuit'!$H$20*1000))), IMDIV(1,IMSUM(IMDIV(1,IMPRODUCT(B63,'Design the AEF circuit'!$H$22*0.001)),IMDIV(1,'Design the AEF circuit'!$H$23*1000))), IMDIV(1,IMSUM(IMDIV(1,IMPRODUCT(B63,'Design the AEF circuit'!$H$24*0.001)),IMDIV(1,'Design the AEF circuit'!$H$25*1000))) ) -> 284.724423460728+208.856660161166j | Q63: =IMDIV(1, IMSUM( IMDIV(1, P63), IMPRODUCT(B63,'Design the AEF circuit'!$H$21*0.000000000001) ) ) -> 285.7297724095+208.537455861337j
A64: ='Frequency vector'!G64 -> 229000 | B64: =COMPLEX(0,2*PI()*'Frequency vector'!G64,"j") -> 1438849.43534413j | C64: =IF(IF(CMdata=1,IMABS(K64),'CM choke'!C68)=0, C63, IF(CMdata=1,IMABS(K64),'CM choke'!C68)) -> 1316.745341 | D64: =IF(IF(CMdata=1,DEGREES(IMARGUMENT(K64)),'CM choke'!D68)=0, D63, IF(CMdata=1,DEGREES(IMARGUMENT(K64)),'CM choke'!D68)) -> 29.92131428 | E64: =IF(IF(CMdata=1,IMABS(L64),'CM choke'!E68)=0, E63, IF(CMdata=1,IMABS(L64),'CM choke'!E68)) -> 750.0262639 | F64: =IF(IF(CMdata=1,DEGREES(IMARGUMENT(L64)),'CM choke'!F68)=0, F63, IF(CMdata=1,DEGREES(IMARGUMENT(L64)),'CM choke'!F68)) -> 48.86813039 | G64: 1141.238 | H64: 656.806 | I64: 493.363 | J64: 564.918 | K64: =IF(CMdata=1, IF(Lcm1_core=1, IMDIV(1,IMSUM(IMDIV(1,IMPRODUCT(B64,'Design the AEF circuit'!$G$19*0.001)),IMDIV(1,'Design the AEF circuit'!$G$20*1000),IMPRODUCT(B64,'Design the AEF circuit'!$G$21*0.000000000001))), O64),COMPLEX(G64,H64,"j")) -> 1141.238+656.806j | L64: =IF(CMdata=1, IF(Lcm2_core=1, IMDIV(1, IMSUM(IMDIV(1,IMPRODUCT(B64,'Design the AEF circuit'!$H$19*0.001)), IMDIV(1,'Design the AEF circuit'!$H$20*1000), IMPRODUCT(B64,'Design the AEF circuit'!$H$21*0.000000000001))), Q64), COMPLEX(I64,J64,"j")) -> 493.363+564.918j | N64: =IMSUM(IMDIV(1,IMSUM(IMDIV(1,IMPRODUCT(B64,'Design the AEF circuit'!$G$19*0.001)),IMDIV(1,'Design the AEF circuit'!$G$20*1000))), IMDIV(1,IMSUM(IMDIV(1,IMPRODUCT(B64,'Design the AEF circuit'!$G$22*0.001)),IMDIV(1,'Design the AEF circuit'!$G$23*1000))), IMDIV(1,IMSUM(IMDIV(1,IMPRODUCT(B64,'Design the AEF circuit'!$G$24*0.001)),IMDIV(1,'Design the AEF circuit'!$G$25*1000))) ) -> 295.537238606488+214.735905258829j | O64: =IMDIV(1, IMSUM( IMDIV(1, N64), IMPRODUCT(B64,'Design the AEF circuit'!$G$21*0.000000000001))) -> 296.634110052757+214.376491353414j | P64: =IMSUM(IMDIV(1,IMSUM(IMDIV(1,IMPRODUCT(B64,'Design the AEF circuit'!$H$19*0.001)),IMDIV(1,'Design the AEF circuit'!$H$20*1000))), IMDIV(1,IMSUM(IMDIV(1,IMPRODUCT(B64,'Design the AEF circuit'!$H$22*0.001)),IMDIV(1,'Design the AEF circuit'!$H$23*1000))), IMDIV(1,IMSUM(IMDIV(1,IMPRODUCT(B64,'Design the AEF circuit'!$H$24*0.001)),IMDIV(1,'Design the AEF circuit'!$H$25*1000))) ) -> 287.271928643844+210.264183811716j | Q64: =IMDIV(1, IMSUM( IMDIV(1, P64), IMPRODUCT(B64,'Design the AEF circuit'!$H$21*0.000000000001) ) ) -> 288.315925318329+209.930218807612j
A65: ='Frequency vector'!G65 -> 234000 | B65: =COMPLEX(0,2*PI()*'Frequency vector'!G65,"j") -> 1470265.36188002j | C65: =IF(IF(CMdata=1,IMABS(K65),'CM choke'!C69)=0, C64, IF(CMdata=1,IMABS(K65),'CM choke'!C69)) -> 1330.178766 | D65: =IF(IF(CMdata=1,DEGREES(IMARGUMENT(K65)),'CM choke'!D69)=0, D64, IF(CMdata=1,DEGREES(IMARGUMENT(K65)),'CM choke'!D69)) -> 29.80053559 | E65: =IF(IF(CMdata=1,IMABS(L65),'CM choke'!E69)=0, E64, IF(CMdata=1,IMABS(L65),'CM choke'!E69)) -> 778.9929879 | F65: =IF(IF(CMdata=1,DEGREES(IMARGUMENT(L65)),'CM choke'!F69)=0, F64, IF(CMdata=1,DEGREES(IMARGUMENT(L65)),'CM choke'!F69)) -> 48.34370194 | G65: 1154.277 | H65: 661.075 | I65: 517.766 | J65: 582.021 | K65: =IF(CMdata=1, IF(Lcm1_core=1, IMDIV(1,IMSUM(IMDIV(1,IMPRODUCT(B65,'Design the AEF circuit'!$G$19*0.001)),IMDIV(1,'Design the AEF circuit'!$G$20*1000),IMPRODUCT(B65,'Design the AEF circuit'!$G$21*0.000000000001))), O65),COMPLEX(G65,H65,"j")) -> 1154.277+661.075j | L65: =IF(CMdata=1, IF(Lcm2_core=1, IMDIV(1, IMSUM(IMDIV(1,IMPRODUCT(B65,'Design the AEF circuit'!$H$19*0.001)), IMDIV(1,'Design the AEF circuit'!$H$20*1000), IMPRODUCT(B65,'Design the AEF circuit'!$H$21*0.000000000001))), Q65), COMPLEX(I65,J65,"j")) -> 517.766+582.021j | N65: =IMSUM(IMDIV(1,IMSUM(IMDIV(1,IMPRODUCT(B65,'Design the AEF circuit'!$G$19*0.001)),IMDIV(1,'Design the AEF circuit'!$G$20*1000))), IMDIV(1,IMSUM(IMDIV(1,IMPRODUCT(B65,'Design the AEF circuit'!$G$22*0.001)),IMDIV(1,'Design the AEF circuit'!$G$23*1000))), IMDIV(1,IMSUM(IMDIV(1,IMPRODUCT(B65,'Design the AEF circuit'!$G$24*0.001)),IMDIV(1,'Design the AEF circuit'!$G$25*1000))) ) -> 298.13349485638+216.069357925367j | O65: =IMDIV(1, IMSUM( IMDIV(1, N65), IMPRODUCT(B65,'Design the AEF circuit'!$G$21*0.000000000001))) -> 299.271204694368+215.693398993197j | P65: =IMSUM(IMDIV(1,IMSUM(IMDIV(1,IMPRODUCT(B65,'Design the AEF circuit'!$H$19*0.001)),IMDIV(1,'Design the AEF circuit'!$H$20*1000))), IMDIV(1,IMSUM(IMDIV(1,IMPRODUCT(B65,'Design the AEF circuit'!$H$22*0.001)),IMDIV(1,'Design the AEF circuit'!$H$23*1000))), IMDIV(1,IMSUM(IMDIV(1,IMPRODUCT(B65,'Design the AEF circuit'!$H$24*0.001)),IMDIV(1,'Design the AEF circuit'!$H$25*1000))) ) -> 289.801866223448+211.670804184823j | Q65: =IMDIV(1, IMSUM( IMDIV(1, P65), IMPRODUCT(B65,'Design the AEF circuit'!$H$21*0.000000000001) ) ) -> 290.885275571985+211.321747442888j
A66: ='Frequency vector'!G66 -> 239000 | B66: =COMPLEX(0,2*PI()*'Frequency vector'!G66,"j") -> 1501681.28841592j | C66: =IF(IF(CMdata=1,IMABS(K66),'CM choke'!C70)=0, C65, IF(CMdata=1,IMABS(K66),'CM choke'!C70)) -> 1332.199206 | D66: =IF(IF(CMdata=1,DEGREES(IMARGUMENT(K66)),'CM choke'!D70)=0, D65, IF(CMdata=1,DEGREES(IMARGUMENT(K66)),'CM choke'!D70)) -> 29.82823881 | E66: =IF(IF(CMdata=1,IMABS(L66),'CM choke'!E70)=0, E65, IF(CMdata=1,IMABS(L66),'CM choke'!E70)) -> 809.4576306 | F66: =IF(IF(CMdata=1,DEGREES(IMARGUMENT(L66)),'CM choke'!F70)=0, F65, IF(CMdata=1,DEGREES(IMARGUMENT(L66)),'CM choke'!F70)) -> 48.44694503 | G66: 1155.71 | H66: 662.638 | I66: 536.924 | J66: 605.751 | K66: =IF(CMdata=1, IF(Lcm1_core=1, IMDIV(1,IMSUM(IMDIV(1,IMPRODUCT(B66,'Design the AEF circuit'!$G$19*0.001)),IMDIV(1,'Design the AEF circuit'!$G$20*1000),IMPRODUCT(B66,'Design the AEF circuit'!$G$21*0.000000000001))), O66),COMPLEX(G66,H66,"j")) -> 1155.71+662.638j | L66: =IF(CMdata=1, IF(Lcm2_core=1, IMDIV(1, IMSUM(IMDIV(1,IMPRODUCT(B66,'Design the AEF circuit'!$H$19*0.001)), IMDIV(1,'Design the AEF circuit'!$H$20*1000), IMPRODUCT(B66,'Design the AEF circuit'!$H$21*0.000000000001))), Q66), COMPLEX(I66,J66,"j")) -> 536.924+605.751j | N66: =IMSUM(IMDIV(1,IMSUM(IMDIV(1,IMPRODUCT(B66,'Design the AEF circuit'!$G$19*0.001)),IMDIV(1,'Design the AEF circuit'!$G$20*1000))), IMDIV(1,IMSUM(IMDIV(1,IMPRODUCT(B66,'Design the AEF circuit'!$G$22*0.001)),IMDIV(1,'Design the AEF circuit'!$G$23*1000))), IMDIV(1,IMSUM(IMDIV(1,IMPRODUCT(B66,'Design the AEF circuit'!$G$24*0.001)),IMDIV(1,'Design the AEF circuit'!$G$25*1000))) ) -> 300.710193268601+217.401877938705j | O66: =IMDIV(1, IMSUM( IMDIV(1, N66), IMPRODUCT(B66,'Design the AEF circuit'!$G$21*0.000000000001))) -> 301.88950713808+217.009010311534j | P66: =IMSUM(IMDIV(1,IMSUM(IMDIV(1,IMPRODUCT(B66,'Design the AEF circuit'!$H$19*0.001)),IMDIV(1,'Design the AEF circuit'!$H$20*1000))), IMDIV(1,IMSUM(IMDIV(1,IMPRODUCT(B66,'Design the AEF circuit'!$H$22*0.001)),IMDIV(1,'Design the AEF circuit'!$H$23*1000))), IMDIV(1,IMSUM(IMDIV(1,IMPRODUCT(B66,'Design the AEF circuit'!$H$24*0.001)),IMDIV(1,'Design the AEF circuit'!$H$25*1000))) ) -> 292.315844934293+213.074638181734j | Q66: =IMDIV(1, IMSUM( IMDIV(1, P66), IMPRODUCT(B66,'Design the AEF circuit'!$H$21*0.000000000001) ) ) -> 293.439430321855+212.710145374385j
A67: ='Frequency vector'!G67 -> 244000 | B67: =COMPLEX(0,2*PI()*'Frequency vector'!G67,"j") -> 1533097.21495182j | C67: =IF(IF(CMdata=1,IMABS(K67),'CM choke'!C71)=0, C66, IF(CMdata=1,IMABS(K67),'CM choke'!C71)) -> 1351.325846 | D67: =IF(IF(CMdata=1,DEGREES(IMARGUMENT(K67)),'CM choke'!D71)=0, D66, IF(CMdata=1,DEGREES(IMARGUMENT(K67)),'CM choke'!D71)) -> 28.16868187 | E67: =IF(IF(CMdata=1,IMABS(L67),'CM choke'!E71)=0, E66, IF(CMdata=1,IMABS(L67),'CM choke'!E71)) -> 807.1104586 | F67: =IF(IF(CMdata=1,DEGREES(IMARGUMENT(L67)),'CM choke'!F71)=0, F66, IF(CMdata=1,DEGREES(IMARGUMENT(L67)),'CM choke'!F71)) -> 44.87872482 | G67: =C67*COS(RADIANS(D67)) -> 1191.277 | H67: =C67*SIN(RADIANS(D67)) -> 637.919 | I67: =E67*COS(RADIANS(F67)) -> 571.92 | J67: =E67*SIN(RADIANS(F67)) -> 569.504 | K67: =IF(CMdata=1, IF(Lcm1_core=1, IMDIV(1,IMSUM(IMDIV(1,IMPRODUCT(B67,'Design the AEF circuit'!$G$19*0.001)),IMDIV(1,'Design the AEF circuit'!$G$20*1000),IMPRODUCT(B67,'Design the AEF circuit'!$G$21*0.000000000001))), O67),COMPLEX(G67,H67,"j")) -> 1191.277+637.919j | L67: =IF(CMdata=1, IF(Lcm2_core=1, IMDIV(1, IMSUM(IMDIV(1,IMPRODUCT(B67,'Design the AEF circuit'!$H$19*0.001)), IMDIV(1,'Design the AEF circuit'!$H$20*1000), IMPRODUCT(B67,'Design the AEF circuit'!$H$21*0.000000000001))), Q67), COMPLEX(I67,J67,"j")) -> 571.92+569.504j | N67: =IMSUM(IMDIV(1,IMSUM(IMDIV(1,IMPRODUCT(B67,'Design the AEF circuit'!$G$19*0.001)),IMDIV(1,'Design the AEF circuit'!$G$20*1000))), IMDIV(1,IMSUM(IMDIV(1,IMPRODUCT(B67,'Design the AEF circuit'!$G$22*0.001)),IMDIV(1,'Design the AEF circuit'!$G$23*1000))), IMDIV(1,IMSUM(IMDIV(1,IMPRODUCT(B67,'Design the AEF circuit'!$G$24*0.001)),IMDIV(1,'Design the AEF circuit'!$G$25*1000))) ) -> 303.26895771713+218.731681347298j | O67: =IMDIV(1, IMSUM( IMDIV(1, N67), IMPRODUCT(B67,'Design the AEF circuit'!$G$21*0.000000000001))) -> 304.49063896514+218.321528257978j | P67: =IMSUM(IMDIV(1,IMSUM(IMDIV(1,IMPRODUCT(B67,'Design the AEF circuit'!$H$19*0.001)),IMDIV(1,'Design the AEF circuit'!$H$20*1000))), IMDIV(1,IMSUM(IMDIV(1,IMPRODUCT(B67,'Design the AEF circuit'!$H$22*0.001)),IMDIV(1,'Design the AEF circuit'!$H$23*1000))), IMDIV(1,IMSUM(IMDIV(1,IMPRODUCT(B67,'Design the AEF circuit'!$H$24*0.001)),IMDIV(1,'Design the AEF circuit'!$H$25*1000))) ) -> 294.815243118782+214.473933323668j | Q67: =IMDIV(1, IMSUM( IMDIV(1, P67), IMPRODUCT(B67,'Design the AEF circuit'!$H$21*0.000000000001) ) ) -> 295.979765504737+214.093646965434j
A68: ='Frequency vector'!G68 -> 249000 | B68: =COMPLEX(0,2*PI()*'Frequency vector'!G68,"j") -> 1564513.14148772j | C68: =IF(IF(CMdata=1,IMABS(K68),'CM choke'!C72)=0, C67, IF(CMdata=1,IMABS(K68),'CM choke'!C72)) -> 1368.958419 | D68: =IF(IF(CMdata=1,DEGREES(IMARGUMENT(K68)),'CM choke'!D72)=0, D67, IF(CMdata=1,DEGREES(IMARGUMENT(K68)),'CM choke'!D72)) -> 31.25998672 | E68: =IF(IF(CMdata=1,IMABS(L68),'CM choke'!E72)=0, E67, IF(CMdata=1,IMABS(L68),'CM choke'!E72)) -> 833.9740182 | F68: =IF(IF(CMdata=1,DEGREES(IMARGUMENT(L68)),'CM choke'!F72)=0, F67, IF(CMdata=1,DEGREES(IMARGUMENT(L68)),'CM choke'!F72)) -> 44.44482214 | G68: 1170.215 | H68: 710.383 | I68: 595.395 | J68: 583.967 | K68: =IF(CMdata=1, IF(Lcm1_core=1, IMDIV(1,IMSUM(IMDIV(1,IMPRODUCT(B68,'Design the AEF circuit'!$G$19*0.001)),IMDIV(1,'Design the AEF circuit'!$G$20*1000),IMPRODUCT(B68,'Design the AEF circuit'!$G$21*0.000000000001))), O68),COMPLEX(G68,H68,"j")) -> 1170.215+710.383j | L68: =IF(CMdata=1, IF(Lcm2_core=1, IMDIV(1, IMSUM(IMDIV(1,IMPRODUCT(B68,'Design the AEF circuit'!$H$19*0.001)), IMDIV(1,'Design the AEF circuit'!$H$20*1000), IMPRODUCT(B68,'Design the AEF circuit'!$H$21*0.000000000001))), Q68), COMPLEX(I68,J68,"j")) -> 595.395+583.967j | N68: =IMSUM(IMDIV(1,IMSUM(IMDIV(1,IMPRODUCT(B68,'Design the AEF circuit'!$G$19*0.001)),IMDIV(1,'Design the AEF circuit'!$G$20*1000))), IMDIV(1,IMSUM(IMDIV(1,IMPRODUCT(B68,'Design the AEF circuit'!$G$22*0.001)),IMDIV(1,'Design the AEF circuit'!$G$23*1000))), IMDIV(1,IMSUM(IMDIV(1,IMPRODUCT(B68,'Design the AEF circuit'!$G$24*0.001)),IMDIV(1,'Design the AEF circuit'!$G$25*1000))) ) -> 305.811188596714+220.057105627257j | O68: =IMDIV(1, IMSUM( IMDIV(1, N68), IMPRODUCT(B68,'Design the AEF circuit'!$G$21*0.000000000001))) -> 307.075997457656+219.629277374208j | P68: =IMSUM(IMDIV(1,IMSUM(IMDIV(1,IMPRODUCT(B68,'Design the AEF circuit'!$H$19*0.001)),IMDIV(1,'Design the AEF circuit'!$H$20*1000))), IMDIV(1,IMSUM(IMDIV(1,IMPRODUCT(B68,'Design the AEF circuit'!$H$22*0.001)),IMDIV(1,'Design the AEF circuit'!$H$23*1000))), IMDIV(1,IMSUM(IMDIV(1,IMPRODUCT(B68,'Design the AEF circuit'!$H$24*0.001)),IMDIV(1,'Design the AEF circuit'!$H$25*1000))) ) -> 297.301235234663+215.86706268859j | Q68: =IMDIV(1, IMSUM( IMDIV(1, P68), IMPRODUCT(B68,'Design the AEF circuit'!$H$21*0.000000000001) ) ) -> 298.507452395357+215.470612309854j
A69: ='Frequency vector'!G69 -> 254000 | B69: =COMPLEX(0,2*PI()*'Frequency vector'!G69,"j") -> 1595929.06802361j | C69: =IF(IF(CMdata=1,IMABS(K69),'CM choke'!C73)=0, C68, IF(CMdata=1,IMABS(K69),'CM choke'!C73)) -> 1366.63283 | D69: =IF(IF(CMdata=1,DEGREES(IMARGUMENT(K69)),'CM choke'!D73)=0, D68, IF(CMdata=1,DEGREES(IMARGUMENT(K69)),'CM choke'!D73)) -> 27.22856734 | E69: =IF(IF(CMdata=1,IMABS(L69),'CM choke'!E73)=0, E68, IF(CMdata=1,IMABS(L69),'CM choke'!E73)) -> 839.5081923 | F69: =IF(IF(CMdata=1,DEGREES(IMARGUMENT(L69)),'CM choke'!F73)=0, F68, IF(CMdata=1,DEGREES(IMARGUMENT(L69)),'CM choke'!F73)) -> 42.68750151 | G69: 1215.194 | H69: 625.291 | I69: 617.091 | J69: 569.186 | K69: =IF(CMdata=1, IF(Lcm1_core=1, IMDIV(1,IMSUM(IMDIV(1,IMPRODUCT(B69,'Design the AEF circuit'!$G$19*0.001)),IMDIV(1,'Design the AEF circuit'!$G$20*1000),IMPRODUCT(B69,'Design the AEF circuit'!$G$21*0.000000000001))), O69),COMPLEX(G69,H69,"j")) -> 1215.194+625.291j | L69: =IF(CMdata=1, IF(Lcm2_core=1, IMDIV(1, IMSUM(IMDIV(1,IMPRODUCT(B69,'Design the AEF circuit'!$H$19*0.001)), IMDIV(1,'Design the AEF circuit'!$H$20*1000), IMPRODUCT(B69,'Design the AEF circuit'!$H$21*0.000000000001))), Q69), COMPLEX(I69,J69,"j")) -> 617.091+569.186j | N69: =IMSUM(IMDIV(1,IMSUM(IMDIV(1,IMPRODUCT(B69,'Design the AEF circuit'!$G$19*0.001)),IMDIV(1,'Design the AEF circuit'!$G$20*1000))), IMDIV(1,IMSUM(IMDIV(1,IMPRODUCT(B69,'Design the AEF circuit'!$G$22*0.001)),IMDIV(1,'Design the AEF circuit'!$G$23*1000))), IMDIV(1,IMSUM(IMDIV(1,IMPRODUCT(B69,'Design the AEF circuit'!$G$24*0.001)),IMDIV(1,'Design the AEF circuit'!$G$25*1000))) ) -> 308.338088022383+221.376605411134j | O69: =IMDIV(1, IMSUM( IMDIV(1, N69), IMPRODUCT(B69,'Design the AEF circuit'!$G$21*0.000000000001))) -> 309.646780845116+220.930699560412j | P69: =IMSUM(IMDIV(1,IMSUM(IMDIV(1,IMPRODUCT(B69,'Design the AEF circuit'!$H$19*0.001)),IMDIV(1,'Design the AEF circuit'!$H$20*1000))), IMDIV(1,IMSUM(IMDIV(1,IMPRODUCT(B69,'Design the AEF circuit'!$H$22*0.001)),IMDIV(1,'Design the AEF circuit'!$H$23*1000))), IMDIV(1,IMSUM(IMDIV(1,IMPRODUCT(B69,'Design the AEF circuit'!$H$24*0.001)),IMDIV(1,'Design the AEF circuit'!$H$25*1000))) ) -> 299.774815324032+217.252519629044j | Q69: =IMDIV(1, IMSUM( IMDIV(1, P69), IMPRODUCT(B69,'Design the AEF circuit'!$H$21*0.000000000001) ) ) -> 301.023481118092+216.839521983621j
A70: ='Frequency vector'!G70 -> 259000 | B70: =COMPLEX(0,2*PI()*'Frequency vector'!G70,"j") -> 1627344.99455951j | C70: =IF(IF(CMdata=1,IMABS(K70),'CM choke'!C74)=0, C69, IF(CMdata=1,IMABS(K70),'CM choke'!C74)) -> 1341.631223 | D70: =IF(IF(CMdata=1,DEGREES(IMARGUMENT(K70)),'CM choke'!D74)=0, D69, IF(CMdata=1,DEGREES(IMARGUMENT(K70)),'CM choke'!D74)) -> 25.51414197 | E70: =IF(IF(CMdata=1,IMABS(L70),'CM choke'!E74)=0, E69, IF(CMdata=1,IMABS(L70),'CM choke'!E74)) -> 855.1306758 | F70: =IF(IF(CMdata=1,DEGREES(IMARGUMENT(L70)),'CM choke'!F74)=0, F69, IF(CMdata=1,DEGREES(IMARGUMENT(L70)),'CM choke'!F74)) -> 40.79114926 | G70: 1210.794 | H70: 577.886 | I70: 647.416 | J70: 558.66 | K70: =IF(CMdata=1, IF(Lcm1_core=1, IMDIV(1,IMSUM(IMDIV(1,IMPRODUCT(B70,'Design the AEF circuit'!$G$19*0.001)),IMDIV(1,'Design the AEF circuit'!$G$20*1000),IMPRODUCT(B70,'Design the AEF circuit'!$G$21*0.000000000001))), O70),COMPLEX(G70,H70,"j")) -> 1210.794+577.886j | L70: =IF(CMdata=1, IF(Lcm2_core=1, IMDIV(1, IMSUM(IMDIV(1,IMPRODUCT(B70,'Design the AEF circuit'!$H$19*0.001)), IMDIV(1,'Design the AEF circuit'!$H$20*1000), IMPRODUCT(B70,'Design the AEF circuit'!$H$21*0.000000000001))), Q70), COMPLEX(I70,J70,"j")) -> 647.416+558.66j | N70: =IMSUM(IMDIV(1,IMSUM(IMDIV(1,IMPRODUCT(B70,'Design the AEF circuit'!$G$19*0.001)),IMDIV(1,'Design the AEF circuit'!$G$20*1000))), IMDIV(1,IMSUM(IMDIV(1,IMPRODUCT(B70,'Design the AEF circuit'!$G$22*0.001)),IMDIV(1,'Design the AEF circuit'!$G$23*1000))), IMDIV(1,IMSUM(IMDIV(1,IMPRODUCT(B70,'Design the AEF circuit'!$G$24*0.001)),IMDIV(1,'Design the AEF circuit'!$G$25*1000))) ) -> 310.850682208574+222.68874793508j | O70: =IMDIV(1, IMSUM( IMDIV(1, N70), IMPRODUCT(B70,'Design the AEF circuit'!$G$21*0.000000000001))) -> 312.204010728401+222.224349556041j | P70: =IMSUM(IMDIV(1,IMSUM(IMDIV(1,IMPRODUCT(B70,'Design the AEF circuit'!$H$19*0.001)),IMDIV(1,'Design the AEF circuit'!$H$20*1000))), IMDIV(1,IMSUM(IMDIV(1,IMPRODUCT(B70,'Design the AEF circuit'!$H$22*0.001)),IMDIV(1,'Design the AEF circuit'!$H$23*1000))), IMDIV(1,IMSUM(IMDIV(1,IMPRODUCT(B70,'Design the AEF circuit'!$H$24*0.001)),IMDIV(1,'Design the AEF circuit'!$H$25*1000))) ) -> 302.236817821402+218.628912384615j | Q70: =IMDIV(1, IMSUM( IMDIV(1, P70), IMPRODUCT(B70,'Design the AEF circuit'!$H$21*0.000000000001) ) ) -> 303.528681495941+218.198971687846j
A71: ='Frequency vector'!G71 -> 264000 | B71: =COMPLEX(0,2*PI()*'Frequency vector'!G71,"j") -> 1658760.92109541j | C71: =IF(IF(CMdata=1,IMABS(K71),'CM choke'!C75)=0, C70, IF(CMdata=1,IMABS(K71),'CM choke'!C75)) -> 1381.322162 | D71: =IF(IF(CMdata=1,DEGREES(IMARGUMENT(K71)),'CM choke'!D75)=0, D70, IF(CMdata=1,DEGREES(IMARGUMENT(K71)),'CM choke'!D75)) -> 26.24148275 | E71: =IF(IF(CMdata=1,IMABS(L71),'CM choke'!E75)=0, E70, IF(CMdata=1,IMABS(L71),'CM choke'!E75)) -> 862.0309823 | F71: =IF(IF(CMdata=1,DEGREES(IMARGUMENT(L71)),'CM choke'!F75)=0, F70, IF(CMdata=1,DEGREES(IMARGUMENT(L71)),'CM choke'!F75)) -> 40.56100933 | G71: 1238.961 | H71: 610.759 | I71: 654.897 | J71: 560.542 | K71: =IF(CMdata=1, IF(Lcm1_core=1, IMDIV(1,IMSUM(IMDIV(1,IMPRODUCT(B71,'Design the AEF circuit'!$G$19*0.001)),IMDIV(1,'Design the AEF circuit'!$G$20*1000),IMPRODUCT(B71,'Design the AEF circuit'!$G$21*0.000000000001))), O71),COMPLEX(G71,H71,"j")) -> 1238.961+610.759j | L71: =IF(CMdata=1, IF(Lcm2_core=1, IMDIV(1, IMSUM(IMDIV(1,IMPRODUCT(B71,'Design the AEF circuit'!$H$19*0.001)), IMDIV(1,'Design the AEF circuit'!$H$20*1000), IMPRODUCT(B71,'Design the AEF circuit'!$H$21*0.000000000001))), Q71), COMPLEX(I71,J71,"j")) -> 654.897+560.542j | N71: =IMSUM(IMDIV(1,IMSUM(IMDIV(1,IMPRODUCT(B71,'Design the AEF circuit'!$G$19*0.001)),IMDIV(1,'Design the AEF circuit'!$G$20*1000))), IMDIV(1,IMSUM(IMDIV(1,IMPRODUCT(B71,'Design the AEF circuit'!$G$22*0.001)),IMDIV(1,'Design the AEF circuit'!$G$23*1000))), IMDIV(1,IMSUM(IMDIV(1,IMPRODUCT(B71,'Design the AEF circuit'!$G$24*0.001)),IMDIV(1,'Design the AEF circuit'!$G$25*1000))) ) -> 313.349841368535+223.992208319406j | O71: =IMDIV(1, IMSUM( IMDIV(1, N71), IMPRODUCT(B71,'Design the AEF circuit'!$G$21*0.000000000001))) -> 314.74855202218+223.508890250435j | P71: =IMSUM(IMDIV(1,IMSUM(IMDIV(1,IMPRODUCT(B71,'Design the AEF circuit'!$H$19*0.001)),IMDIV(1,'Design the AEF circuit'!$H$20*1000))), IMDIV(1,IMSUM(IMDIV(1,IMPRODUCT(B71,'Design the AEF circuit'!$H$22*0.001)),IMDIV(1,'Design the AEF circuit'!$H$23*1000))), IMDIV(1,IMSUM(IMDIV(1,IMPRODUCT(B71,'Design the AEF circuit'!$H$24*0.001)),IMDIV(1,'Design the AEF circuit'!$H$25*1000))) ) -> 304.687936027619+219.994958674752j | Q71: =IMDIV(1, IMSUM( IMDIV(1, P71), IMPRODUCT(B71,'Design the AEF circuit'!$H$21*0.000000000001) ) ) -> 306.023741563702+219.547666869117j
A72: ='Frequency vector'!G72 -> 269000 | B72: =COMPLEX(0,2*PI()*'Frequency vector'!G72,"j") -> 1690176.84763131j | C72: =IF(IF(CMdata=1,IMABS(K72),'CM choke'!C76)=0, C71, IF(CMdata=1,IMABS(K72),'CM choke'!C76)) -> 1356.499186 | D72: =IF(IF(CMdata=1,DEGREES(IMARGUMENT(K72)),'CM choke'!D76)=0, D71, IF(CMdata=1,DEGREES(IMARGUMENT(K72)),'CM choke'!D76)) -> 27.65059532 | E72: =IF(IF(CMdata=1,IMABS(L72),'CM choke'!E76)=0, E71, IF(CMdata=1,IMABS(L72),'CM choke'!E76)) -> 877.9359478 | F72: =IF(IF(CMdata=1,DEGREES(IMARGUMENT(L72)),'CM choke'!F76)=0, F71, IF(CMdata=1,DEGREES(IMARGUMENT(L72)),'CM choke'!F76)) -> 37.53722885 | G72: 1201.579 | H72: 629.522 | I72: 696.166 | J72: 534.906 | K72: =IF(CMdata=1, IF(Lcm1_core=1, IMDIV(1,IMSUM(IMDIV(1,IMPRODUCT(B72,'Design the AEF circuit'!$G$19*0.001)),IMDIV(1,'Design the AEF circuit'!$G$20*1000),IMPRODUCT(B72,'Design the AEF circuit'!$G$21*0.000000000001))), O72),COMPLEX(G72,H72,"j")) -> 1201.579+629.522j | L72: =IF(CMdata=1, IF(Lcm2_core=1, IMDIV(1, IMSUM(IMDIV(1,IMPRODUCT(B72,'Design the AEF circuit'!$H$19*0.001)), IMDIV(1,'Design the AEF circuit'!$H$20*1000), IMPRODUCT(B72,'Design the AEF circuit'!$H$21*0.000000000001))), Q72), COMPLEX(I72,J72,"j")) -> 696.166+534.906j | N72: =IMSUM(IMDIV(1,IMSUM(IMDIV(1,IMPRODUCT(B72,'Design the AEF circuit'!$G$19*0.001)),IMDIV(1,'Design the AEF circuit'!$G$20*1000))), IMDIV(1,IMSUM(IMDIV(1,IMPRODUCT(B72,'Design the AEF circuit'!$G$22*0.001)),IMDIV(1,'Design the AEF circuit'!$G$23*1000))), IMDIV(1,IMSUM(IMDIV(1,IMPRODUCT(B72,'Design the AEF circuit'!$G$24*0.001)),IMDIV(1,'Design the AEF circuit'!$G$25*1000))) ) -> 315.836297430124+225.285764771145j | O72: =IMDIV(1, IMSUM( IMDIV(1, N72), IMPRODUCT(B72,'Design the AEF circuit'!$G$21*0.000000000001))) -> 317.281130711981+224.783087912264j | P72: =IMSUM(IMDIV(1,IMSUM(IMDIV(1,IMPRODUCT(B72,'Design the AEF circuit'!$H$19*0.001)),IMDIV(1,'Design the AEF circuit'!$H$20*1000))), IMDIV(1,IMSUM(IMDIV(1,IMPRODUCT(B72,'Design the AEF circuit'!$H$22*0.001)),IMDIV(1,'Design the AEF circuit'!$H$23*1000))), IMDIV(1,IMSUM(IMDIV(1,IMPRODUCT(B72,'Design the AEF circuit'!$H$24*0.001)),IMDIV(1,'Design the AEF circuit'!$H$25*1000))) ) -> 307.12873853268+221.349480336171j | Q72: =IMDIV(1, IMSUM( IMDIV(1, P72), IMPRODUCT(B72,'Design the AEF circuit'!$H$21*0.000000000001) ) ) -> 308.509224028636+220.884417381726j
A73: ='Frequency vector'!G73 -> 274000 | B73: =COMPLEX(0,2*PI()*'Frequency vector'!G73,"j") -> 1721592.77416721j | C73: =IF(IF(CMdata=1,IMABS(K73),'CM choke'!C77)=0, C72, IF(CMdata=1,IMABS(K73),'CM choke'!C77)) -> 1412.687437 | D73: =IF(IF(CMdata=1,DEGREES(IMARGUMENT(K73)),'CM choke'!D77)=0, D72, IF(CMdata=1,DEGREES(IMARGUMENT(K73)),'CM choke'!D77)) -> 25.94304758 | E73: =IF(IF(CMdata=1,IMABS(L73),'CM choke'!E77)=0, E72, IF(CMdata=1,IMABS(L73),'CM choke'!E77)) -> 870.4499874 | F73: =IF(IF(CMdata=1,DEGREES(IMARGUMENT(L73)),'CM choke'!F77)=0, F72, IF(CMdata=1,DEGREES(IMARGUMENT(L73)),'CM choke'!F77)) -> 38.50859145 | G73: 1270.33 | H73: 618.019 | I73: 681.14 | J73: 541.97 | K73: =IF(CMdata=1, IF(Lcm1_core=1, IMDIV(1,IMSUM(IMDIV(1,IMPRODUCT(B73,'Design the AEF circuit'!$G$19*0.001)),IMDIV(1,'Design the AEF circuit'!$G$20*1000),IMPRODUCT(B73,'Design the AEF circuit'!$G$21*0.000000000001))), O73),COMPLEX(G73,H73,"j")) -> 1270.33+618.019j | L73: =IF(CMdata=1, IF(Lcm2_core=1, IMDIV(1, IMSUM(IMDIV(1,IMPRODUCT(B73,'Design the AEF circuit'!$H$19*0.001)), IMDIV(1,'Design the AEF circuit'!$H$20*1000), IMPRODUCT(B73,'Design the AEF circuit'!$H$21*0.000000000001))), Q73), COMPLEX(I73,J73,"j")) -> 681.14+541.97j | N73: =IMSUM(IMDIV(1,IMSUM(IMDIV(1,IMPRODUCT(B73,'Design the AEF circuit'!$G$19*0.001)),IMDIV(1,'Design the AEF circuit'!$G$20*1000))), IMDIV(1,IMSUM(IMDIV(1,IMPRODUCT(B73,'Design the AEF circuit'!$G$22*0.001)),IMDIV(1,'Design the AEF circuit'!$G$23*1000))), IMDIV(1,IMSUM(IMDIV(1,IMPRODUCT(B73,'Design the AEF circuit'!$G$24*0.001)),IMDIV(1,'Design the AEF circuit'!$G$25*1000))) ) -> 318.310659825688+226.568293776242j | O73: =IMDIV(1, IMSUM( IMDIV(1, N73), IMPRODUCT(B73,'Design the AEF circuit'!$G$21*0.000000000001))) -> 319.80234968378+226.045807405726j | P73: =IMSUM(IMDIV(1,IMSUM(IMDIV(1,IMPRODUCT(B73,'Design the AEF circuit'!$H$19*0.001)),IMDIV(1,'Design the AEF circuit'!$H$20*1000))), IMDIV(1,IMSUM(IMDIV(1,IMPRODUCT(B73,'Design the AEF circuit'!$H$22*0.001)),IMDIV(1,'Design the AEF circuit'!$H$23*1000))), IMDIV(1,IMSUM(IMDIV(1,IMPRODUCT(B73,'Design the AEF circuit'!$H$24*0.001)),IMDIV(1,'Design the AEF circuit'!$H$25*1000))) ) -> 309.559683832937+222.69139805217j | Q73: =IMDIV(1, IMSUM( IMDIV(1, P73), IMPRODUCT(B73,'Design the AEF circuit'!$H$21*0.000000000001) ) ) -> 310.985580924181+222.208132239323j
A74: ='Frequency vector'!G74 -> 279000 | B74: =COMPLEX(0,2*PI()*'Frequency vector'!G74,"j") -> 1753008.7007031j | C74: =IF(IF(CMdata=1,IMABS(K74),'CM choke'!C78)=0, C73, IF(CMdata=1,IMABS(K74),'CM choke'!C78)) -> 1370.863586 | D74: =IF(IF(CMdata=1,DEGREES(IMARGUMENT(K74)),'CM choke'!D78)=0, D73, IF(CMdata=1,DEGREES(IMARGUMENT(K74)),'CM choke'!D78)) -> 34.14081378 | E74: =IF(IF(CMdata=1,IMABS(L74),'CM choke'!E78)=0, E73, IF(CMdata=1,IMABS(L74),'CM choke'!E78)) -> 867.7864561 | F74: =IF(IF(CMdata=1,DEGREES(IMARGUMENT(L74)),'CM choke'!F78)=0, F73, IF(CMdata=1,DEGREES(IMARGUMENT(L74)),'CM choke'!F78)) -> 38.33645119 | G74: 1134.61 | H74: 769.368 | I74: 680.676 | J74: 538.269 | K74: =IF(CMdata=1, IF(Lcm1_core=1, IMDIV(1,IMSUM(IMDIV(1,IMPRODUCT(B74,'Design the AEF circuit'!$G$19*0.001)),IMDIV(1,'Design the AEF circuit'!$G$20*1000),IMPRODUCT(B74,'Design the AEF circuit'!$G$21*0.000000000001))), O74),COMPLEX(G74,H74,"j")) -> 1134.61+769.368j | L74: =IF(CMdata=1, IF(Lcm2_core=1, IMDIV(1, IMSUM(IMDIV(1,IMPRODUCT(B74,'Design the AEF circuit'!$H$19*0.001)), IMDIV(1,'Design the AEF circuit'!$H$20*1000), IMPRODUCT(B74,'Design the AEF circuit'!$H$21*0.000000000001))), Q74), COMPLEX(I74,J74,"j")) -> 680.676+538.269j | N74: =IMSUM(IMDIV(1,IMSUM(IMDIV(1,IMPRODUCT(B74,'Design the AEF circuit'!$G$19*0.001)),IMDIV(1,'Design the AEF circuit'!$G$20*1000))), IMDIV(1,IMSUM(IMDIV(1,IMPRODUCT(B74,'Design the AEF circuit'!$G$22*0.001)),IMDIV(1,'Design the AEF circuit'!$G$23*1000))), IMDIV(1,IMSUM(IMDIV(1,IMPRODUCT(B74,'Design the AEF circuit'!$G$24*0.001)),IMDIV(1,'Design the AEF circuit'!$G$25*1000))) ) -> 320.773429580556+227.838765332701j | O74: =IMDIV(1, IMSUM( IMDIV(1, N74), IMPRODUCT(B74,'Design the AEF circuit'!$G$21*0.000000000001))) -> 322.312702850813+227.296007445074j | P74: =IMSUM(IMDIV(1,IMSUM(IMDIV(1,IMPRODUCT(B74,'Design the AEF circuit'!$H$19*0.001)),IMDIV(1,'Design the AEF circuit'!$H$20*1000))), IMDIV(1,IMSUM(IMDIV(1,IMPRODUCT(B74,'Design the AEF circuit'!$H$22*0.001)),IMDIV(1,'Design the AEF circuit'!$H$23*1000))), IMDIV(1,IMSUM(IMDIV(1,IMPRODUCT(B74,'Design the AEF circuit'!$H$24*0.001)),IMDIV(1,'Design the AEF circuit'!$H$25*1000))) ) -> 311.981133355984+224.019726208216j | Q74: =IMDIV(1, IMSUM( IMDIV(1, P74), IMPRODUCT(B74,'Design the AEF circuit'!$H$21*0.000000000001) ) ) -> 313.453166670228+223.517814490574j
A75: ='Frequency vector'!G75 -> 284000 | B75: =COMPLEX(0,2*PI()*'Frequency vector'!G75,"j") -> 1784424.627239j | C75: =IF(IF(CMdata=1,IMABS(K75),'CM choke'!C79)=0, C74, IF(CMdata=1,IMABS(K75),'CM choke'!C79)) -> 1424.57835 | D75: =IF(IF(CMdata=1,DEGREES(IMARGUMENT(K75)),'CM choke'!D79)=0, D74, IF(CMdata=1,DEGREES(IMARGUMENT(K75)),'CM choke'!D79)) -> 18.99249902 | E75: =IF(IF(CMdata=1,IMABS(L75),'CM choke'!E79)=0, E74, IF(CMdata=1,IMABS(L75),'CM choke'!E79)) -> 917.5570233 | F75: =IF(IF(CMdata=1,DEGREES(IMARGUMENT(L75)),'CM choke'!F79)=0, F74, IF(CMdata=1,DEGREES(IMARGUMENT(L75)),'CM choke'!F79)) -> 34.65061338 | G75: 1347.026 | H75: 463.621 | I75: 754.814 | J75: 521.696 | K75: =IF(CMdata=1, IF(Lcm1_core=1, IMDIV(1,IMSUM(IMDIV(1,IMPRODUCT(B75,'Design the AEF circuit'!$G$19*0.001)),IMDIV(1,'Design the AEF circuit'!$G$20*1000),IMPRODUCT(B75,'Design the AEF circuit'!$G$21*0.000000000001))), O75),COMPLEX(G75,H75,"j")) -> 1347.026+463.621j | L75: =IF(CMdata=1, IF(Lcm2_core=1, IMDIV(1, IMSUM(IMDIV(1,IMPRODUCT(B75,'Design the AEF circuit'!$H$19*0.001)), IMDIV(1,'Design the AEF circuit'!$H$20*1000), IMPRODUCT(B75,'Design the AEF circuit'!$H$21*0.000000000001))), Q75), COMPLEX(I75,J75,"j")) -> 754.814+521.696j | N75: =IMSUM(IMDIV(1,IMSUM(IMDIV(1,IMPRODUCT(B75,'Design the AEF circuit'!$G$19*0.001)),IMDIV(1,'Design the AEF circuit'!$G$20*1000))), IMDIV(1,IMSUM(IMDIV(1,IMPRODUCT(B75,'Design the AEF circuit'!$G$22*0.001)),IMDIV(1,'Design the AEF circuit'!$G$23*1000))), IMDIV(1,IMSUM(IMDIV(1,IMPRODUCT(B75,'Design the AEF circuit'!$G$24*0.001)),IMDIV(1,'Design the AEF circuit'!$G$25*1000))) ) -> 323.225011896048+229.096238263007j | O75: =IMDIV(1, IMSUM( IMDIV(1, N75), IMPRODUCT(B75,'Design the AEF circuit'!$G$21*0.000000000001))) -> 324.812587773576+228.532735926024j | P75: =IMSUM(IMDIV(1,IMSUM(IMDIV(1,IMPRODUCT(B75,'Design the AEF circuit'!$H$19*0.001)),IMDIV(1,'Design the AEF circuit'!$H$20*1000))), IMDIV(1,IMSUM(IMDIV(1,IMPRODUCT(B75,'Design the AEF circuit'!$H$22*0.001)),IMDIV(1,'Design the AEF circuit'!$H$23*1000))), IMDIV(1,IMSUM(IMDIV(1,IMPRODUCT(B75,'Design the AEF circuit'!$H$24*0.001)),IMDIV(1,'Design the AEF circuit'!$H$25*1000))) ) -> 314.393363078814+225.333567898012j | Q75: =IMDIV(1, IMSUM( IMDIV(1, P75), IMPRODUCT(B75,'Design the AEF circuit'!$H$21*0.000000000001) ) ) -> 315.912249725573+224.81255624318j
A76: ='Frequency vector'!G76 -> 289000 | B76: =COMPLEX(0,2*PI()*'Frequency vector'!G76,"j") -> 1815840.5537749j | C76: =IF(IF(CMdata=1,IMABS(K76),'CM choke'!C80)=0, C75, IF(CMdata=1,IMABS(K76),'CM choke'!C80)) -> 1499.205384 | D76: =IF(IF(CMdata=1,DEGREES(IMARGUMENT(K76)),'CM choke'!D80)=0, D75, IF(CMdata=1,DEGREES(IMARGUMENT(K76)),'CM choke'!D80)) -> 25.27086918 | E76: =IF(IF(CMdata=1,IMABS(L76),'CM choke'!E80)=0, E75, IF(CMdata=1,IMABS(L76),'CM choke'!E80)) -> 920.8107529 | F76: =IF(IF(CMdata=1,DEGREES(IMARGUMENT(L76)),'CM choke'!F80)=0, F75, IF(CMdata=1,DEGREES(IMARGUMENT(L76)),'CM choke'!F80)) -> 32.04679726 | G76: 1355.731 | H76: 640.008 | I76: 780.493 | J76: 488.593 | K76: =IF(CMdata=1, IF(Lcm1_core=1, IMDIV(1,IMSUM(IMDIV(1,IMPRODUCT(B76,'Design the AEF circuit'!$G$19*0.001)),IMDIV(1,'Design the AEF circuit'!$G$20*1000),IMPRODUCT(B76,'Design the AEF circuit'!$G$21*0.000000000001))), O76),COMPLEX(G76,H76,"j")) -> 1355.731+640.008j | L76: =IF(CMdata=1, IF(Lcm2_core=1, IMDIV(1, IMSUM(IMDIV(1,IMPRODUCT(B76,'Design the AEF circuit'!$H$19*0.001)), IMDIV(1,'Design the AEF circuit'!$H$20*1000), IMPRODUCT(B76,'Design the AEF circuit'!$H$21*0.000000000001))), Q76), COMPLEX(I76,J76,"j")) -> 780.493+488.593j | N76: =IMSUM(IMDIV(1,IMSUM(IMDIV(1,IMPRODUCT(B76,'Design the AEF circuit'!$G$19*0.001)),IMDIV(1,'Design the AEF circuit'!$G$20*1000))), IMDIV(1,IMSUM(IMDIV(1,IMPRODUCT(B76,'Design the AEF circuit'!$G$22*0.001)),IMDIV(1,'Design the AEF circuit'!$G$23*1000))), IMDIV(1,IMSUM(IMDIV(1,IMPRODUCT(B76,'Design the AEF circuit'!$G$24*0.001)),IMDIV(1,'Design the AEF circuit'!$G$25*1000))) ) -> 325.665727398165+230.3398556341j | O76: =IMDIV(1, IMSUM( IMDIV(1, N76), IMPRODUCT(B76,'Design the AEF circuit'!$G$21*0.000000000001))) -> 327.302316944343+229.75512536248j | P76: =IMSUM(IMDIV(1,IMSUM(IMDIV(1,IMPRODUCT(B76,'Design the AEF circuit'!$H$19*0.001)),IMDIV(1,'Design the AEF circuit'!$H$20*1000))), IMDIV(1,IMSUM(IMDIV(1,IMPRODUCT(B76,'Design the AEF circuit'!$H$22*0.001)),IMDIV(1,'Design the AEF circuit'!$H$23*1000))), IMDIV(1,IMSUM(IMDIV(1,IMPRODUCT(B76,'Design the AEF circuit'!$H$24*0.001)),IMDIV(1,'Design the AEF circuit'!$H$25*1000))) ) -> 316.796573900919+226.632110096481j | Q76: =IMDIV(1, IMSUM( IMDIV(1, P76), IMPRODUCT(B76,'Design the AEF circuit'!$H$21*0.000000000001) ) ) -> 318.363022994352+226.091533852834j
A77: ='Frequency vector'!G77 -> 294000 | B77: =COMPLEX(0,2*PI()*'Frequency vector'!G77,"j") -> 1847256.4803108j | C77: =IF(IF(CMdata=1,IMABS(K77),'CM choke'!C81)=0, C76, IF(CMdata=1,IMABS(K77),'CM choke'!C81)) -> 1342.260084 | D77: =IF(IF(CMdata=1,DEGREES(IMARGUMENT(K77)),'CM choke'!D81)=0, D76, IF(CMdata=1,DEGREES(IMARGUMENT(K77)),'CM choke'!D81)) -> 31.67674251 | E77: =IF(IF(CMdata=1,IMABS(L77),'CM choke'!E81)=0, E76, IF(CMdata=1,IMABS(L77),'CM choke'!E81)) -> 920.6006602 | F77: =IF(IF(CMdata=1,DEGREES(IMARGUMENT(L77)),'CM choke'!F81)=0, F76, IF(CMdata=1,DEGREES(IMARGUMENT(L77)),'CM choke'!F81)) -> 29.87386045 | G77: 1142.296 | H77: 704.856 | I77: 798.275 | J77: 458.544 | K77: =IF(CMdata=1, IF(Lcm1_core=1, IMDIV(1,IMSUM(IMDIV(1,IMPRODUCT(B77,'Design the AEF circuit'!$G$19*0.001)),IMDIV(1,'Design the AEF circuit'!$G$20*1000),IMPRODUCT(B77,'Design the AEF circuit'!$G$21*0.000000000001))), O77),COMPLEX(G77,H77,"j")) -> 1142.296+704.856j | L77: =IF(CMdata=1, IF(Lcm2_core=1, IMDIV(1, IMSUM(IMDIV(1,IMPRODUCT(B77,'Design the AEF circuit'!$H$19*0.001)), IMDIV(1,'Design the AEF circuit'!$H$20*1000), IMPRODUCT(B77,'Design the AEF circuit'!$H$21*0.000000000001))), Q77), COMPLEX(I77,J77,"j")) -> 798.275+458.544j | N77: =IMSUM(IMDIV(1,IMSUM(IMDIV(1,IMPRODUCT(B77,'Design the AEF circuit'!$G$19*0.001)),IMDIV(1,'Design the AEF circuit'!$G$20*1000))), IMDIV(1,IMSUM(IMDIV(1,IMPRODUCT(B77,'Design the AEF circuit'!$G$22*0.001)),IMDIV(1,'Design the AEF circuit'!$G$23*1000))), IMDIV(1,IMSUM(IMDIV(1,IMPRODUCT(B77,'Design the AEF circuit'!$G$24*0.001)),IMDIV(1,'Design the AEF circuit'!$G$25*1000))) ) -> 328.095822201765+231.568840305213j | O77: =IMDIV(1, IMSUM( IMDIV(1, N77), IMPRODUCT(B77,'Design the AEF circuit'!$G$21*0.000000000001))) -> 329.782127886011+230.96238844906j | P77: =IMSUM(IMDIV(1,IMSUM(IMDIV(1,IMPRODUCT(B77,'Design the AEF circuit'!$H$19*0.001)),IMDIV(1,'Design the AEF circuit'!$H$20*1000))), IMDIV(1,IMSUM(IMDIV(1,IMPRODUCT(B77,'Design the AEF circuit'!$H$22*0.001)),IMDIV(1,'Design the AEF circuit'!$H$23*1000))), IMDIV(1,IMSUM(IMDIV(1,IMPRODUCT(B77,'Design the AEF circuit'!$H$24*0.001)),IMDIV(1,'Design the AEF circuit'!$H$25*1000))) ) -> 319.19090091363+227.914619010125j | Q77: =IMDIV(1, IMSUM( IMDIV(1, P77), IMPRODUCT(B77,'Design the AEF circuit'!$H$21*0.000000000001) ) ) -> 320.805613127788+227.354003287693j
A78: ='Frequency vector'!G78 -> 299000 | B78: =COMPLEX(0,2*PI()*'Frequency vector'!G78,"j") -> 1878672.4068467j | C78: =IF(IF(CMdata=1,IMABS(K78),'CM choke'!C82)=0, C77, IF(CMdata=1,IMABS(K78),'CM choke'!C82)) -> 1544.368239 | D78: =IF(IF(CMdata=1,DEGREES(IMARGUMENT(K78)),'CM choke'!D82)=0, D77, IF(CMdata=1,DEGREES(IMARGUMENT(K78)),'CM choke'!D82)) -> 24.95263815 | E78: =IF(IF(CMdata=1,IMABS(L78),'CM choke'!E82)=0, E77, IF(CMdata=1,IMABS(L78),'CM choke'!E82)) -> 989.0233661 | F78: =IF(IF(CMdata=1,DEGREES(IMARGUMENT(L78)),'CM choke'!F82)=0, F77, IF(CMdata=1,DEGREES(IMARGUMENT(L78)),'CM choke'!F82)) -> 25.20123773 | G78: 1400.212 | H78: 651.521 | I78: 894.886 | J78: 421.125 | K78: =IF(CMdata=1, IF(Lcm1_core=1, IMDIV(1,IMSUM(IMDIV(1,IMPRODUCT(B78,'Design the AEF circuit'!$G$19*0.001)),IMDIV(1,'Design the AEF circuit'!$G$20*1000),IMPRODUCT(B78,'Design the AEF circuit'!$G$21*0.000000000001))), O78),COMPLEX(G78,H78,"j")) -> 1400.212+651.521j | L78: =IF(CMdata=1, IF(Lcm2_core=1, IMDIV(1, IMSUM(IMDIV(1,IMPRODUCT(B78,'Design the AEF circuit'!$H$19*0.001)), IMDIV(1,'Design the AEF circuit'!$H$20*1000), IMPRODUCT(B78,'Design the AEF circuit'!$H$21*0.000000000001))), Q78), COMPLEX(I78,J78,"j")) -> 894.886+421.125j | N78: =IMSUM(IMDIV(1,IMSUM(IMDIV(1,IMPRODUCT(B78,'Design the AEF circuit'!$G$19*0.001)),IMDIV(1,'Design the AEF circuit'!$G$20*1000))), IMDIV(1,IMSUM(IMDIV(1,IMPRODUCT(B78,'Design the AEF circuit'!$G$22*0.001)),IMDIV(1,'Design the AEF circuit'!$G$23*1000))), IMDIV(1,IMSUM(IMDIV(1,IMPRODUCT(B78,'Design the AEF circuit'!$G$24*0.001)),IMDIV(1,'Design the AEF circuit'!$G$25*1000))) ) -> 330.5154769215+232.782490617681j | O78: =IMDIV(1, IMSUM( IMDIV(1, N78), IMPRODUCT(B78,'Design the AEF circuit'!$G$21*0.000000000001))) -> 332.252192196696+232.153813763656j | P78: =IMSUM(IMDIV(1,IMSUM(IMDIV(1,IMPRODUCT(B78,'Design the AEF circuit'!$H$19*0.001)),IMDIV(1,'Design the AEF circuit'!$H$20*1000))), IMDIV(1,IMSUM(IMDIV(1,IMPRODUCT(B78,'Design the AEF circuit'!$H$22*0.001)),IMDIV(1,'Design the AEF circuit'!$H$23*1000))), IMDIV(1,IMSUM(IMDIV(1,IMPRODUCT(B78,'Design the AEF circuit'!$H$24*0.001)),IMDIV(1,'Design the AEF circuit'!$H$25*1000))) ) -> 321.576421689099+229.180435610604j | Q78: =IMDIV(1, IMSUM( IMDIV(1, P78), IMPRODUCT(B78,'Design the AEF circuit'!$H$21*0.000000000001) ) ) -> 323.240088844754+228.599295674319j
A79: ='Frequency vector'!G79 -> 304000 | B79: =COMPLEX(0,2*PI()*'Frequency vector'!G79,"j") -> 1910088.33338259j | C79: =IF(IF(CMdata=1,IMABS(K79),'CM choke'!C83)=0, C78, IF(CMdata=1,IMABS(K79),'CM choke'!C83)) -> 1294.899173 | D79: =IF(IF(CMdata=1,DEGREES(IMARGUMENT(K79)),'CM choke'!D83)=0, D78, IF(CMdata=1,DEGREES(IMARGUMENT(K79)),'CM choke'!D83)) -> 30.78249337 | E79: =IF(IF(CMdata=1,IMABS(L79),'CM choke'!E83)=0, E78, IF(CMdata=1,IMABS(L79),'CM choke'!E83)) -> 1023.358397 | F79: =IF(IF(CMdata=1,DEGREES(IMARGUMENT(L79)),'CM choke'!F83)=0, F78, IF(CMdata=1,DEGREES(IMARGUMENT(L79)),'CM choke'!F83)) -> 17.65817316 | G79: 1112.469 | H79: 662.704 | I79: 975.141 | J79: 310.423 | K79: =IF(CMdata=1, IF(Lcm1_core=1, IMDIV(1,IMSUM(IMDIV(1,IMPRODUCT(B79,'Design the AEF circuit'!$G$19*0.001)),IMDIV(1,'Design the AEF circuit'!$G$20*1000),IMPRODUCT(B79,'Design the AEF circuit'!$G$21*0.000000000001))), O79),COMPLEX(G79,H79,"j")) -> 1112.469+662.704j | L79: =IF(CMdata=1, IF(Lcm2_core=1, IMDIV(1, IMSUM(IMDIV(1,IMPRODUCT(B79,'Design the AEF circuit'!$H$19*0.001)), IMDIV(1,'Design the AEF circuit'!$H$20*1000), IMPRODUCT(B79,'Design the AEF circuit'!$H$21*0.000000000001))), Q79), COMPLEX(I79,J79,"j")) -> 975.141+310.423j | N79: =IMSUM(IMDIV(1,IMSUM(IMDIV(1,IMPRODUCT(B79,'Design the AEF circuit'!$G$19*0.001)),IMDIV(1,'Design the AEF circuit'!$G$20*1000))), IMDIV(1,IMSUM(IMDIV(1,IMPRODUCT(B79,'Design the AEF circuit'!$G$22*0.001)),IMDIV(1,'Design the AEF circuit'!$G$23*1000))), IMDIV(1,IMSUM(IMDIV(1,IMPRODUCT(B79,'Design the AEF circuit'!$G$24*0.001)),IMDIV(1,'Design the AEF circuit'!$G$25*1000))) ) -> 332.924814744776+233.980176236053j | O79: =IMDIV(1, IMSUM( IMDIV(1, N79), IMPRODUCT(B79,'Design the AEF circuit'!$G$21*0.000000000001))) -> 334.712623655318+233.32876161949j | P79: =IMSUM(IMDIV(1,IMSUM(IMDIV(1,IMPRODUCT(B79,'Design the AEF circuit'!$H$19*0.001)),IMDIV(1,'Design the AEF circuit'!$H$20*1000))), IMDIV(1,IMSUM(IMDIV(1,IMPRODUCT(B79,'Design the AEF circuit'!$H$22*0.001)),IMDIV(1,'Design the AEF circuit'!$H$23*1000))), IMDIV(1,IMSUM(IMDIV(1,IMPRODUCT(B79,'Design the AEF circuit'!$H$24*0.001)),IMDIV(1,'Design the AEF circuit'!$H$25*1000))) ) -> 323.953163697203+230.428971353941j | Q79: =IMDIV(1, IMSUM( IMDIV(1, P79), IMPRODUCT(B79,'Design the AEF circuit'!$H$21*0.000000000001) ) ) -> 325.666468379389+229.826813027569j
A80: ='Frequency vector'!G80 -> 308000 | B80: =COMPLEX(0,2*PI()*'Frequency vector'!G80,"j") -> 1935221.07461131j | C80: =IF(IF(CMdata=1,IMABS(K80),'CM choke'!C84)=0, C79, IF(CMdata=1,IMABS(K80),'CM choke'!C84)) -> 1468.812612 | D80: =IF(IF(CMdata=1,DEGREES(IMARGUMENT(K80)),'CM choke'!D84)=0, D79, IF(CMdata=1,DEGREES(IMARGUMENT(K80)),'CM choke'!D84)) -> 20.69414922 | E80: =IF(IF(CMdata=1,IMABS(L80),'CM choke'!E84)=0, E79, IF(CMdata=1,IMABS(L80),'CM choke'!E84)) -> 983.8084799 | F80: =IF(IF(CMdata=1,DEGREES(IMARGUMENT(L80)),'CM choke'!F84)=0, F79, IF(CMdata=1,DEGREES(IMARGUMENT(L80)),'CM choke'!F84)) -> 26.30511957 | G80: 1374.045 | H80: 519.048 | I80: 881.932 | J80: 435.976 | K80: =IF(CMdata=1, IF(Lcm1_core=1, IMDIV(1,IMSUM(IMDIV(1,IMPRODUCT(B80,'Design the AEF circuit'!$G$19*0.001)),IMDIV(1,'Design the AEF circuit'!$G$20*1000),IMPRODUCT(B80,'Design the AEF circuit'!$G$21*0.000000000001))), O80),COMPLEX(G80,H80,"j")) -> 1374.045+519.048j | L80: =IF(CMdata=1, IF(Lcm2_core=1, IMDIV(1, IMSUM(IMDIV(1,IMPRODUCT(B80,'Design the AEF circuit'!$H$19*0.001)), IMDIV(1,'Design the AEF circuit'!$H$20*1000), IMPRODUCT(B80,'Design the AEF circuit'!$H$21*0.000000000001))), Q80), COMPLEX(I80,J80,"j")) -> 881.932+435.976j | N80: =IMSUM(IMDIV(1,IMSUM(IMDIV(1,IMPRODUCT(B80,'Design the AEF circuit'!$G$19*0.001)),IMDIV(1,'Design the AEF circuit'!$G$20*1000))), IMDIV(1,IMSUM(IMDIV(1,IMPRODUCT(B80,'Design the AEF circuit'!$G$22*0.001)),IMDIV(1,'Design the AEF circuit'!$G$23*1000))), IMDIV(1,IMSUM(IMDIV(1,IMPRODUCT(B80,'Design the AEF circuit'!$G$24*0.001)),IMDIV(1,'Design the AEF circuit'!$G$25*1000))) ) -> 334.844907408769+234.926449642359j | O80: =IMDIV(1, IMSUM( IMDIV(1, N80), IMPRODUCT(B80,'Design the AEF circuit'!$G$21*0.000000000001))) -> 336.674077186262+234.256469609894j | P80: =IMSUM(IMDIV(1,IMSUM(IMDIV(1,IMPRODUCT(B80,'Design the AEF circuit'!$H$19*0.001)),IMDIV(1,'Design the AEF circuit'!$H$20*1000))), IMDIV(1,IMSUM(IMDIV(1,IMPRODUCT(B80,'Design the AEF circuit'!$H$22*0.001)),IMDIV(1,'Design the AEF circuit'!$H$23*1000))), IMDIV(1,IMSUM(IMDIV(1,IMPRODUCT(B80,'Design the AEF circuit'!$H$24*0.001)),IMDIV(1,'Design the AEF circuit'!$H$25*1000))) ) -> 325.848227149347+231.415004713453j | Q80: =IMDIV(1, IMSUM( IMDIV(1, P80), IMPRODUCT(B80,'Design the AEF circuit'!$H$21*0.000000000001) ) ) -> 327.601726881787+230.795669787152j
A81: ='Frequency vector'!G81 -> 313000 | B81: =COMPLEX(0,2*PI()*'Frequency vector'!G81,"j") -> 1966637.00114721j | C81: =IF(IF(CMdata=1,IMABS(K81),'CM choke'!C85)=0, C80, IF(CMdata=1,IMABS(K81),'CM choke'!C85)) -> 1481.389034 | D81: =IF(IF(CMdata=1,DEGREES(IMARGUMENT(K81)),'CM choke'!D85)=0, D80, IF(CMdata=1,DEGREES(IMARGUMENT(K81)),'CM choke'!D85)) -> 21.06044227 | E81: =IF(IF(CMdata=1,IMABS(L81),'CM choke'!E85)=0, E80, IF(CMdata=1,IMABS(L81),'CM choke'!E85)) -> 959.6356577 | F81: =IF(IF(CMdata=1,DEGREES(IMARGUMENT(L81)),'CM choke'!F85)=0, F80, IF(CMdata=1,DEGREES(IMARGUMENT(L81)),'CM choke'!F85)) -> 25.86631609 | G81: 1382.435 | H81: 532.341 | I81: 863.494 | J81: 418.663 | K81: =IF(CMdata=1, IF(Lcm1_core=1, IMDIV(1,IMSUM(IMDIV(1,IMPRODUCT(B81,'Design the AEF circuit'!$G$19*0.001)),IMDIV(1,'Design the AEF circuit'!$G$20*1000),IMPRODUCT(B81,'Design the AEF circuit'!$G$21*0.000000000001))), O81),COMPLEX(G81,H81,"j")) -> 1382.435+532.341j | L81: =IF(CMdata=1, IF(Lcm2_core=1, IMDIV(1, IMSUM(IMDIV(1,IMPRODUCT(B81,'Design the AEF circuit'!$H$19*0.001)), IMDIV(1,'Design the AEF circuit'!$H$20*1000), IMPRODUCT(B81,'Design the AEF circuit'!$H$21*0.000000000001))), Q81), COMPLEX(I81,J81,"j")) -> 863.494+418.663j | N81: =IMSUM(IMDIV(1,IMSUM(IMDIV(1,IMPRODUCT(B81,'Design the AEF circuit'!$G$19*0.001)),IMDIV(1,'Design the AEF circuit'!$G$20*1000))), IMDIV(1,IMSUM(IMDIV(1,IMPRODUCT(B81,'Design the AEF circuit'!$G$22*0.001)),IMDIV(1,'Design the AEF circuit'!$G$23*1000))), IMDIV(1,IMSUM(IMDIV(1,IMPRODUCT(B81,'Design the AEF circuit'!$G$24*0.001)),IMDIV(1,'Design the AEF circuit'!$G$25*1000))) ) -> 337.235829201291+236.094022798098j | O81: =IMDIV(1, IMSUM( IMDIV(1, N81), IMPRODUCT(B81,'Design the AEF circuit'!$G$21*0.000000000001))) -> 339.117299054324+235.400359811181j | P81: =IMSUM(IMDIV(1,IMSUM(IMDIV(1,IMPRODUCT(B81,'Design the AEF circuit'!$H$19*0.001)),IMDIV(1,'Design the AEF circuit'!$H$20*1000))), IMDIV(1,IMSUM(IMDIV(1,IMPRODUCT(B81,'Design the AEF circuit'!$H$22*0.001)),IMDIV(1,'Design the AEF circuit'!$H$23*1000))), IMDIV(1,IMSUM(IMDIV(1,IMPRODUCT(B81,'Design the AEF circuit'!$H$24*0.001)),IMDIV(1,'Design the AEF circuit'!$H$25*1000))) ) -> 328.209101680111+232.631161194547j | Q81: =IMDIV(1, IMSUM( IMDIV(1, P81), IMPRODUCT(B81,'Design the AEF circuit'!$H$21*0.000000000001) ) ) -> 330.013443211558+231.989895892554j
A82: ='Frequency vector'!G82 -> 318000 | B82: =COMPLEX(0,2*PI()*'Frequency vector'!G82,"j") -> 1998052.92768311j | C82: =IF(IF(CMdata=1,IMABS(K82),'CM choke'!C86)=0, C81, IF(CMdata=1,IMABS(K82),'CM choke'!C86)) -> 1480.279886 | D82: =IF(IF(CMdata=1,DEGREES(IMARGUMENT(K82)),'CM choke'!D86)=0, D81, IF(CMdata=1,DEGREES(IMARGUMENT(K82)),'CM choke'!D86)) -> 20.01596038 | E82: =IF(IF(CMdata=1,IMABS(L82),'CM choke'!E86)=0, E81, IF(CMdata=1,IMABS(L82),'CM choke'!E86)) -> 976.2491 | F82: =IF(IF(CMdata=1,DEGREES(IMARGUMENT(L82)),'CM choke'!F86)=0, F81, IF(CMdata=1,DEGREES(IMARGUMENT(L82)),'CM choke'!F86)) -> 24.65857531 | G82: 1390.867 | H82: 506.673 | I82: 887.225 | J82: 407.301 | K82: =IF(CMdata=1, IF(Lcm1_core=1, IMDIV(1,IMSUM(IMDIV(1,IMPRODUCT(B82,'Design the AEF circuit'!$G$19*0.001)),IMDIV(1,'Design the AEF circuit'!$G$20*1000),IMPRODUCT(B82,'Design the AEF circuit'!$G$21*0.000000000001))), O82),COMPLEX(G82,H82,"j")) -> 1390.867+506.673j | L82: =IF(CMdata=1, IF(Lcm2_core=1, IMDIV(1, IMSUM(IMDIV(1,IMPRODUCT(B82,'Design the AEF circuit'!$H$19*0.001)), IMDIV(1,'Design the AEF circuit'!$H$20*1000), IMPRODUCT(B82,'Design the AEF circuit'!$H$21*0.000000000001))), Q82), COMPLEX(I82,J82,"j")) -> 887.225+407.301j | N82: =IMSUM(IMDIV(1,IMSUM(IMDIV(1,IMPRODUCT(B82,'Design the AEF circuit'!$G$19*0.001)),IMDIV(1,'Design the AEF circuit'!$G$20*1000))), IMDIV(1,IMSUM(IMDIV(1,IMPRODUCT(B82,'Design the AEF circuit'!$G$22*0.001)),IMDIV(1,'Design the AEF circuit'!$G$23*1000))), IMDIV(1,IMSUM(IMDIV(1,IMPRODUCT(B82,'Design the AEF circuit'!$G$24*0.001)),IMDIV(1,'Design the AEF circuit'!$G$25*1000))) ) -> 339.616532290615+237.244212306154j | O82: =IMDIV(1, IMSUM( IMDIV(1, N82), IMPRODUCT(B82,'Design the AEF circuit'!$G$21*0.000000000001))) -> 341.550958100746+236.526329681309j | P82: =IMSUM(IMDIV(1,IMSUM(IMDIV(1,IMPRODUCT(B82,'Design the AEF circuit'!$H$19*0.001)),IMDIV(1,'Design the AEF circuit'!$H$20*1000))), IMDIV(1,IMSUM(IMDIV(1,IMPRODUCT(B82,'Design the AEF circuit'!$H$22*0.001)),IMDIV(1,'Design the AEF circuit'!$H$23*1000))), IMDIV(1,IMSUM(IMDIV(1,IMPRODUCT(B82,'Design the AEF circuit'!$H$24*0.001)),IMDIV(1,'Design the AEF circuit'!$H$25*1000))) ) -> 330.561061721154+233.828729711846j | Q82: =IMDIV(1, IMSUM( IMDIV(1, P82), IMPRODUCT(B82,'Design the AEF circuit'!$H$21*0.000000000001) ) ) -> 332.416899993916+233.165015643454j
A83: ='Frequency vector'!G83 -> 323000 | B83: =COMPLEX(0,2*PI()*'Frequency vector'!G83,"j") -> 2029468.85421901j | C83: =IF(IF(CMdata=1,IMABS(K83),'CM choke'!C87)=0, C82, IF(CMdata=1,IMABS(K83),'CM choke'!C87)) -> 1512.831307 | D83: =IF(IF(CMdata=1,DEGREES(IMARGUMENT(K83)),'CM choke'!D87)=0, D82, IF(CMdata=1,DEGREES(IMARGUMENT(K83)),'CM choke'!D87)) -> 19.47201993 | E83: =IF(IF(CMdata=1,IMABS(L83),'CM choke'!E87)=0, E82, IF(CMdata=1,IMABS(L83),'CM choke'!E87)) -> 986.0332756 | F83: =IF(IF(CMdata=1,DEGREES(IMARGUMENT(L83)),'CM choke'!F87)=0, F82, IF(CMdata=1,DEGREES(IMARGUMENT(L83)),'CM choke'!F87)) -> 23.02191299 | G83: 1426.304 | H83: 504.297 | I83: 907.501 | J83: 385.621 | K83: =IF(CMdata=1, IF(Lcm1_core=1, IMDIV(1,IMSUM(IMDIV(1,IMPRODUCT(B83,'Design the AEF circuit'!$G$19*0.001)),IMDIV(1,'Design the AEF circuit'!$G$20*1000),IMPRODUCT(B83,'Design the AEF circuit'!$G$21*0.000000000001))), O83),COMPLEX(G83,H83,"j")) -> 1426.304+504.297j | L83: =IF(CMdata=1, IF(Lcm2_core=1, IMDIV(1, IMSUM(IMDIV(1,IMPRODUCT(B83,'Design the AEF circuit'!$H$19*0.001)), IMDIV(1,'Design the AEF circuit'!$H$20*1000), IMPRODUCT(B83,'Design the AEF circuit'!$H$21*0.000000000001))), Q83), COMPLEX(I83,J83,"j")) -> 907.501+385.621j | N83: =IMSUM(IMDIV(1,IMSUM(IMDIV(1,IMPRODUCT(B83,'Design the AEF circuit'!$G$19*0.001)),IMDIV(1,'Design the AEF circuit'!$G$20*1000))), IMDIV(1,IMSUM(IMDIV(1,IMPRODUCT(B83,'Design the AEF circuit'!$G$22*0.001)),IMDIV(1,'Design the AEF circuit'!$G$23*1000))), IMDIV(1,IMSUM(IMDIV(1,IMPRODUCT(B83,'Design the AEF circuit'!$G$24*0.001)),IMDIV(1,'Design the AEF circuit'!$G$25*1000))) ) -> 341.986981570617+238.376623719701j | O83: =IMDIV(1, IMSUM( IMDIV(1, N83), IMPRODUCT(B83,'Design the AEF circuit'!$G$21*0.000000000001))) -> 343.975008602574+237.633977058987j | P83: =IMSUM(IMDIV(1,IMSUM(IMDIV(1,IMPRODUCT(B83,'Design the AEF circuit'!$H$19*0.001)),IMDIV(1,'Design the AEF circuit'!$H$20*1000))), IMDIV(1,IMSUM(IMDIV(1,IMPRODUCT(B83,'Design the AEF circuit'!$H$22*0.001)),IMDIV(1,'Design the AEF circuit'!$H$23*1000))), IMDIV(1,IMSUM(IMDIV(1,IMPRODUCT(B83,'Design the AEF circuit'!$H$24*0.001)),IMDIV(1,'Design the AEF circuit'!$H$25*1000))) ) -> 332.903999280902+235.007353757308j | Q83: =IMDIV(1, IMSUM( IMDIV(1, P83), IMPRODUCT(B83,'Design the AEF circuit'!$H$21*0.000000000001) ) ) -> 334.811978814804+234.320664696167j
A84: ='Frequency vector'!G84 -> 328000 | B84: =COMPLEX(0,2*PI()*'Frequency vector'!G84,"j") -> 2060884.7807549j | C84: =IF(IF(CMdata=1,IMABS(K84),'CM choke'!C88)=0, C83, IF(CMdata=1,IMABS(K84),'CM choke'!C88)) -> 1511.292891 | D84: =IF(IF(CMdata=1,DEGREES(IMARGUMENT(K84)),'CM choke'!D88)=0, D83, IF(CMdata=1,DEGREES(IMARGUMENT(K84)),'CM choke'!D88)) -> 19.38843434 | E84: =IF(IF(CMdata=1,IMABS(L84),'CM choke'!E88)=0, E83, IF(CMdata=1,IMABS(L84),'CM choke'!E88)) -> 985.8102237 | F84: =IF(IF(CMdata=1,DEGREES(IMARGUMENT(L84)),'CM choke'!F88)=0, F83, IF(CMdata=1,DEGREES(IMARGUMENT(L84)),'CM choke'!F88)) -> 21.73540129 | G84: 1425.587 | H84: 501.705 | I84: 915.723 | J84: 365.066 | K84: =IF(CMdata=1, IF(Lcm1_core=1, IMDIV(1,IMSUM(IMDIV(1,IMPRODUCT(B84,'Design the AEF circuit'!$G$19*0.001)),IMDIV(1,'Design the AEF circuit'!$G$20*1000),IMPRODUCT(B84,'Design the AEF circuit'!$G$21*0.000000000001))), O84),COMPLEX(G84,H84,"j")) -> 1425.587+501.705j | L84: =IF(CMdata=1, IF(Lcm2_core=1, IMDIV(1, IMSUM(IMDIV(1,IMPRODUCT(B84,'Design the AEF circuit'!$H$19*0.001)), IMDIV(1,'Design the AEF circuit'!$H$20*1000), IMPRODUCT(B84,'Design the AEF circuit'!$H$21*0.000000000001))), Q84), COMPLEX(I84,J84,"j")) -> 915.723+365.066j | N84: =IMSUM(IMDIV(1,IMSUM(IMDIV(1,IMPRODUCT(B84,'Design the AEF circuit'!$G$19*0.001)),IMDIV(1,'Design the AEF circuit'!$G$20*1000))), IMDIV(1,IMSUM(IMDIV(1,IMPRODUCT(B84,'Design the AEF circuit'!$G$22*0.001)),IMDIV(1,'Design the AEF circuit'!$G$23*1000))), IMDIV(1,IMSUM(IMDIV(1,IMPRODUCT(B84,'Design the AEF circuit'!$G$24*0.001)),IMDIV(1,'Design the AEF circuit'!$G$25*1000))) ) -> 344.347113062699+239.490916158536j | O84: =IMDIV(1, IMSUM( IMDIV(1, N84), IMPRODUCT(B84,'Design the AEF circuit'!$G$21*0.000000000001))) -> 346.389375716166+238.722953792017j | P84: =IMSUM(IMDIV(1,IMSUM(IMDIV(1,IMPRODUCT(B84,'Design the AEF circuit'!$H$19*0.001)),IMDIV(1,'Design the AEF circuit'!$H$20*1000))), IMDIV(1,IMSUM(IMDIV(1,IMPRODUCT(B84,'Design the AEF circuit'!$H$22*0.001)),IMDIV(1,'Design the AEF circuit'!$H$23*1000))), IMDIV(1,IMSUM(IMDIV(1,IMPRODUCT(B84,'Design the AEF circuit'!$H$24*0.001)),IMDIV(1,'Design the AEF circuit'!$H$25*1000))) ) -> 335.237782404711+236.166729286354j | Q84: =IMDIV(1, IMSUM( IMDIV(1, P84), IMPRODUCT(B84,'Design the AEF circuit'!$H$21*0.000000000001) ) ) -> 337.198537051401+235.456531605004j
A85: ='Frequency vector'!G85 -> 333000 | B85: =COMPLEX(0,2*PI()*'Frequency vector'!G85,"j") -> 2092300.7072908j | C85: =IF(IF(CMdata=1,IMABS(K85),'CM choke'!C89)=0, C84, IF(CMdata=1,IMABS(K85),'CM choke'!C89)) -> 1518.783169 | D85: =IF(IF(CMdata=1,DEGREES(IMARGUMENT(K85)),'CM choke'!D89)=0, D84, IF(CMdata=1,DEGREES(IMARGUMENT(K85)),'CM choke'!D89)) -> 19.39917063 | E85: =IF(IF(CMdata=1,IMABS(L85),'CM choke'!E89)=0, E84, IF(CMdata=1,IMABS(L85),'CM choke'!E89)) -> 990.9183 | F85: =IF(IF(CMdata=1,DEGREES(IMARGUMENT(L85)),'CM choke'!F89)=0, F84, IF(CMdata=1,DEGREES(IMARGUMENT(L85)),'CM choke'!F89)) -> 21.15049283 | G85: 1432.558 | H85: 504.46 | I85: 924.166 | J85: 357.542 | K85: =IF(CMdata=1, IF(Lcm1_core=1, IMDIV(1,IMSUM(IMDIV(1,IMPRODUCT(B85,'Design the AEF circuit'!$G$19*0.001)),IMDIV(1,'Design the AEF circuit'!$G$20*1000),IMPRODUCT(B85,'Design the AEF circuit'!$G$21*0.000000000001))), O85),COMPLEX(G85,H85,"j")) -> 1432.558+504.46j | L85: =IF(CMdata=1, IF(Lcm2_core=1, IMDIV(1, IMSUM(IMDIV(1,IMPRODUCT(B85,'Design the AEF circuit'!$H$19*0.001)), IMDIV(1,'Design the AEF circuit'!$H$20*1000), IMPRODUCT(B85,'Design the AEF circuit'!$H$21*0.000000000001))), Q85), COMPLEX(I85,J85,"j")) -> 924.166+357.542j | N85: =IMSUM(IMDIV(1,IMSUM(IMDIV(1,IMPRODUCT(B85,'Design the AEF circuit'!$G$19*0.001)),IMDIV(1,'Design the AEF circuit'!$G$20*1000))), IMDIV(1,IMSUM(IMDIV(1,IMPRODUCT(B85,'Design the AEF circuit'!$G$22*0.001)),IMDIV(1,'Design the AEF circuit'!$G$23*1000))), IMDIV(1,IMSUM(IMDIV(1,IMPRODUCT(B85,'Design the AEF circuit'!$G$24*0.001)),IMDIV(1,'Design the AEF circuit'!$G$25*1000))) ) -> 346.696838209801+240.586799064718j | O85: =IMDIV(1, IMSUM( IMDIV(1, N85), IMPRODUCT(B85,'Design the AEF circuit'!$G$21*0.000000000001))) -> 348.793959798572+239.79296249521j | P85: =IMSUM(IMDIV(1,IMSUM(IMDIV(1,IMPRODUCT(B85,'Design the AEF circuit'!$H$19*0.001)),IMDIV(1,'Design the AEF circuit'!$H$20*1000))), IMDIV(1,IMSUM(IMDIV(1,IMPRODUCT(B85,'Design the AEF circuit'!$H$22*0.001)),IMDIV(1,'Design the AEF circuit'!$H$23*1000))), IMDIV(1,IMSUM(IMDIV(1,IMPRODUCT(B85,'Design the AEF circuit'!$H$24*0.001)),IMDIV(1,'Design the AEF circuit'!$H$25*1000))) ) -> 337.562259087216+237.306601461923j | Q85: =IMDIV(1, IMSUM( IMDIV(1, P85), IMPRODUCT(B85,'Design the AEF circuit'!$H$21*0.000000000001) ) ) -> 339.576411810754+236.572354568843j
A86: ='Frequency vector'!G86 -> 338000 | B86: =COMPLEX(0,2*PI()*'Frequency vector'!G86,"j") -> 2123716.6338267j | C86: =IF(IF(CMdata=1,IMABS(K86),'CM choke'!C90)=0, C85, IF(CMdata=1,IMABS(K86),'CM choke'!C90)) -> 1518.377282 | D86: =IF(IF(CMdata=1,DEGREES(IMARGUMENT(K86)),'CM choke'!D90)=0, D85, IF(CMdata=1,DEGREES(IMARGUMENT(K86)),'CM choke'!D90)) -> 18.12433611 | E86: =IF(IF(CMdata=1,IMABS(L86),'CM choke'!E90)=0, E85, IF(CMdata=1,IMABS(L86),'CM choke'!E90)) -> 995.7804586 | F86: =IF(IF(CMdata=1,DEGREES(IMARGUMENT(L86)),'CM choke'!F90)=0, F85, IF(CMdata=1,DEGREES(IMARGUMENT(L86)),'CM choke'!F90)) -> 20.10045289 | G86: 1443.041 | H86: 472.337 | I86: 935.129 | J86: 342.217 | K86: =IF(CMdata=1, IF(Lcm1_core=1, IMDIV(1,IMSUM(IMDIV(1,IMPRODUCT(B86,'Design the AEF circuit'!$G$19*0.001)),IMDIV(1,'Design the AEF circuit'!$G$20*1000),IMPRODUCT(B86,'Design the AEF circuit'!$G$21*0.000000000001))), O86),COMPLEX(G86,H86,"j")) -> 1443.041+472.337j | L86: =IF(CMdata=1, IF(Lcm2_core=1, IMDIV(1, IMSUM(IMDIV(1,IMPRODUCT(B86,'Design the AEF circuit'!$H$19*0.001)), IMDIV(1,'Design the AEF circuit'!$H$20*1000), IMPRODUCT(B86,'Design the AEF circuit'!$H$21*0.000000000001))), Q86), COMPLEX(I86,J86,"j")) -> 935.129+342.217j | N86: =IMSUM(IMDIV(1,IMSUM(IMDIV(1,IMPRODUCT(B86,'Design the AEF circuit'!$G$19*0.001)),IMDIV(1,'Design the AEF circuit'!$G$20*1000))), IMDIV(1,IMSUM(IMDIV(1,IMPRODUCT(B86,'Design the AEF circuit'!$G$22*0.001)),IMDIV(1,'Design the AEF circuit'!$G$23*1000))), IMDIV(1,IMSUM(IMDIV(1,IMPRODUCT(B86,'Design the AEF circuit'!$G$24*0.001)),IMDIV(1,'Design the AEF circuit'!$G$25*1000))) ) -> 349.036047727123+241.664029108149j | O86: =IMDIV(1, IMSUM( IMDIV(1, N86), IMPRODUCT(B86,'Design the AEF circuit'!$G$21*0.000000000001))) -> 351.188640284758+240.843753456989j | P86: =IMSUM(IMDIV(1,IMSUM(IMDIV(1,IMPRODUCT(B86,'Design the AEF circuit'!$H$19*0.001)),IMDIV(1,'Design the AEF circuit'!$H$20*1000))), IMDIV(1,IMSUM(IMDIV(1,IMPRODUCT(B86,'Design the AEF circuit'!$H$22*0.001)),IMDIV(1,'Design the AEF circuit'!$H$23*1000))), IMDIV(1,IMSUM(IMDIV(1,IMPRODUCT(B86,'Design the AEF circuit'!$H$24*0.001)),IMDIV(1,'Design the AEF circuit'!$H$25*1000))) ) -> 339.877260774542+238.42676155778j | Q86: =IMDIV(1, IMSUM( IMDIV(1, P86), IMPRODUCT(B86,'Design the AEF circuit'!$H$21*0.000000000001) ) ) -> 341.945423457512+237.667918335752j
A87: ='Frequency vector'!G87 -> 343000 | B87: =COMPLEX(0,2*PI()*'Frequency vector'!G87,"j") -> 2155132.5603626j | C87: =IF(IF(CMdata=1,IMABS(K87),'CM choke'!C91)=0, C86, IF(CMdata=1,IMABS(K87),'CM choke'!C91)) -> 1495.749184 | D87: =IF(IF(CMdata=1,DEGREES(IMARGUMENT(K87)),'CM choke'!D91)=0, D86, IF(CMdata=1,DEGREES(IMARGUMENT(K87)),'CM choke'!D91)) -> 17.59254479 | E87: =IF(IF(CMdata=1,IMABS(L87),'CM choke'!E91)=0, E86, IF(CMdata=1,IMABS(L87),'CM choke'!E91)) -> 998.4633589 | F87: =IF(IF(CMdata=1,DEGREES(IMARGUMENT(L87)),'CM choke'!F91)=0, F86, IF(CMdata=1,DEGREES(IMARGUMENT(L87)),'CM choke'!F91)) -> 19.15216775 | G87: 1425.793 | H87: 452.084 | I87: 943.199 | J87: 327.574 | K87: =IF(CMdata=1, IF(Lcm1_core=1, IMDIV(1,IMSUM(IMDIV(1,IMPRODUCT(B87,'Design the AEF circuit'!$G$19*0.001)),IMDIV(1,'Design the AEF circuit'!$G$20*1000),IMPRODUCT(B87,'Design the AEF circuit'!$G$21*0.000000000001))), O87),COMPLEX(G87,H87,"j")) -> 1425.793+452.084j | L87: =IF(CMdata=1, IF(Lcm2_core=1, IMDIV(1, IMSUM(IMDIV(1,IMPRODUCT(B87,'Design the AEF circuit'!$H$19*0.001)), IMDIV(1,'Design the AEF circuit'!$H$20*1000), IMPRODUCT(B87,'Design the AEF circuit'!$H$21*0.000000000001))), Q87), COMPLEX(I87,J87,"j")) -> 943.199+327.574j | N87: =IMSUM(IMDIV(1,IMSUM(IMDIV(1,IMPRODUCT(B87,'Design the AEF circuit'!$G$19*0.001)),IMDIV(1,'Design the AEF circuit'!$G$20*1000))), IMDIV(1,IMSUM(IMDIV(1,IMPRODUCT(B87,'Design the AEF circuit'!$G$22*0.001)),IMDIV(1,'Design the AEF circuit'!$G$23*1000))), IMDIV(1,IMSUM(IMDIV(1,IMPRODUCT(B87,'Design the AEF circuit'!$G$24*0.001)),IMDIV(1,'Design the AEF circuit'!$G$25*1000))) ) -> 351.364615053841+242.722407237714j | O87: =IMDIV(1, IMSUM( IMDIV(1, N87), IMPRODUCT(B87,'Design the AEF circuit'!$G$21*0.000000000001))) -> 353.573279164942+241.875121690404j | P87: =IMSUM(IMDIV(1,IMSUM(IMDIV(1,IMPRODUCT(B87,'Design the AEF circuit'!$H$19*0.001)),IMDIV(1,'Design the AEF circuit'!$H$20*1000))), IMDIV(1,IMSUM(IMDIV(1,IMPRODUCT(B87,'Design the AEF circuit'!$H$22*0.001)),IMDIV(1,'Design the AEF circuit'!$H$23*1000))), IMDIV(1,IMSUM(IMDIV(1,IMPRODUCT(B87,'Design the AEF circuit'!$H$24*0.001)),IMDIV(1,'Design the AEF circuit'!$H$25*1000))) ) -> 342.18260549753+239.527044014949j | Q87: =IMDIV(1, IMSUM( IMDIV(1, P87), IMPRODUCT(B87,'Design the AEF circuit'!$H$21*0.000000000001) ) ) -> 344.305378771897+238.743051259601j
A88: ='Frequency vector'!G88 -> 348000 | B88: =COMPLEX(0,2*PI()*'Frequency vector'!G88,"j") -> 2186548.4868985j | C88: =IF(IF(CMdata=1,IMABS(K88),'CM choke'!C92)=0, C87, IF(CMdata=1,IMABS(K88),'CM choke'!C92)) -> 1539.60577 | D88: =IF(IF(CMdata=1,DEGREES(IMARGUMENT(K88)),'CM choke'!D92)=0, D87, IF(CMdata=1,DEGREES(IMARGUMENT(K88)),'CM choke'!D92)) -> 18.09059502 | E88: =IF(IF(CMdata=1,IMABS(L88),'CM choke'!E92)=0, E87, IF(CMdata=1,IMABS(L88),'CM choke'!E92)) -> 1016.722599 | F88: =IF(IF(CMdata=1,DEGREES(IMARGUMENT(L88)),'CM choke'!F92)=0, F87, IF(CMdata=1,DEGREES(IMARGUMENT(L88)),'CM choke'!F92)) -> 17.14868104 | G88: 1463.498 | H88: 478.079 | I88: 971.522 | J88: 299.783 | K88: =IF(CMdata=1, IF(Lcm1_core=1, IMDIV(1,IMSUM(IMDIV(1,IMPRODUCT(B88,'Design the AEF circuit'!$G$19*0.001)),IMDIV(1,'Design the AEF circuit'!$G$20*1000),IMPRODUCT(B88,'Design the AEF circuit'!$G$21*0.000000000001))), O88),COMPLEX(G88,H88,"j")) -> 1463.498+478.079j | L88: =IF(CMdata=1, IF(Lcm2_core=1, IMDIV(1, IMSUM(IMDIV(1,IMPRODUCT(B88,'Design the AEF circuit'!$H$19*0.001)), IMDIV(1,'Design the AEF circuit'!$H$20*1000), IMPRODUCT(B88,'Design the AEF circuit'!$H$21*0.000000000001))), Q88), COMPLEX(I88,J88,"j")) -> 971.522+299.783j | N88: =IMSUM(IMDIV(1,IMSUM(IMDIV(1,IMPRODUCT(B88,'Design the AEF circuit'!$G$19*0.001)),IMDIV(1,'Design the AEF circuit'!$G$20*1000))), IMDIV(1,IMSUM(IMDIV(1,IMPRODUCT(B88,'Design the AEF circuit'!$G$22*0.001)),IMDIV(1,'Design the AEF circuit'!$G$23*1000))), IMDIV(1,IMSUM(IMDIV(1,IMPRODUCT(B88,'Design the AEF circuit'!$G$24*0.001)),IMDIV(1,'Design the AEF circuit'!$G$25*1000))) ) -> 353.682399445253+243.761775873238j | O88: =IMDIV(1, IMSUM( IMDIV(1, N88), IMPRODUCT(B88,'Design the AEF circuit'!$G$21*0.000000000001))) -> 355.947724101496+242.886904123867j | P88: =IMSUM(IMDIV(1,IMSUM(IMDIV(1,IMPRODUCT(B88,'Design the AEF circuit'!$H$19*0.001)),IMDIV(1,'Design the AEF circuit'!$H$20*1000))), IMDIV(1,IMSUM(IMDIV(1,IMPRODUCT(B88,'Design the AEF circuit'!$H$22*0.001)),IMDIV(1,'Design the AEF circuit'!$H$23*1000))), IMDIV(1,IMSUM(IMDIV(1,IMPRODUCT(B88,'Design the AEF circuit'!$H$24*0.001)),IMDIV(1,'Design the AEF circuit'!$H$25*1000))) ) -> 344.478100672605+240.607323645063j | Q88: =IMDIV(1, IMSUM( IMDIV(1, P88), IMPRODUCT(B88,'Design the AEF circuit'!$H$21*0.000000000001) ) ) -> 346.656073774547+239.797622502549j
A89: ='Frequency vector'!G89 -> 353000 | B89: =COMPLEX(0,2*PI()*'Frequency vector'!G89,"j") -> 2217964.41343439j | C89: =IF(IF(CMdata=1,IMABS(K89),'CM choke'!C93)=0, C88, IF(CMdata=1,IMABS(K89),'CM choke'!C93)) -> 1543.725332 | D89: =IF(IF(CMdata=1,DEGREES(IMARGUMENT(K89)),'CM choke'!D93)=0, D88, IF(CMdata=1,DEGREES(IMARGUMENT(K89)),'CM choke'!D93)) -> 17.40930215 | E89: =IF(IF(CMdata=1,IMABS(L89),'CM choke'!E93)=0, E88, IF(CMdata=1,IMABS(L89),'CM choke'!E93)) -> 1000.108971 | F89: =IF(IF(CMdata=1,DEGREES(IMARGUMENT(L89)),'CM choke'!F93)=0, F88, IF(CMdata=1,DEGREES(IMARGUMENT(L89)),'CM choke'!F93)) -> 15.69738554 | G89: 1473.01 | H89: 461.876 | I89: 962.809 | J89: 270.586 | K89: =IF(CMdata=1, IF(Lcm1_core=1, IMDIV(1,IMSUM(IMDIV(1,IMPRODUCT(B89,'Design the AEF circuit'!$G$19*0.001)),IMDIV(1,'Design the AEF circuit'!$G$20*1000),IMPRODUCT(B89,'Design the AEF circuit'!$G$21*0.000000000001))), O89),COMPLEX(G89,H89,"j")) -> 1473.01+461.876j | L89: =IF(CMdata=1, IF(Lcm2_core=1, IMDIV(1, IMSUM(IMDIV(1,IMPRODUCT(B89,'Design the AEF circuit'!$H$19*0.001)), IMDIV(1,'Design the AEF circuit'!$H$20*1000), IMPRODUCT(B89,'Design the AEF circuit'!$H$21*0.000000000001))), Q89), COMPLEX(I89,J89,"j")) -> 962.809+270.586j | N89: =IMSUM(IMDIV(1,IMSUM(IMDIV(1,IMPRODUCT(B89,'Design the AEF circuit'!$G$19*0.001)),IMDIV(1,'Design the AEF circuit'!$G$20*1000))), IMDIV(1,IMSUM(IMDIV(1,IMPRODUCT(B89,'Design the AEF circuit'!$G$22*0.001)),IMDIV(1,'Design the AEF circuit'!$G$23*1000))), IMDIV(1,IMSUM(IMDIV(1,IMPRODUCT(B89,'Design the AEF circuit'!$G$24*0.001)),IMDIV(1,'Design the AEF circuit'!$G$25*1000))) ) -> 355.989248740601+244.782016233375j | O89: =IMDIV(1, IMSUM( IMDIV(1, N89), IMPRODUCT(B89,'Design the AEF circuit'!$G$21*0.000000000001))) -> 358.311811220672+243.878976926778j | P89: =IMSUM(IMDIV(1,IMSUM(IMDIV(1,IMPRODUCT(B89,'Design the AEF circuit'!$H$19*0.001)),IMDIV(1,'Design the AEF circuit'!$H$20*1000))), IMDIV(1,IMSUM(IMDIV(1,IMPRODUCT(B89,'Design the AEF circuit'!$H$22*0.001)),IMDIV(1,'Design the AEF circuit'!$H$23*1000))), IMDIV(1,IMSUM(IMDIV(1,IMPRODUCT(B89,'Design the AEF circuit'!$H$24*0.001)),IMDIV(1,'Design the AEF circuit'!$H$25*1000))) ) -> 346.763545602982+241.667512974511j | Q89: =IMDIV(1, IMSUM( IMDIV(1, P89), IMPRODUCT(B89,'Design the AEF circuit'!$H$21*0.000000000001) ) ) -> 348.997296250915+240.831539377274j
A90: ='Frequency vector'!G90 -> 358000 | B90: =COMPLEX(0,2*PI()*'Frequency vector'!G90,"j") -> 2249380.33997029j | C90: =IF(IF(CMdata=1,IMABS(K90),'CM choke'!C94)=0, C89, IF(CMdata=1,IMABS(K90),'CM choke'!C94)) -> 1567.742748 | D90: =IF(IF(CMdata=1,DEGREES(IMARGUMENT(K90)),'CM choke'!D94)=0, D89, IF(CMdata=1,DEGREES(IMARGUMENT(K90)),'CM choke'!D94)) -> 16.89529215 | E90: =IF(IF(CMdata=1,IMABS(L90),'CM choke'!E94)=0, E89, IF(CMdata=1,IMABS(L90),'CM choke'!E94)) -> 1004.982306 | F90: =IF(IF(CMdata=1,DEGREES(IMARGUMENT(L90)),'CM choke'!F94)=0, F89, IF(CMdata=1,DEGREES(IMARGUMENT(L90)),'CM choke'!F94)) -> 14.5075687 | G90: 1500.075 | H90: 455.623 | I90: 972.938 | J90: 251.756 | K90: =IF(CMdata=1, IF(Lcm1_core=1, IMDIV(1,IMSUM(IMDIV(1,IMPRODUCT(B90,'Design the AEF circuit'!$G$19*0.001)),IMDIV(1,'Design the AEF circuit'!$G$20*1000),IMPRODUCT(B90,'Design the AEF circuit'!$G$21*0.000000000001))), O90),COMPLEX(G90,H90,"j")) -> 1500.075+455.623j | L90: =IF(CMdata=1, IF(Lcm2_core=1, IMDIV(1, IMSUM(IMDIV(1,IMPRODUCT(B90,'Design the AEF circuit'!$H$19*0.001)), IMDIV(1,'Design the AEF circuit'!$H$20*1000), IMPRODUCT(B90,'Design the AEF circuit'!$H$21*0.000000000001))), Q90), COMPLEX(I90,J90,"j")) -> 972.938+251.756j | N90: =IMSUM(IMDIV(1,IMSUM(IMDIV(1,IMPRODUCT(B90,'Design the AEF circuit'!$G$19*0.001)),IMDIV(1,'Design the AEF circuit'!$G$20*1000))), IMDIV(1,IMSUM(IMDIV(1,IMPRODUCT(B90,'Design the AEF circuit'!$G$22*0.001)),IMDIV(1,'Design the AEF circuit'!$G$23*1000))), IMDIV(1,IMSUM(IMDIV(1,IMPRODUCT(B90,'Design the AEF circuit'!$G$24*0.001)),IMDIV(1,'Design the AEF circuit'!$G$25*1000))) ) -> 358.28500183807+245.783045794393j | O90: =IMDIV(1, IMSUM( IMDIV(1, N90), IMPRODUCT(B90,'Design the AEF circuit'!$G$21*0.000000000001))) -> 360.665367610594+244.851252965097j | P90: =IMSUM(IMDIV(1,IMSUM(IMDIV(1,IMPRODUCT(B90,'Design the AEF circuit'!$H$19*0.001)),IMDIV(1,'Design the AEF circuit'!$H$20*1000))), IMDIV(1,IMSUM(IMDIV(1,IMPRODUCT(B90,'Design the AEF circuit'!$H$22*0.001)),IMDIV(1,'Design the AEF circuit'!$H$23*1000))), IMDIV(1,IMSUM(IMDIV(1,IMPRODUCT(B90,'Design the AEF circuit'!$H$24*0.001)),IMDIV(1,'Design the AEF circuit'!$H$25*1000))) ) -> 349.038733709437+242.707559723328j | Q90: =IMDIV(1, IMSUM( IMDIV(1, P90), IMPRODUCT(B90,'Design the AEF circuit'!$H$21*0.000000000001) ) ) -> 351.328828004415+241.844744823035j
A91: ='Frequency vector'!G91 -> 363000 | B91: =COMPLEX(0,2*PI()*'Frequency vector'!G91,"j") -> 2280796.26650619j | C91: =IF(IF(CMdata=1,IMABS(K91),'CM choke'!C95)=0, C90, IF(CMdata=1,IMABS(K91),'CM choke'!C95)) -> 1585.3696 | D91: =IF(IF(CMdata=1,DEGREES(IMARGUMENT(K91)),'CM choke'!D95)=0, D90, IF(CMdata=1,DEGREES(IMARGUMENT(K91)),'CM choke'!D95)) -> 16.26082632 | E91: =IF(IF(CMdata=1,IMABS(L91),'CM choke'!E95)=0, E90, IF(CMdata=1,IMABS(L91),'CM choke'!E95)) -> 999.4651785 | F91: =IF(IF(CMdata=1,DEGREES(IMARGUMENT(L91)),'CM choke'!F95)=0, F90, IF(CMdata=1,DEGREES(IMARGUMENT(L91)),'CM choke'!F95)) -> 13.91986939 | G91: 1521.95 | H91: 443.92 | I91: 970.114 | J91: 240.436 | K91: =IF(CMdata=1, IF(Lcm1_core=1, IMDIV(1,IMSUM(IMDIV(1,IMPRODUCT(B91,'Design the AEF circuit'!$G$19*0.001)),IMDIV(1,'Design the AEF circuit'!$G$20*1000),IMPRODUCT(B91,'Design the AEF circuit'!$G$21*0.000000000001))), O91),COMPLEX(G91,H91,"j")) -> 1521.95+443.92j | L91: =IF(CMdata=1, IF(Lcm2_core=1, IMDIV(1, IMSUM(IMDIV(1,IMPRODUCT(B91,'Design the AEF circuit'!$H$19*0.001)), IMDIV(1,'Design the AEF circuit'!$H$20*1000), IMPRODUCT(B91,'Design the AEF circuit'!$H$21*0.000000000001))), Q91), COMPLEX(I91,J91,"j")) -> 970.114+240.436j | N91: =IMSUM(IMDIV(1,IMSUM(IMDIV(1,IMPRODUCT(B91,'Design the AEF circuit'!$G$19*0.001)),IMDIV(1,'Design the AEF circuit'!$G$20*1000))), IMDIV(1,IMSUM(IMDIV(1,IMPRODUCT(B91,'Design the AEF circuit'!$G$22*0.001)),IMDIV(1,'Design the AEF circuit'!$G$23*1000))), IMDIV(1,IMSUM(IMDIV(1,IMPRODUCT(B91,'Design the AEF circuit'!$G$24*0.001)),IMDIV(1,'Design the AEF circuit'!$G$25*1000))) ) -> 360.569490905181+246.764815874804j | O91: =IMDIV(1, IMSUM( IMDIV(1, N91), IMPRODUCT(B91,'Design the AEF circuit'!$G$21*0.000000000001))) -> 363.008213553812+245.803679381837j | P91: =IMSUM(IMDIV(1,IMSUM(IMDIV(1,IMPRODUCT(B91,'Design the AEF circuit'!$H$19*0.001)),IMDIV(1,'Design the AEF circuit'!$H$20*1000))), IMDIV(1,IMSUM(IMDIV(1,IMPRODUCT(B91,'Design the AEF circuit'!$H$22*0.001)),IMDIV(1,'Design the AEF circuit'!$H$23*1000))), IMDIV(1,IMSUM(IMDIV(1,IMPRODUCT(B91,'Design the AEF circuit'!$H$24*0.001)),IMDIV(1,'Design the AEF circuit'!$H$25*1000))) ) -> 351.303454516793+243.727444412929j | Q91: =IMDIV(1, IMSUM( IMDIV(1, P91), IMPRODUCT(B91,'Design the AEF circuit'!$H$21*0.000000000001) ) ) -> 353.650446864512+242.837215009646j
A92: ='Frequency vector'!G92 -> 368000 | B92: =COMPLEX(0,2*PI()*'Frequency vector'!G92,"j") -> 2312212.19304209j | C92: =IF(IF(CMdata=1,IMABS(K92),'CM choke'!C96)=0, C91, IF(CMdata=1,IMABS(K92),'CM choke'!C96)) -> 1562.86342 | D92: =IF(IF(CMdata=1,DEGREES(IMARGUMENT(K92)),'CM choke'!D96)=0, D91, IF(CMdata=1,DEGREES(IMARGUMENT(K92)),'CM choke'!D96)) -> 15.29173204 | E92: =IF(IF(CMdata=1,IMABS(L92),'CM choke'!E96)=0, E91, IF(CMdata=1,IMABS(L92),'CM choke'!E96)) -> 1011.112424 | F92: =IF(IF(CMdata=1,DEGREES(IMARGUMENT(L92)),'CM choke'!F96)=0, F91, IF(CMdata=1,DEGREES(IMARGUMENT(L92)),'CM choke'!F96)) -> 13.00646677 | G92: 1507.531 | H92: 412.18 | I92: 985.172 | J92: 227.562 | K92: =IF(CMdata=1, IF(Lcm1_core=1, IMDIV(1,IMSUM(IMDIV(1,IMPRODUCT(B92,'Design the AEF circuit'!$G$19*0.001)),IMDIV(1,'Design the AEF circuit'!$G$20*1000),IMPRODUCT(B92,'Design the AEF circuit'!$G$21*0.000000000001))), O92),COMPLEX(G92,H92,"j")) -> 1507.531+412.18j | L92: =IF(CMdata=1, IF(Lcm2_core=1, IMDIV(1, IMSUM(IMDIV(1,IMPRODUCT(B92,'Design the AEF circuit'!$H$19*0.001)), IMDIV(1,'Design the AEF circuit'!$H$20*1000), IMPRODUCT(B92,'Design the AEF circuit'!$H$21*0.000000000001))), Q92), COMPLEX(I92,J92,"j")) -> 985.172+227.562j | N92: =IMSUM(IMDIV(1,IMSUM(IMDIV(1,IMPRODUCT(B92,'Design the AEF circuit'!$G$19*0.001)),IMDIV(1,'Design the AEF circuit'!$G$20*1000))), IMDIV(1,IMSUM(IMDIV(1,IMPRODUCT(B92,'Design the AEF circuit'!$G$22*0.001)),IMDIV(1,'Design the AEF circuit'!$G$23*1000))), IMDIV(1,IMSUM(IMDIV(1,IMPRODUCT(B92,'Design the AEF circuit'!$G$24*0.001)),IMDIV(1,'Design the AEF circuit'!$G$25*1000))) ) -> 362.842543349915+247.727309340817j | O92: =IMDIV(1, IMSUM( IMDIV(1, N92), IMPRODUCT(B92,'Design the AEF circuit'!$G$21*0.000000000001))) -> 365.340164519676+246.736235297554j | P92: =IMSUM(IMDIV(1,IMSUM(IMDIV(1,IMPRODUCT(B92,'Design the AEF circuit'!$H$19*0.001)),IMDIV(1,'Design the AEF circuit'!$H$20*1000))), IMDIV(1,IMSUM(IMDIV(1,IMPRODUCT(B92,'Design the AEF circuit'!$H$22*0.001)),IMDIV(1,'Design the AEF circuit'!$H$23*1000))), IMDIV(1,IMSUM(IMDIV(1,IMPRODUCT(B92,'Design the AEF circuit'!$H$24*0.001)),IMDIV(1,'Design the AEF circuit'!$H$25*1000))) ) -> 353.557495419611+244.727178096938j | Q92: =IMDIV(1, IMSUM( IMDIV(1, P92), IMPRODUCT(B92,'Design the AEF circuit'!$H$21*0.000000000001) ) ) -> 355.961928473174+243.808957063744j
A93: ='Frequency vector'!G93 -> 373000 | B93: =COMPLEX(0,2*PI()*'Frequency vector'!G93,"j") -> 2343628.11957799j | C93: =IF(IF(CMdata=1,IMABS(K93),'CM choke'!C97)=0, C92, IF(CMdata=1,IMABS(K93),'CM choke'!C97)) -> 1584.915228 | D93: =IF(IF(CMdata=1,DEGREES(IMARGUMENT(K93)),'CM choke'!D97)=0, D92, IF(CMdata=1,DEGREES(IMARGUMENT(K93)),'CM choke'!D97)) -> 15.30530654 | E93: =IF(IF(CMdata=1,IMABS(L93),'CM choke'!E97)=0, E92, IF(CMdata=1,IMABS(L93),'CM choke'!E97)) -> 1013.008638 | F93: =IF(IF(CMdata=1,DEGREES(IMARGUMENT(L93)),'CM choke'!F97)=0, F92, IF(CMdata=1,DEGREES(IMARGUMENT(L93)),'CM choke'!F97)) -> 11.68860522 | G93: 1528.703 | H93: 418.358 | I93: 992.002 | J93: 205.228 | K93: =IF(CMdata=1, IF(Lcm1_core=1, IMDIV(1,IMSUM(IMDIV(1,IMPRODUCT(B93,'Design the AEF circuit'!$G$19*0.001)),IMDIV(1,'Design the AEF circuit'!$G$20*1000),IMPRODUCT(B93,'Design the AEF circuit'!$G$21*0.000000000001))), O93),COMPLEX(G93,H93,"j")) -> 1528.703+418.358j | L93: =IF(CMdata=1, IF(Lcm2_core=1, IMDIV(1, IMSUM(IMDIV(1,IMPRODUCT(B93,'Design the AEF circuit'!$H$19*0.001)), IMDIV(1,'Design the AEF circuit'!$H$20*1000), IMPRODUCT(B93,'Design the AEF circuit'!$H$21*0.000000000001))), Q93), COMPLEX(I93,J93,"j")) -> 992.002+205.228j | N93: =IMSUM(IMDIV(1,IMSUM(IMDIV(1,IMPRODUCT(B93,'Design the AEF circuit'!$G$19*0.001)),IMDIV(1,'Design the AEF circuit'!$G$20*1000))), IMDIV(1,IMSUM(IMDIV(1,IMPRODUCT(B93,'Design the AEF circuit'!$G$22*0.001)),IMDIV(1,'Design the AEF circuit'!$G$23*1000))), IMDIV(1,IMSUM(IMDIV(1,IMPRODUCT(B93,'Design the AEF circuit'!$G$24*0.001)),IMDIV(1,'Design the AEF circuit'!$G$25*1000))) ) -> 365.103983575343+248.670538427674j | O93: =IMDIV(1, IMSUM( IMDIV(1, N93), IMPRODUCT(B93,'Design the AEF circuit'!$G$21*0.000000000001))) -> 367.661032939369+247.64892962592j | P93: =IMSUM(IMDIV(1,IMSUM(IMDIV(1,IMPRODUCT(B93,'Design the AEF circuit'!$H$19*0.001)),IMDIV(1,'Design the AEF circuit'!$H$20*1000))), IMDIV(1,IMSUM(IMDIV(1,IMPRODUCT(B93,'Design the AEF circuit'!$H$22*0.001)),IMDIV(1,'Design the AEF circuit'!$H$23*1000))), IMDIV(1,IMSUM(IMDIV(1,IMPRODUCT(B93,'Design the AEF circuit'!$H$24*0.001)),IMDIV(1,'Design the AEF circuit'!$H$25*1000))) ) -> 355.800643248159+245.70680020957j | Q93: =IMDIV(1, IMSUM( IMDIV(1, P93), IMPRODUCT(B93,'Design the AEF circuit'!$H$21*0.000000000001) ) ) -> 358.263047870821+244.760006911788j
A94: ='Frequency vector'!G94 -> 378000 | B94: =COMPLEX(0,2*PI()*'Frequency vector'!G94,"j") -> 2375044.04611388j | C94: =IF(IF(CMdata=1,IMABS(K94),'CM choke'!C98)=0, C93, IF(CMdata=1,IMABS(K94),'CM choke'!C98)) -> 1584.97075 | D94: =IF(IF(CMdata=1,DEGREES(IMARGUMENT(K94)),'CM choke'!D98)=0, D93, IF(CMdata=1,DEGREES(IMARGUMENT(K94)),'CM choke'!D98)) -> 14.51150128 | E94: =IF(IF(CMdata=1,IMABS(L94),'CM choke'!E98)=0, E93, IF(CMdata=1,IMABS(L94),'CM choke'!E98)) -> 1012.494278 | F94: =IF(IF(CMdata=1,DEGREES(IMARGUMENT(L94)),'CM choke'!F98)=0, F93, IF(CMdata=1,DEGREES(IMARGUMENT(L94)),'CM choke'!F98)) -> 10.43489044 | G94: 1534.406 | H94: 397.153 | I94: 995.749 | J94: 183.381 | K94: =IF(CMdata=1, IF(Lcm1_core=1, IMDIV(1,IMSUM(IMDIV(1,IMPRODUCT(B94,'Design the AEF circuit'!$G$19*0.001)),IMDIV(1,'Design the AEF circuit'!$G$20*1000),IMPRODUCT(B94,'Design the AEF circuit'!$G$21*0.000000000001))), O94),COMPLEX(G94,H94,"j")) -> 1534.406+397.153j | L94: =IF(CMdata=1, IF(Lcm2_core=1, IMDIV(1, IMSUM(IMDIV(1,IMPRODUCT(B94,'Design the AEF circuit'!$H$19*0.001)), IMDIV(1,'Design the AEF circuit'!$H$20*1000), IMPRODUCT(B94,'Design the AEF circuit'!$H$21*0.000000000001))), Q94), COMPLEX(I94,J94,"j")) -> 995.749+183.381j | N94: =IMSUM(IMDIV(1,IMSUM(IMDIV(1,IMPRODUCT(B94,'Design the AEF circuit'!$G$19*0.001)),IMDIV(1,'Design the AEF circuit'!$G$20*1000))), IMDIV(1,IMSUM(IMDIV(1,IMPRODUCT(B94,'Design the AEF circuit'!$G$22*0.001)),IMDIV(1,'Design the AEF circuit'!$G$23*1000))), IMDIV(1,IMSUM(IMDIV(1,IMPRODUCT(B94,'Design the AEF circuit'!$G$24*0.001)),IMDIV(1,'Design the AEF circuit'!$G$25*1000))) ) -> 367.353634538216+249.594542671991j | O94: =IMDIV(1, IMSUM( IMDIV(1, N94), IMPRODUCT(B94,'Design the AEF circuit'!$G$21*0.000000000001))) -> 369.970629784006+248.541798999592j | P94: =IMSUM(IMDIV(1,IMSUM(IMDIV(1,IMPRODUCT(B94,'Design the AEF circuit'!$H$19*0.001)),IMDIV(1,'Design the AEF circuit'!$H$20*1000))), IMDIV(1,IMSUM(IMDIV(1,IMPRODUCT(B94,'Design the AEF circuit'!$H$22*0.001)),IMDIV(1,'Design the AEF circuit'!$H$23*1000))), IMDIV(1,IMSUM(IMDIV(1,IMPRODUCT(B94,'Design the AEF circuit'!$H$24*0.001)),IMDIV(1,'Design the AEF circuit'!$H$25*1000))) ) -> 358.032685653655+246.666376526223j | Q94: =IMDIV(1, IMSUM( IMDIV(1, P94), IMPRODUCT(B94,'Design the AEF circuit'!$H$21*0.000000000001) ) ) -> 360.553580900699+245.690427234577j
A95: ='Frequency vector'!G95 -> 383000 | B95: =COMPLEX(0,2*PI()*'Frequency vector'!G95,"j") -> 2406459.97264978j | C95: =IF(IF(CMdata=1,IMABS(K95),'CM choke'!C99)=0, C94, IF(CMdata=1,IMABS(K95),'CM choke'!C99)) -> 1593.891019 | D95: =IF(IF(CMdata=1,DEGREES(IMARGUMENT(K95)),'CM choke'!D99)=0, D94, IF(CMdata=1,DEGREES(IMARGUMENT(K95)),'CM choke'!D99)) -> 14.23369944 | E95: =IF(IF(CMdata=1,IMABS(L95),'CM choke'!E99)=0, E94, IF(CMdata=1,IMABS(L95),'CM choke'!E99)) -> 1010.918985 | F95: =IF(IF(CMdata=1,DEGREES(IMARGUMENT(L95)),'CM choke'!F99)=0, F94, IF(CMdata=1,DEGREES(IMARGUMENT(L95)),'CM choke'!F99)) -> 9.388377483 | G95: 1544.96 | H95: 391.902 | I95: 997.378 | J95: 164.907 | K95: =IF(CMdata=1, IF(Lcm1_core=1, IMDIV(1,IMSUM(IMDIV(1,IMPRODUCT(B95,'Design the AEF circuit'!$G$19*0.001)),IMDIV(1,'Design the AEF circuit'!$G$20*1000),IMPRODUCT(B95,'Design the AEF circuit'!$G$21*0.000000000001))), O95),COMPLEX(G95,H95,"j")) -> 1544.96+391.902j | L95: =IF(CMdata=1, IF(Lcm2_core=1, IMDIV(1, IMSUM(IMDIV(1,IMPRODUCT(B95,'Design the AEF circuit'!$H$19*0.001)), IMDIV(1,'Design the AEF circuit'!$H$20*1000), IMPRODUCT(B95,'Design the AEF circuit'!$H$21*0.000000000001))), Q95), COMPLEX(I95,J95,"j")) -> 997.378+164.907j | N95: =IMSUM(IMDIV(1,IMSUM(IMDIV(1,IMPRODUCT(B95,'Design the AEF circuit'!$G$19*0.001)),IMDIV(1,'Design the AEF circuit'!$G$20*1000))), IMDIV(1,IMSUM(IMDIV(1,IMPRODUCT(B95,'Design the AEF circuit'!$G$22*0.001)),IMDIV(1,'Design the AEF circuit'!$G$23*1000))), IMDIV(1,IMSUM(IMDIV(1,IMPRODUCT(B95,'Design the AEF circuit'!$G$24*0.001)),IMDIV(1,'Design the AEF circuit'!$G$25*1000))) ) -> 369.591319130018+250.499386950392j | O95: =IMDIV(1, IMSUM( IMDIV(1, N95), IMPRODUCT(B95,'Design the AEF circuit'!$G$21*0.000000000001))) -> 372.268765964341+249.414905801685j | P95: =IMSUM(IMDIV(1,IMSUM(IMDIV(1,IMPRODUCT(B95,'Design the AEF circuit'!$H$19*0.001)),IMDIV(1,'Design the AEF circuit'!$H$20*1000))), IMDIV(1,IMSUM(IMDIV(1,IMPRODUCT(B95,'Design the AEF circuit'!$H$22*0.001)),IMDIV(1,'Design the AEF circuit'!$H$23*1000))), IMDIV(1,IMSUM(IMDIV(1,IMPRODUCT(B95,'Design the AEF circuit'!$H$24*0.001)),IMDIV(1,'Design the AEF circuit'!$H$25*1000))) ) -> 360.253412329859+247.605997231131j | Q95: =IMDIV(1, IMSUM( IMDIV(1, P95), IMPRODUCT(B95,'Design the AEF circuit'!$H$21*0.000000000001) ) ) -> 362.833305448803+246.600305528134j
A96: ='Frequency vector'!G96 -> 388000 | B96: =COMPLEX(0,2*PI()*'Frequency vector'!G96,"j") -> 2437875.89918568j | C96: =IF(IF(CMdata=1,IMABS(K96),'CM choke'!C100)=0, C95, IF(CMdata=1,IMABS(K96),'CM choke'!C100)) -> 1596.004152 | D96: =IF(IF(CMdata=1,DEGREES(IMARGUMENT(K96)),'CM choke'!D100)=0, D95, IF(CMdata=1,DEGREES(IMARGUMENT(K96)),'CM choke'!D100)) -> 12.97502789 | E96: =IF(IF(CMdata=1,IMABS(L96),'CM choke'!E100)=0, E95, IF(CMdata=1,IMABS(L96),'CM choke'!E100)) -> 1013.379205 | F96: =IF(IF(CMdata=1,DEGREES(IMARGUMENT(L96)),'CM choke'!F100)=0, F95, IF(CMdata=1,DEGREES(IMARGUMENT(L96)),'CM choke'!F100)) -> 8.368595812 | G96: 1555.255 | H96: 358.345 | I96: 1002.589 | J96: 147.488 | K96: =IF(CMdata=1, IF(Lcm1_core=1, IMDIV(1,IMSUM(IMDIV(1,IMPRODUCT(B96,'Design the AEF circuit'!$G$19*0.001)),IMDIV(1,'Design the AEF circuit'!$G$20*1000),IMPRODUCT(B96,'Design the AEF circuit'!$G$21*0.000000000001))), O96),COMPLEX(G96,H96,"j")) -> 1555.255+358.345j | L96: =IF(CMdata=1, IF(Lcm2_core=1, IMDIV(1, IMSUM(IMDIV(1,IMPRODUCT(B96,'Design the AEF circuit'!$H$19*0.001)), IMDIV(1,'Design the AEF circuit'!$H$20*1000), IMPRODUCT(B96,'Design the AEF circuit'!$H$21*0.000000000001))), Q96), COMPLEX(I96,J96,"j")) -> 1002.589+147.488j | N96: =IMSUM(IMDIV(1,IMSUM(IMDIV(1,IMPRODUCT(B96,'Design the AEF circuit'!$G$19*0.001)),IMDIV(1,'Design the AEF circuit'!$G$20*1000))), IMDIV(1,IMSUM(IMDIV(1,IMPRODUCT(B96,'Design the AEF circuit'!$G$22*0.001)),IMDIV(1,'Design the AEF circuit'!$G$23*1000))), IMDIV(1,IMSUM(IMDIV(1,IMPRODUCT(B96,'Design the AEF circuit'!$G$24*0.001)),IMDIV(1,'Design the AEF circuit'!$G$25*1000))) ) -> 371.816861397135+251.385159619842j | O96: =IMDIV(1, IMSUM( IMDIV(1, N96), IMPRODUCT(B96,'Design the AEF circuit'!$G$21*0.000000000001))) -> 374.555253568704+250.268336298355j | P96: =IMSUM(IMDIV(1,IMSUM(IMDIV(1,IMPRODUCT(B96,'Design the AEF circuit'!$H$19*0.001)),IMDIV(1,'Design the AEF circuit'!$H$20*1000))), IMDIV(1,IMSUM(IMDIV(1,IMPRODUCT(B96,'Design the AEF circuit'!$H$22*0.001)),IMDIV(1,'Design the AEF circuit'!$H$23*1000))), IMDIV(1,IMSUM(IMDIV(1,IMPRODUCT(B96,'Design the AEF circuit'!$H$24*0.001)),IMDIV(1,'Design the AEF circuit'!$H$25*1000))) ) -> 362.462616086481+248.525775087154j | Q96: =IMDIV(1, IMSUM( IMDIV(1, P96), IMPRODUCT(B96,'Design the AEF circuit'!$H$21*0.000000000001) ) ) -> 365.102002534776+247.489752266116j
A97: ='Frequency vector'!G97 -> 393000 | B97: =COMPLEX(0,2*PI()*'Frequency vector'!G97,"j") -> 2469291.82572158j | C97: =IF(IF(CMdata=1,IMABS(K97),'CM choke'!C101)=0, C96, IF(CMdata=1,IMABS(K97),'CM choke'!C101)) -> 1596.224636 | D97: =IF(IF(CMdata=1,DEGREES(IMARGUMENT(K97)),'CM choke'!D101)=0, D96, IF(CMdata=1,DEGREES(IMARGUMENT(K97)),'CM choke'!D101)) -> 13.11985014 | E97: =IF(IF(CMdata=1,IMABS(L97),'CM choke'!E101)=0, E96, IF(CMdata=1,IMABS(L97),'CM choke'!E101)) -> 1005.703594 | F97: =IF(IF(CMdata=1,DEGREES(IMARGUMENT(L97)),'CM choke'!F101)=0, F96, IF(CMdata=1,DEGREES(IMARGUMENT(L97)),'CM choke'!F101)) -> 7.543808089 | G97: 1554.559 | H97: 362.325 | I97: 996.999 | J97: 132.033 | K97: =IF(CMdata=1, IF(Lcm1_core=1, IMDIV(1,IMSUM(IMDIV(1,IMPRODUCT(B97,'Design the AEF circuit'!$G$19*0.001)),IMDIV(1,'Design the AEF circuit'!$G$20*1000),IMPRODUCT(B97,'Design the AEF circuit'!$G$21*0.000000000001))), O97),COMPLEX(G97,H97,"j")) -> 1554.559+362.325j | L97: =IF(CMdata=1, IF(Lcm2_core=1, IMDIV(1, IMSUM(IMDIV(1,IMPRODUCT(B97,'Design the AEF circuit'!$H$19*0.001)), IMDIV(1,'Design the AEF circuit'!$H$20*1000), IMPRODUCT(B97,'Design the AEF circuit'!$H$21*0.000000000001))), Q97), COMPLEX(I97,J97,"j")) -> 996.999+132.033j | N97: =IMSUM(IMDIV(1,IMSUM(IMDIV(1,IMPRODUCT(B97,'Design the AEF circuit'!$G$19*0.001)),IMDIV(1,'Design the AEF circuit'!$G$20*1000))), IMDIV(1,IMSUM(IMDIV(1,IMPRODUCT(B97,'Design the AEF circuit'!$G$22*0.001)),IMDIV(1,'Design the AEF circuit'!$G$23*1000))), IMDIV(1,IMSUM(IMDIV(1,IMPRODUCT(B97,'Design the AEF circuit'!$G$24*0.001)),IMDIV(1,'Design the AEF circuit'!$G$25*1000))) ) -> 374.03008761521+252.251970755214j | O97: =IMDIV(1, IMSUM( IMDIV(1, N97), IMPRODUCT(B97,'Design the AEF circuit'!$G$21*0.000000000001))) -> 376.829906954269+251.102198868038j | P97: =IMSUM(IMDIV(1,IMSUM(IMDIV(1,IMPRODUCT(B97,'Design the AEF circuit'!$H$19*0.001)),IMDIV(1,'Design the AEF circuit'!$H$20*1000))), IMDIV(1,IMSUM(IMDIV(1,IMPRODUCT(B97,'Design the AEF circuit'!$H$22*0.001)),IMDIV(1,'Design the AEF circuit'!$H$23*1000))), IMDIV(1,IMSUM(IMDIV(1,IMPRODUCT(B97,'Design the AEF circuit'!$H$24*0.001)),IMDIV(1,'Design the AEF circuit'!$H$25*1000))) ) -> 364.660093788339+249.425843702975j | Q97: =IMDIV(1, IMSUM( IMDIV(1, P97), IMPRODUCT(B97,'Design the AEF circuit'!$H$21*0.000000000001) ) ) -> 367.359457267757+248.358899159077j
A98: ='Frequency vector'!G98 -> 398000 | B98: =COMPLEX(0,2*PI()*'Frequency vector'!G98,"j") -> 2500707.75225748j | C98: =IF(IF(CMdata=1,IMABS(K98),'CM choke'!C102)=0, C97, IF(CMdata=1,IMABS(K98),'CM choke'!C102)) -> 1618.568267 | D98: =IF(IF(CMdata=1,DEGREES(IMARGUMENT(K98)),'CM choke'!D102)=0, D97, IF(CMdata=1,DEGREES(IMARGUMENT(K98)),'CM choke'!D102)) -> 12.64194444 | E98: =IF(IF(CMdata=1,IMABS(L98),'CM choke'!E102)=0, E97, IF(CMdata=1,IMABS(L98),'CM choke'!E102)) -> 1012.248667 | F98: =IF(IF(CMdata=1,DEGREES(IMARGUMENT(L98)),'CM choke'!F102)=0, F97, IF(CMdata=1,DEGREES(IMARGUMENT(L98)),'CM choke'!F102)) -> 6.071842064 | G98: 1579.329 | H98: 354.236 | I98: 1006.57 | J98: 107.071 | K98: =IF(CMdata=1, IF(Lcm1_core=1, IMDIV(1,IMSUM(IMDIV(1,IMPRODUCT(B98,'Design the AEF circuit'!$G$19*0.001)),IMDIV(1,'Design the AEF circuit'!$G$20*1000),IMPRODUCT(B98,'Design the AEF circuit'!$G$21*0.000000000001))), O98),COMPLEX(G98,H98,"j")) -> 1579.329+354.236j | L98: =IF(CMdata=1, IF(Lcm2_core=1, IMDIV(1, IMSUM(IMDIV(1,IMPRODUCT(B98,'Design the AEF circuit'!$H$19*0.001)), IMDIV(1,'Design the AEF circuit'!$H$20*1000), IMPRODUCT(B98,'Design the AEF circuit'!$H$21*0.000000000001))), Q98), COMPLEX(I98,J98,"j")) -> 1006.57+107.071j | N98: =IMSUM(IMDIV(1,IMSUM(IMDIV(1,IMPRODUCT(B98,'Design the AEF circuit'!$G$19*0.001)),IMDIV(1,'Design the AEF circuit'!$G$20*1000))), IMDIV(1,IMSUM(IMDIV(1,IMPRODUCT(B98,'Design the AEF circuit'!$G$22*0.001)),IMDIV(1,'Design the AEF circuit'!$G$23*1000))), IMDIV(1,IMSUM(IMDIV(1,IMPRODUCT(B98,'Design the AEF circuit'!$G$24*0.001)),IMDIV(1,'Design the AEF circuit'!$G$25*1000))) ) -> 376.230827231342+253.09995047982j | O98: =IMDIV(1, IMSUM( IMDIV(1, N98), IMPRODUCT(B98,'Design the AEF circuit'!$G$21*0.000000000001))) -> 379.092543705303+251.916622323157j | P98: =IMSUM(IMDIV(1,IMSUM(IMDIV(1,IMPRODUCT(B98,'Design the AEF circuit'!$H$19*0.001)),IMDIV(1,'Design the AEF circuit'!$H$20*1000))), IMDIV(1,IMSUM(IMDIV(1,IMPRODUCT(B98,'Design the AEF circuit'!$H$22*0.001)),IMDIV(1,'Design the AEF circuit'!$H$23*1000))), IMDIV(1,IMSUM(IMDIV(1,IMPRODUCT(B98,'Design the AEF circuit'!$H$24*0.001)),IMDIV(1,'Design the AEF circuit'!$H$25*1000))) ) -> 366.845647172922+250.30635589319j | Q98: =IMDIV(1, IMSUM( IMDIV(1, P98), IMPRODUCT(B98,'Design the AEF circuit'!$H$21*0.000000000001) ) ) -> 369.60545967979+249.207897506086j
A99: ='Frequency vector'!G99 -> 403000 | B99: =COMPLEX(0,2*PI()*'Frequency vector'!G99,"j") -> 2532123.67879337j | C99: =IF(IF(CMdata=1,IMABS(K99),'CM choke'!C103)=0, C98, IF(CMdata=1,IMABS(K99),'CM choke'!C103)) -> 1624.78966 | D99: =IF(IF(CMdata=1,DEGREES(IMARGUMENT(K99)),'CM choke'!D103)=0, D98, IF(CMdata=1,DEGREES(IMARGUMENT(K99)),'CM choke'!D103)) -> 12.16528252 | E99: =IF(IF(CMdata=1,IMABS(L99),'CM choke'!E103)=0, E98, IF(CMdata=1,IMABS(L99),'CM choke'!E103)) -> 1006.609298 | F99: =IF(IF(CMdata=1,DEGREES(IMARGUMENT(L99)),'CM choke'!F103)=0, F98, IF(CMdata=1,DEGREES(IMARGUMENT(L99)),'CM choke'!F103)) -> 5.488150368 | G99: 1588.303 | H99: 342.396 | I99: 1001.995 | J99: 96.272 | K99: =IF(CMdata=1, IF(Lcm1_core=1, IMDIV(1,IMSUM(IMDIV(1,IMPRODUCT(B99,'Design the AEF circuit'!$G$19*0.001)),IMDIV(1,'Design the AEF circuit'!$G$20*1000),IMPRODUCT(B99,'Design the AEF circuit'!$G$21*0.000000000001))), O99),COMPLEX(G99,H99,"j")) -> 1588.303+342.396j | L99: =IF(CMdata=1, IF(Lcm2_core=1, IMDIV(1, IMSUM(IMDIV(1,IMPRODUCT(B99,'Design the AEF circuit'!$H$19*0.001)), IMDIV(1,'Design the AEF circuit'!$H$20*1000), IMPRODUCT(B99,'Design the AEF circuit'!$H$21*0.000000000001))), Q99), COMPLEX(I99,J99,"j")) -> 1001.995+96.272j | N99: =IMSUM(IMDIV(1,IMSUM(IMDIV(1,IMPRODUCT(B99,'Design the AEF circuit'!$G$19*0.001)),IMDIV(1,'Design the AEF circuit'!$G$20*1000))), IMDIV(1,IMSUM(IMDIV(1,IMPRODUCT(B99,'Design the AEF circuit'!$G$22*0.001)),IMDIV(1,'Design the AEF circuit'!$G$23*1000))), IMDIV(1,IMSUM(IMDIV(1,IMPRODUCT(B99,'Design the AEF circuit'!$G$24*0.001)),IMDIV(1,'Design the AEF circuit'!$G$25*1000))) ) -> 378.418913686469+253.929247384744j | O99: =IMDIV(1, IMSUM( IMDIV(1, N99), IMPRODUCT(B99,'Design the AEF circuit'!$G$21*0.000000000001))) -> 381.342985470771+252.711754320171j | P99: =IMSUM(IMDIV(1,IMSUM(IMDIV(1,IMPRODUCT(B99,'Design the AEF circuit'!$H$19*0.001)),IMDIV(1,'Design the AEF circuit'!$H$20*1000))), IMDIV(1,IMSUM(IMDIV(1,IMPRODUCT(B99,'Design the AEF circuit'!$H$22*0.001)),IMDIV(1,'Design the AEF circuit'!$H$23*1000))), IMDIV(1,IMSUM(IMDIV(1,IMPRODUCT(B99,'Design the AEF circuit'!$H$24*0.001)),IMDIV(1,'Design the AEF circuit'!$H$25*1000))) ) -> 369.019083557784+251.167482126962j | Q99: =IMDIV(1, IMSUM( IMDIV(1, P99), IMPRODUCT(B99,'Design the AEF circuit'!$H$21*0.000000000001) ) ) -> 371.839805448268+250.036916634472j
